{"text_format":"1","workbook":"xlsx","n_sheets":14,"sheets":["PORTADA","MENU","CFDIE","RPAGOSE","CFDIR","RPAGOSR","VISOR","IVA","SFAVOR","ACREDITA","GENERAL","EJEMPLOS","CLAVESPS","c_Estado"],"not_rendered":{"charts":0,"images":25,"macros":1,"external_links":0,"defined_names":54,"comments":1,"pivot_tables":0},"unopened":[],"bounds":{"document_bytes":16777216,"sheet_cells":100000,"rows_first":2000,"rows_last":500,"rows_between":2000,"halvings":0,"cell_chars":16384,"cell_head_chars":4096},"cells_cut":0,"cells_raw":0,"read":"whole","date_system":"1900"}

{"sheet":"PORTADA","index":0,"n_rows":326,"n_cols":39,"rows_kept":326,"cut":false,"hidden":false,"merged":[]}
[]
[]
[]
[]
[]
[]
[]
[]
[]
[]
[]
[]
[]
[]
[]
[]
[]
[]
[]
[]
[]
[]
[]
[]
[]
[]
[]
[]
[]
[]
[]
[]
[]
[]
[]
[]
[]
[]
[]
[]
[]
[]
[]
[]
[]
[]
[]
[]
[]
[]
[]
[]
[]
[]
[]
[]
[null,null,"RangeR1"]
[]
[]
[]
[null,null,1107200]
[null,null,null,1107200]
[]
[]
[]
[]
[]
[]
[]
[]
[null,null,null,null,null,null,9632589]
[]
[]
[]
[]
[]
[]
[]
[]
[]
[]
[]
[]
[]
[]
[]
[]
[]
[]
[]
[]
[]
[]
[]
[]
[]
[]
[]
[]
[]
[]
[]
[]
[]
[]
[]
[]
[]
[]
[]
[]
[null,null,null,null,null,null,null,null,null,null,null,null,null,null,null,null,null,null,null,null,null,null,null,null,null,null,null,null,null,null,null,null,null,null,null,null,null,null,"Len@range(a2)"]
[]
[]
[]
[]
[]
[]
[]
[]
[]
[]
[]
[]
[]
[null,null,null,null,null,null,null,null,null,null,null,null,null,"Range(1)"]
[]
[]
[]
[]
[]
[]
[]
[]
[]
[]
[]
[]
[]
[]
[]
[]
[]
[]
[]
[]
[]
[]
[]
[]
[]
[]
[]
[]
[]
[]
[]
[]
[]
[]
[]
[]
[]
[]
[]
[]
[]
[]
[]
[]
[]
[]
[]
[]
[]
[]
[]
[]
[]
[]
[]
[]
[]
[]
[]
[]
[]
[]
[]
[]
[]
[]
[]
[]
[]
[]
[]
[]
[null,null,null,null,null,null,null,null,null,null,null,"Len@25"]
[]
[]
[]
[]
[]
[]
[]
[]
[]
[]
[]
[]
[]
[]
[]
[]
[]
[]
[]
[]
[]
[]
[]
[]
[]
[]
[]
[]
[]
[]
[]
[]
[]
[]
[]
[]
[]
[]
[]
[]
[]
[]
[]
[]
[]
[]
[]
[]
[]
[]
[]
[]
[]
[]
[]
[]
[]
[]
[]
[]
[]
[]
[]
[]
[]
[]
[]
[]
[]
[]
[]
[]
[]
[]
[]
[null,null,null,null,null,null,null,null,null,null,null,null,"LEN#22"]
[null,null,null,null,null,null,null,null,null,null,null,null,null,"LEN#22"]
[]
[]
[]
[]
[]
[]
[]
[]
[]
[]
[]
[]
[]
[]
[]
[]
[]
[]
[]
[]
[]
[]
[]
[]
[]
[]
[]
[]
[]
[]
[]
[]
[]
[]
[]
[]
[]
[]
[]
[]
[]
[]
[]
[]
[]
[]
[]
[]
[null,null,null,null,null,null,null,null,null,null,null,null,null,null,null,"LEN&1526"]
[null,null,null,null,null,null,null,null,null,null,null,null,null,null,null,null,"LEN&1526"]

{"sheet":"MENU","index":1,"n_rows":15,"n_cols":3,"rows_kept":15,"cut":false,"hidden":true,"merged":[]}
[]
[]
[]
[]
[]
[null,"DESCRIPCIÓN","NOMBRE DE LA HOJA"]
[null,"Importar XML emitidos (ingreso, egreso)","CFDIE"]
[null,"Importar XML emitidos con complemento de pago","RPAGOSE"]
[null,"Importar XMLrecibidos (ingreso, egreso)","CFDIR"]
[null,"Importar XML recibidos con complemento de pago","RPAGOSR"]
[null,"Visor de CFDI emitidos y recibidos","VISOR"]
[null,"Determinación del IVA con base en los CFDI","IVA"]
[null,"Registro y control del saldo a favor de IVA","SFAVOR"]
[null,"Control acreditamiento de IVA del saldo a favor","ACREDITA"]
[null,"Subtipos de saldo a favor","GENERAL"]

{"sheet":"CFDIE","index":2,"n_rows":4,"n_cols":73,"rows_kept":4,"cut":false,"hidden":true,"merged":[[2,19,2,23]]}
["Hoja para importar los XML emitidos por la empresa (excepto complemento de pagos y nómina)"]
[]
[null,null,null,null,null,null,null,null,null,null,null,null,null,null,null,null,null,null,null,"Información en caso de factura global"]
["Fecha de emisión","Tipo de comprobante","Tipo de comprobante del catálogo del SAT","Exportación","Clave de exportación catálogo del SAT","Serie","Folio","Folio fiscal","RFC emisor","Emisor","Régimen fiscal","Tipo de régimen catálogo del SAT","RFC receptor","Receptor","Régimen fiscal","Tipo de régimen catálogo del SAT","Domicilio fiscal receptor","Uso del CFDI","Uso del CFDI del catálogo del SAT","Periodicidad","Descripción de la clave del catálogo del SAT","Meses","Descripción de la clave del catálogo del SAT","Año","Clave producto/servicio SAT","Descripción de la clave del catálogo del SAT","Palabras similares","Clave unidad de medida","Unidad de medida del catálogo del SAT","Unidad","Cantidad","Descripción","Valor unitario","Importe","Descuento","Objeto del impuesto","Tipo de objeto del impuesto catálogo del SAT","Base para IEPS","Tipo factor","Tasa o cuota","Total IEPS trasladado del comprobante","Base para IVA","Tipo  factor","Tasa o cuota","Total IVA trasladado del comprobante","Base retención ISR","Tipo factor","Tasa o cuota","Retención de ISR","Base retención IVA","Tipo factor","Tasa o cuota","Retención IVA","Total del comprobante","Tipo de relación","Tipo de relación del catálogo del SAT","UUID relación","Forma de pago","Forma de pago del catálogo del SAT","Método de pago","Método de pago catálogo del SAT","Moneda","Moneda del catálogo del SAT","Tipo de cambio","No. de pedimento","Cuenta predial","Fecha de cancelación","No. de complementos de pago","Importe pagado","Saldo","Ruta del archivo","Operación convertida a moneda nacional","Impuestos locales"]

{"sheet":"RPAGOSE","index":3,"n_rows":7,"n_cols":78,"rows_kept":7,"cut":false,"hidden":true,"merged":[[5,58,5,61],[5,67,5,70],[5,71,5,74],[4,21,4,47],[5,9,5,11],[5,12,5,14],[5,15,5,20],[5,32,5,35],[5,36,5,45],[5,46,5,47]]}
[]
[null,"Hoja para importar los XML emitidos con el complemento de recepción de pagos"]
[]
[]
[null,null,null,null,null,null,null,null,null,null,null,null,null,null,null,null,null,null,null,null,null,"Complemento de recepción de pagos"]
[null,null,null,null,null,null,null,null,null,"Emisor",null,null,"Receptor",null,null,"Campos generales CFDI ",null,null,null,null,null,null,null,null,null,null,null,null,null,null,null,null,"Solo que el pago se reciba en SPEI",null,null,null,"Documentos que se cobran",null,null,null,null,null,null,null,null,null,"Timbre fiscal del complemento de recepción de pagos",null,null,null,null,null,null,null,null,null,null,null,"Retenciones",null,null,null,null,null,null,null,null,"Impuestos trasladados",null,null,null,"Impuestos retenidos"]
[null,"Fecha de emisión","Folio","Serie","Subtotal","Moneda","Total","Tipo de comprobante","Lugar Expedicion","Rfc","Nombre","Régimen fiscal","Rfc","Nombre","Uso del CFDI","ClaveProdServ","Cantidad","Unidad","Descripcion","ValorUnitario","Importe","Fecha de pago","Forma de pago","MonedaP","TipoCambioP","Monto","NumOperacion","RfcEmisorCtaOrd ","NomBancoOrdExt ","CtaOrdenante","RfcEmisorCtaBen ","CtaBeneficiario","TipoCadPago ","CertPago","CadPago","SelloPago","IdDocumento ","Serie","Folio","MonedaDR ","TipoCambioDR","MetodoDePagoDR","NumParcialidad ","ImpSaldoAnt ","ImpPagado ","ImpSaldoInsoluto","Fecha de timbrado","UUID","Total factura","Importe cobrado","Factor de pago","Base IVA al 16%","IVA al 16%","Base IVA al 8%","IVA al 8%","Base IVA al 0%","Base IVA exento","IEPS","Base retención ISR","Retención ISR","Base retención IVA","IVA","Ruta en donde se encuentra el archivo","Fecha de cancelación","Fecha de factura","Importe pagado","Objeto de impuestos DR","Base IEPS","IEPS","Base IVA","IVA","Base ISR","ISR","Base IVA","IVA","Base para ISR","Impuestos locales","Uso del CFDI"]

{"sheet":"CFDIR","index":4,"n_rows":4,"n_cols":73,"rows_kept":4,"cut":false,"hidden":true,"merged":[[2,19,2,23]]}
[]
["Hoja para importar los XML recibidos por la empresa (excepto complemento de pagos y nómina)"]
[null,null,null,null,null,null,null,null,null,null,null,null,null,null,null,null,null,null,null,"Información en caso de factura global"]
["Fecha de emisión","Tipo de comprobante","Tipo de comprobante del catálogo del SAT","Exportación","Clave de exportación catálogo del SAT","Serie","Folio","Folio fiscal","RFC emisor","Emisor","Régimen fiscal","Tipo de régimen catálogo del SAT","RFC receptor","Receptor","Régimen fiscal","Tipo de régimen catálogo del SAT","Domicilio fiscal receptor","Uso del CFDI","Uso del CFDI del catálogo del SAT","Periodicidad","Descripción de la clave del catálogo del SAT","Meses","Descripción de la clave del catálogo del SAT","Año","Clave producto/servicio SAT","Descripción de la clave del catálogo del SAT","Palabras similares","Clave unidad de medida","Unidad de medida del catálogo del SAT","Unidad","Cantidad","Descripción","Valor unitario","Importe","Descuento","Objeto del impuesto","Tipo de objeto del impuesto catálogo del SAT","Base para IEPS","Tipo factor","Tasa o cuota","Total IEPS trasladado del comprobante","Base para IVA","Tipo  factor","Tasa o cuota","Total IVA trasladado del comprobante","Base retención ISR","Tipo factor","Tasa o cuota","Retención de ISR","Base retención IVA","Tipo factor","Tasa o cuota","Retención IVA","Total del comprobante","Tipo de relación","Tipo de relación del catálogo del SAT","UUID relación","Forma de pago","Forma de pago del catálogo del SAT","Método de pago","Método de pago catálogo del SAT","Moneda","Moneda del catálogo del SAT","Tipo de cambio","No. de pedimento","Cuenta predial","Fecha de cancelación","No. de complementos de pago","Importe pagado","Saldo","Ruta del archivo","Operación convertida a moneda nacional","Impuestos locales"]

{"sheet":"RPAGOSR","index":5,"n_rows":7,"n_cols":78,"rows_kept":7,"cut":false,"hidden":true,"merged":[[5,58,5,61],[5,67,5,70],[5,71,5,74],[4,21,4,47],[5,9,5,11],[5,12,5,14],[5,15,5,20],[5,32,5,35],[5,36,5,45],[5,46,5,47]]}
[]
[null,"Hoja para importar los XML recibidos con el complemento de recepción de pagos"]
[]
[]
[null,null,null,null,null,null,null,null,null,null,null,null,null,null,null,null,null,null,null,null,null,"Complemento de recepción de pagos"]
[null,null,null,null,null,null,null,null,null,"Emisor",null,null,"Receptor",null,null,"Campos generales CFDI ",null,null,null,null,null,null,null,null,null,null,null,null,null,null,null,null,"Solo que el pago se reciba en SPEI",null,null,null,"Documentos que se cobran",null,null,null,null,null,null,null,null,null,"Timbre fiscal del complemento de recepción de pagos",null,null,null,null,null,null,null,null,null,null,null,"Retenciones",null,null,null,null,null,null,null,null,"Impuestos trasladados",null,null,null,"Impuestos retenidos"]
[null,"Fecha de emisión","Folio","Serie","Subtotal","Moneda","Total","Tipo de comprobante","Lugar Expedicion","Rfc","Nombre","Régimen fiscal","Rfc","Nombre","Uso del CFDI","ClaveProdServ","Cantidad","Unidad","Descripcion","ValorUnitario","Importe","Fecha de pago","Forma de pago","MonedaP","TipoCambioP","Monto","NumOperacion","RfcEmisorCtaOrd ","NomBancoOrdExt ","CtaOrdenante","RfcEmisorCtaBen ","CtaBeneficiario","TipoCadPago ","CertPago","CadPago","SelloPago","IdDocumento ","Serie","Folio","MonedaDR ","TipoCambioDR","MetodoDePagoDR","NumParcialidad ","ImpSaldoAnt ","ImpPagado ","ImpSaldoInsoluto","Fecha de timbrado","UUID","Total factura","Importe cobrado","Factor de pago","Base IVA al 16%","IVA al 16%","Base IVA al 8%","IVA al 8%","Base IVA al 0%","Base IVA exento","IEPS","Base retención ISR","Retención ISR","Base retención IVA","IVA","Ruta en donde se encuentra el archivo","Fecha de cancelación","Fecha de factura","Importe pagado","Objeto de impuestos DR","Base IEPS","IEPS","Base IVA","IVA","Base ISR","ISR","Base IVA","IVA","Base para ISR","Impuestos locales","Uso del CFDI"]

{"sheet":"VISOR","index":6,"n_rows":162,"n_cols":21,"rows_kept":162,"cut":false,"hidden":true,"merged":[[12,20,13,20],[10,11,10,20],[11,9,11,10],[11,11,11,18],[11,19,11,20],[12,9,13,9],[12,10,13,10],[12,11,12,16],[12,17,12,18],[12,4,12,5],[12,6,13,6],[12,7,13,7],[12,8,13,8],[12,19,13,19],[41,11,41,20],[42,9,42,10],[42,11,42,18],[42,19,42,20],[43,4,43,5],[43,6,44,6],[43,7,44,7],[43,8,44,8],[43,9,44,9],[43,10,44,10],[43,11,43,16],[43,17,43,18],[43,19,44,19],[43,20,44,20],[72,11,72,20],[73,9,73,10],[73,11,73,18],[73,19,73,20],[74,4,74,5],[74,6,75,6],[74,7,75,7],[74,8,75,8],[74,9,75,9],[74,10,75,10],[74,11,74,16],[74,17,74,18],[74,19,75,19],[74,20,75,20],[103,11,103,20],[104,9,104,10],[104,11,104,18],[104,19,104,20],[105,4,105,5],[105,6,106,6],[105,7,106,7],[105,8,106,8],[105,9,106,9],[105,10,106,10],[105,11,105,16],[105,17,105,18],[105,19,106,19],[105,20,106,20],[134,11,134,20],[135,9,135,10],[135,11,135,18],[135,19,135,20],[136,4,136,5],[136,6,137,6],[136,7,137,7],[136,8,137,8],[136,9,137,9],[136,10,137,10],[136,11,136,16],[136,17,136,18],[136,19,137,19],[136,20,137,20]]}
[]
[]
[]
[null,"Fecha inicial"]
[null,"Fecha final"]
[null,"Tipo de CFDI"]
[null,"Tipo de comprobante"]
[null,{"$f":"IFERROR(IF(OR(C7=\"I = Ingreso\",C7=\"E = Egreso\"),\"¿Con método de pago?\",\"\"),\"\")","v":""}]
[]
[]
[null,{"$f":"IFERROR(\"Concentrado de CFDI emitidos de tipo \"&MID($C$7,5,LEN($C$7)-4),\"\")","v":""},null,null,null,null,null,null,null,null,null,"Impuestos trasladados"]
[null,null,null,null,null,null,null,null,null,"Impuestos retenidos",null,"IVA",null,null,null,null,null,null,null,"IEPS"]
[null,null,null,null,"Número de facturas",null,"Subtotal","Descuento","Subtotal - Descuento","ISR","IVA","Base",null,null,null,null,null,"Impuesto",null,"Base","Impuesto"]
[null,"c_FormaPago","Descripción","Bancarizado","Canceladas","Vigentes",null,null,null,null,null,"PODEBI","No objeto","Exento",0,0.08,0.16,0.08,0.16]
[null,1,"Efectivo","No"]
[null,2,"Cheque nominativo","Sí"]
[null,3,"Transferencia electrónica de fondos","Sí"]
[null,4,"Tarjeta de crédito","Sí"]
[null,5,"Monedero electrónico","Sí"]
[null,6,"Dinero electrónico","Sí"]
[null,8,"Vales de despensa","No"]
[null,12,"Dación en pago","No"]
[null,13,"Pago por subrogación","No"]
[null,14,"Pago por consignación","No"]
[null,15,"Condonación","No"]
[null,17,"Compensación","No"]
[null,23,"Novación","No"]
[null,24,"Confusión","No"]
[null,25,"Remisión de deuda","No"]
[null,26,"Prescripción o caducidad","No"]
[null,27,"A satisfacción del acreedor","No"]
[null,28,"Tarjeta de débito","Sí"]
[null,29,"Tarjeta de servicios","Sí"]
[null,30,"Aplicación de anticipos","No"]
[null,31,"Intermediario pagos","No"]
[null,99,"Por definir","Opcional"]
[]
[null,null,null,"Totales"]
[]
[]
[]
[null,{"$f":"IFERROR(\"Concentrado de CFDI emitidos de tipo \"&MID($C$7,5,LEN($C$7)-4)&\" con clave de uso G01\",\"\")","v":""},null,null,null,null,null,null,null,null,null,"Impuestos trasladados"]
[null,null,null,null,null,null,null,null,null,"Impuestos retenidos",null,"IVA",null,null,null,null,null,null,null,"IEPS"]
[null,null,null,null,"Número de facturas",null,"Subtotal","Descuento","Subtotal - Descuento","ISR","IVA","Base",null,null,null,null,null,"Impuesto",null,"Base","Impuesto"]
[null,"c_FormaPago","Descripción","Bancarizado","Canceladas","Vigentes",null,null,null,null,null,"PODEBI","No objeto","Exento",0,0.08,0.16,0.08,0.16]
[null,1,"Efectivo","No"]
[null,2,"Cheque nominativo","Sí"]
[null,3,"Transferencia electrónica de fondos","Sí"]
[null,4,"Tarjeta de crédito","Sí"]
[null,5,"Monedero electrónico","Sí"]
[null,6,"Dinero electrónico","Sí"]
[null,8,"Vales de despensa","No"]
[null,12,"Dación en pago","No"]
[null,13,"Pago por subrogación","No"]
[null,14,"Pago por consignación","No"]
[null,15,"Condonación","No"]
[null,17,"Compensación","No"]
[null,23,"Novación","No"]
[null,24,"Confusión","No"]
[null,25,"Remisión de deuda","No"]
[null,26,"Prescripción o caducidad","No"]
[null,27,"A satisfacción del acreedor","No"]
[null,28,"Tarjeta de débito","Sí"]
[null,29,"Tarjeta de servicios","Sí"]
[null,30]
[null,31]
[null,99,"Por definir","Opcional"]
[]
[null,null,null,"Totales"]
[]
[]
[]
[null,{"$f":"IFERROR(\"Concentrado de CFDI emitidos de tipo \"&MID($C$7,5,LEN($C$7)-4)&\" con clave de uso G03\",\"\")","v":""},null,null,null,null,null,null,null,null,null,"Impuestos trasladados"]
[null,null,null,null,null,null,null,null,null,"Impuestos retenidos",null,"IVA",null,null,null,null,null,null,null,"IEPS"]
[null,null,null,null,"Número de facturas",null,"Subtotal","Descuento","Subtotal - Descuento","ISR","IVA","Base",null,null,null,null,null,"Impuesto",null,"Base","Impuesto"]
[null,"c_FormaPago","Descripción","Bancarizado","Canceladas","Vigentes",null,null,null,null,null,"PODEBI","No objeto","Exento",0,0.08,0.16,0.08,0.16]
[null,1,"Efectivo","No"]
[null,2,"Cheque nominativo","Sí"]
[null,3,"Transferencia electrónica de fondos","Sí"]
[null,4,"Tarjeta de crédito","Sí"]
[null,5,"Monedero electrónico","Sí"]
[null,6,"Dinero electrónico","Sí"]
[null,8,"Vales de despensa","No"]
[null,12,"Dación en pago","No"]
[null,13,"Pago por subrogación","No"]
[null,14,"Pago por consignación","No"]
[null,15,"Condonación","No"]
[null,17,"Compensación","No"]
[null,23,"Novación","No"]
[null,24,"Confusión","No"]
[null,25,"Remisión de deuda","No"]
[null,26,"Prescripción o caducidad","No"]
[null,27,"A satisfacción del acreedor","No"]
[null,28,"Tarjeta de débito","Sí"]
[null,29,"Tarjeta de servicios","Sí"]
[null,30,"Aplicación de anticipos","No"]
[null,31,"Intermediario pagos","No"]
[null,99,"Por definir","Opcional"]
[]
[null,null,null,"Totales"]
[]
[]
[]
[null,{"$f":"IFERROR(\"Concentrado de CFDI emitidos de tipo \"&MID($C$7,5,LEN($C$7)-4)&\" con clave de uso I\",\"\")","v":""},null,null,null,null,null,null,null,null,null,"Impuestos trasladados"]
[null,null,null,null,null,null,null,null,null,"Impuestos retenidos",null,"IVA",null,null,null,null,null,null,null,"IEPS"]
[null,null,null,null,"Número de facturas",null,"Subtotal","Descuento","Subtotal - Descuento","ISR","IVA","Base",null,null,null,null,null,"Impuesto",null,"Base","Impuesto"]
[null,"c_FormaPago","Descripción","Bancarizado","Canceladas","Vigentes",null,null,null,null,null,"PODEBI","No objeto","Exento",0,0.08,0.16,0.08,0.16]
[null,1,"Efectivo","No"]
[null,2,"Cheque nominativo","Sí"]
[null,3,"Transferencia electrónica de fondos","Sí"]
[null,4,"Tarjeta de crédito","Sí"]
[null,5,"Monedero electrónico","Sí"]
[null,6,"Dinero electrónico","Sí"]
[null,8,"Vales de despensa","No"]
[null,12,"Dación en pago","No"]
[null,13,"Pago por subrogación","No"]
[null,14,"Pago por consignación","No"]
[null,15,"Condonación","No"]
[null,17,"Compensación","No"]
[null,23,"Novación","No"]
[null,24,"Confusión","No"]
[null,25,"Remisión de deuda","No"]
[null,26,"Prescripción o caducidad","No"]
[null,27,"A satisfacción del acreedor","No"]
[null,28,"Tarjeta de débito","Sí"]
[null,29,"Tarjeta de servicios","Sí"]
[null,30,"Aplicación de anticipos","No"]
[null,31,"Intermediario pagos","No"]
[null,99,"Por definir","Opcional"]
[]
[null,null,null,"Totales"]
[]
[]
[]
[null,{"$f":"IFERROR(\"Concentrado de CFDI emitidos de tipo \"&MID($C$7,5,LEN($C$7)-4)&\" con clave de uso S01\",\"\")","v":""},null,null,null,null,null,null,null,null,null,"Impuestos trasladados"]
[null,null,null,null,null,null,null,null,null,"Impuestos retenidos",null,"IVA",null,null,null,null,null,null,null,"IEPS"]
[null,null,null,null,"Número de facturas",null,"Subtotal","Descuento","Subtotal - Descuento","ISR","IVA","Base",null,null,null,null,null,"Impuesto",null,"Base","Impuesto"]
[null,"c_FormaPago","Descripción","Bancarizado","Canceladas","Vigentes",null,null,null,null,null,"PODEBI","No objeto","Exento",0,0.08,0.16,0.08,0.16]
[null,1,"Efectivo","No"]
[null,2,"Cheque nominativo","Sí"]
[null,3,"Transferencia electrónica de fondos","Sí"]
[null,4,"Tarjeta de crédito","Sí"]
[null,5,"Monedero electrónico","Sí"]
[null,6,"Dinero electrónico","Sí"]
[null,8,"Vales de despensa","No"]
[null,12,"Dación en pago","No"]
[null,13,"Pago por subrogación","No"]
[null,14,"Pago por consignación","No"]
[null,15,"Condonación","No"]
[null,17,"Compensación","No"]
[null,23,"Novación","No"]
[null,24,"Confusión","No"]
[null,25,"Remisión de deuda","No"]
[null,26,"Prescripción o caducidad","No"]
[null,27,"A satisfacción del acreedor","No"]
[null,28,"Tarjeta de débito","Sí"]
[null,29,"Tarjeta de servicios","Sí"]
[null,30,"Aplicación de anticipos","No"]
[null,31,"Intermediario pagos","No"]
[null,99,"Por definir","Opcional"]
[]
[null,null,null,"Totales"]

{"sheet":"IVA","index":7,"n_rows":68,"n_cols":16,"rows_kept":68,"cut":false,"hidden":true,"merged":[[7,12,7,15],[25,12,25,15],[6,2,6,9],[7,2,7,5],[7,6,7,9],[24,2,24,9],[25,2,25,5],[25,6,25,9]]}
[]
[]
[]
[null,"Año"]
[null,"RFC contibuyente"]
[]
[null,null,"CFDI emitidos"]
[null,null,"Ingreso con método de pago PUE",null,null,null,"Complemento de pago",null,null,null,null,null,"CFDI de tipo egreso con método de pago PUE"]
[null,"Mes","Base de IVA al 8%","IVA 8%","Base IVA 16%","IVA 16%","Base de IVA al 8%","IVA 8%","Base IVA 16%","IVA 16%","Total base IVA","Total del IVA","Base de IVA al 8%","IVA 8%","Base IVA 16%","IVA 16%"]
[null,"Enero"]
[null,"Febrero"]
[null,"Marzo"]
[null,"Abril"]
[null,"Mayo"]
[null,"Junio"]
[null,"Julio"]
[null,"Agosto"]
[null,"Septiembre"]
[null,"Octubre"]
[null,"Noviembre"]
[null,"Diciembre"]
[]
[]
[]
[null,null,"CFDI recibidos"]
[null,null,"Ingreso con método de pago PUE",null,null,null,"Complemento de pago",null,null,null,null,null,"CFDI de tipo egreso con método de pago PUE"]
[null,"Mes","Base de IVA al 8%","IVA 8%","Base IVA 16%","IVA 16%","Base de IVA al 8%","IVA 8%","Base IVA 16%","IVA 16%","Total base IVA","Total del IVA","Base de IVA al 8%","IVA 8%","Base IVA 16%","IVA 16%"]
[null,"Enero"]
[null,"Febrero"]
[null,"Marzo"]
[null,"Abril"]
[null,"Mayo"]
[null,"Junio"]
[null,"Julio"]
[null,"Agosto"]
[null,"Septiembre"]
[null,"Octubre"]
[null,"Noviembre"]
[null,"Diciembre"]
[]
[]
[null,"Determinación del IVA con base en los CFDI"]
[]
[null,"Emitidos","Enero","Febrero","Marzo","Abril","Mayo","Junio","Julio","Agosto","Septiembre","Octubre","Noviembre","Diciembre"]
[null,"Base IVA 8%"]
[null,"Base IVA 16%"]
[null,"Total base"]
[]
[null,"IVA 8%"]
[null,"IVA 16%"]
[]
[null,"Recibidos"]
[null,"Base IVA 8%"]
[null,"Base IVA 16%"]
[null,"Total base"]
[]
[null,"IVA 8%"]
[null,"IVA 16%"]
[]
[null,"Retenciones de IVA"]
[null,"IVA a cargo"]
[null,"(-) Acreditamiento IVA"]
[null,"(=) IVA por pagar"]
[]
[null,"IVA saldo a favor"]
[]
[]
[null,"Este cálculo es solo con los CFDI de las hojas CFDIE, RPAGOSE, CFDIR, RPAGOSR"]

{"sheet":"SFAVOR","index":8,"n_rows":7,"n_cols":11,"rows_kept":7,"cut":false,"hidden":true,"merged":[[3,1,3,10],[4,1,4,10]]}
[]
[]
[]
[null,"Registro de Saldos a Favor"]
[null,"Alta de saldos por impuesto, periodo, declaración y origen"]
[]
[null,"ID Saldo","Impuesto","Ejercicio","Periodo","Fecha de presentación","Tipo Declaración","No. Operación","Origen del Saldo","Importe saldo a favor","Estatus"]

{"sheet":"ACREDITA","index":9,"n_rows":196,"n_cols":12,"rows_kept":196,"cut":false,"hidden":true,"merged":[[2,1,2,11],[3,1,3,11]]}
[]
[]
[null,"Control de Acreditamientos"]
[null,"Aplicación de saldos a favor contra impuestos a cargo"]
[]
[null,"ID Saldo","Fecha de presenación en donde se acredita","Ejercicio Aplicación","Periodo Aplicación","No. de operación declaración de aplicación","Saldo a favor original","Impuesto a Cargo","Saldo a favor acreditado","Impuesto a cargo","Saldo Disponible Después","Observaciones"]
[null,null,null,null,null,null,{"$f":"IFERROR(VLOOKUP(B7,SFAVOR!$B$8:$K$548,9,FALSE),\"\")","v":""},null,null,{"$f":"IFERROR(IF(OR(H7<>\"\",I7<>\"\"),H7-I7,\"\"),\"\")","v":""},{"$f":"IFERROR(IF(B7<>\"\",SUMIFS(SFAVOR!$J:$J,SFAVOR!$B:$B,$B7,SFAVOR!$F:$F,\"<=\"&$C7)-SUMIF($B$7:B7,B7,$I$7:I7),\"\"),\"\")","v":""}]
[null,null,null,null,null,null,{"$f":"IFERROR(VLOOKUP(B8,SFAVOR!$B$8:$K$548,9,FALSE),\"\")","v":""},null,null,{"$f":"IFERROR(IF(OR(H8<>\"\",I8<>\"\"),H8-I8,\"\"),\"\")","v":""},{"$f":"IFERROR(IF(B8<>\"\",SUMIFS(SFAVOR!$J:$J,SFAVOR!$B:$B,$B8,SFAVOR!$F:$F,\"<=\"&$C8)-SUMIF($B$7:B8,B8,$I$7:I8),\"\"),\"\")","v":""}]
[null,null,null,null,null,null,{"$f":"IFERROR(VLOOKUP(B9,SFAVOR!$B$8:$K$548,9,FALSE),\"\")","v":""},null,null,"",{"$f":"IFERROR(IF(B9<>\"\",SUMIFS(SFAVOR!$J:$J,SFAVOR!$B:$B,$B9,SFAVOR!$F:$F,\"<=\"&$C9)-SUMIF($B$7:B9,B9,$I$7:I9),\"\"),\"\")","v":""}]
[null,null,null,null,null,null,{"$f":"IFERROR(VLOOKUP(B10,SFAVOR!$B$8:$K$548,9,FALSE),\"\")","v":""},null,null,"",{"$f":"IFERROR(IF(B10<>\"\",SUMIFS(SFAVOR!$J:$J,SFAVOR!$B:$B,$B10,SFAVOR!$F:$F,\"<=\"&$C10)-SUMIF($B$7:B10,B10,$I$7:I10),\"\"),\"\")","v":""}]
[null,null,null,null,null,null,{"$f":"IFERROR(VLOOKUP(B11,SFAVOR!$B$8:$K$548,9,FALSE),\"\")","v":""},null,null,"",{"$f":"IFERROR(IF(B11<>\"\",SUMIFS(SFAVOR!$J:$J,SFAVOR!$B:$B,$B11,SFAVOR!$F:$F,\"<=\"&$C11)-SUMIF($B$7:B11,B11,$I$7:I11),\"\"),\"\")","v":""}]
[null,null,null,null,null,null,{"$f":"IFERROR(VLOOKUP(B12,SFAVOR!$B$8:$K$548,9,FALSE),\"\")","v":""},null,null,"",{"$f":"IFERROR(IF(B12<>\"\",SUMIFS(SFAVOR!$J:$J,SFAVOR!$B:$B,$B12,SFAVOR!$F:$F,\"<=\"&$C12)-SUMIF($B$7:B12,B12,$I$7:I12),\"\"),\"\")","v":""}]
[null,null,null,null,null,null,{"$f":"IFERROR(VLOOKUP(B13,SFAVOR!$B$8:$K$548,9,FALSE),\"\")","v":""},null,null,"",{"$f":"IFERROR(IF(B13<>\"\",SUMIFS(SFAVOR!$J:$J,SFAVOR!$B:$B,$B13,SFAVOR!$F:$F,\"<=\"&$C13)-SUMIF($B$7:B13,B13,$I$7:I13),\"\"),\"\")","v":""}]
[null,null,null,null,null,null,{"$f":"IFERROR(VLOOKUP(B14,SFAVOR!$B$8:$K$548,9,FALSE),\"\")","v":""},null,null,"",{"$f":"IFERROR(IF(B14<>\"\",SUMIFS(SFAVOR!$J:$J,SFAVOR!$B:$B,$B14,SFAVOR!$F:$F,\"<=\"&$C14)-SUMIF($B$7:B14,B14,$I$7:I14),\"\"),\"\")","v":""}]
[null,null,null,null,null,null,{"$f":"IFERROR(VLOOKUP(B15,SFAVOR!$B$8:$K$548,9,FALSE),\"\")","v":""},null,null,"",{"$f":"IFERROR(IF(B15<>\"\",SUMIFS(SFAVOR!$J:$J,SFAVOR!$B:$B,$B15,SFAVOR!$F:$F,\"<=\"&$C15)-SUMIF($B$7:B15,B15,$I$7:I15),\"\"),\"\")","v":""}]
[null,null,null,null,null,null,{"$f":"IFERROR(VLOOKUP(B16,SFAVOR!$B$8:$K$548,9,FALSE),\"\")","v":""},null,null,"",{"$f":"IFERROR(IF(B16<>\"\",SUMIFS(SFAVOR!$J:$J,SFAVOR!$B:$B,$B16,SFAVOR!$F:$F,\"<=\"&$C16)-SUMIF($B$7:B16,B16,$I$7:I16),\"\"),\"\")","v":""}]
[null,null,null,null,null,null,{"$f":"IFERROR(VLOOKUP(B17,SFAVOR!$B$8:$K$548,9,FALSE),\"\")","v":""},null,null,"",{"$f":"IFERROR(IF(B17<>\"\",SUMIFS(SFAVOR!$J:$J,SFAVOR!$B:$B,$B17,SFAVOR!$F:$F,\"<=\"&$C17)-SUMIF($B$7:B17,B17,$I$7:I17),\"\"),\"\")","v":""}]
[null,null,null,null,null,null,{"$f":"IFERROR(VLOOKUP(B18,SFAVOR!$B$8:$K$548,9,FALSE),\"\")","v":""},null,null,"",{"$f":"IFERROR(IF(B18<>\"\",SUMIFS(SFAVOR!$J:$J,SFAVOR!$B:$B,$B18,SFAVOR!$F:$F,\"<=\"&$C18)-SUMIF($B$7:B18,B18,$I$7:I18),\"\"),\"\")","v":""}]
[null,null,null,null,null,null,{"$f":"IFERROR(VLOOKUP(B19,SFAVOR!$B$8:$K$548,9,FALSE),\"\")","v":""},null,null,"",{"$f":"IFERROR(IF(B19<>\"\",SUMIFS(SFAVOR!$J:$J,SFAVOR!$B:$B,$B19,SFAVOR!$F:$F,\"<=\"&$C19)-SUMIF($B$7:B19,B19,$I$7:I19),\"\"),\"\")","v":""}]
[null,null,null,null,null,null,{"$f":"IFERROR(VLOOKUP(B20,SFAVOR!$B$8:$K$548,9,FALSE),\"\")","v":""},null,null,"",{"$f":"IFERROR(IF(B20<>\"\",SUMIFS(SFAVOR!$J:$J,SFAVOR!$B:$B,$B20,SFAVOR!$F:$F,\"<=\"&$C20)-SUMIF($B$7:B20,B20,$I$7:I20),\"\"),\"\")","v":""}]
[null,null,null,null,null,null,{"$f":"IFERROR(VLOOKUP(B21,SFAVOR!$B$8:$K$548,9,FALSE),\"\")","v":""},null,null,"",{"$f":"IFERROR(IF(B21<>\"\",SUMIFS(SFAVOR!$J:$J,SFAVOR!$B:$B,$B21,SFAVOR!$F:$F,\"<=\"&$C21)-SUMIF($B$7:B21,B21,$I$7:I21),\"\"),\"\")","v":""}]
[null,null,null,null,null,null,{"$f":"IFERROR(VLOOKUP(B22,SFAVOR!$B$8:$K$548,9,FALSE),\"\")","v":""},null,null,"",{"$f":"IFERROR(IF(B22<>\"\",SUMIFS(SFAVOR!$J:$J,SFAVOR!$B:$B,$B22,SFAVOR!$F:$F,\"<=\"&$C22)-SUMIF($B$7:B22,B22,$I$7:I22),\"\"),\"\")","v":""}]
[null,null,null,null,null,null,{"$f":"IFERROR(VLOOKUP(B23,SFAVOR!$B$8:$K$548,9,FALSE),\"\")","v":""},null,null,"",{"$f":"IFERROR(IF(B23<>\"\",SUMIFS(SFAVOR!$J:$J,SFAVOR!$B:$B,$B23,SFAVOR!$F:$F,\"<=\"&$C23)-SUMIF($B$7:B23,B23,$I$7:I23),\"\"),\"\")","v":""}]
[null,null,null,null,null,null,{"$f":"IFERROR(VLOOKUP(B24,SFAVOR!$B$8:$K$548,9,FALSE),\"\")","v":""},null,null,"",{"$f":"IFERROR(IF(B24<>\"\",SUMIFS(SFAVOR!$J:$J,SFAVOR!$B:$B,$B24,SFAVOR!$F:$F,\"<=\"&$C24)-SUMIF($B$7:B24,B24,$I$7:I24),\"\"),\"\")","v":""}]
[null,null,null,null,null,null,{"$f":"IFERROR(VLOOKUP(B25,SFAVOR!$B$8:$K$548,9,FALSE),\"\")","v":""},null,null,"",{"$f":"IFERROR(IF(B25<>\"\",SUMIFS(SFAVOR!$J:$J,SFAVOR!$B:$B,$B25,SFAVOR!$F:$F,\"<=\"&$C25)-SUMIF($B$7:B25,B25,$I$7:I25),\"\"),\"\")","v":""}]
[null,null,null,null,null,null,{"$f":"IFERROR(VLOOKUP(B26,SFAVOR!$B$8:$K$548,9,FALSE),\"\")","v":""},null,null,"",{"$f":"IFERROR(IF(B26<>\"\",SUMIFS(SFAVOR!$J:$J,SFAVOR!$B:$B,$B26,SFAVOR!$F:$F,\"<=\"&$C26)-SUMIF($B$7:B26,B26,$I$7:I26),\"\"),\"\")","v":""}]
[null,null,null,null,null,null,{"$f":"IFERROR(VLOOKUP(B27,SFAVOR!$B$8:$K$548,9,FALSE),\"\")","v":""},null,null,"",{"$f":"IFERROR(IF(B27<>\"\",SUMIFS(SFAVOR!$J:$J,SFAVOR!$B:$B,$B27,SFAVOR!$F:$F,\"<=\"&$C27)-SUMIF($B$7:B27,B27,$I$7:I27),\"\"),\"\")","v":""}]
[null,null,null,null,null,null,{"$f":"IFERROR(VLOOKUP(B28,SFAVOR!$B$8:$K$548,9,FALSE),\"\")","v":""},null,null,"",{"$f":"IFERROR(IF(B28<>\"\",SUMIFS(SFAVOR!$J:$J,SFAVOR!$B:$B,$B28,SFAVOR!$F:$F,\"<=\"&$C28)-SUMIF($B$7:B28,B28,$I$7:I28),\"\"),\"\")","v":""}]
[null,null,null,null,null,null,{"$f":"IFERROR(VLOOKUP(B29,SFAVOR!$B$8:$K$548,9,FALSE),\"\")","v":""},null,null,"",{"$f":"IFERROR(IF(B29<>\"\",SUMIFS(SFAVOR!$J:$J,SFAVOR!$B:$B,$B29,SFAVOR!$F:$F,\"<=\"&$C29)-SUMIF($B$7:B29,B29,$I$7:I29),\"\"),\"\")","v":""}]
[null,null,null,null,null,null,{"$f":"IFERROR(VLOOKUP(B30,SFAVOR!$B$8:$K$548,9,FALSE),\"\")","v":""},null,null,"",{"$f":"IFERROR(IF(B30<>\"\",SUMIFS(SFAVOR!$J:$J,SFAVOR!$B:$B,$B30,SFAVOR!$F:$F,\"<=\"&$C30)-SUMIF($B$7:B30,B30,$I$7:I30),\"\"),\"\")","v":""}]
[null,null,null,null,null,null,{"$f":"IFERROR(VLOOKUP(B31,SFAVOR!$B$8:$K$548,9,FALSE),\"\")","v":""},null,null,"",{"$f":"IFERROR(IF(B31<>\"\",SUMIFS(SFAVOR!$J:$J,SFAVOR!$B:$B,$B31,SFAVOR!$F:$F,\"<=\"&$C31)-SUMIF($B$7:B31,B31,$I$7:I31),\"\"),\"\")","v":""}]
[null,null,null,null,null,null,{"$f":"IFERROR(VLOOKUP(B32,SFAVOR!$B$8:$K$548,9,FALSE),\"\")","v":""},null,null,"",{"$f":"IFERROR(IF(B32<>\"\",SUMIFS(SFAVOR!$J:$J,SFAVOR!$B:$B,$B32,SFAVOR!$F:$F,\"<=\"&$C32)-SUMIF($B$7:B32,B32,$I$7:I32),\"\"),\"\")","v":""}]
[null,null,null,null,null,null,{"$f":"IFERROR(VLOOKUP(B33,SFAVOR!$B$8:$K$548,9,FALSE),\"\")","v":""},null,null,"",{"$f":"IFERROR(IF(B33<>\"\",SUMIFS(SFAVOR!$J:$J,SFAVOR!$B:$B,$B33,SFAVOR!$F:$F,\"<=\"&$C33)-SUMIF($B$7:B33,B33,$I$7:I33),\"\"),\"\")","v":""}]
[null,null,null,null,null,null,{"$f":"IFERROR(VLOOKUP(B34,SFAVOR!$B$8:$K$548,9,FALSE),\"\")","v":""},null,null,"",{"$f":"IFERROR(IF(B34<>\"\",SUMIFS(SFAVOR!$J:$J,SFAVOR!$B:$B,$B34,SFAVOR!$F:$F,\"<=\"&$C34)-SUMIF($B$7:B34,B34,$I$7:I34),\"\"),\"\")","v":""}]
[null,null,null,null,null,null,{"$f":"IFERROR(VLOOKUP(B35,SFAVOR!$B$8:$K$548,9,FALSE),\"\")","v":""},null,null,"",{"$f":"IFERROR(IF(B35<>\"\",SUMIFS(SFAVOR!$J:$J,SFAVOR!$B:$B,$B35,SFAVOR!$F:$F,\"<=\"&$C35)-SUMIF($B$7:B35,B35,$I$7:I35),\"\"),\"\")","v":""}]
[null,null,null,null,null,null,{"$f":"IFERROR(VLOOKUP(B36,SFAVOR!$B$8:$K$548,9,FALSE),\"\")","v":""},null,null,"",{"$f":"IFERROR(IF(B36<>\"\",SUMIFS(SFAVOR!$J:$J,SFAVOR!$B:$B,$B36,SFAVOR!$F:$F,\"<=\"&$C36)-SUMIF($B$7:B36,B36,$I$7:I36),\"\"),\"\")","v":""}]
[null,null,null,null,null,null,{"$f":"IFERROR(VLOOKUP(B37,SFAVOR!$B$8:$K$548,9,FALSE),\"\")","v":""},null,null,"",{"$f":"IFERROR(IF(B37<>\"\",SUMIFS(SFAVOR!$J:$J,SFAVOR!$B:$B,$B37,SFAVOR!$F:$F,\"<=\"&$C37)-SUMIF($B$7:B37,B37,$I$7:I37),\"\"),\"\")","v":""}]
[null,null,null,null,null,null,{"$f":"IFERROR(VLOOKUP(B38,SFAVOR!$B$8:$K$548,9,FALSE),\"\")","v":""},null,null,"",{"$f":"IFERROR(IF(B38<>\"\",SUMIFS(SFAVOR!$J:$J,SFAVOR!$B:$B,$B38,SFAVOR!$F:$F,\"<=\"&$C38)-SUMIF($B$7:B38,B38,$I$7:I38),\"\"),\"\")","v":""}]
[null,null,null,null,null,null,{"$f":"IFERROR(VLOOKUP(B39,SFAVOR!$B$8:$K$548,9,FALSE),\"\")","v":""},null,null,"",{"$f":"IFERROR(IF(B39<>\"\",SUMIFS(SFAVOR!$J:$J,SFAVOR!$B:$B,$B39,SFAVOR!$F:$F,\"<=\"&$C39)-SUMIF($B$7:B39,B39,$I$7:I39),\"\"),\"\")","v":""}]
[null,null,null,null,null,null,{"$f":"IFERROR(VLOOKUP(B40,SFAVOR!$B$8:$K$548,9,FALSE),\"\")","v":""},null,null,"",{"$f":"IFERROR(IF(B40<>\"\",SUMIFS(SFAVOR!$J:$J,SFAVOR!$B:$B,$B40,SFAVOR!$F:$F,\"<=\"&$C40)-SUMIF($B$7:B40,B40,$I$7:I40),\"\"),\"\")","v":""}]
[null,null,null,null,null,null,{"$f":"IFERROR(VLOOKUP(B41,SFAVOR!$B$8:$K$548,9,FALSE),\"\")","v":""},null,null,"",{"$f":"IFERROR(IF(B41<>\"\",SUMIFS(SFAVOR!$J:$J,SFAVOR!$B:$B,$B41,SFAVOR!$F:$F,\"<=\"&$C41)-SUMIF($B$7:B41,B41,$I$7:I41),\"\"),\"\")","v":""}]
[null,null,null,null,null,null,{"$f":"IFERROR(VLOOKUP(B42,SFAVOR!$B$8:$K$548,9,FALSE),\"\")","v":""},null,null,"",{"$f":"IFERROR(IF(B42<>\"\",SUMIFS(SFAVOR!$J:$J,SFAVOR!$B:$B,$B42,SFAVOR!$F:$F,\"<=\"&$C42)-SUMIF($B$7:B42,B42,$I$7:I42),\"\"),\"\")","v":""}]
[null,null,null,null,null,null,{"$f":"IFERROR(VLOOKUP(B43,SFAVOR!$B$8:$K$548,9,FALSE),\"\")","v":""},null,null,"",{"$f":"IFERROR(IF(B43<>\"\",SUMIFS(SFAVOR!$J:$J,SFAVOR!$B:$B,$B43,SFAVOR!$F:$F,\"<=\"&$C43)-SUMIF($B$7:B43,B43,$I$7:I43),\"\"),\"\")","v":""}]
[null,null,null,null,null,null,{"$f":"IFERROR(VLOOKUP(B44,SFAVOR!$B$8:$K$548,9,FALSE),\"\")","v":""},null,null,"",{"$f":"IFERROR(IF(B44<>\"\",SUMIFS(SFAVOR!$J:$J,SFAVOR!$B:$B,$B44,SFAVOR!$F:$F,\"<=\"&$C44)-SUMIF($B$7:B44,B44,$I$7:I44),\"\"),\"\")","v":""}]
[null,null,null,null,null,null,{"$f":"IFERROR(VLOOKUP(B45,SFAVOR!$B$8:$K$548,9,FALSE),\"\")","v":""},null,null,"",{"$f":"IFERROR(IF(B45<>\"\",SUMIFS(SFAVOR!$J:$J,SFAVOR!$B:$B,$B45,SFAVOR!$F:$F,\"<=\"&$C45)-SUMIF($B$7:B45,B45,$I$7:I45),\"\"),\"\")","v":""}]
[null,null,null,null,null,null,{"$f":"IFERROR(VLOOKUP(B46,SFAVOR!$B$8:$K$548,9,FALSE),\"\")","v":""},null,null,"",{"$f":"IFERROR(IF(B46<>\"\",SUMIFS(SFAVOR!$J:$J,SFAVOR!$B:$B,$B46,SFAVOR!$F:$F,\"<=\"&$C46)-SUMIF($B$7:B46,B46,$I$7:I46),\"\"),\"\")","v":""}]
[null,null,null,null,null,null,{"$f":"IFERROR(VLOOKUP(B47,SFAVOR!$B$8:$K$548,9,FALSE),\"\")","v":""},null,null,"",{"$f":"IFERROR(IF(B47<>\"\",SUMIFS(SFAVOR!$J:$J,SFAVOR!$B:$B,$B47,SFAVOR!$F:$F,\"<=\"&$C47)-SUMIF($B$7:B47,B47,$I$7:I47),\"\"),\"\")","v":""}]
[null,null,null,null,null,null,{"$f":"IFERROR(VLOOKUP(B48,SFAVOR!$B$8:$K$548,9,FALSE),\"\")","v":""},null,null,"",{"$f":"IFERROR(IF(B48<>\"\",SUMIFS(SFAVOR!$J:$J,SFAVOR!$B:$B,$B48,SFAVOR!$F:$F,\"<=\"&$C48)-SUMIF($B$7:B48,B48,$I$7:I48),\"\"),\"\")","v":""}]
[null,null,null,null,null,null,{"$f":"IFERROR(VLOOKUP(B49,SFAVOR!$B$8:$K$548,9,FALSE),\"\")","v":""},null,null,"",{"$f":"IFERROR(IF(B49<>\"\",SUMIFS(SFAVOR!$J:$J,SFAVOR!$B:$B,$B49,SFAVOR!$F:$F,\"<=\"&$C49)-SUMIF($B$7:B49,B49,$I$7:I49),\"\"),\"\")","v":""}]
[null,null,null,null,null,null,{"$f":"IFERROR(VLOOKUP(B50,SFAVOR!$B$8:$K$548,9,FALSE),\"\")","v":""},null,null,"",{"$f":"IFERROR(IF(B50<>\"\",SUMIFS(SFAVOR!$J:$J,SFAVOR!$B:$B,$B50,SFAVOR!$F:$F,\"<=\"&$C50)-SUMIF($B$7:B50,B50,$I$7:I50),\"\"),\"\")","v":""}]
[null,null,null,null,null,null,{"$f":"IFERROR(VLOOKUP(B51,SFAVOR!$B$8:$K$548,9,FALSE),\"\")","v":""},null,null,"",{"$f":"IFERROR(IF(B51<>\"\",SUMIFS(SFAVOR!$J:$J,SFAVOR!$B:$B,$B51,SFAVOR!$F:$F,\"<=\"&$C51)-SUMIF($B$7:B51,B51,$I$7:I51),\"\"),\"\")","v":""}]
[null,null,null,null,null,null,{"$f":"IFERROR(VLOOKUP(B52,SFAVOR!$B$8:$K$548,9,FALSE),\"\")","v":""},null,null,"",{"$f":"IFERROR(IF(B52<>\"\",SUMIFS(SFAVOR!$J:$J,SFAVOR!$B:$B,$B52,SFAVOR!$F:$F,\"<=\"&$C52)-SUMIF($B$7:B52,B52,$I$7:I52),\"\"),\"\")","v":""}]
[null,null,null,null,null,null,{"$f":"IFERROR(VLOOKUP(B53,SFAVOR!$B$8:$K$548,9,FALSE),\"\")","v":""},null,null,"",{"$f":"IFERROR(IF(B53<>\"\",SUMIFS(SFAVOR!$J:$J,SFAVOR!$B:$B,$B53,SFAVOR!$F:$F,\"<=\"&$C53)-SUMIF($B$7:B53,B53,$I$7:I53),\"\"),\"\")","v":""}]
[null,null,null,null,null,null,{"$f":"IFERROR(VLOOKUP(B54,SFAVOR!$B$8:$K$548,9,FALSE),\"\")","v":""},null,null,"",{"$f":"IFERROR(IF(B54<>\"\",SUMIFS(SFAVOR!$J:$J,SFAVOR!$B:$B,$B54,SFAVOR!$F:$F,\"<=\"&$C54)-SUMIF($B$7:B54,B54,$I$7:I54),\"\"),\"\")","v":""}]
[null,null,null,null,null,null,{"$f":"IFERROR(VLOOKUP(B55,SFAVOR!$B$8:$K$548,9,FALSE),\"\")","v":""},null,null,"",{"$f":"IFERROR(IF(B55<>\"\",SUMIFS(SFAVOR!$J:$J,SFAVOR!$B:$B,$B55,SFAVOR!$F:$F,\"<=\"&$C55)-SUMIF($B$7:B55,B55,$I$7:I55),\"\"),\"\")","v":""}]
[null,null,null,null,null,null,{"$f":"IFERROR(VLOOKUP(B56,SFAVOR!$B$8:$K$548,9,FALSE),\"\")","v":""},null,null,"",{"$f":"IFERROR(IF(B56<>\"\",SUMIFS(SFAVOR!$J:$J,SFAVOR!$B:$B,$B56,SFAVOR!$F:$F,\"<=\"&$C56)-SUMIF($B$7:B56,B56,$I$7:I56),\"\"),\"\")","v":""}]
[null,null,null,null,null,null,{"$f":"IFERROR(VLOOKUP(B57,SFAVOR!$B$8:$K$548,9,FALSE),\"\")","v":""},null,null,"",{"$f":"IFERROR(IF(B57<>\"\",SUMIFS(SFAVOR!$J:$J,SFAVOR!$B:$B,$B57,SFAVOR!$F:$F,\"<=\"&$C57)-SUMIF($B$7:B57,B57,$I$7:I57),\"\"),\"\")","v":""}]
[null,null,null,null,null,null,{"$f":"IFERROR(VLOOKUP(B58,SFAVOR!$B$8:$K$548,9,FALSE),\"\")","v":""},null,null,"",{"$f":"IFERROR(IF(B58<>\"\",SUMIFS(SFAVOR!$J:$J,SFAVOR!$B:$B,$B58,SFAVOR!$F:$F,\"<=\"&$C58)-SUMIF($B$7:B58,B58,$I$7:I58),\"\"),\"\")","v":""}]
[null,null,null,null,null,null,{"$f":"IFERROR(VLOOKUP(B59,SFAVOR!$B$8:$K$548,9,FALSE),\"\")","v":""},null,null,"",{"$f":"IFERROR(IF(B59<>\"\",SUMIFS(SFAVOR!$J:$J,SFAVOR!$B:$B,$B59,SFAVOR!$F:$F,\"<=\"&$C59)-SUMIF($B$7:B59,B59,$I$7:I59),\"\"),\"\")","v":""}]
[null,null,null,null,null,null,{"$f":"IFERROR(VLOOKUP(B60,SFAVOR!$B$8:$K$548,9,FALSE),\"\")","v":""},null,null,"",{"$f":"IFERROR(IF(B60<>\"\",SUMIFS(SFAVOR!$J:$J,SFAVOR!$B:$B,$B60,SFAVOR!$F:$F,\"<=\"&$C60)-SUMIF($B$7:B60,B60,$I$7:I60),\"\"),\"\")","v":""}]
[null,null,null,null,null,null,{"$f":"IFERROR(VLOOKUP(B61,SFAVOR!$B$8:$K$548,9,FALSE),\"\")","v":""},null,null,"",{"$f":"IFERROR(IF(B61<>\"\",SUMIFS(SFAVOR!$J:$J,SFAVOR!$B:$B,$B61,SFAVOR!$F:$F,\"<=\"&$C61)-SUMIF($B$7:B61,B61,$I$7:I61),\"\"),\"\")","v":""}]
[null,null,null,null,null,null,{"$f":"IFERROR(VLOOKUP(B62,SFAVOR!$B$8:$K$548,9,FALSE),\"\")","v":""},null,null,"",{"$f":"IFERROR(IF(B62<>\"\",SUMIFS(SFAVOR!$J:$J,SFAVOR!$B:$B,$B62,SFAVOR!$F:$F,\"<=\"&$C62)-SUMIF($B$7:B62,B62,$I$7:I62),\"\"),\"\")","v":""}]
[null,null,null,null,null,null,{"$f":"IFERROR(VLOOKUP(B63,SFAVOR!$B$8:$K$548,9,FALSE),\"\")","v":""},null,null,"",{"$f":"IFERROR(IF(B63<>\"\",SUMIFS(SFAVOR!$J:$J,SFAVOR!$B:$B,$B63,SFAVOR!$F:$F,\"<=\"&$C63)-SUMIF($B$7:B63,B63,$I$7:I63),\"\"),\"\")","v":""}]
[null,null,null,null,null,null,{"$f":"IFERROR(VLOOKUP(B64,SFAVOR!$B$8:$K$548,9,FALSE),\"\")","v":""},null,null,"",{"$f":"IFERROR(IF(B64<>\"\",SUMIFS(SFAVOR!$J:$J,SFAVOR!$B:$B,$B64,SFAVOR!$F:$F,\"<=\"&$C64)-SUMIF($B$7:B64,B64,$I$7:I64),\"\"),\"\")","v":""}]
[null,null,null,null,null,null,{"$f":"IFERROR(VLOOKUP(B65,SFAVOR!$B$8:$K$548,9,FALSE),\"\")","v":""},null,null,"",{"$f":"IFERROR(IF(B65<>\"\",SUMIFS(SFAVOR!$J:$J,SFAVOR!$B:$B,$B65,SFAVOR!$F:$F,\"<=\"&$C65)-SUMIF($B$7:B65,B65,$I$7:I65),\"\"),\"\")","v":""}]
[null,null,null,null,null,null,{"$f":"IFERROR(VLOOKUP(B66,SFAVOR!$B$8:$K$548,9,FALSE),\"\")","v":""},null,null,"",{"$f":"IFERROR(IF(B66<>\"\",SUMIFS(SFAVOR!$J:$J,SFAVOR!$B:$B,$B66,SFAVOR!$F:$F,\"<=\"&$C66)-SUMIF($B$7:B66,B66,$I$7:I66),\"\"),\"\")","v":""}]
[null,null,null,null,null,null,{"$f":"IFERROR(VLOOKUP(B67,SFAVOR!$B$8:$K$548,9,FALSE),\"\")","v":""},null,null,"",{"$f":"IFERROR(IF(B67<>\"\",SUMIFS(SFAVOR!$J:$J,SFAVOR!$B:$B,$B67,SFAVOR!$F:$F,\"<=\"&$C67)-SUMIF($B$7:B67,B67,$I$7:I67),\"\"),\"\")","v":""}]
[null,null,null,null,null,null,{"$f":"IFERROR(VLOOKUP(B68,SFAVOR!$B$8:$K$548,9,FALSE),\"\")","v":""},null,null,"",{"$f":"IFERROR(IF(B68<>\"\",SUMIFS(SFAVOR!$J:$J,SFAVOR!$B:$B,$B68,SFAVOR!$F:$F,\"<=\"&$C68)-SUMIF($B$7:B68,B68,$I$7:I68),\"\"),\"\")","v":""}]
[null,null,null,null,null,null,{"$f":"IFERROR(VLOOKUP(B69,SFAVOR!$B$8:$K$548,9,FALSE),\"\")","v":""},null,null,"",{"$f":"IFERROR(IF(B69<>\"\",SUMIFS(SFAVOR!$J:$J,SFAVOR!$B:$B,$B69,SFAVOR!$F:$F,\"<=\"&$C69)-SUMIF($B$7:B69,B69,$I$7:I69),\"\"),\"\")","v":""}]
[null,null,null,null,null,null,{"$f":"IFERROR(VLOOKUP(B70,SFAVOR!$B$8:$K$548,9,FALSE),\"\")","v":""},null,null,"",{"$f":"IFERROR(IF(B70<>\"\",SUMIFS(SFAVOR!$J:$J,SFAVOR!$B:$B,$B70,SFAVOR!$F:$F,\"<=\"&$C70)-SUMIF($B$7:B70,B70,$I$7:I70),\"\"),\"\")","v":""}]
[null,null,null,null,null,null,{"$f":"IFERROR(VLOOKUP(B71,SFAVOR!$B$8:$K$548,9,FALSE),\"\")","v":""},null,null,"",{"$f":"IFERROR(IF(B71<>\"\",SUMIFS(SFAVOR!$J:$J,SFAVOR!$B:$B,$B71,SFAVOR!$F:$F,\"<=\"&$C71)-SUMIF($B$7:B71,B71,$I$7:I71),\"\"),\"\")","v":""}]
[null,null,null,null,null,null,{"$f":"IFERROR(VLOOKUP(B72,SFAVOR!$B$8:$K$548,9,FALSE),\"\")","v":""},null,null,{"$f":"IFERROR(IF(OR(H72<>\"\",I72<>\"\"),H72-I72,\"\"),\"\")","v":""},{"$f":"IFERROR(IF(B72<>\"\",SUMIFS(SFAVOR!$J:$J,SFAVOR!$B:$B,$B72,SFAVOR!$F:$F,\"<=\"&$C72)-SUMIF($B$7:B72,B72,$I$7:I72),\"\"),\"\")","v":""}]
[null,null,null,null,null,null,{"$f":"IFERROR(VLOOKUP(B73,SFAVOR!$B$8:$K$548,9,FALSE),\"\")","v":""},null,null,"",{"$f":"IFERROR(IF(B73<>\"\",SUMIFS(SFAVOR!$J:$J,SFAVOR!$B:$B,$B73,SFAVOR!$F:$F,\"<=\"&$C73)-SUMIF($B$7:B73,B73,$I$7:I73),\"\"),\"\")","v":""}]
[null,null,null,null,null,null,{"$f":"IFERROR(VLOOKUP(B74,SFAVOR!$B$8:$K$548,9,FALSE),\"\")","v":""},null,null,"",{"$f":"IFERROR(IF(B74<>\"\",SUMIFS(SFAVOR!$J:$J,SFAVOR!$B:$B,$B74,SFAVOR!$F:$F,\"<=\"&$C74)-SUMIF($B$7:B74,B74,$I$7:I74),\"\"),\"\")","v":""}]
[null,null,null,null,null,null,{"$f":"IFERROR(VLOOKUP(B75,SFAVOR!$B$8:$K$548,9,FALSE),\"\")","v":""},null,null,"",{"$f":"IFERROR(IF(B75<>\"\",SUMIFS(SFAVOR!$J:$J,SFAVOR!$B:$B,$B75,SFAVOR!$F:$F,\"<=\"&$C75)-SUMIF($B$7:B75,B75,$I$7:I75),\"\"),\"\")","v":""}]
[null,null,null,null,null,null,{"$f":"IFERROR(VLOOKUP(B76,SFAVOR!$B$8:$K$548,9,FALSE),\"\")","v":""},null,null,"",{"$f":"IFERROR(IF(B76<>\"\",SUMIFS(SFAVOR!$J:$J,SFAVOR!$B:$B,$B76,SFAVOR!$F:$F,\"<=\"&$C76)-SUMIF($B$7:B76,B76,$I$7:I76),\"\"),\"\")","v":""}]
[null,null,null,null,null,null,{"$f":"IFERROR(VLOOKUP(B77,SFAVOR!$B$8:$K$548,9,FALSE),\"\")","v":""},null,null,"",{"$f":"IFERROR(IF(B77<>\"\",SUMIFS(SFAVOR!$J:$J,SFAVOR!$B:$B,$B77,SFAVOR!$F:$F,\"<=\"&$C77)-SUMIF($B$7:B77,B77,$I$7:I77),\"\"),\"\")","v":""}]
[null,null,null,null,null,null,{"$f":"IFERROR(VLOOKUP(B78,SFAVOR!$B$8:$K$548,9,FALSE),\"\")","v":""},null,null,"",{"$f":"IFERROR(IF(B78<>\"\",SUMIFS(SFAVOR!$J:$J,SFAVOR!$B:$B,$B78,SFAVOR!$F:$F,\"<=\"&$C78)-SUMIF($B$7:B78,B78,$I$7:I78),\"\"),\"\")","v":""}]
[null,null,null,null,null,null,{"$f":"IFERROR(VLOOKUP(B79,SFAVOR!$B$8:$K$548,9,FALSE),\"\")","v":""},null,null,"",{"$f":"IFERROR(IF(B79<>\"\",SUMIFS(SFAVOR!$J:$J,SFAVOR!$B:$B,$B79,SFAVOR!$F:$F,\"<=\"&$C79)-SUMIF($B$7:B79,B79,$I$7:I79),\"\"),\"\")","v":""}]
[null,null,null,null,null,null,{"$f":"IFERROR(VLOOKUP(B80,SFAVOR!$B$8:$K$548,9,FALSE),\"\")","v":""},null,null,"",{"$f":"IFERROR(IF(B80<>\"\",SUMIFS(SFAVOR!$J:$J,SFAVOR!$B:$B,$B80,SFAVOR!$F:$F,\"<=\"&$C80)-SUMIF($B$7:B80,B80,$I$7:I80),\"\"),\"\")","v":""}]
[null,null,null,null,null,null,{"$f":"IFERROR(VLOOKUP(B81,SFAVOR!$B$8:$K$548,9,FALSE),\"\")","v":""},null,null,"",{"$f":"IFERROR(IF(B81<>\"\",SUMIFS(SFAVOR!$J:$J,SFAVOR!$B:$B,$B81,SFAVOR!$F:$F,\"<=\"&$C81)-SUMIF($B$7:B81,B81,$I$7:I81),\"\"),\"\")","v":""}]
[null,null,null,null,null,null,{"$f":"IFERROR(VLOOKUP(B82,SFAVOR!$B$8:$K$548,9,FALSE),\"\")","v":""},null,null,"",{"$f":"IFERROR(IF(B82<>\"\",SUMIFS(SFAVOR!$J:$J,SFAVOR!$B:$B,$B82,SFAVOR!$F:$F,\"<=\"&$C82)-SUMIF($B$7:B82,B82,$I$7:I82),\"\"),\"\")","v":""}]
[null,null,null,null,null,null,{"$f":"IFERROR(VLOOKUP(B83,SFAVOR!$B$8:$K$548,9,FALSE),\"\")","v":""},null,null,"",{"$f":"IFERROR(IF(B83<>\"\",SUMIFS(SFAVOR!$J:$J,SFAVOR!$B:$B,$B83,SFAVOR!$F:$F,\"<=\"&$C83)-SUMIF($B$7:B83,B83,$I$7:I83),\"\"),\"\")","v":""}]
[null,null,null,null,null,null,{"$f":"IFERROR(VLOOKUP(B84,SFAVOR!$B$8:$K$548,9,FALSE),\"\")","v":""},null,null,"",{"$f":"IFERROR(IF(B84<>\"\",SUMIFS(SFAVOR!$J:$J,SFAVOR!$B:$B,$B84,SFAVOR!$F:$F,\"<=\"&$C84)-SUMIF($B$7:B84,B84,$I$7:I84),\"\"),\"\")","v":""}]
[null,null,null,null,null,null,{"$f":"IFERROR(VLOOKUP(B85,SFAVOR!$B$8:$K$548,9,FALSE),\"\")","v":""},null,null,"",{"$f":"IFERROR(IF(B85<>\"\",SUMIFS(SFAVOR!$J:$J,SFAVOR!$B:$B,$B85,SFAVOR!$F:$F,\"<=\"&$C85)-SUMIF($B$7:B85,B85,$I$7:I85),\"\"),\"\")","v":""}]
[null,null,null,null,null,null,{"$f":"IFERROR(VLOOKUP(B86,SFAVOR!$B$8:$K$548,9,FALSE),\"\")","v":""},null,null,"",{"$f":"IFERROR(IF(B86<>\"\",SUMIFS(SFAVOR!$J:$J,SFAVOR!$B:$B,$B86,SFAVOR!$F:$F,\"<=\"&$C86)-SUMIF($B$7:B86,B86,$I$7:I86),\"\"),\"\")","v":""}]
[null,null,null,null,null,null,{"$f":"IFERROR(VLOOKUP(B87,SFAVOR!$B$8:$K$548,9,FALSE),\"\")","v":""},null,null,"",{"$f":"IFERROR(IF(B87<>\"\",SUMIFS(SFAVOR!$J:$J,SFAVOR!$B:$B,$B87,SFAVOR!$F:$F,\"<=\"&$C87)-SUMIF($B$7:B87,B87,$I$7:I87),\"\"),\"\")","v":""}]
[null,null,null,null,null,null,{"$f":"IFERROR(VLOOKUP(B88,SFAVOR!$B$8:$K$548,9,FALSE),\"\")","v":""},null,null,"",{"$f":"IFERROR(IF(B88<>\"\",SUMIFS(SFAVOR!$J:$J,SFAVOR!$B:$B,$B88,SFAVOR!$F:$F,\"<=\"&$C88)-SUMIF($B$7:B88,B88,$I$7:I88),\"\"),\"\")","v":""}]
[null,null,null,null,null,null,{"$f":"IFERROR(VLOOKUP(B89,SFAVOR!$B$8:$K$548,9,FALSE),\"\")","v":""},null,null,"",{"$f":"IFERROR(IF(B89<>\"\",SUMIFS(SFAVOR!$J:$J,SFAVOR!$B:$B,$B89,SFAVOR!$F:$F,\"<=\"&$C89)-SUMIF($B$7:B89,B89,$I$7:I89),\"\"),\"\")","v":""}]
[null,null,null,null,null,null,{"$f":"IFERROR(VLOOKUP(B90,SFAVOR!$B$8:$K$548,9,FALSE),\"\")","v":""},null,null,"",{"$f":"IFERROR(IF(B90<>\"\",SUMIFS(SFAVOR!$J:$J,SFAVOR!$B:$B,$B90,SFAVOR!$F:$F,\"<=\"&$C90)-SUMIF($B$7:B90,B90,$I$7:I90),\"\"),\"\")","v":""}]
[null,null,null,null,null,null,{"$f":"IFERROR(VLOOKUP(B91,SFAVOR!$B$8:$K$548,9,FALSE),\"\")","v":""},null,null,"",{"$f":"IFERROR(IF(B91<>\"\",SUMIFS(SFAVOR!$J:$J,SFAVOR!$B:$B,$B91,SFAVOR!$F:$F,\"<=\"&$C91)-SUMIF($B$7:B91,B91,$I$7:I91),\"\"),\"\")","v":""}]
[null,null,null,null,null,null,{"$f":"IFERROR(VLOOKUP(B92,SFAVOR!$B$8:$K$548,9,FALSE),\"\")","v":""},null,null,"",{"$f":"IFERROR(IF(B92<>\"\",SUMIFS(SFAVOR!$J:$J,SFAVOR!$B:$B,$B92,SFAVOR!$F:$F,\"<=\"&$C92)-SUMIF($B$7:B92,B92,$I$7:I92),\"\"),\"\")","v":""}]
[null,null,null,null,null,null,{"$f":"IFERROR(VLOOKUP(B93,SFAVOR!$B$8:$K$548,9,FALSE),\"\")","v":""},null,null,"",{"$f":"IFERROR(IF(B93<>\"\",SUMIFS(SFAVOR!$J:$J,SFAVOR!$B:$B,$B93,SFAVOR!$F:$F,\"<=\"&$C93)-SUMIF($B$7:B93,B93,$I$7:I93),\"\"),\"\")","v":""}]
[null,null,null,null,null,null,{"$f":"IFERROR(VLOOKUP(B94,SFAVOR!$B$8:$K$548,9,FALSE),\"\")","v":""},null,null,"",{"$f":"IFERROR(IF(B94<>\"\",SUMIFS(SFAVOR!$J:$J,SFAVOR!$B:$B,$B94,SFAVOR!$F:$F,\"<=\"&$C94)-SUMIF($B$7:B94,B94,$I$7:I94),\"\"),\"\")","v":""}]
[null,null,null,null,null,null,{"$f":"IFERROR(VLOOKUP(B95,SFAVOR!$B$8:$K$548,9,FALSE),\"\")","v":""},null,null,"",{"$f":"IFERROR(IF(B95<>\"\",SUMIFS(SFAVOR!$J:$J,SFAVOR!$B:$B,$B95,SFAVOR!$F:$F,\"<=\"&$C95)-SUMIF($B$7:B95,B95,$I$7:I95),\"\"),\"\")","v":""}]
[null,null,null,null,null,null,{"$f":"IFERROR(VLOOKUP(B96,SFAVOR!$B$8:$K$548,9,FALSE),\"\")","v":""},null,null,"",{"$f":"IFERROR(IF(B96<>\"\",SUMIFS(SFAVOR!$J:$J,SFAVOR!$B:$B,$B96,SFAVOR!$F:$F,\"<=\"&$C96)-SUMIF($B$7:B96,B96,$I$7:I96),\"\"),\"\")","v":""}]
[null,null,null,null,null,null,{"$f":"IFERROR(VLOOKUP(B97,SFAVOR!$B$8:$K$548,9,FALSE),\"\")","v":""},null,null,"",{"$f":"IFERROR(IF(B97<>\"\",SUMIFS(SFAVOR!$J:$J,SFAVOR!$B:$B,$B97,SFAVOR!$F:$F,\"<=\"&$C97)-SUMIF($B$7:B97,B97,$I$7:I97),\"\"),\"\")","v":""}]
[null,null,null,null,null,null,{"$f":"IFERROR(VLOOKUP(B98,SFAVOR!$B$8:$K$548,9,FALSE),\"\")","v":""},null,null,"",{"$f":"IFERROR(IF(B98<>\"\",SUMIFS(SFAVOR!$J:$J,SFAVOR!$B:$B,$B98,SFAVOR!$F:$F,\"<=\"&$C98)-SUMIF($B$7:B98,B98,$I$7:I98),\"\"),\"\")","v":""}]
[null,null,null,null,null,null,{"$f":"IFERROR(VLOOKUP(B99,SFAVOR!$B$8:$K$548,9,FALSE),\"\")","v":""},null,null,"",{"$f":"IFERROR(IF(B99<>\"\",SUMIFS(SFAVOR!$J:$J,SFAVOR!$B:$B,$B99,SFAVOR!$F:$F,\"<=\"&$C99)-SUMIF($B$7:B99,B99,$I$7:I99),\"\"),\"\")","v":""}]
[null,null,null,null,null,null,{"$f":"IFERROR(VLOOKUP(B100,SFAVOR!$B$8:$K$548,9,FALSE),\"\")","v":""},null,null,"",{"$f":"IFERROR(IF(B100<>\"\",SUMIFS(SFAVOR!$J:$J,SFAVOR!$B:$B,$B100,SFAVOR!$F:$F,\"<=\"&$C100)-SUMIF($B$7:B100,B100,$I$7:I100),\"\"),\"\")","v":""}]
[null,null,null,null,null,null,{"$f":"IFERROR(VLOOKUP(B101,SFAVOR!$B$8:$K$548,9,FALSE),\"\")","v":""},null,null,"",{"$f":"IFERROR(IF(B101<>\"\",SUMIFS(SFAVOR!$J:$J,SFAVOR!$B:$B,$B101,SFAVOR!$F:$F,\"<=\"&$C101)-SUMIF($B$7:B101,B101,$I$7:I101),\"\"),\"\")","v":""}]
[null,null,null,null,null,null,{"$f":"IFERROR(VLOOKUP(B102,SFAVOR!$B$8:$K$548,9,FALSE),\"\")","v":""},null,null,"",{"$f":"IFERROR(IF(B102<>\"\",SUMIFS(SFAVOR!$J:$J,SFAVOR!$B:$B,$B102,SFAVOR!$F:$F,\"<=\"&$C102)-SUMIF($B$7:B102,B102,$I$7:I102),\"\"),\"\")","v":""}]
[null,null,null,null,null,null,{"$f":"IFERROR(VLOOKUP(B103,SFAVOR!$B$8:$K$548,9,FALSE),\"\")","v":""},null,null,"",{"$f":"IFERROR(IF(B103<>\"\",SUMIFS(SFAVOR!$J:$J,SFAVOR!$B:$B,$B103,SFAVOR!$F:$F,\"<=\"&$C103)-SUMIF($B$7:B103,B103,$I$7:I103),\"\"),\"\")","v":""}]
[null,null,null,null,null,null,{"$f":"IFERROR(VLOOKUP(B104,SFAVOR!$B$8:$K$548,9,FALSE),\"\")","v":""},null,null,"",{"$f":"IFERROR(IF(B104<>\"\",SUMIFS(SFAVOR!$J:$J,SFAVOR!$B:$B,$B104,SFAVOR!$F:$F,\"<=\"&$C104)-SUMIF($B$7:B104,B104,$I$7:I104),\"\"),\"\")","v":""}]
[null,null,null,null,null,null,{"$f":"IFERROR(VLOOKUP(B105,SFAVOR!$B$8:$K$548,9,FALSE),\"\")","v":""},null,null,"",{"$f":"IFERROR(IF(B105<>\"\",SUMIFS(SFAVOR!$J:$J,SFAVOR!$B:$B,$B105,SFAVOR!$F:$F,\"<=\"&$C105)-SUMIF($B$7:B105,B105,$I$7:I105),\"\"),\"\")","v":""}]
[null,null,null,null,null,null,{"$f":"IFERROR(VLOOKUP(B106,SFAVOR!$B$8:$K$548,9,FALSE),\"\")","v":""},null,null,"",{"$f":"IFERROR(IF(B106<>\"\",SUMIFS(SFAVOR!$J:$J,SFAVOR!$B:$B,$B106,SFAVOR!$F:$F,\"<=\"&$C106)-SUMIF($B$7:B106,B106,$I$7:I106),\"\"),\"\")","v":""}]
[null,null,null,null,null,null,{"$f":"IFERROR(VLOOKUP(B107,SFAVOR!$B$8:$K$548,9,FALSE),\"\")","v":""},null,null,"",{"$f":"IFERROR(IF(B107<>\"\",SUMIFS(SFAVOR!$J:$J,SFAVOR!$B:$B,$B107,SFAVOR!$F:$F,\"<=\"&$C107)-SUMIF($B$7:B107,B107,$I$7:I107),\"\"),\"\")","v":""}]
[null,null,null,null,null,null,{"$f":"IFERROR(VLOOKUP(B108,SFAVOR!$B$8:$K$548,9,FALSE),\"\")","v":""},null,null,"",{"$f":"IFERROR(IF(B108<>\"\",SUMIFS(SFAVOR!$J:$J,SFAVOR!$B:$B,$B108,SFAVOR!$F:$F,\"<=\"&$C108)-SUMIF($B$7:B108,B108,$I$7:I108),\"\"),\"\")","v":""}]
[null,null,null,null,null,null,{"$f":"IFERROR(VLOOKUP(B109,SFAVOR!$B$8:$K$548,9,FALSE),\"\")","v":""},null,null,"",{"$f":"IFERROR(IF(B109<>\"\",SUMIFS(SFAVOR!$J:$J,SFAVOR!$B:$B,$B109,SFAVOR!$F:$F,\"<=\"&$C109)-SUMIF($B$7:B109,B109,$I$7:I109),\"\"),\"\")","v":""}]
[null,null,null,null,null,null,{"$f":"IFERROR(VLOOKUP(B110,SFAVOR!$B$8:$K$548,9,FALSE),\"\")","v":""},null,null,"",{"$f":"IFERROR(IF(B110<>\"\",SUMIFS(SFAVOR!$J:$J,SFAVOR!$B:$B,$B110,SFAVOR!$F:$F,\"<=\"&$C110)-SUMIF($B$7:B110,B110,$I$7:I110),\"\"),\"\")","v":""}]
[null,null,null,null,null,null,{"$f":"IFERROR(VLOOKUP(B111,SFAVOR!$B$8:$K$548,9,FALSE),\"\")","v":""},null,null,"",{"$f":"IFERROR(IF(B111<>\"\",SUMIFS(SFAVOR!$J:$J,SFAVOR!$B:$B,$B111,SFAVOR!$F:$F,\"<=\"&$C111)-SUMIF($B$7:B111,B111,$I$7:I111),\"\"),\"\")","v":""}]
[null,null,null,null,null,null,{"$f":"IFERROR(VLOOKUP(B112,SFAVOR!$B$8:$K$548,9,FALSE),\"\")","v":""},null,null,"",{"$f":"IFERROR(IF(B112<>\"\",SUMIFS(SFAVOR!$J:$J,SFAVOR!$B:$B,$B112,SFAVOR!$F:$F,\"<=\"&$C112)-SUMIF($B$7:B112,B112,$I$7:I112),\"\"),\"\")","v":""}]
[null,null,null,null,null,null,{"$f":"IFERROR(VLOOKUP(B113,SFAVOR!$B$8:$K$548,9,FALSE),\"\")","v":""},null,null,"",{"$f":"IFERROR(IF(B113<>\"\",SUMIFS(SFAVOR!$J:$J,SFAVOR!$B:$B,$B113,SFAVOR!$F:$F,\"<=\"&$C113)-SUMIF($B$7:B113,B113,$I$7:I113),\"\"),\"\")","v":""}]
[null,null,null,null,null,null,{"$f":"IFERROR(VLOOKUP(B114,SFAVOR!$B$8:$K$548,9,FALSE),\"\")","v":""},null,null,"",{"$f":"IFERROR(IF(B114<>\"\",SUMIFS(SFAVOR!$J:$J,SFAVOR!$B:$B,$B114,SFAVOR!$F:$F,\"<=\"&$C114)-SUMIF($B$7:B114,B114,$I$7:I114),\"\"),\"\")","v":""}]
[null,null,null,null,null,null,{"$f":"IFERROR(VLOOKUP(B115,SFAVOR!$B$8:$K$548,9,FALSE),\"\")","v":""},null,null,"",{"$f":"IFERROR(IF(B115<>\"\",SUMIFS(SFAVOR!$J:$J,SFAVOR!$B:$B,$B115,SFAVOR!$F:$F,\"<=\"&$C115)-SUMIF($B$7:B115,B115,$I$7:I115),\"\"),\"\")","v":""}]
[null,null,null,null,null,null,{"$f":"IFERROR(VLOOKUP(B116,SFAVOR!$B$8:$K$548,9,FALSE),\"\")","v":""},null,null,"",{"$f":"IFERROR(IF(B116<>\"\",SUMIFS(SFAVOR!$J:$J,SFAVOR!$B:$B,$B116,SFAVOR!$F:$F,\"<=\"&$C116)-SUMIF($B$7:B116,B116,$I$7:I116),\"\"),\"\")","v":""}]
[null,null,null,null,null,null,{"$f":"IFERROR(VLOOKUP(B117,SFAVOR!$B$8:$K$548,9,FALSE),\"\")","v":""},null,null,"",{"$f":"IFERROR(IF(B117<>\"\",SUMIFS(SFAVOR!$J:$J,SFAVOR!$B:$B,$B117,SFAVOR!$F:$F,\"<=\"&$C117)-SUMIF($B$7:B117,B117,$I$7:I117),\"\"),\"\")","v":""}]
[null,null,null,null,null,null,{"$f":"IFERROR(VLOOKUP(B118,SFAVOR!$B$8:$K$548,9,FALSE),\"\")","v":""},null,null,"",{"$f":"IFERROR(IF(B118<>\"\",SUMIFS(SFAVOR!$J:$J,SFAVOR!$B:$B,$B118,SFAVOR!$F:$F,\"<=\"&$C118)-SUMIF($B$7:B118,B118,$I$7:I118),\"\"),\"\")","v":""}]
[null,null,null,null,null,null,{"$f":"IFERROR(VLOOKUP(B119,SFAVOR!$B$8:$K$548,9,FALSE),\"\")","v":""},null,null,"",{"$f":"IFERROR(IF(B119<>\"\",SUMIFS(SFAVOR!$J:$J,SFAVOR!$B:$B,$B119,SFAVOR!$F:$F,\"<=\"&$C119)-SUMIF($B$7:B119,B119,$I$7:I119),\"\"),\"\")","v":""}]
[null,null,null,null,null,null,{"$f":"IFERROR(VLOOKUP(B120,SFAVOR!$B$8:$K$548,9,FALSE),\"\")","v":""},null,null,"",{"$f":"IFERROR(IF(B120<>\"\",SUMIFS(SFAVOR!$J:$J,SFAVOR!$B:$B,$B120,SFAVOR!$F:$F,\"<=\"&$C120)-SUMIF($B$7:B120,B120,$I$7:I120),\"\"),\"\")","v":""}]
[null,null,null,null,null,null,{"$f":"IFERROR(VLOOKUP(B121,SFAVOR!$B$8:$K$548,9,FALSE),\"\")","v":""},null,null,"",{"$f":"IFERROR(IF(B121<>\"\",SUMIFS(SFAVOR!$J:$J,SFAVOR!$B:$B,$B121,SFAVOR!$F:$F,\"<=\"&$C121)-SUMIF($B$7:B121,B121,$I$7:I121),\"\"),\"\")","v":""}]
[null,null,null,null,null,null,{"$f":"IFERROR(VLOOKUP(B122,SFAVOR!$B$8:$K$548,9,FALSE),\"\")","v":""},null,null,"",{"$f":"IFERROR(IF(B122<>\"\",SUMIFS(SFAVOR!$J:$J,SFAVOR!$B:$B,$B122,SFAVOR!$F:$F,\"<=\"&$C122)-SUMIF($B$7:B122,B122,$I$7:I122),\"\"),\"\")","v":""}]
[null,null,null,null,null,null,{"$f":"IFERROR(VLOOKUP(B123,SFAVOR!$B$8:$K$548,9,FALSE),\"\")","v":""},null,null,"",{"$f":"IFERROR(IF(B123<>\"\",SUMIFS(SFAVOR!$J:$J,SFAVOR!$B:$B,$B123,SFAVOR!$F:$F,\"<=\"&$C123)-SUMIF($B$7:B123,B123,$I$7:I123),\"\"),\"\")","v":""}]
[null,null,null,null,null,null,{"$f":"IFERROR(VLOOKUP(B124,SFAVOR!$B$8:$K$548,9,FALSE),\"\")","v":""},null,null,"",{"$f":"IFERROR(IF(B124<>\"\",SUMIFS(SFAVOR!$J:$J,SFAVOR!$B:$B,$B124,SFAVOR!$F:$F,\"<=\"&$C124)-SUMIF($B$7:B124,B124,$I$7:I124),\"\"),\"\")","v":""}]
[null,null,null,null,null,null,{"$f":"IFERROR(VLOOKUP(B125,SFAVOR!$B$8:$K$548,9,FALSE),\"\")","v":""},null,null,"",{"$f":"IFERROR(IF(B125<>\"\",SUMIFS(SFAVOR!$J:$J,SFAVOR!$B:$B,$B125,SFAVOR!$F:$F,\"<=\"&$C125)-SUMIF($B$7:B125,B125,$I$7:I125),\"\"),\"\")","v":""}]
[null,null,null,null,null,null,{"$f":"IFERROR(VLOOKUP(B126,SFAVOR!$B$8:$K$548,9,FALSE),\"\")","v":""},null,null,"",{"$f":"IFERROR(IF(B126<>\"\",SUMIFS(SFAVOR!$J:$J,SFAVOR!$B:$B,$B126,SFAVOR!$F:$F,\"<=\"&$C126)-SUMIF($B$7:B126,B126,$I$7:I126),\"\"),\"\")","v":""}]
[null,null,null,null,null,null,{"$f":"IFERROR(VLOOKUP(B127,SFAVOR!$B$8:$K$548,9,FALSE),\"\")","v":""},null,null,"",{"$f":"IFERROR(IF(B127<>\"\",SUMIFS(SFAVOR!$J:$J,SFAVOR!$B:$B,$B127,SFAVOR!$F:$F,\"<=\"&$C127)-SUMIF($B$7:B127,B127,$I$7:I127),\"\"),\"\")","v":""}]
[null,null,null,null,null,null,{"$f":"IFERROR(VLOOKUP(B128,SFAVOR!$B$8:$K$548,9,FALSE),\"\")","v":""},null,null,"",{"$f":"IFERROR(IF(B128<>\"\",SUMIFS(SFAVOR!$J:$J,SFAVOR!$B:$B,$B128,SFAVOR!$F:$F,\"<=\"&$C128)-SUMIF($B$7:B128,B128,$I$7:I128),\"\"),\"\")","v":""}]
[null,null,null,null,null,null,{"$f":"IFERROR(VLOOKUP(B129,SFAVOR!$B$8:$K$548,9,FALSE),\"\")","v":""},null,null,"",{"$f":"IFERROR(IF(B129<>\"\",SUMIFS(SFAVOR!$J:$J,SFAVOR!$B:$B,$B129,SFAVOR!$F:$F,\"<=\"&$C129)-SUMIF($B$7:B129,B129,$I$7:I129),\"\"),\"\")","v":""}]
[null,null,null,null,null,null,{"$f":"IFERROR(VLOOKUP(B130,SFAVOR!$B$8:$K$548,9,FALSE),\"\")","v":""},null,null,"",{"$f":"IFERROR(IF(B130<>\"\",SUMIFS(SFAVOR!$J:$J,SFAVOR!$B:$B,$B130,SFAVOR!$F:$F,\"<=\"&$C130)-SUMIF($B$7:B130,B130,$I$7:I130),\"\"),\"\")","v":""}]
[null,null,null,null,null,null,{"$f":"IFERROR(VLOOKUP(B131,SFAVOR!$B$8:$K$548,9,FALSE),\"\")","v":""},null,null,"",{"$f":"IFERROR(IF(B131<>\"\",SUMIFS(SFAVOR!$J:$J,SFAVOR!$B:$B,$B131,SFAVOR!$F:$F,\"<=\"&$C131)-SUMIF($B$7:B131,B131,$I$7:I131),\"\"),\"\")","v":""}]
[null,null,null,null,null,null,{"$f":"IFERROR(VLOOKUP(B132,SFAVOR!$B$8:$K$548,9,FALSE),\"\")","v":""},null,null,"",{"$f":"IFERROR(IF(B132<>\"\",SUMIFS(SFAVOR!$J:$J,SFAVOR!$B:$B,$B132,SFAVOR!$F:$F,\"<=\"&$C132)-SUMIF($B$7:B132,B132,$I$7:I132),\"\"),\"\")","v":""}]
[null,null,null,null,null,null,{"$f":"IFERROR(VLOOKUP(B133,SFAVOR!$B$8:$K$548,9,FALSE),\"\")","v":""},null,null,"",{"$f":"IFERROR(IF(B133<>\"\",SUMIFS(SFAVOR!$J:$J,SFAVOR!$B:$B,$B133,SFAVOR!$F:$F,\"<=\"&$C133)-SUMIF($B$7:B133,B133,$I$7:I133),\"\"),\"\")","v":""}]
[null,null,null,null,null,null,{"$f":"IFERROR(VLOOKUP(B134,SFAVOR!$B$8:$K$548,9,FALSE),\"\")","v":""},null,null,"",{"$f":"IFERROR(IF(B134<>\"\",SUMIFS(SFAVOR!$J:$J,SFAVOR!$B:$B,$B134,SFAVOR!$F:$F,\"<=\"&$C134)-SUMIF($B$7:B134,B134,$I$7:I134),\"\"),\"\")","v":""}]
[null,null,null,null,null,null,{"$f":"IFERROR(VLOOKUP(B135,SFAVOR!$B$8:$K$548,9,FALSE),\"\")","v":""},null,null,"",{"$f":"IFERROR(IF(B135<>\"\",SUMIFS(SFAVOR!$J:$J,SFAVOR!$B:$B,$B135,SFAVOR!$F:$F,\"<=\"&$C135)-SUMIF($B$7:B135,B135,$I$7:I135),\"\"),\"\")","v":""}]
[null,null,null,null,null,null,{"$f":"IFERROR(VLOOKUP(B136,SFAVOR!$B$8:$K$548,9,FALSE),\"\")","v":""},null,null,{"$f":"IFERROR(IF(OR(H136<>\"\",I136<>\"\"),H136-I136,\"\"),\"\")","v":""},{"$f":"IFERROR(IF(B136<>\"\",SUMIFS(SFAVOR!$J:$J,SFAVOR!$B:$B,$B136,SFAVOR!$F:$F,\"<=\"&$C136)-SUMIF($B$7:B136,B136,$I$7:I136),\"\"),\"\")","v":""}]
[null,null,null,null,null,null,{"$f":"IFERROR(VLOOKUP(B137,SFAVOR!$B$8:$K$548,9,FALSE),\"\")","v":""},null,null,"",{"$f":"IFERROR(IF(B137<>\"\",SUMIFS(SFAVOR!$J:$J,SFAVOR!$B:$B,$B137,SFAVOR!$F:$F,\"<=\"&$C137)-SUMIF($B$7:B137,B137,$I$7:I137),\"\"),\"\")","v":""}]
[null,null,null,null,null,null,{"$f":"IFERROR(VLOOKUP(B138,SFAVOR!$B$8:$K$548,9,FALSE),\"\")","v":""},null,null,"",{"$f":"IFERROR(IF(B138<>\"\",SUMIFS(SFAVOR!$J:$J,SFAVOR!$B:$B,$B138,SFAVOR!$F:$F,\"<=\"&$C138)-SUMIF($B$7:B138,B138,$I$7:I138),\"\"),\"\")","v":""}]
[null,null,null,null,null,null,{"$f":"IFERROR(VLOOKUP(B139,SFAVOR!$B$8:$K$548,9,FALSE),\"\")","v":""},null,null,"",{"$f":"IFERROR(IF(B139<>\"\",SUMIFS(SFAVOR!$J:$J,SFAVOR!$B:$B,$B139,SFAVOR!$F:$F,\"<=\"&$C139)-SUMIF($B$7:B139,B139,$I$7:I139),\"\"),\"\")","v":""}]
[null,null,null,null,null,null,{"$f":"IFERROR(VLOOKUP(B140,SFAVOR!$B$8:$K$548,9,FALSE),\"\")","v":""},null,null,"",{"$f":"IFERROR(IF(B140<>\"\",SUMIFS(SFAVOR!$J:$J,SFAVOR!$B:$B,$B140,SFAVOR!$F:$F,\"<=\"&$C140)-SUMIF($B$7:B140,B140,$I$7:I140),\"\"),\"\")","v":""}]
[null,null,null,null,null,null,{"$f":"IFERROR(VLOOKUP(B141,SFAVOR!$B$8:$K$548,9,FALSE),\"\")","v":""},null,null,"",{"$f":"IFERROR(IF(B141<>\"\",SUMIFS(SFAVOR!$J:$J,SFAVOR!$B:$B,$B141,SFAVOR!$F:$F,\"<=\"&$C141)-SUMIF($B$7:B141,B141,$I$7:I141),\"\"),\"\")","v":""}]
[null,null,null,null,null,null,{"$f":"IFERROR(VLOOKUP(B142,SFAVOR!$B$8:$K$548,9,FALSE),\"\")","v":""},null,null,"",{"$f":"IFERROR(IF(B142<>\"\",SUMIFS(SFAVOR!$J:$J,SFAVOR!$B:$B,$B142,SFAVOR!$F:$F,\"<=\"&$C142)-SUMIF($B$7:B142,B142,$I$7:I142),\"\"),\"\")","v":""}]
[null,null,null,null,null,null,{"$f":"IFERROR(VLOOKUP(B143,SFAVOR!$B$8:$K$548,9,FALSE),\"\")","v":""},null,null,"",{"$f":"IFERROR(IF(B143<>\"\",SUMIFS(SFAVOR!$J:$J,SFAVOR!$B:$B,$B143,SFAVOR!$F:$F,\"<=\"&$C143)-SUMIF($B$7:B143,B143,$I$7:I143),\"\"),\"\")","v":""}]
[null,null,null,null,null,null,{"$f":"IFERROR(VLOOKUP(B144,SFAVOR!$B$8:$K$548,9,FALSE),\"\")","v":""},null,null,"",{"$f":"IFERROR(IF(B144<>\"\",SUMIFS(SFAVOR!$J:$J,SFAVOR!$B:$B,$B144,SFAVOR!$F:$F,\"<=\"&$C144)-SUMIF($B$7:B144,B144,$I$7:I144),\"\"),\"\")","v":""}]
[null,null,null,null,null,null,{"$f":"IFERROR(VLOOKUP(B145,SFAVOR!$B$8:$K$548,9,FALSE),\"\")","v":""},null,null,"",{"$f":"IFERROR(IF(B145<>\"\",SUMIFS(SFAVOR!$J:$J,SFAVOR!$B:$B,$B145,SFAVOR!$F:$F,\"<=\"&$C145)-SUMIF($B$7:B145,B145,$I$7:I145),\"\"),\"\")","v":""}]
[null,null,null,null,null,null,{"$f":"IFERROR(VLOOKUP(B146,SFAVOR!$B$8:$K$548,9,FALSE),\"\")","v":""},null,null,"",{"$f":"IFERROR(IF(B146<>\"\",SUMIFS(SFAVOR!$J:$J,SFAVOR!$B:$B,$B146,SFAVOR!$F:$F,\"<=\"&$C146)-SUMIF($B$7:B146,B146,$I$7:I146),\"\"),\"\")","v":""}]
[null,null,null,null,null,null,{"$f":"IFERROR(VLOOKUP(B147,SFAVOR!$B$8:$K$548,9,FALSE),\"\")","v":""},null,null,"",{"$f":"IFERROR(IF(B147<>\"\",SUMIFS(SFAVOR!$J:$J,SFAVOR!$B:$B,$B147,SFAVOR!$F:$F,\"<=\"&$C147)-SUMIF($B$7:B147,B147,$I$7:I147),\"\"),\"\")","v":""}]
[null,null,null,null,null,null,{"$f":"IFERROR(VLOOKUP(B148,SFAVOR!$B$8:$K$548,9,FALSE),\"\")","v":""},null,null,"",{"$f":"IFERROR(IF(B148<>\"\",SUMIFS(SFAVOR!$J:$J,SFAVOR!$B:$B,$B148,SFAVOR!$F:$F,\"<=\"&$C148)-SUMIF($B$7:B148,B148,$I$7:I148),\"\"),\"\")","v":""}]
[null,null,null,null,null,null,{"$f":"IFERROR(VLOOKUP(B149,SFAVOR!$B$8:$K$548,9,FALSE),\"\")","v":""},null,null,"",{"$f":"IFERROR(IF(B149<>\"\",SUMIFS(SFAVOR!$J:$J,SFAVOR!$B:$B,$B149,SFAVOR!$F:$F,\"<=\"&$C149)-SUMIF($B$7:B149,B149,$I$7:I149),\"\"),\"\")","v":""}]
[null,null,null,null,null,null,{"$f":"IFERROR(VLOOKUP(B150,SFAVOR!$B$8:$K$548,9,FALSE),\"\")","v":""},null,null,"",{"$f":"IFERROR(IF(B150<>\"\",SUMIFS(SFAVOR!$J:$J,SFAVOR!$B:$B,$B150,SFAVOR!$F:$F,\"<=\"&$C150)-SUMIF($B$7:B150,B150,$I$7:I150),\"\"),\"\")","v":""}]
[null,null,null,null,null,null,{"$f":"IFERROR(VLOOKUP(B151,SFAVOR!$B$8:$K$548,9,FALSE),\"\")","v":""},null,null,"",{"$f":"IFERROR(IF(B151<>\"\",SUMIFS(SFAVOR!$J:$J,SFAVOR!$B:$B,$B151,SFAVOR!$F:$F,\"<=\"&$C151)-SUMIF($B$7:B151,B151,$I$7:I151),\"\"),\"\")","v":""}]
[null,null,null,null,null,null,{"$f":"IFERROR(VLOOKUP(B152,SFAVOR!$B$8:$K$548,9,FALSE),\"\")","v":""},null,null,"",{"$f":"IFERROR(IF(B152<>\"\",SUMIFS(SFAVOR!$J:$J,SFAVOR!$B:$B,$B152,SFAVOR!$F:$F,\"<=\"&$C152)-SUMIF($B$7:B152,B152,$I$7:I152),\"\"),\"\")","v":""}]
[null,null,null,null,null,null,{"$f":"IFERROR(VLOOKUP(B153,SFAVOR!$B$8:$K$548,9,FALSE),\"\")","v":""},null,null,"",{"$f":"IFERROR(IF(B153<>\"\",SUMIFS(SFAVOR!$J:$J,SFAVOR!$B:$B,$B153,SFAVOR!$F:$F,\"<=\"&$C153)-SUMIF($B$7:B153,B153,$I$7:I153),\"\"),\"\")","v":""}]
[null,null,null,null,null,null,{"$f":"IFERROR(VLOOKUP(B154,SFAVOR!$B$8:$K$548,9,FALSE),\"\")","v":""},null,null,"",{"$f":"IFERROR(IF(B154<>\"\",SUMIFS(SFAVOR!$J:$J,SFAVOR!$B:$B,$B154,SFAVOR!$F:$F,\"<=\"&$C154)-SUMIF($B$7:B154,B154,$I$7:I154),\"\"),\"\")","v":""}]
[null,null,null,null,null,null,{"$f":"IFERROR(VLOOKUP(B155,SFAVOR!$B$8:$K$548,9,FALSE),\"\")","v":""},null,null,"",{"$f":"IFERROR(IF(B155<>\"\",SUMIFS(SFAVOR!$J:$J,SFAVOR!$B:$B,$B155,SFAVOR!$F:$F,\"<=\"&$C155)-SUMIF($B$7:B155,B155,$I$7:I155),\"\"),\"\")","v":""}]
[null,null,null,null,null,null,{"$f":"IFERROR(VLOOKUP(B156,SFAVOR!$B$8:$K$548,9,FALSE),\"\")","v":""},null,null,"",{"$f":"IFERROR(IF(B156<>\"\",SUMIFS(SFAVOR!$J:$J,SFAVOR!$B:$B,$B156,SFAVOR!$F:$F,\"<=\"&$C156)-SUMIF($B$7:B156,B156,$I$7:I156),\"\"),\"\")","v":""}]
[null,null,null,null,null,null,{"$f":"IFERROR(VLOOKUP(B157,SFAVOR!$B$8:$K$548,9,FALSE),\"\")","v":""},null,null,"",{"$f":"IFERROR(IF(B157<>\"\",SUMIFS(SFAVOR!$J:$J,SFAVOR!$B:$B,$B157,SFAVOR!$F:$F,\"<=\"&$C157)-SUMIF($B$7:B157,B157,$I$7:I157),\"\"),\"\")","v":""}]
[null,null,null,null,null,null,{"$f":"IFERROR(VLOOKUP(B158,SFAVOR!$B$8:$K$548,9,FALSE),\"\")","v":""},null,null,"",{"$f":"IFERROR(IF(B158<>\"\",SUMIFS(SFAVOR!$J:$J,SFAVOR!$B:$B,$B158,SFAVOR!$F:$F,\"<=\"&$C158)-SUMIF($B$7:B158,B158,$I$7:I158),\"\"),\"\")","v":""}]
[null,null,null,null,null,null,{"$f":"IFERROR(VLOOKUP(B159,SFAVOR!$B$8:$K$548,9,FALSE),\"\")","v":""},null,null,"",{"$f":"IFERROR(IF(B159<>\"\",SUMIFS(SFAVOR!$J:$J,SFAVOR!$B:$B,$B159,SFAVOR!$F:$F,\"<=\"&$C159)-SUMIF($B$7:B159,B159,$I$7:I159),\"\"),\"\")","v":""}]
[null,null,null,null,null,null,{"$f":"IFERROR(VLOOKUP(B160,SFAVOR!$B$8:$K$548,9,FALSE),\"\")","v":""},null,null,"",{"$f":"IFERROR(IF(B160<>\"\",SUMIFS(SFAVOR!$J:$J,SFAVOR!$B:$B,$B160,SFAVOR!$F:$F,\"<=\"&$C160)-SUMIF($B$7:B160,B160,$I$7:I160),\"\"),\"\")","v":""}]
[null,null,null,null,null,null,{"$f":"IFERROR(VLOOKUP(B161,SFAVOR!$B$8:$K$548,9,FALSE),\"\")","v":""},null,null,"",{"$f":"IFERROR(IF(B161<>\"\",SUMIFS(SFAVOR!$J:$J,SFAVOR!$B:$B,$B161,SFAVOR!$F:$F,\"<=\"&$C161)-SUMIF($B$7:B161,B161,$I$7:I161),\"\"),\"\")","v":""}]
[null,null,null,null,null,null,{"$f":"IFERROR(VLOOKUP(B162,SFAVOR!$B$8:$K$548,9,FALSE),\"\")","v":""},null,null,"",{"$f":"IFERROR(IF(B162<>\"\",SUMIFS(SFAVOR!$J:$J,SFAVOR!$B:$B,$B162,SFAVOR!$F:$F,\"<=\"&$C162)-SUMIF($B$7:B162,B162,$I$7:I162),\"\"),\"\")","v":""}]
[null,null,null,null,null,null,{"$f":"IFERROR(VLOOKUP(B163,SFAVOR!$B$8:$K$548,9,FALSE),\"\")","v":""},null,null,"",{"$f":"IFERROR(IF(B163<>\"\",SUMIFS(SFAVOR!$J:$J,SFAVOR!$B:$B,$B163,SFAVOR!$F:$F,\"<=\"&$C163)-SUMIF($B$7:B163,B163,$I$7:I163),\"\"),\"\")","v":""}]
[null,null,null,null,null,null,{"$f":"IFERROR(VLOOKUP(B164,SFAVOR!$B$8:$K$548,9,FALSE),\"\")","v":""},null,null,"",{"$f":"IFERROR(IF(B164<>\"\",SUMIFS(SFAVOR!$J:$J,SFAVOR!$B:$B,$B164,SFAVOR!$F:$F,\"<=\"&$C164)-SUMIF($B$7:B164,B164,$I$7:I164),\"\"),\"\")","v":""}]
[null,null,null,null,null,null,{"$f":"IFERROR(VLOOKUP(B165,SFAVOR!$B$8:$K$548,9,FALSE),\"\")","v":""},null,null,"",{"$f":"IFERROR(IF(B165<>\"\",SUMIFS(SFAVOR!$J:$J,SFAVOR!$B:$B,$B165,SFAVOR!$F:$F,\"<=\"&$C165)-SUMIF($B$7:B165,B165,$I$7:I165),\"\"),\"\")","v":""}]
[null,null,null,null,null,null,{"$f":"IFERROR(VLOOKUP(B166,SFAVOR!$B$8:$K$548,9,FALSE),\"\")","v":""},null,null,"",{"$f":"IFERROR(IF(B166<>\"\",SUMIFS(SFAVOR!$J:$J,SFAVOR!$B:$B,$B166,SFAVOR!$F:$F,\"<=\"&$C166)-SUMIF($B$7:B166,B166,$I$7:I166),\"\"),\"\")","v":""}]
[null,null,null,null,null,null,{"$f":"IFERROR(VLOOKUP(B167,SFAVOR!$B$8:$K$548,9,FALSE),\"\")","v":""},null,null,"",{"$f":"IFERROR(IF(B167<>\"\",SUMIFS(SFAVOR!$J:$J,SFAVOR!$B:$B,$B167,SFAVOR!$F:$F,\"<=\"&$C167)-SUMIF($B$7:B167,B167,$I$7:I167),\"\"),\"\")","v":""}]
[null,null,null,null,null,null,{"$f":"IFERROR(VLOOKUP(B168,SFAVOR!$B$8:$K$548,9,FALSE),\"\")","v":""},null,null,"",{"$f":"IFERROR(IF(B168<>\"\",SUMIFS(SFAVOR!$J:$J,SFAVOR!$B:$B,$B168,SFAVOR!$F:$F,\"<=\"&$C168)-SUMIF($B$7:B168,B168,$I$7:I168),\"\"),\"\")","v":""}]
[null,null,null,null,null,null,{"$f":"IFERROR(VLOOKUP(B169,SFAVOR!$B$8:$K$548,9,FALSE),\"\")","v":""},null,null,"",{"$f":"IFERROR(IF(B169<>\"\",SUMIFS(SFAVOR!$J:$J,SFAVOR!$B:$B,$B169,SFAVOR!$F:$F,\"<=\"&$C169)-SUMIF($B$7:B169,B169,$I$7:I169),\"\"),\"\")","v":""}]
[null,null,null,null,null,null,{"$f":"IFERROR(VLOOKUP(B170,SFAVOR!$B$8:$K$548,9,FALSE),\"\")","v":""},null,null,"",{"$f":"IFERROR(IF(B170<>\"\",SUMIFS(SFAVOR!$J:$J,SFAVOR!$B:$B,$B170,SFAVOR!$F:$F,\"<=\"&$C170)-SUMIF($B$7:B170,B170,$I$7:I170),\"\"),\"\")","v":""}]
[null,null,null,null,null,null,{"$f":"IFERROR(VLOOKUP(B171,SFAVOR!$B$8:$K$548,9,FALSE),\"\")","v":""},null,null,"",{"$f":"IFERROR(IF(B171<>\"\",SUMIFS(SFAVOR!$J:$J,SFAVOR!$B:$B,$B171,SFAVOR!$F:$F,\"<=\"&$C171)-SUMIF($B$7:B171,B171,$I$7:I171),\"\"),\"\")","v":""}]
[null,null,null,null,null,null,{"$f":"IFERROR(VLOOKUP(B172,SFAVOR!$B$8:$K$548,9,FALSE),\"\")","v":""},null,null,"",{"$f":"IFERROR(IF(B172<>\"\",SUMIFS(SFAVOR!$J:$J,SFAVOR!$B:$B,$B172,SFAVOR!$F:$F,\"<=\"&$C172)-SUMIF($B$7:B172,B172,$I$7:I172),\"\"),\"\")","v":""}]
[null,null,null,null,null,null,{"$f":"IFERROR(VLOOKUP(B173,SFAVOR!$B$8:$K$548,9,FALSE),\"\")","v":""},null,null,"",{"$f":"IFERROR(IF(B173<>\"\",SUMIFS(SFAVOR!$J:$J,SFAVOR!$B:$B,$B173,SFAVOR!$F:$F,\"<=\"&$C173)-SUMIF($B$7:B173,B173,$I$7:I173),\"\"),\"\")","v":""}]
[null,null,null,null,null,null,{"$f":"IFERROR(VLOOKUP(B174,SFAVOR!$B$8:$K$548,9,FALSE),\"\")","v":""},null,null,"",{"$f":"IFERROR(IF(B174<>\"\",SUMIFS(SFAVOR!$J:$J,SFAVOR!$B:$B,$B174,SFAVOR!$F:$F,\"<=\"&$C174)-SUMIF($B$7:B174,B174,$I$7:I174),\"\"),\"\")","v":""}]
[null,null,null,null,null,null,{"$f":"IFERROR(VLOOKUP(B175,SFAVOR!$B$8:$K$548,9,FALSE),\"\")","v":""},null,null,"",{"$f":"IFERROR(IF(B175<>\"\",SUMIFS(SFAVOR!$J:$J,SFAVOR!$B:$B,$B175,SFAVOR!$F:$F,\"<=\"&$C175)-SUMIF($B$7:B175,B175,$I$7:I175),\"\"),\"\")","v":""}]
[null,null,null,null,null,null,{"$f":"IFERROR(VLOOKUP(B176,SFAVOR!$B$8:$K$548,9,FALSE),\"\")","v":""},null,null,"",{"$f":"IFERROR(IF(B176<>\"\",SUMIFS(SFAVOR!$J:$J,SFAVOR!$B:$B,$B176,SFAVOR!$F:$F,\"<=\"&$C176)-SUMIF($B$7:B176,B176,$I$7:I176),\"\"),\"\")","v":""}]
[null,null,null,null,null,null,{"$f":"IFERROR(VLOOKUP(B177,SFAVOR!$B$8:$K$548,9,FALSE),\"\")","v":""},null,null,"",{"$f":"IFERROR(IF(B177<>\"\",SUMIFS(SFAVOR!$J:$J,SFAVOR!$B:$B,$B177,SFAVOR!$F:$F,\"<=\"&$C177)-SUMIF($B$7:B177,B177,$I$7:I177),\"\"),\"\")","v":""}]
[null,null,null,null,null,null,{"$f":"IFERROR(VLOOKUP(B178,SFAVOR!$B$8:$K$548,9,FALSE),\"\")","v":""},null,null,"",{"$f":"IFERROR(IF(B178<>\"\",SUMIFS(SFAVOR!$J:$J,SFAVOR!$B:$B,$B178,SFAVOR!$F:$F,\"<=\"&$C178)-SUMIF($B$7:B178,B178,$I$7:I178),\"\"),\"\")","v":""}]
[null,null,null,null,null,null,{"$f":"IFERROR(VLOOKUP(B179,SFAVOR!$B$8:$K$548,9,FALSE),\"\")","v":""},null,null,"",{"$f":"IFERROR(IF(B179<>\"\",SUMIFS(SFAVOR!$J:$J,SFAVOR!$B:$B,$B179,SFAVOR!$F:$F,\"<=\"&$C179)-SUMIF($B$7:B179,B179,$I$7:I179),\"\"),\"\")","v":""}]
[null,null,null,null,null,null,{"$f":"IFERROR(VLOOKUP(B180,SFAVOR!$B$8:$K$548,9,FALSE),\"\")","v":""},null,null,"",{"$f":"IFERROR(IF(B180<>\"\",SUMIFS(SFAVOR!$J:$J,SFAVOR!$B:$B,$B180,SFAVOR!$F:$F,\"<=\"&$C180)-SUMIF($B$7:B180,B180,$I$7:I180),\"\"),\"\")","v":""}]
[null,null,null,null,null,null,{"$f":"IFERROR(VLOOKUP(B181,SFAVOR!$B$8:$K$548,9,FALSE),\"\")","v":""},null,null,"",{"$f":"IFERROR(IF(B181<>\"\",SUMIFS(SFAVOR!$J:$J,SFAVOR!$B:$B,$B181,SFAVOR!$F:$F,\"<=\"&$C181)-SUMIF($B$7:B181,B181,$I$7:I181),\"\"),\"\")","v":""}]
[null,null,null,null,null,null,{"$f":"IFERROR(VLOOKUP(B182,SFAVOR!$B$8:$K$548,9,FALSE),\"\")","v":""},null,null,"",{"$f":"IFERROR(IF(B182<>\"\",SUMIFS(SFAVOR!$J:$J,SFAVOR!$B:$B,$B182,SFAVOR!$F:$F,\"<=\"&$C182)-SUMIF($B$7:B182,B182,$I$7:I182),\"\"),\"\")","v":""}]
[null,null,null,null,null,null,{"$f":"IFERROR(VLOOKUP(B183,SFAVOR!$B$8:$K$548,9,FALSE),\"\")","v":""},null,null,"",{"$f":"IFERROR(IF(B183<>\"\",SUMIFS(SFAVOR!$J:$J,SFAVOR!$B:$B,$B183,SFAVOR!$F:$F,\"<=\"&$C183)-SUMIF($B$7:B183,B183,$I$7:I183),\"\"),\"\")","v":""}]
[null,null,null,null,null,null,{"$f":"IFERROR(VLOOKUP(B184,SFAVOR!$B$8:$K$548,9,FALSE),\"\")","v":""},null,null,"",{"$f":"IFERROR(IF(B184<>\"\",SUMIFS(SFAVOR!$J:$J,SFAVOR!$B:$B,$B184,SFAVOR!$F:$F,\"<=\"&$C184)-SUMIF($B$7:B184,B184,$I$7:I184),\"\"),\"\")","v":""}]
[null,null,null,null,null,null,{"$f":"IFERROR(VLOOKUP(B185,SFAVOR!$B$8:$K$548,9,FALSE),\"\")","v":""},null,null,"",{"$f":"IFERROR(IF(B185<>\"\",SUMIFS(SFAVOR!$J:$J,SFAVOR!$B:$B,$B185,SFAVOR!$F:$F,\"<=\"&$C185)-SUMIF($B$7:B185,B185,$I$7:I185),\"\"),\"\")","v":""}]
[null,null,null,null,null,null,{"$f":"IFERROR(VLOOKUP(B186,SFAVOR!$B$8:$K$548,9,FALSE),\"\")","v":""},null,null,"",{"$f":"IFERROR(IF(B186<>\"\",SUMIFS(SFAVOR!$J:$J,SFAVOR!$B:$B,$B186,SFAVOR!$F:$F,\"<=\"&$C186)-SUMIF($B$7:B186,B186,$I$7:I186),\"\"),\"\")","v":""}]
[null,null,null,null,null,null,{"$f":"IFERROR(VLOOKUP(B187,SFAVOR!$B$8:$K$548,9,FALSE),\"\")","v":""},null,null,"",{"$f":"IFERROR(IF(B187<>\"\",SUMIFS(SFAVOR!$J:$J,SFAVOR!$B:$B,$B187,SFAVOR!$F:$F,\"<=\"&$C187)-SUMIF($B$7:B187,B187,$I$7:I187),\"\"),\"\")","v":""}]
[null,null,null,null,null,null,{"$f":"IFERROR(VLOOKUP(B188,SFAVOR!$B$8:$K$548,9,FALSE),\"\")","v":""},null,null,"",{"$f":"IFERROR(IF(B188<>\"\",SUMIFS(SFAVOR!$J:$J,SFAVOR!$B:$B,$B188,SFAVOR!$F:$F,\"<=\"&$C188)-SUMIF($B$7:B188,B188,$I$7:I188),\"\"),\"\")","v":""}]
[null,null,null,null,null,null,{"$f":"IFERROR(VLOOKUP(B189,SFAVOR!$B$8:$K$548,9,FALSE),\"\")","v":""},null,null,"",{"$f":"IFERROR(IF(B189<>\"\",SUMIFS(SFAVOR!$J:$J,SFAVOR!$B:$B,$B189,SFAVOR!$F:$F,\"<=\"&$C189)-SUMIF($B$7:B189,B189,$I$7:I189),\"\"),\"\")","v":""}]
[null,null,null,null,null,null,{"$f":"IFERROR(VLOOKUP(B190,SFAVOR!$B$8:$K$548,9,FALSE),\"\")","v":""},null,null,"",{"$f":"IFERROR(IF(B190<>\"\",SUMIFS(SFAVOR!$J:$J,SFAVOR!$B:$B,$B190,SFAVOR!$F:$F,\"<=\"&$C190)-SUMIF($B$7:B190,B190,$I$7:I190),\"\"),\"\")","v":""}]
[null,null,null,null,null,null,{"$f":"IFERROR(VLOOKUP(B191,SFAVOR!$B$8:$K$548,9,FALSE),\"\")","v":""},null,null,"",{"$f":"IFERROR(IF(B191<>\"\",SUMIFS(SFAVOR!$J:$J,SFAVOR!$B:$B,$B191,SFAVOR!$F:$F,\"<=\"&$C191)-SUMIF($B$7:B191,B191,$I$7:I191),\"\"),\"\")","v":""}]
[null,null,null,null,null,null,{"$f":"IFERROR(VLOOKUP(B192,SFAVOR!$B$8:$K$548,9,FALSE),\"\")","v":""},null,null,"",{"$f":"IFERROR(IF(B192<>\"\",SUMIFS(SFAVOR!$J:$J,SFAVOR!$B:$B,$B192,SFAVOR!$F:$F,\"<=\"&$C192)-SUMIF($B$7:B192,B192,$I$7:I192),\"\"),\"\")","v":""}]
[null,null,null,null,null,null,{"$f":"IFERROR(VLOOKUP(B193,SFAVOR!$B$8:$K$548,9,FALSE),\"\")","v":""},null,null,"",{"$f":"IFERROR(IF(B193<>\"\",SUMIFS(SFAVOR!$J:$J,SFAVOR!$B:$B,$B193,SFAVOR!$F:$F,\"<=\"&$C193)-SUMIF($B$7:B193,B193,$I$7:I193),\"\"),\"\")","v":""}]
[null,null,null,null,null,null,{"$f":"IFERROR(VLOOKUP(B194,SFAVOR!$B$8:$K$548,9,FALSE),\"\")","v":""},null,null,"",{"$f":"IFERROR(IF(B194<>\"\",SUMIFS(SFAVOR!$J:$J,SFAVOR!$B:$B,$B194,SFAVOR!$F:$F,\"<=\"&$C194)-SUMIF($B$7:B194,B194,$I$7:I194),\"\"),\"\")","v":""}]
[null,null,null,null,null,null,{"$f":"IFERROR(VLOOKUP(B195,SFAVOR!$B$8:$K$548,9,FALSE),\"\")","v":""},null,null,"",{"$f":"IFERROR(IF(B195<>\"\",SUMIFS(SFAVOR!$J:$J,SFAVOR!$B:$B,$B195,SFAVOR!$F:$F,\"<=\"&$C195)-SUMIF($B$7:B195,B195,$I$7:I195),\"\"),\"\")","v":""}]
[null,null,null,null,null,null,{"$f":"IFERROR(VLOOKUP(B196,SFAVOR!$B$8:$K$548,9,FALSE),\"\")","v":""},null,null,"",{"$f":"IFERROR(IF(B196<>\"\",SUMIFS(SFAVOR!$J:$J,SFAVOR!$B:$B,$B196,SFAVOR!$F:$F,\"<=\"&$C196)-SUMIF($B$7:B196,B196,$I$7:I196),\"\"),\"\")","v":""}]

{"sheet":"GENERAL","index":10,"n_rows":279,"n_cols":3,"rows_kept":279,"cut":false,"hidden":true,"merged":[]}
[]
[]
[]
[]
[null,"Concepto","Comentario técnico / fiscal"]
[null,"Inversiones y/o gastos en periodo preoperativo (Artículo 5 fracción VI LIVA)","El IVA puede acreditarse o solicitarse en devolución antes de iniciar actividades gravadas, pero exige cumplir requisitos específicos (estimativas, documentación soporte, proyecto de inversión y ajustes posteriores). Si no se inicia la actividad gravada, procede reintegro actualizado y recargos. Riesgo frecuente de devolución rechazada por falta de materialidad o evidencia documental."]
[null,"Por error u omisión de operaciones en declaración","Puede generar diferencias entre CFDI, declaraciones y contabilidad. Si la omisión afecta IVA trasladado o acreditable, pueden existir actualizaciones, recargos y multas. También puede derivar en cartas invitación o revisiones electrónicas."]
[null,"Acreditamiento superior al impuesto causado","Puede originarse por errores de captura, acreditamientos improcedentes o desfases flujo/devengado. Debe validarse cumplimiento del artículo 5 LIVA (indispensabilidad, CFDI, pago efectivo, IVA separado y vinculación con actividades gravadas). Riesgo de devolución improcedente o rechazo de saldo a favor."]
[null,"Acreditamiento superior a impuesto causado por interpretación legal del IVA","Ocurre cuando el contribuyente adopta criterios agresivos sobre acreditamiento, proporcionalidad o actividades no objeto. Debe documentarse criterio jurídico y soporte normativo para defensa."]
[null,"Tasa 0% por interpretación legal del contribuyente","Riesgo alto cuando la tasa 0% se aplica sin fundamento expreso. La autoridad suele revisar materialidad, naturaleza del producto o servicio y clasificación legal. Debe existir soporte normativo específico."]
[null,"Tasa 0% por aplicación de regla miscelánea","Algunas facilidades administrativas o reglas RMF pueden precisar supuestos operativos, pero no pueden ampliar beneficios más allá de la ley. Debe validarse vigencia y alcance de la regla."]
[null,"Tasa 0% criterio jurídico autorizado en proceso administrativo","Cuando existe criterio normativo, criterio interno autorizado o resolución favorable, fortalece posición defensiva, aunque debe verificarse que el supuesto concreto coincida plenamente con el criterio aplicado."]
[null,"Tasa 0% por Artículo 2-A fracción I LIVA","Corresponde principalmente a enajenación de ciertos bienes: animales y vegetales no industrializados, medicinas, productos destinados a alimentación (con excepciones), agua no gaseosa, maquinaria agrícola, fertilizantes, libros, entre otros. Debe validarse que el producto encuadre exactamente en el supuesto legal."]
[null,"Tasa 0% por Artículo 2-A fracción II LIVA","Aplica a determinados servicios independientes como algunos agropecuarios, molienda de maíz o trigo, pasteurización de leche, suministro de agua doméstica, entre otros. Riesgo frecuente: clasificar servicios generales como agropecuarios sin cumplir condiciones."]
[null,"Tasa 0% por Artículo 2-A fracción III LIVA","Corresponde al uso o goce temporal de maquinaria y equipo agrícola específico previsto en la ley. Debe cuidarse que el bien arrendado sea exactamente el contemplado en el artículo."]
[null,"Tasa 0% por Artículo 2-A fracción IV LIVA","Corresponde principalmente a exportación de bienes y servicios en términos del artículo 29 LIVA. Debe existir evidencia documental de exportación y cumplimiento de requisitos regulatorios."]
[]
[]
[]
[]
[]
[]
[]
[]
[]
[]
[]
[]
[]
[]
[]
[]
[]
[]
[]
[]
[]
[]
[]
[]
[]
[]
[]
[]
[]
[]
[]
[]
[]
[]
[]
[]
[]
[]
[]
[]
[]
[]
[]
[]
[]
[]
[]
[]
[]
[]
[]
[]
[]
[]
[]
[]
[]
[]
[]
[]
[]
[]
[]
[]
[]
[]
[]
[]
[]
[]
[]
[]
[]
[]
[]
[]
[]
[]
[]
[]
[]
[]
[]
[]
[]
[]
[]
[]
[]
[]
[]
[]
[]
[]
[]
[]
[]
[]
[]
[]
[]
[]
[]
[]
[]
[]
[]
[]
[]
[]
[]
[]
[]
[]
[]
[]
[]
[]
[]
[]
[]
[]
[]
[]
[]
[]
[]
[]
[]
[]
[]
[]
[]
[]
[]
[]
[]
[]
[]
[]
[]
[]
[]
[]
[]
[]
[]
[]
[]
[]
[]
[]
[]
[]
[]
[]
[]
[]
[]
[]
[]
[]
[]
[]
[]
[]
[]
[]
[]
[]
[]
[]
[]
[]
[]
[]
[]
[]
[]
[]
[]
[]
[]
[]
[]
[]
[]
[]
[]
[]
[]
[]
[]
[]
[]
[]
[]
[]
[]
[]
[]
[]
[]
[]
[]
[]
[]
[]
[]
[]
[]
[]
[]
[]
[]
[]
[]
[]
[]
[]
[]
[]
[]
[]
[]
[]
[]
[]
[]
[]
[]
[]
[]
[]
[]
[]
[]
[]
[]
[]
[]
[]
[]
[]
[]
[]
[]
[]
[]
[]
[]
[null,"Enero"]
[null,"Febrero"]
[null,"Marzo"]
[null,"Abril"]
[null,"Mayo"]
[null,"Junio"]
[null,"Julio"]
[null,"Agosto"]
[null,"Septiembre"]
[null,"Octubre"]
[null,"Noviembre"]
[null,"Diciembre"]

{"sheet":"EJEMPLOS","index":11,"n_rows":250,"n_cols":34,"rows_kept":250,"cut":false,"hidden":true,"merged":[[250,1,250,8],[244,1,244,8],[245,1,245,8],[246,1,246,8],[247,1,247,8],[248,1,248,8],[249,1,249,8],[243,1,243,8],[232,1,232,8],[233,1,233,8],[234,1,234,8],[235,1,235,8],[236,1,236,8],[237,1,237,8],[238,1,238,8],[239,1,239,8],[240,1,240,8],[241,1,241,8],[242,1,242,8],[224,3,224,4],[129,3,129,4],[146,2,146,6],[148,3,148,4],[164,2,164,6],[166,3,166,4],[178,3,178,4],[187,2,187,6],[189,3,189,4],[206,2,206,6],[208,3,208,4],[222,2,222,6],[118,3,118,4],[54,2,54,6],[56,3,56,4],[65,2,65,6],[67,3,67,4],[77,2,77,6],[79,3,79,4],[90,2,90,6],[92,3,92,4],[102,2,102,6],[104,3,104,4],[116,2,116,6],[37,3,37,4],[7,2,7,6],[9,3,9,4],[22,2,22,6],[24,3,24,4],[35,2,35,6]]}
[]
[]
[]
[null,"Registro venta de activo fijo"]
[]
[null,"Tipo póliza","Dr","No.",4,"Fecha",{"$f":"TODAY()","v":"2026-05-26"}]
[]
[null,"Concepto","Venta de automovil marca x con no. Motor x, fact. No. X"]
[]
[null,"No. Cta.","Cuenta","Concepto",null,"Debe","Haber",null,"UUID_CFDI","RFC","Monto","Moneda","T.C."]
[null,null,"Depreciaciòn acumulada",null,null,100000]
[null,null,"Deudores div.",null,null,266800]
[null,null,"Equipo de transporte",null,null,null,300000]
[null,null,"IVA trasladado pend. De cobro",null,null,null,{"$f":"230000*0.16","v":36800}]
[null,null,"Utilidad en vta. De activo fijo",null,null,null,30000,null,"Folio fiscal","Del recepto",{"$f":"230000*1.16","v":266800}]
[null,null,"Utilidad fiscal en venta de activo fijo",null,null,23800]
[null,null,"Venta de activo fijo utilidad fiscal",null,null,null,23800]
[]
[null,"Cobro de la venta del activo fijo"]
[]
[null,"Tipo póliza","Ig","No.",8,"Fecha",{"$f":"TODAY()","v":"2026-05-26"}]
[]
[null,"Concepto","Cobro fact. X venta activo fijo, contado, transferencia electronica de fondos, pago en una sola exhibicion, \"NA\""]
[]
[null,"No. Cta.","Cuenta","Concepto",null,"Debe","Haber"]
[null,null,"Bancos",null,null,{"$f":"F12","v":266800}]
[null,null,"Deudores div.",null,null,null,{"$f":"F26","v":266800}]
[null,null,"IVA trasladado pendiente de cobro",null,null,{"$f":"G14","v":36800}]
[null,null,"IVA trasladado cobrado",null,null,null,{"$f":"F28","v":36800}]
[]
[]
[null,{"$f":"\"Registro nomina \" & IF(DAY(G34)<=15,1,2)& \" quincena de \" & TEXT(G34,\"MMMM\")","v":"Registro nomina 2 quincena de mayo"}]
[]
[null,"Tipo póliza","Dr","No.",18,"Fecha",{"$f":"TODAY()","v":"2026-05-26"}]
[]
[null,"Concepto",{"$f":"B32& \" de \"&YEAR(G34)","v":"Registro nomina 2 quincena de mayo de 2026"}]
[]
[null,"No. Cta.","Cuenta","Concepto",null,"Debe","Haber",null,"UUID_CFDI","RFC","Monto","Moneda","T.C."]
[null,null,"Gastos generales"]
[null,null,"Sueldos y salarios",null,null,100000,null,null,"Folio fiscal","Todos",{"$f":"G45","v":125800}]
[null,null,"Tiempo extra",null,null,12000]
[null,null,"Bono",null,null,15000]
[null,null,"Despensa",null,null,21000]
[null,null,"Subsidio al empleo",null,null,1000]
[null,null,"Acreedores div.",null,null,null,{"$f":"SUM(F40:F44)-G47-G48","v":125800}]
[null,null,"Contribuciones por pagar"]
[null,null,"Retenciòn ISR salarios",null,null,null,13400]
[null,null,"Retencion IMSS",null,null,null,9800]
[]
[]
[null,"Pago de la nomina"]
[]
[null,"Tipo póliza","Eg","No.",18,"Fecha","2017-06-15"]
[]
[null,"Concepto",{"$f":"\"Tr. 12234 pago \" & MID(B32,10,LEN(B32)-9)","v":"Tr. 12234 pago nomina 2 quincena de mayo"}]
[]
[null,"No. Cta.","Cuenta","Concepto",null,"Debe","Haber",null,"Cuenta origen","Banco origen nacional","Banco origen extranjero","Cuenta destino","Banco destino nacional","Banco destino extranjero","Fecha","Beneficiario","RFC","Monto","Moneda","T.C."]
[null,null,"Acreedores div.",null,null,{"$f":"G45","v":125800}]
[null,null,"Bancos",null,null,null,{"$f":"F58","v":125800},null,98765,"012",null,98765,"012",null,42901,"Banco","XAXX010101000",{"$f":"G59","v":125800}]
[]
[]
[null,"Registro de una venta"]
[]
[null,"Tipo póliza","Dr","No.",1,"Fecha",{"$f":"TODAY()","v":"2026-05-26"}]
[]
[null,"Concepto",{"$f":"\"Ventas del dia\"&\" \"& TEXT(TODAY(),\"dd/mm/aaaa\")","v":"Ventas del dia 26/05/2026"}]
[]
[null,"No. Cta.","Cuenta","Concepto",null,"Debe","Haber",null,"UUID_CFDI","RFC","Monto_total","Moneda","Tipo de cambio"]
[null,null,"Clientes",null,null,500000]
[null,null,"Ventas",null,null,null,{"$f":"F69/1.16","v":431034.4827586207},null,"Folio fiscal","Del receptor",{"$f":"F69","v":500000}]
[null,null,"IVA trasladado pendiente de cobro",null,null,null,{"$f":"G70*0.16","v":68965.517241379319}]
[]
[]
[null,"Registro de la cobranza"]
[]
[null,"Tipo póliza","Ig","No.",8,"Fecha",{"$f":"TODAY()","v":"2026-05-26"}]
[]
[null,"Concepto",{"$f":"\"Cobranza del dia \" & TEXT(TODAY(),\"dd/mm/aaaa\") & \" NA\"","v":"Cobranza del dia 26/05/2026 NA"}]
[]
[null,"No. Cta.","Cuenta","Concepto",null,"Debe","Haber"]
[null,null,"Bancos",null,null,100000]
[null,null,"Clientes",null,null,null,100000]
[null,null,"IVA trasladado pendiente de cobro",null,null,{"$f":"(F81/1.16)*0.16","v":13793.103448275864}]
[null,null,"IVA trasladado cobrado",null,null,null,{"$f":"F83","v":13793.103448275864}]
[]
[]
[null,"Compra de mercancia del extranjero"]
[]
[null,"Tipo póliza","Dr","No.",5,"Fecha",{"$f":"TODAY()","v":"2026-05-26"}]
[]
[null,"Concepto","Registro fact. X del proveedor X, con valor 100,000 dolares al t.c. 19.45"]
[]
[null,"No. Cta.","Cuenta","Concepto",null,"Debe","Haber",null,"No. Factura","TaxID","Monto","Moneda","T.C."]
[null,null,"Mercancia en transito",null,null,{"$f":"100000*19.45","v":1945000},null,null,76,"k98765",100000,"USD",19.45]
[null,null,"Proveedores extranjeros",null,null,null,{"$f":"F94","v":1945000}]
[]
[]
[]
[null,"Pago al proveedor por casa de cambio"]
[]
[null,"Tipo póliza","Eg","No.",8,"Fecha",{"$f":"TODAY()","v":"2026-05-26"}]
[]
[null,"Concepto","Tr. 8765 casa de cambio, compra de 100,000 dolares al t.c. 19.20, para pago de factura x del proveer x."]
[]
[null,"No. Cta.","Cuenta","Concepto",null,"Debe","Haber",null,"UUID_CFDI","RFC","Monto","Moneda","T.C.",null,"Cuenta origen","Banco origen nacional","Banco origen extranjero","Cuenta destino","Banco destino nacional","Banco destino extranjero","Fecha","Beneficiario","RFC","Monto","Moneda","T.C.",null,"Mètodo de pago","Fecha","Beneficiario","RFC","Monto","Moneda","T.C."]
[null,null,"Caja moneda extranjera",null,null,{"$f":"100000*19.2","v":1920000},null,null,"Folio fiscal","Casa cambio",{"$f":"F106","v":1920000}]
[null,null,"Bancos",null,null,null,{"$f":"F106","v":1920000},null,null,null,null,null,null,null,98765,"002",null,5432,"012",null,"aplicaciòn","Casa de camibo",null,{"$f":"G107","v":1920000}]
[null,null,"Proveedor del extranjero",null,null,{"$f":"G95","v":1945000},null,null,null,null,null,null,null,null,null,null,null,null,null,null,null,null,null,null,null,null,null,99,"aplicaciòn","proveedor extranjero","XEXX010101000",100000,"USD",19.2]
[null,null,{"$f":"C106","v":"Caja moneda extranjera"},null,null,null,{"$f":"G107","v":1920000}]
[null,null,"Utilidad en cambios",null,null,null,{"$f":"F108-G109","v":25000}]
[]
[]
[null,"Anticipo agenta aduanal"]
[]
[null,"Tipo póliza","Eg","No.",9,"Fecha",{"$f":"TODAY()","v":"2026-05-26"}]
[]
[null,"Concepto","Tr. 9876 agente aduanal, para gastos por cuenta de terceros"]
[]
[null,"No. Cta.","Cuenta","Concepto",null,"Debe","Haber"]
[null,null,"Deudores div.",null,null,50000]
[null,null,"Bancos",null,null,null,50000]
[]
[]
[null,"Registro de la cuenta de gastos"]
[]
[null,"Tipo póliza","Dr","No.",4,"Fecha",{"$f":"TODAY()","v":"2026-05-26"}]
[]
[null,"Concepto","Registro cuenta de gastos del p.i. xx xx xxxx xxxxxxx correspondiente a la fact. X"]
[]
[null,"No. Cta.","Cuenta","Concepto",null,"Debe","Haber",null,"UUID_CFDI","RFC","Monto","Moneda","T.C.",null,"Mètodo de pago","Fecha","Beneficiario","RFC","Monto","Moneda","T.C."]
[null,null,"Gastos de importación"]
[null,null,"Limpieza contenedor",null,null,4000,null,null,"Folio fiscal","Emisor",{"$f":"F132*1.16","v":4640},null,null,null,11,"comprobante","Emisor","Emisor",{"$f":"K132","v":4640}]
[null,null,"Almacenaje",null,null,13000,null,null,"Folio fiscal","Emisor",{"$f":"F133*1.16","v":15079.999999999998},null,null,null,11,"comprobante","Emisor","Emisor",{"$f":"K133","v":15079.999999999998}]
[null,null,"Flete terrestre",null,null,18000,null,null,"Folio fiscal","Emisor",{"$f":"F134*1.16","v":20880},null,null,null,11,"comprobante","Emisor","Emisor",{"$f":"K134","v":20880}]
[null,null,"Custodia",null,null,7000,null,null,"Folio fiscal","Emisor",{"$f":"F135*1.16","v":8119.9999999999991},null,null,null,11,"comprobante","Emisor","Emisor",{"$f":"K135","v":8119.9999999999991}]
[null,null,"Servicios complementarios","Cuenta de gastos No. 876",null,4000,null,null,null,null,null,null,null,null,11,"comprobante","Emisor","Emisor",{"$f":"F136","v":4000}]
[null,null,"Honorarios agente aduanal",null,null,14000,null,null,{"$f":"I135","v":"Folio fiscal"},"Emisor",{"$f":"F137*1.16","v":16239.999999999998},null,null,null,11,"comprobante","Emisor","Emisor",{"$f":"K137","v":16239.999999999998}]
[null,null,"IVA acreditable pagado",null,null,{"$f":"SUM(F132:F135)*0.16","v":6720}]
[null,null,"Deudores diversos",null,null,null,{"$f":"F120","v":50000}]
[null,null,"Acreedores diversos",null,null,null,{"$f":"SUM(F132:F138)-G139","v":16720}]
[]
[]
[null,"Pasivo de las contribuciones"]
[]
[null,"Tipo póliza","Dr","No.",30,"Fecha",{"$f":"DATE(YEAR(TODAY()),MONTH(TODAY()),DAY(EOMONTH(TODAY(),0)))","v":"2026-05-31"}]
[]
[null,"Concepto",{"$f":"\"Registro contribuciones federales \" & TEXT(TODAY(),\"MMMM\") & YEAR(TODAY())","v":"Registro contribuciones federales mayo2026"}]
[]
[null,"No. Cta.","Cuenta","Concepto",null,"Debe","Haber"]
[null,null,"Impuestos anticipados",null,null,12000]
[null,null,"IVA trasladado cobrado",null,null,45678.98]
[null,null,"IVA acreditable pagado",null,null,null,23456.78]
[null,null,"Retenciòn ISR de salarios",null,null,13450]
[null,null,"Contribuciones x pagar"]
[null,null,"ISR",null,null,null,{"$f":"F150","v":12000}]
[null,null,"IVA",null,null,null,22222]
[null,null,"Ret. De ISR x salarios",null,null,null,{"$f":"F153","v":13450}]
[null,null,"Diferencia x redondeo",null,null,null,0.2]
[]
[]
[null,"Registro del pago de contribuciones"]
[]
[null,"Tipo póliza","Eg","No.",17,"Fecha",{"$f":"DATE(YEAR(TODAY()),MONTH(TODAY())+1,17)","v":"2026-06-17"}]
[]
[null,"Concepto",{"$f":"\"Tr. 87654 Pago de impuestos federales \"& TEXT(DATE(YEAR(G163),MONTH(G163)-1,DAY(G163)),\"mmmm\")&\" \" & YEAR(G163) &\", con No. De operaciòn 87654\"","v":"Tr. 87654 Pago de impuestos federales mayo 2026, con No. De operaciòn 87654"}]
[]
[null,"No. Cta.","Cuenta","Concepto",null,"Debe","Haber",null,"Mètodo de pago","Fecha","Beneficiario","RFC","Monto","Moneda","T.C.",null,"Cuenta origen","Banco origen nacional","Banco origen extranjero","Cuenta destino","Banco destino nacional","Banco destino extranjero","Fecha","Beneficiario","RFC","Monto","Moneda","T.C."]
[null,null,"Contribuciones por pagar",null,null,{"$f":"G155+G156+G157","v":47672}]
[null,null,"ISR saldo a favor",null,null,null,12000,null,17,"Declaraciòn","SAT","SAT970701NN3",12000]
[null,null,"Bancos",null,null,null,{"$f":"F168-G169","v":35672},null,null,null,null,null,null,null,null,null,876543,"002",null,"Linea captura",999,null,"Pago","Tesoreria de la federacion","XAXX010101000",{"$f":"G170","v":35672}]
[]
[]
[null,"Registro de viaticos"]
[]
[null,"Tipo póliza","Eg","No.",4,"Fecha",{"$f":"TODAY()","v":"2026-05-26"}]
[]
[null,"Concepto","Tr. 76543 empleado x, gastos por comprobar (viaticos)"]
[]
[null,"No. Cta.","Cuenta","Concepto",null,"Debe","Haber"]
[null,null,"Deudores div.",null,null,12000]
[null,null,"Bancos",null,null,null,12000]
[]
[]
[null,"Registro de comprobantes de viaticos"]
[]
[null,"Tipo póliza","Dr","No.",7,"Fecha",{"$f":"TODAY()","v":"2026-05-26"}]
[]
[null,"Concepto","Comprobaciòn de gastos (viaticos) de la transferencia no. 8765"]
[]
[null,"No. Cta.","Cuenta","Concepto",null,"Debe","Haber",null,"UUID_CFDI","RFC","Monto","Moneda","T.C.",null,"Mètodo de pago","Fecha","Beneficiario","RFC","Monto","Moneda","T.C."]
[null,null,"Gastos generales"]
[null,null,"Hospedaje",null,null,2500,null,null,"Folio fiscal","Emisor",{"$f":"F192*1.16","v":2900},null,null,null,11,"Comprobante","Comprobante","Comprobante",{"$f":"K192","v":2900}]
[null,null,"Transporte",null,null,2000,null,null,"Folio fiscal","Emisor",{"$f":"F193*1.16","v":2320},null,null,null,11,"Comprobante","Comprobante","Comprobante",{"$f":"K193","v":2320}]
[null,null,"Alimentaciòn",null,null,3200,null,null,"Folio fiscal","Emisor",3711.9999999999995,null,null,null,11,"Comprobante","Comprobante","Comprobante",3711.9999999999995]
[null,null,"Renta de automovil",null,null,1200,null,null,"Folio fiscal","Emisor",1392,null,null,null,11,"Comprobante","Comprobante","Comprobante",1392]
[null,null,"Lavanderia",null,null,400,null,null,null,null,null,null,null,null,11,"Comprobante","Comprobante","Comprobante",{"$f":"F196","v":400}]
[null,null,"Estacionamiento",null,null,120,null,null,null,null,null,null,null,null,11,"Comprobante","Comprobante","Comprobante",{"$f":"F197","v":120}]
[null,null,"Farmacia",null,null,700,null,null,null,null,null,null,null,null,11,"Comprobante","Comprobante","Comprobante",700]
[null,null,"Vales de caja chica",null,null,456,null,null,null,null,null,null,null,null,11,"Comprobante","Comprobante","Comprobante",456]
[null,null,"IVA acreditable pagado",null,null,{"$f":"(F192+F193+F194+F195)*0.16","v":1424}]
[null,null,"Deudores diversos",null,null,null,{"$f":"F180","v":12000}]
[]
[null,"Reposiciòn de caja chica"]
[]
[null,"Tipo póliza","Dr","No.",9,"Fecha",{"$f":"TODAY()","v":"2026-05-26"}]
[]
[null,"Concepto","Registro comprobantes caja chica semena 23 de 2017"]
[]
[null,"No. Cta.","Cuenta","Concepto",null,"Debe","Haber",null,"UUID_CFDI","RFC","Monto","Moneda","T.C.",null,"Mètodo de pago","Fecha","Beneficiario","RFC","Monto","Moneda","T.C."]
[null,null,"Gastos generales"]
[null,null,"Papeleria y art. De oficina",null,null,500,null,null,"Folio fiscal","Del emisor",{"$f":"F211+F214","v":580},null,null,null,"01","Del cfdi","El emisor",null,{"$f":"K211","v":580}]
[null,null,"Estacionamiento","Estacionamiento folio 765",null,70,null,null,null,null,null,null,null,null,"01","Del comprobante","El emisor",null,{"$f":"F212","v":70}]
[null,null,"Pasajes","Pasajes vale de caja chica No. 87",null,85,null,null,null,null,null,null,null,null,"01","Del vale","Contribuyente","XAXX010101000",{"$f":"F213","v":85}]
[null,null,"IVA acreditable pagado",null,null,{"$f":"F211*0.16","v":80}]
[null,null,"Acreedores div."]
[null,null,"Responsable de la caja chica",null,null,null,{"$f":"SUM(F211:F214)","v":735}]
[]
[]
[null,"Reposiciòn de caja chica"]
[]
[null,"Tipo póliza","Eg","No.",9,"Fecha",{"$f":"TODAY()","v":"2026-05-26"}]
[]
[null,"Concepto",{"$f":" \"Ch. 9876 Responsable de caja chica, Reposiciòn de caja chica semana \" & WEEKNUM(TODAY()) &\" de \" & YEAR(G221)","v":"Ch. 9876 Responsable de caja chica, Reposiciòn de caja chica semana 22 de 2026"}]
[]
[null,"No. Cta.","Cuenta","Concepto",null,"Debe","Haber"]
[null,null,"Acreedores div.",null,null,{"$f":"G216","v":735}]
[null,null,"Bancos",null,null,null,{"$f":"F226","v":735}]
[]
[null,"Artículo 33 RCFF.- Para los efectos del artículo 28, fracciones I y II del Código, se estará a lo siguiente:"]
[]
[null,"B. Los registros o asientos contables deberán:"]
[]
[null,"I. Ser analíticos y efectuarse en el mes en que se realicen las operaciones, actos o actividades a que se refieran, a más tardar dentro de los cinco días siguientes a la realización de la operación, acto o actividad;"]
[null,"II. Integrarse en el libro diario, en forma descriptiva, todas las operaciones, actos o actividades siguiendo el orden cronológico en que éstos se efectúen, indicando el movimiento de cargo o abono que a cada una corresponda, así como integrarse los nombres de las cuentas de la contabilidad, su saldo al final del periodo de registro inmediato anterior, el total del movimiento de cargo o abono a cada cuenta en el periodo y su saldo final.\n\nPodrán llevarse libros diario y mayor por establecimientos o dependencias, por tipos de actividad o por cualquier otra clasificación, pero en todos los casos deberán existir los libros diario y mayor general en los que se concentren todas las operaciones del contribuyente;"]
[null,"III. Permitir la identificación de cada operación, acto o actividad y sus características, relacionándolas con los folios asignados a los comprobantes fiscales o con la documentación comprobatoria, de tal forma que pueda identificarse la forma de pago, las distintas contribuciones, tasas y cuotas, incluyendo aquellas operaciones, actos o actividades por las que no se deban pagar contribuciones, de acuerdo a la operación, acto o actividad de que se trate;"]
[null,"IV. Permitir la identificación de las inversiones realizadas relacionándolas con la documentación comprobatoria o con los comprobantes fiscales, de tal forma que pueda precisarse la fecha de adquisición del bien o de efectuada la inversión, su descripción, el monto original de la inversión, el porcentaje e importe de su deducción anual, en su caso, así como la fecha de inicio de su deducción;"]
[null,"V. Relacionar cada operación, acto o actividad con los saldos que den como resultado las cifras finales de las cuentas;"]
[null,"VI. Formular los estados de posición financiera, de resultados, de variaciones en el capital contable, de origen y aplicación de recursos, así como las balanzas de comprobación, incluyendo las cuentas de orden y las notas a dichos estados;"]
[null,"VII. Relacionar los estados de posición financiera con las cuentas de cada operación;"]
[null,"VIII. Identificar las contribuciones que se deban cancelar o devolver, en virtud de devoluciones que se reciban y descuentos o bonificaciones que se otorguen conforme a las disposiciones fiscales;"]
[null,"IX. Comprobar el cumplimiento de los requisitos relativos al otorgamiento de estímulos fiscales y de subsidios;"]
[null,"X. Identificar los bienes distinguiendo, entre los adquiridos o producidos, los correspondientes a materias primas y productos terminados o semiterminados, los enajenados, así como los destinados a donación o, en su caso, destrucción;"]
[null,"XI. Plasmarse en idioma español y consignar los valores en moneda nacional.\n\nCuando la información de los comprobantes fiscales o de los datos y documentación que integran la contabilidad estén en idioma distinto al español, o los valores se consignen en moneda extranjera, deberán acompañarse de la traducción correspondiente y señalar el tipo de cambio utilizado por cada operación;"]
[null,"XII. Establecer por centro de costos, identificando las operaciones, actos o actividades de cada sucursal o establecimiento, incluyendo aquéllos que se localicen en el extranjero;"]
[null,"XIII. Señalar la fecha de realización de la operación, acto o actividad, su descripción o concepto, la cantidad o unidad de medida en su caso, la forma de pago de la operación, acto o actividad, especificando si fue de contado, a crédito, a plazos o en parcialidades, y el medio de pago o de extinción de dicha obligación, según corresponda.\n\nTratándose de operaciones a crédito, a plazos o en parcialidades, por cada pago o abono que se reciba o se realice, incluyendo el anticipo o enganche según corresponda. Además de lo señalado en el párrafo anterior, deberán registrar el monto del pago, precisando si se efectúa en efectivo, transferencia interbancaria de fondos, cheque nominativo para abono en cuenta, tarjeta de débito, crédito o de servicios, monedero electrónico o por cualquier otro medio. Cuando el pago se realice en especie o permuta, deberá indicarse el tipo de bien o servicio otorgado como contraprestación y su valor;"]
[null,"XIV. Permitir la identificación de los depósitos y retiros en las cuentas bancarias abiertas a nombre del contribuyente y conciliarse contra las operaciones realizadas y su documentación soporte, como son los estados de cuenta emitidos por las entidades financieras;"]
[null,"XV. Los registros de inventarios de mercancías, materias primas, productos en proceso y terminados, en los que se llevará el control sobre los mismos, que permitan identificar cada unidad, tipo de mercancía o producto en proceso y fecha de adquisición o enajenación según se trate, así como el aumento o la disminución en dichos inventarios y las existencias al inicio y al final de cada mes y al cierre del ejercicio fiscal, precisando su fecha de entrega o recepción, así como si se trata de una devolución, donación o destrucción, cuando se den estos supuestos.\n\nPara efectos del párrafo anterior, en el control de inventarios deberá identificarse el método de valuación utilizado y la fecha a partir de la cual se usa, ya sea que se trate del método de primeras entradas primeras salidas, últimas entradas primeras salidas, costo identificado, costo promedio o detallista según corresponda;"]
[null,"XVI. Los registros relativos a la opción de diferimiento de la causación de contribuciones conforme a las disposiciones fiscales, en el caso que se celebren contratos de arrendamiento financiero. Dichos registros deberán permitir identificar la parte correspondiente de las operaciones en cada ejercicio fiscal, inclusive mediante cuentas de orden;"]
[null,"XVII. El control de los donativos de los bienes recibidos por las donatarias autorizadas en términos de la Ley del Impuesto sobre la Renta, el cual deberá permitir identificar a los donantes, los bienes recibidos, los bienes entregados a sus beneficiarios, las cuotas de recuperación que obtengan por los bienes recibidos en donación y el registro de la destrucción o donación de las mercancías o bienes en el ejercicio en el que se efectúen, y"]
[null,"XVIII. Contener el impuesto al valor agregado que le haya sido trasladado al contribuyente y el que haya pagado en la importación, correspondiente a la parte de sus gastos e inversiones, conforme a los supuestos siguientes:\n\na) La adquisición de bienes, de servicios y el uso o goce temporal de bienes, que se utilicen exclusivamente para realizar sus actividades por las que deban pagar el impuesto;\nb) La adquisición de bienes, de servicios y el uso o goce temporal de bienes, que se utilicen exclusivamente para realizar sus actividades por las que no deban pagar el impuesto, y\nc) La adquisición de bienes, de servicios y el uso o goce temporal de bienes, que se utilicen indistintamente para realizar tanto actividades por las que se deba pagar el impuesto, como aquéllas por las que no se está obligado al pago del mismo.\n\nCuando el destino de los bienes o servicios varíe y se deba efectuar el ajuste del acreditamiento previsto en el artículo 5o.-A de la Ley del Impuesto al Valor Agregado, se deberá registrar su efecto en la contabilidad."]

{"sheet":"CLAVESPS","index":12,"n_rows":52567,"n_cols":41,"rows_kept":4500,"cut":true,"hidden":true,"merged":[[27,18,27,19],[27,21,27,22],[1,21,1,22],[1,24,1,25],[1,27,1,28],[1,18,1,19],[1,6,1,7],[1,9,1,10],[1,12,1,13],[1,15,1,16],[1,39,1,40],[1,30,1,31],[1,33,1,34],[1,36,1,37]],"bounds":{"rows_first":2000,"rows_last":500,"rows_between":2000,"halvings":0}}
[]
[null,"c_ClaveProdServ","Descripción","Palabras similares",null,null,"Catálogo de claves de unidad de medida",null,null,"Cátalogo de formas de pago",null,null,"Catálogo de moneda",null,null,"Catálogo tipo de comprobante",null,null,"Catálogo de régimen fiscal",null,null,"Catálogo del uso del CFDI",null,null,"Catálogo tipo de relación",null,null,"Catálogo metodo de pago",null,null,"Catálogo exportación V. 4.0",null,null,"Catálogo objeto V. 4.0",null,null,"Catálogo periodicidad V. 4.0",null,null,"Catálogo meses V. 4.0"]
[null,"01010101","No existe en el catálogo","Público en general",null,null,"c_ClaveUnidad","Nombre",null,"c_FormaPago","Descripción",null,"c_Moneda","Descripción",null,"c_TipoDeComprobante","Descripción",null,"c_RegimenFiscal","Descripción",null,"c_UsoCFDI","Descripción",null,"c_TipoRelacion","Descripción",null,"c_MetodoPago","Descripción",null,"Clave","Descripción",null,"Clave","Descripción",null,"Clave","Descripción",null,"Clave","Descripción"]
[null,10101500,"Animales vivos de granja",null,null,null,18,"Tambor de cincuenta y cinco galones (EUA)",null,1,"Efectivo",null,"AED","Dirham de EAU",null,"I","Ingreso",null,601,"General de Ley Personas Morales",null,"G01","Adquisición de mercancias",null,"01","Nota de crédito de los documentos relacionados",null,"PUE","Pago en una sola exhibición",null,1,"No aplica",null,1,"No objeto de impuesto.",null,1,"Diario",null,1,"Enero"]
[null,10101501,"Gatos vivos",null,null,null,19,"Camión cisterna",null,2,"Cheque nominativo",null,"AFN","Afghani",null,"E","Egreso",null,603,"Personas Morales con Fines no Lucrativos",null,"G02","Devoluciones, descuentos o bonificaciones",null,"02","Nota de débito de los documentos relacionados",null,"PPD","Pago en parcialidades o diferido",null,2,"Definitiva",null,2,"Sí objeto de impuesto.",null,2,"Semanal",null,2,"Febrero"]
[null,10101502,"Perros",null,null,null,26,"Tonelada real",null,3,"Transferencia electrónica de fondos",null,"ALL","Lek",null,"T","Traslado",null,605,"Sueldos y Salarios e Ingresos Asimilados a Salarios",null,"G03","Gastos en general",null,"03","Devolución de mercancía sobre facturas o traslados previos",null,null,null,null,3,"Temporal",null,3,"Sí objeto del impuesto y no obligado al desglose.",null,3,"Quincenal",null,3,"Marzo"]
[null,10101504,"Visón",null,null,null,29,"Libra por mil pies cuadrados",null,4,"Tarjeta de crédito",null,"AMD","Dram armenio",null,"N","Nómina",null,606,"Arrendamiento",null,"I01","Construcciones",null,"04","Sustitución de los CFDI previos",null,null,null,null,null,null,null,4,"Sí objeto del impuesto y no causa impuesto.",null,4,"Mensual",null,4,"Abril"]
[null,10101505,"Ratas",null,null,null,30,"Día de potencia de caballos por tonelada métrica de aire seco",null,5,"Monedero electrónico",null,"ANG","Florín antillano neerlandés",null,null,null,null,608,"Demás ingresos",null,"I02","Mobilario y equipo de oficina por inversiones",null,"05","Traslados de mercancias facturados previamente",null,null,null,null,null,null,null,null,null,null,5,"Bimestral",null,5,"Mayo"]
[null,10101506,"Caballos","Equinos, Potrancas, Potras, Potrillos, Potros, Yeguas",null,null,31,"Pescar",null,6,"Dinero electrónico",null,"AOA","Kwanza",null,"P","Pago",null,609,"Consolidación",null,"I03","Equipo de transporte",null,"06","Factura generada por los traslados previos",null,null,null,null,null,null,null,null,null,null,null,null,null,6,"Junio"]
[null,10101507,"Ovejas","Borregos, Carneros",null,null,32,"Kilogramo por tonelada métrica seca del aire",null,8,"Vales de despensa",null,"ARS","Peso Argentino",null,null,null,null,610,"Residentes en el Extranjero sin Establecimiento Permanente en México",null,"I04","Equipo de computo y accesorios",null,"07","CFDI por aplicación de anticipo",null,null,null,null,null,null,null,null,null,null,null,null,null,7,"Julio"]
[null,10101508,"Cabras","Borregos cimarrones, Cabritos, Cabros, Carnero de las Rocosas, Chivas, Chivatos, Chivos, Irascos, Machos cabríos, Chivos",null,null,36,"Pie cúbico por minuto por pie cuadrado",null,12,"Dación en pago",null,"AUD","Dólar Australiano",null,null,null,null,611,"Ingresos por Dividendos (socios y accionistas)",null,"I05","Dados, troqueles, moldes, matrices y herramental",null,"08","Factura generada por pagos en parcialidades",null,null,null,null,null,null,null,null,null,null,null,null,null,8,"Agosto"]
[null,10101509,"Asnos","Borricos, Burros",null,null,44,"Bolsa a granel de quinientos kilos",null,13,"Pago por subrogación",null,"AWG","Aruba Florin",null,null,null,null,612,"Personas Físicas con Actividades Empresariales y Profesionales",null,"I06","Comunicaciones telefónicas",null,"09","Factura generada por pagos diferidos",null,null,null,null,null,null,null,null,null,null,null,null,null,9,"Septiembre"]
[null,10101510,"Ratones",null,null,null,45,"Bolsa a granel de trescientos kilos",null,14,"Pago por consignación",null,"AZN","Azerbaijanian Manat",null,null,null,null,614,"Ingresos por intereses",null,"I07","Comunicaciones satelitales",null,null,null,null,null,null,null,null,null,null,null,null,null,null,null,null,10,"Octubre"]
[null,10101511,"Cerdos","Cerdo montés, Chanchos, Chanchos almizcleros, Chanchos de monte, Cochinillos, Cochinos, Cochinos de monte, Cuche, Cuinos, Gorrinos, Jabalíes americanos, Lechones, Cochinos de monte, Pecaríes, Porcinos, Puercos, Puercos de monte, Tayatos",null,null,46,"Bolsa a granel de cincuenta libras",null,15,"Condonación",null,"BAM","Convertibles marca",null,null,null,null,616,"Sin obligaciones fiscales",null,"I08","Otra maquinaria y equipo",null,null,null,null,null,null,null,null,null,null,null,null,null,null,null,null,11,"Noviembre"]
[null,10101512,"Conejos","Liebres",null,null,47,"Bolso de cincuenta libras",null,17,"Compensación",null,"BBD","Dólar de Barbados",null,null,null,null,620,"Sociedades Cooperativas de Producción que optan por diferir sus ingresos",null,"D01","Honorarios médicos, dentales y gastos hospitalarios.",null,null,null,null,null,null,null,null,null,null,null,null,null,null,null,null,12,"Diciembre"]
[null,10101513,"Cobayas o conejillos de indias","Chanchito de Indias, Cobayos, Cuilo, Cuyo",null,null,48,"Carga masiva",null,23,"Novación",null,"BDT","Taka",null,null,null,null,621,"Incorporación Fiscal",null,"D02","Gastos médicos por incapacidad o discapacidad",null,null,null,null,null,null,null,null,null,null,null,null,null,null,null,null,13,"Enero-Febrero"]
[null,10101514,"Primates","Changos, Chimpancés, Gorilas, Lémures, Macacos, Micos, Monos, Orangutanes, Simios, Monos",null,null,53,"Kilogramo teórico",null,24,"Confusión",null,"BGN","Lev búlgaro",null,null,null,null,622,"Actividades Agrícolas, Ganaderas, Silvícolas y Pesqueras",null,"D03","Gastos funerales.",null,null,null,null,null,null,null,null,null,null,null,null,null,null,null,null,14,"Marzo-Abril"]
[null,10101515,"Armadillos","Toches",null,null,54,"Tonelada teórica (UK)",null,25,"Remisión de deuda",null,"BHD","Dinar de Bahrein",null,null,null,null,623,"Opcional para Grupos de Sociedades",null,"D04","Donativos.",null,null,null,null,null,null,null,null,null,null,null,null,null,null,null,null,15,"Mayo-Junio"]
[null,10101516,"Ganado vacuno","Bueyes, Búfalos, Cebús, Otros vacunos o bovinos, Toros, Vacas",null,null,62,"Por ciento por 1000 horas",null,26,"Prescripción o caducidad",null,"BIF","Burundi Franc",null,null,null,null,624,"Coordinados",null,"D05","Intereses reales efectivamente pagados por créditos hipotecarios (casa habitación).",null,null,null,null,null,null,null,null,null,null,null,null,null,null,null,null,16,"Julio-Agosto"]
[null,10101517,"Camellos","Dromedarios",null,null,63,"Tasa de fracaso en el tiempo",null,27,"A satisfacción del acreedor",null,"BMD","Dólar de Bermudas",null,null,null,null,628,"Hidrocarburos",null,"D06","Aportaciones voluntarias al SAR.",null,null,null,null,null,null,null,null,null,null,null,null,null,null,null,null,17,"Septiembre-Octubre"]
[null,10101600,"Pájaros y aves de corral vivos",null,null,null,64,"Libra por pulgada cuadrada, calibre",null,28,"Tarjeta de débito",null,"BND","Dólar de Brunei",null,null,null,null,607,"Régimen de Enajenación o Adquisición de Bienes",null,"D07","Primas por seguros de gastos médicos.",null,null,null,null,null,null,null,null,null,null,null,null,null,null,null,null,18,"Noviembre-Diciembre"]
[null,10101601,"Pollos vivos","Gallinas, Gallinas de guinea, Gallos, Pintadas, Pollitos",null,null,66,"Oersted",null,29,"Tarjeta de servicios",null,"BOB","Boliviano",null,null,null,null,629,"De los Regímenes Fiscales Preferentes y de las Empresas Multinacionales",null,"D08","Gastos de transportación escolar obligatoria."]
[null,10101602,"Patos vivos",null,null,null,69,"Escala específica de prueba",null,30,"Aplicación de anticipos",null,"BOV","Mvdol",null,null,null,null,630,"Enajenación de acciones en bolsa de valores",null,"D09","Depósitos en cuentas para el ahorro, primas que tengan como base planes de pensiones."]
[null,10101603,"Pavos vivos","Gallipavos, Guajolotes, Pavos salvajes",null,null,71,"Voltios amperios por libra",null,31,"Intermediario pagos",null,"BRL","Real brasileño",null,null,null,null,615,"Régimen de los ingresos por obtención de premios",null,"D10","Pagos por servicios educativos (colegiaturas)"]
[null,10101604,"Gansos vivos",null,null,null,72,"Vatio por libra",null,99,"Por definir",null,"BSD","Dólar de las Bahamas",null,null,null,null,626,"Régimen Simplificado de Confianza",null,"P01","Por definir"]
[null,10101605,"Faisanes vivos",null,null,null,73,"Amperios por centímetro",null,null,null,null,"BTN","Ngultrum"]
[null,10101700,"Peces vivos",null,null,null,76,"Gauss",null,null,null,null,"BWP","Pula"]
[null,10101701,"Salmones vivos",null,null,null,78,"Kilogauss",null,null,null,null,"BYR","Rublo bielorruso",null,null,null,null,"Catálogo de régimen fiscal V.4.0",null,null,"Catálogo del uso del CFDI V 4.0"]
[null,10101702,"Trucha viva",null,null,null,84,"Kilopound-force por pulgada cuadrada",null,null,null,null,"BZD","Dólar de Belice",null,null,null,null,"c_RegimenFiscal","Descripción",null,"c_UsoCFDI","Descripción"]
[null,10101703,"Tilapia viva","Mojarra",null,null,90,"Saybold segundo universal",null,null,null,null,"CAD","Dolar Canadiense",null,null,null,null,601,"General de Ley Personas Morales",null,"G01","Adquisición de mercancías."]
[null,10101704,"Carpa viva",null,null,null,92,"Calorías por centímetro cúbico",null,null,null,null,"CDF","Franco congoleño",null,null,null,null,603,"Personas Morales con Fines no Lucrativos",null,"G02","Devoluciones, descuentos o bonificaciones."]
[null,10101705,"Anguilas vivas",null,null,null,93,"Calorías por gramo",null,null,null,null,"CHE","WIR Euro",null,null,null,null,605,"Sueldos y Salarios e Ingresos Asimilados a Salarios",null,"G03","Gastos en general."]
[null,10101800,"Mariscos e invertebrados acuáticos vivos",null,null,null,94,"Unidad de curl",null,null,null,null,"CHF","Franco Suizo",null,null,null,null,606,"Arrendamiento",null,"I01","Construcciones."]
[null,10101801,"Camarón vivo","Esquilas",null,null,95,"Veinte mil galones",null,null,null,null,"CHW","Franc WIR",null,null,null,null,607,"Régimen de Enajenación o Adquisición de Bienes",null,"I02","Mobiliario y equipo de oficina por inversiones."]
[null,10101802,"Almejas vivas",null,null,null,96,"Diez mil galones (US)",null,null,null,null,"CLF","Unidad de Fomento",null,null,null,null,608,"Demás ingresos",null,"I03","Equipo de transporte."]
[null,10101803,"Mejillones vivos",null,null,null,97,"Diez kilos de tambor",null,null,null,null,"CLP","Peso chileno",null,null,null,null,610,"Residentes en el Extranjero sin Establecimiento Permanente en México",null,"I04","Equipo de computo y accesorios."]
[null,10101804,"Ostras vivas",null,null,null,98,"Quince kilos de tambor",null,null,null,null,"CNY","Yuan Renminbi",null,null,null,null,611,"Ingresos por Dividendos (socios y accionistas)",null,"I05","Dados, troqueles, moldes, matrices y herramental."]
[null,10101805,"Cangrejos vivos",null,null,null,"05","Ascensor",null,null,null,null,"COP","Peso Colombiano",null,null,null,null,612,"Personas Físicas con Actividades Empresariales y Profesionales",null,"I06","Comunicaciones telefónicas."]
[null,10101806,"Abulones vivos","Orejas de mar",null,null,"06","Pequeño aerosol",null,null,null,null,"COU","Unidad de Valor real",null,null,null,null,614,"Ingresos por intereses",null,"I07","Comunicaciones satelitales."]
[null,10101807,"Pulpo vivo","Octópodo",null,null,"08","Montón de calor",null,null,null,null,"CRC","Colón costarricense",null,null,null,null,615,"Régimen de los ingresos por obtención de premios",null,"I08","Otra maquinaria y equipo."]
[null,10101808,"Calamar vivo",null,null,null,"10","Grupos",null,null,null,null,"CUC","Peso Convertible",null,null,null,null,616,"Sin obligaciones fiscales",null,"D01","Honorarios médicos, dentales y gastos hospitalarios."]
[null,10101809,"Sanguijuelas","Hirudineas, Hirudos, Hirudíneo",null,null,"11","Equipos",null,null,null,null,"CUP","Peso Cubano",null,null,null,null,620,"Sociedades Cooperativas de Producción que optan por diferir sus ingresos",null,"D02","Gastos médicos por incapacidad o discapacidad."]
[null,10101900,"Insectos vivos",null,null,null,"13","Raciones",null,null,null,null,"CVE","Cabo Verde Escudo",null,null,null,null,621,"Incorporación Fiscal",null,"D03","Gastos funerales."]
[null,10101901,"Mariposas",null,null,null,"14","Shot",null,null,null,null,"CZK","Corona checa",null,null,null,null,622,"Actividades Agrícolas, Ganaderas, Silvícolas y Pesqueras",null,"D04","Donativos."]
[null,10101902,"Escarabajos","Mariquitas, Sanjuaneros",null,null,"15","Palo, medida militar.",null,null,null,null,"DJF","Franco de Djibouti",null,null,null,null,623,"Opcional para Grupos de Sociedades",null,"D05","Intereses reales efectivamente pagados por créditos hipotecarios (casa habitación)."]
[null,10101903,"Abejas",null,null,null,"16","Tambor de 115 kilogramos",null,null,null,null,"DKK","Corona danesa",null,null,null,null,624,"Coordinados",null,"D06","Aportaciones voluntarias al SAR."]
[null,10101904,"Gusanos de seda","Crisálida, Larva, Oruga",null,null,"17","Tambor de cien libras",null,null,null,null,"DOP","Peso Dominicano",null,null,null,null,625,"Régimen de las Actividades Empresariales con ingresos a través de Plataformas Tecnológicas",null,"D07","Primas por seguros de gastos médicos."]
[null,10102000,"Animales salvajes vivos",null,null,null,"1A","Milla de carros",null,null,null,null,"DZD","Dinar argelino",null,null,null,null,626,"Régimen Simplificado de Confianza",null,"D08","Gastos de transportación escolar obligatoria."]
[null,10102001,"Elefantes","Paquidermos",null,null,"1B","Recuento de automóviles",null,null,null,null,"EGP","Libra egipcia",null,null,null,null,null,null,null,"D09","Depósitos en cuentas para el ahorro, primas que tengan como base planes de pensiones."]
[null,10102002,"Zorros vivos","Zorras",null,null,"1C","Conteo de locomotoras",null,null,null,null,"ERN","Nakfa",null,null,null,null,null,null,null,"D10","Pagos por servicios educativos (colegiaturas)."]
[null,10102100,"Huevos de aves para incubar",null,null,null,"1D","Caboose count",null,null,null,null,"ETB","Birr etíope",null,null,null,null,null,null,null,"S01","Sin efectos fiscales.  "]
[null,10111300,"Accesorios, equipo y tratamientos para los animales domésticos","Accesorios, equipo y medicamentos para animales domésticos",null,null,"1E","Coche vacío",null,null,null,null,"EUR","Euro",null,null,null,null,null,null,null,"CP01","Pagos"]
[null,10111301,"Juguetes para mascotas",null,null,null,"1F","Milla de tren",null,null,null,null,"FJD","Dólar de Fiji",null,null,null,null,null,null,null,"CN01","Nómina"]
[null,10111302,"Productos para el aseo y cuidado de mascotas",null,null,null,"1G","Galón del uso del combustible (los EUA)",null,null,null,null,"FKP","Libra malvinense",null,null,null,null,null,null,null,"P01","Por definir"]
[null,10111303,"Equipo para el manejo de desperdicios de las mascotas",null,null,null,"1H","Milla de caboose",null,null,null,null,"GBP","Libra Esterlina"]
[null,10111304,"Tazones o equipo para alimentación de mascotas",null,null,null,"1I"," Tipo de interés fijo",null,null,null,null,"GEL","Lari"]
[null,10111305,"Tratamientos medicados para mascotas","Tratamientos medicinales para mascotas",null,null,"1J","Tonelada milla",null,null,null,null,"GHS","Cedi de Ghana"]
[null,10111306,"Kits para el entrenamiento de mascotas domésticas",null,null,null,"1K","Milla locomotora",null,null,null,null,"GIP","Libra de Gibraltar"]
[null,10111307,"Cobijas para mascotas","Mantas para mascotas, Sábanas para mascotas",null,null,"1L","Recuento total de automóviles",null,null,null,null,"GMD","Dalasi"]
[null,10121500,"Pienso para ganado","Alimento para ganado",null,null,"1M","Milla total del coche",null,null,null,null,"GNF","Franco guineano"]
[null,10121501,"Salvado de trigo puro",null,null,null,"1X","Cuarto de milla",null,null,null,null,"GTQ","Quetzal"]
[null,10121502,"Avena para forraje",null,null,null,"20"," Contenedores de veinte pies",null,null,null,null,"GYD","Dólar guyanés"]
[null,10121503,"Maíz para forraje",null,null,null,"21"," Contenedor de cuarenta pies",null,null,null,null,"HKD","Dolar De Hong Kong"]
[null,10121504,"Sorgo para forraje",null,null,null,"22","Decilitro por gramo",null,null,null,null,"HNL","Lempira"]
[null,10121505,"Heno",null,null,null,"23","Gramo por centímetro cúbico",null,null,null,null,"HRK","Kuna"]
[null,10121506,"Tortas oleaginosas","Torta de aceite para ganado",null,null,"24","Libra teórica",null,null,null,null,"HTG","Gourde"]
[null,10121507,"Forraje compuesto",null,null,null,"25","Gramo por centímetro cuadrado",null,null,null,null,"HUF","Florín"]
[null,10121600,"Alimento para pájaros y aves de corral",null,null,null,"27","Tonelada teórica",null,null,null,null,"IDR","Rupia"]
[null,10121601,"Alimento vivo para aves",null,null,null,"28","Kilogramo por metro cuadrado",null,null,null,null,"ILS","Nuevo Shekel Israelí"]
[null,10121602,"Alpiste",null,null,null,"2A","Radián por segundo",null,null,null,null,"INR","Rupia india"]
[null,10121603,"Botanas o comida recreacional para aves",null,null,null,"2B","Radián por segundo cuadrado",null,null,null,null,"IQD","Dinar iraquí"]
[null,10121604,"Alimento avícola",null,null,null,"2C","Roentgen",null,null,null,null,"IRR","Rial iraní"]
[null,10121700,"Alimento para peces",null,null,null,"2G","Voltios CA",null,null,null,null,"ISK","Corona islandesa"]
[null,10121701,"Salmuera fresca o congelada",null,null,null,"2H","Voltios CD",null,null,null,null,"JMD","Dólar Jamaiquino"]
[null,10121702,"Alimento granulado para peces",null,null,null,"2I","Unidad térmica británica (tabla internacional) por hora",null,null,null,null,"JOD","Dinar jordano"]
[null,10121703,"Alimento en hojuelas para peces",null,null,null,"2J","Centímetro cúbico por segundo",null,null,null,null,"JPY","Yen"]
[null,10121800,"Alimento para perros y gatos",null,null,null,"2K","Pie cúbico por hora",null,null,null,null,"KES","Chelín keniano"]
[null,10121801,"Comida seca para perros",null,null,null,"2L","Pie cúbico por minuto",null,null,null,null,"KGS","Som"]
[null,10121802,"Comida húmeda para perros",null,null,null,"2M","Centímetro por segundo",null,null,null,null,"KHR","Riel"]
[null,10121803,"Leche para perros o gatos",null,null,null,"2N","Decibel",null,null,null,null,"KMF","Franco Comoro"]
[null,10121804,"Comida seca para gatos",null,null,null,"2P","Kilobyte",null,null,null,null,"KPW","Corea del Norte ganó"]
[null,10121805,"Comida húmeda para gatos",null,null,null,"2Q","Kilobecquerel",null,null,null,null,"KRW","Won"]
[null,10121806,"Botanas o comida recreacional para gatos o perros",null,null,null,"2R","Kilocurie",null,null,null,null,"KWD","Dinar kuwaití"]
[null,10121900,"Alimento para roedores",null,null,null,"2U","Megagramo",null,null,null,null,"KYD","Dólar de las Islas Caimán"]
[null,10121901,"Comida granulada para roedores",null,null,null,"2V","Megagrama por hora",null,null,null,null,"KZT","Tenge"]
[null,10122000,"Alimento para reptiles",null,null,null,"2X","Metro por minuto",null,null,null,null,"LAK","Kip"]
[null,10122001,"Comida granulada para reptiles",null,null,null,"2Y","Milliroentgen",null,null,null,null,"LBP","Libra libanesa"]
[null,10122002,"Comida húmeda para reptiles",null,null,null,"2Z","Milivoltio",null,null,null,null,"LKR","Rupia de Sri Lanka"]
[null,10122003,"Comida viva para reptiles",null,null,null,"33","Kilopascal por grtr",null,null,null,null,"LRD","Dólar liberiano"]
[null,10122100,"Comida para animales variados","Comida para diversos animales",null,null,"34","Kilopascal por milímetro",null,null,null,null,"LSL","Loti"]
[null,10122101,"Comida para cerdos","Comida para chanchos, Comida para cochinillos, Comida para cochinos, Comida para cuche, Comida para cuinos, Comida para gorrinos, Comida para lechones, Comida para marranos, Comida para porcinos, Comida para puercos, Comida para lechones",null,null,"35","Milímetro por un segundo centímetro cuadrado",null,null,null,null,"LYD","Dinar libio"]
[null,10122102,"Comida para visones",null,null,null,"37","Onza por pie cuadrado",null,null,null,null,"MAD","Dirham marroquí"]
[null,10122103,"Comida para monos",null,null,null,"38","Onzas por pie cuadrado por 0,01 pulgadas",null,null,null,null,"MDL","Leu moldavo"]
[null,10122104,"Comida para conejos",null,null,null,"3B","Megajoule",null,null,null,null,"MGA","Ariary malgache"]
[null,10131500,"Cobertizos para animales",null,null,null,"3C","Manmonth",null,null,null,null,"MKD","Denar"]
[null,10131506,"Establos para ganado",null,null,null,"3E","Libra por libra de producto",null,null,null,null,"MMK","Kyat"]
[null,10131507,"Casas para mascotas domesticadas",null,null,null,"3G","Libra por pieza de producto",null,null,null,null,"MNT","Tugrik"]
[null,10131508,"Camas para mascotas",null,null,null,"3H","Kilogramo por kilogramo de producto",null,null,null,null,"MOP","Pataca"]
[null,10131600,"Recipientes para animales","Contenedores de comida para animales",null,null,"3I","Kilogramo por pedazo de producto",null,null,null,null,"MRO","Ouguiya"]
[null,10131601,"Jaulas o sus accesorios",null,null,null,"40","Mililitro por segundo",null,null,null,null,"MUR","Rupia de Mauricio"]
[null,10131602,"Perreras",null,null,null,"41","Mililitro por minuto",null,null,null,null,"MVR","Rupia"]
[null,10131603,"Equipaje para el transporte de animales",null,null,null,"4B","Gorra",null,null,null,null,"MWK","Kwacha"]
[null,10131604,"Correas para perros",null,null,null,"4C","Centistokes",null,null,null,null,"MXN","Peso Mexicano"]
[null,10131700,"Hábitat para animales","Ambientes para animales",null,null,"4E","Veinte pack",null,null,null,null,"MXV","México Unidad de Inversión (UDI)"]
[null,10131701,"Terrarios",null,null,null,"4G","Microlitro",null,null,null,null,"MYR","Ringgit malayo"]
[null,10131702,"Acuarios",null,null,null,"4H","Micra",null,null,null,null,"MZN","Mozambique Metical"]
[null,10141500,"Talabartería","Guarniciones para caballerías",null,null,"4K","Miliamperio",null,null,null,null,"NAD","Dólar de Namibia"]
[null,10141501,"Sillas de montar",null,null,null,"4L","Megabyte",null,null,null,null,"NGN","Naira"]
[null,10141502,"Fustas y látigos",null,null,null,"4M","Miligramo por hora",null,null,null,null,"NIO","Córdoba Oro"]
[null,10141503,"Herraduras para caballo",null,null,null,"4N","Megabequerel",null,null,null,null,"NOK","Corona noruega"]
[null,10141504,"Herraduras para mula",null,null,null,"4O","Microfaradio",null,null,null,null,"NPR","Rupia nepalí"]
[null,10141505,"Sillín o pelero",null,null,null,"4P","Newton por metro",null,null,null,null,"NZD","Dólar de Nueva Zelanda"]
[null,10141600,"Arneses",null,null,null,"4Q","Onza pulgada",null,null,null,null,"OMR","Rial omaní"]
[null,10141601,"Bridas","Correas para caballos",null,null,"4R","Onza pie",null,null,null,null,"PAB","Balboa"]
[null,10141602,"Yugos",null,null,null,"4T","Picofaradio",null,null,null,null,"PEN","Nuevo Sol"]
[null,10141603,"Bocados para caballos","Embocaduras para caballo",null,null,"4U","Libra por hora",null,null,null,null,"PGK","Kina"]
[null,10141604,"Riendas","Correas",null,null,"4W","Tonelada (EUA) por hora",null,null,null,null,"PHP","Peso filipino"]
[null,10141605,"Estribos",null,null,null,"4X","Kilolitro por hora",null,null,null,null,"PKR","Rupia de Pakistán"]
[null,10141606,"Correas o traíllas",null,null,null,"56","Sitas",null,null,null,null,"PLN","Zloty"]
[null,10141607,"Arneses de cuello para animales",null,null,null,"57","Malla",null,null,null,null,"PYG","Guaraní"]
[null,10141608,"Arneses o sus accesorios",null,null,null,"58"," kilogramo neto",null,null,null,null,"QAR","Qatar Rial"]
[null,10141609,"Sujetadores",null,null,null,"59","Parte por millón",null,null,null,null,"RON","Leu rumano"]
[null,10141610,"Bozales",null,null,null,"5A","Barril por minuto",null,null,null,null,"RSD","Dinar serbio"]
[null,10141611,"Soportes para correas",null,null,null,"5B","Batch",null,null,null,null,"RUB","Rublo ruso"]
[null,10151500,"Semillas y plántulas vegetales","Semillas y vástagos vegetales",null,null,"5C","Galón (US) por mil",null,null,null,null,"RWF","Franco ruandés"]
[null,10151501,"Semillas o plántulas de fríjol","Semillas o vástago primario de fríjol, Semillas o vástago primario de fríjol blanco, Semillas o vástago primario de fríjol negro, Semillas o vástago primario de fríjol rojo adzuki",null,null,"5E","Mmscf/day",null,null,null,null,"SAR","Riyal saudí"]
[null,10151502,"Semillas o plántulas de zanahoria","Semillas o vástago primario de zanahoria",null,null,"5F","Libra por mil",null,null,null,null,"SBD","Dólar de las Islas Salomón"]
[null,10151503,"Semillas o plántulas de apio","Semillas o vástago primario de apio",null,null,"5G","bomba",null,null,null,null,"SCR","Rupia de Seychelles"]
[null,10151504,"Semillas o plántulas de chiles","Semillas o vástago primario de chiles",null,null,"5H","Escenario",null,null,null,null,"SDG","Libra sudanesa"]
[null,10151505,"Semillas o plántulas de calabacín","Semillas o vástago primario de calabacín",null,null,"5I","Pies cúbicos estándar",null,null,null,null,"SEK","Corona sueca"]
[null,10151506,"Semillas o plántulas de alverja","Semillas o vástago primario de chícharo, Semillas o vástago primario de guisante",null,null,"5J","Caballos de potencia hidráulica",null,null,null,null,"SGD","Dolar De Singapur"]
[null,10151507,"Semillas o plántulas de pepino cohombro","Semillas o vástago primario de pepino cohombro",null,null,"5K","Contar por minuto",null,null,null,null,"SHP","Libra de Santa Helena"]
[null,10151508,"Semillas o plántulas de berenjena","Semillas o vástago primario de berenjena",null,null,"5P","Nivel sísmico",null,null,null,null,"SLL","Leona"]
[null,10151509,"Semillas o plántulas de endivias","Semillas o vástago primario de endivias",null,null,"5Q","Línea sísmica",null,null,null,null,"SOS","Chelín somalí"]
[null,10151510,"Semillas o plántulas de ajo","Semillas o vástago primario de ajo",null,null,"60","Tanto por ciento en peso",null,null,null,null,"SRD","Dólar de Suriname"]
[null,10151511,"Semillas o plántulas de puerro","Semillas o vástago primario de puerro",null,null,"61","Parte por mil millones (EUA)",null,null,null,null,"SSP","Libra sudanesa Sur"]
[null,10151512,"Semillas o plántulas de lechuga","Semillas o vástago primario de lechuga",null,null,"74","Milipascal",null,null,null,null,"STD","Dobra"]
[null,10151513,"Semillas o plántulas de maíz","Semillas o vástago primario de maíz",null,null,"77","Mili-pulgada",null,null,null,null,"SVC","Colon El Salvador"]
[null,10151514,"Semillas o plántulas de melón","Semillas o vástago primario de melón",null,null,"80","Libra por pulgada cuadrado absoluta",null,null,null,null,"SYP","Libra Siria"]
[null,10151515,"Semillas o plántulas cebolla","Semillas o vástago primario de cebolla",null,null,"81","Henry",null,null,null,null,"SZL","Lilangeni"]
[null,10151516,"Semillas o plántulas de soya","Semillas o vástago primario de soya",null,null,"85","Pie libra-fuerza",null,null,null,null,"THB","Baht"]
[null,10151517,"Semillas o plántulas de espinaca","Semillas o vástago primario de espinaca",null,null,"87","Libra por pie cúbico",null,null,null,null,"TJS","Somoni"]
[null,10151518,"Semillas o plántulas de tomate","Semillas o vástago primario de tomate",null,null,"89","Poise",null,null,null,null,"TMT","Turkmenistán nuevo manat"]
[null,10151519,"Semillas o plántulas de nabo","Semillas o vástago primario de nabo",null,null,"91","Stokes",null,null,null,null,"TND","Dinar tunecino"]
[null,10151520,"Semillas o plántulas de acelga","Semillas o vástago primario de acelga",null,null,"A1","15 ° C calorías",null,null,null,null,"TOP","Pa'anga"]
[null,10151521,"Semillas o plántulas de pimiento morrón","Semillas o vástago primario de pimiento morrón",null,null,"A10","Amperio por metro cuadrado por joule segundo",null,null,null,null,"TRY","Lira turca"]
[null,10151522,"Semillas o plántulas de remolacha","Semillas o vástago primario de betabel",null,null,"A11","Ángstrom",null,null,null,null,"TTD","Dólar de Trinidad y Tobago"]
[null,10151523,"Semillas o plántulas de coliflor","Semillas o vástago primario de coliflor",null,null,"A12","Unidad astronómica",null,null,null,null,"TWD","Nuevo dólar de Taiwán"]
[null,10151524,"Semillas o plántulas de perejil","Semillas o vástago primario de perejil",null,null,"A13","Attojoule",null,null,null,null,"TZS","Shilling tanzano"]
[null,10151525,"Semillas o plántulas de brócoli","Semillas o vástago primario de brócoli",null,null,"A14","Barn",null,null,null,null,"UAH","Hryvnia"]
[null,10151526,"Semillas o plántulas de repollo","Semillas o vástago primario de col",null,null,"A15","Barn por electrovoltio",null,null,null,null,"UGX","Shilling de Uganda"]
[null,10151527,"Semillas o plántulas de papa","Semillas o vástago primario de patata",null,null,"A16","Barn por electrovoltio ",null,null,null,null,"USD","Dolar americano"]
[null,10151528,"Semillas o plántulas de batata","Semillas o vástago primario de camote",null,null,"A17","Barn por esteroradian",null,null,null,null,"USN","Dólar estadounidense (día siguiente)"]
[null,10151529,"Semillas o plántulas de calabaza","Semillas o vástago primario de calabaza",null,null,"A18","Becquerel por kilogramo",null,null,null,null,"UYI","Peso Uruguay en Unidades Indexadas (URUIURUI)"]
[null,10151530,"Semillas o plántulas de rábano","Semillas o vástago primario de rabanito, Semillas o vástago primario de rábano",null,null,"A19","Becquerel por metro cúbico",null,null,null,null,"UYU","Peso Uruguayo"]
[null,10151531,"Semillas o plántulas de repollitos de bruselas","Semillas o vástago primario de col de Bruselas",null,null,"A2","Amperio por centímetro",null,null,null,null,"UZS","Uzbekistán Sum"]
[null,10151532,"Semillas o plántulas de ahuyama","Semillas o vástago primario de calabaza de castilla",null,null,"A20","Unidad térmica británica (tabla internacional) por segundo pie cuadrado grado rankine.",null,null,null,null,"VEF","Bolívar"]
[null,10151533,"Semillas o plántulas de okra","Semillas o vástago primario de okra",null,null,"A21","Unidad térmica británica (tabla internacional) por libra grado rankine",null,null,null,null,"VND","Dong"]
[null,10151534,"Semillas o plántulas de melón cantalupo","Semillas o vástago primario de melón cantalupo",null,null,"A22","Unidad térmica británica (tabla internacional) por segundo pie grado rankine",null,null,null,null,"VUV","Vatu"]
[null,10151535,"Semillas o plántulas de maní","Semillas o vástago primario de cacahuate",null,null,"A23","Unidad térmica británica (tabla internacional) por hora pie cuadrado grado rankine.",null,null,null,null,"WST","Tala"]
[null,10151536,"Semillas o plántulas de caigua","Semillas o vástago primario de caigua",null,null,"A24","Candela por metro cuadrado",null,null,null,null,"XAF","Franco CFA BEAC"]
[null,10151537,"Semillas o plántulas de espárrago","Semillas o vástago primario de espárrago",null,null,"A25","Caballo de vapor",null,null,null,null,"XAG","Plata"]
[null,10151538,"Semillas o plántulas de garbanzo","Semillas o vástago primario de garbanzo",null,null,"A26","Culombio metro",null,null,null,null,"XAU","Oro"]
[null,10151539,"Semillas o plántulas de haba","Semillas o vástago primario de haba",null,null,"A27","Culombio metro cuadrado por voltio",null,null,null,null,"XBA","Unidad de Mercados de Bonos Unidad Europea Composite (EURCO)"]
[null,10151600,"Semillas de cereales",null,null,null,"A28","Culombio por centímetro cúbico",null,null,null,null,"XBB","Unidad Monetaria de Bonos de Mercados Unidad Europea (UEM-6)"]
[null,10151601,"Semillas de trigo",null,null,null,"A29","Culombio por metro cúbico",null,null,null,null,"XBC","Mercados de Bonos Unidad Europea unidad de cuenta a 9 (UCE-9)"]
[null,10151602,"Semillas de canola","Semillas de colza",null,null,"A3","Amperio por milímetro",null,null,null,null,"XBD","Mercados de Bonos Unidad Europea unidad de cuenta a 17 (UCE-17)"]
[null,10151603,"Semillas de cebada",null,null,null,"A30","Culombio por milímetro cúbico",null,null,null,null,"XCD","Dólar del Caribe Oriental"]
[null,10151604,"Semillas de mijo",null,null,null,"A31","Culombio por kilogramo-segundo",null,null,null,null,"XDR","DEG (Derechos Especiales de Giro)"]
[null,10151605,"Semillas de avena",null,null,null,"A32","Culombio por Mol",null,null,null,null,"XOF","Franco CFA BCEAO"]
[null,10151606,"Semillas de ajonjolí","Semillas de sésamo",null,null,"A33","Culombio por centímetro cuadrado",null,null,null,null,"XPD","Paladio"]
[null,10151607,"Semillas de linaza","Semillas de lino",null,null,"A34","Culombio por metro cuadrado",null,null,null,null,"XPF","Franco CFP"]
[null,10151608,"Semillas de aceite de ricino","Semillas de ricino",null,null,"A35","Culombio por milímetro cuadrado",null,null,null,null,"XPT","Platino"]
[null,10151609,"Semillas de maíz",null,null,null,"A36","Centímetro cúbico por Mol",null,null,null,null,"XSU","Sucre"]
[null,10151610,"Semillas de centeno",null,null,null,"A37","Decímetro cuadrado por Mol",null,null,null,null,"XTS","Códigos reservados específicamente para propósitos de prueba"]
[null,10151611,"Semillas de sorgo",null,null,null,"A38","Cubic pooulo p",null,null,null,null,"XUA","Unidad ADB de Cuenta"]
[null,10151612,"Semillas o plántulas de kiwicha","Semillas o vástagos de amaranto",null,null,"A39","Metro cúbico por kilogramo",null,null,null,null,"XXX","Los códigos asignados para las transacciones en que intervenga ninguna moneda"]
[null,10151613,"Semillas o plántulas de quínoa","Semillas o vástagos de quinua",null,null,"A4","Amperio por centímetro cuadrado",null,null,null,null,"YER","Rial yemení"]
[null,10151700,"Semillas y plántulas de hierba y forraje","Semillas y vástagos de hierba y forraje",null,null,"A40","Metro cúbico por Mol",null,null,null,null,"ZAR","Rand"]
[null,10151701,"Semillas o plántulas de arroz",null,null,null,"A41","Amperio por metro cuadrado",null,null,null,null,"ZMW","Kwacha zambiano"]
[null,10151702,"Semillas o plántulas de trébol",null,null,null,"A42","Curie por kilogramo",null,null,null,null,"ZWL","Zimbabwe Dólar"]
[null,10151703,"Semillas o plántulas de alfalfa",null,null,null,"A43","Tonelaje de peso muerto"]
[null,10151704,"Semillas o plántulas de pasto","Semillas o vástagos para césped",null,null,"A44","Decalitro"]
[null,10151705,"Semillas o plántulas de veza (gachas / guija)",null,null,null,"A45","Decámetro"]
[null,10151706,"Semillas o plántulas de guar",null,null,null,"A47","Decitex"]
[null,10151800,"Semillas y plántulas de especias","Semillas y vástagos de especias",null,null,"A48","Grado rankine"]
[null,10151801,"Semillas o plántulas de pimienta",null,null,null,"A49","Negador"]
[null,10151802,"Semillas o plántulas de vainilla",null,null,null,"A5","Amperio metro cuadrado"]
[null,10151803,"Semillas o plántulas de canela",null,null,null,"A50","Dina segundo por centímetro cúbico"]
[null,10151804,"Semillas o plántulas de clavo de olor",null,null,null,"A51","Dina segundo por centímetro"]
[null,10151805,"Semillas o plántulas de cilantro",null,null,null,"A52","Dina segundo por centímetro a la quinta potencia"]
[null,10151806,"Semillas o plántulas de jengibre",null,null,null,"A53","Electronvoltio"]
[null,10151807,"Semillas o plántulas de azafrán",null,null,null,"A54","Electronvoltio por metro"]
[null,10151808,"Semillas o plántulas de tomillo",null,null,null,"A55","Electronvoltio por metro cuadrado"]
[null,10151809,"Semillas o plántulas de curry","Semillas o vástagos de curri",null,null,"A56","Electronvoltio metro cuadrado por kilogramo"]
[null,10151810,"Semillas o plántulas de mostaza",null,null,null,"A57","Ergio"]
[null,10151811,"Semillas o plántulas de ginseng",null,null,null,"A58","Erg por centímetro"]
[null,10151812,"Semillas o plántulas de champiñones",null,null,null,"A59","La cobertura de nubes 8-parte"]
[null,10151813,"Semillas o plántulas de sacha inchi",null,null,null,"A6","Amperio por metro cuadrado Kelvin cuadrado"]
[null,10151814,"Semillas o plántulas de achiote",null,null,null,"A60","Erg por centímetro cúbico"]
[null,10151815,"Semillas o plántulas de kudzu",null,null,null,"A61","Erg por gramo"]
[null,10151816,"Semillas o plántulas de albahaca",null,null,null,"A62","Erg por segundo gramo"]
[null,10151817,"Semillas o plántulas de anís","Semillas o vástago de badiana",null,null,"A63","Erg por segundo"]
[null,10151900,"Semillas, bulbos, plántulas y esquejes de flores","Semillas, bulbos, vástagos y codos de flores",null,null,"A64","Erg por segundo centímetro cuadrado"]
[null,10151901,"Semillas, bulbos, plántulas o esquejes de tulipán",null,null,null,"A65","Erg por centímetro cuadrado segundo"]
[null,10151902,"Semillas, plántulas o esquejes de rosa",null,null,null,"A66","Erg centímetro cuadrado"]
[null,10151903,"Semillas, bulbos, plántulas o esquejes de narciso",null,null,null,"A67","Erg centímetro cuadrado por gramo"]
[null,10151904,"Semillas de girasol","Semillas de acahual, Semillas de mirasol",null,null,"A68","Exajoule"]
[null,10151905,"Bulbos o tallos de jacinto",null,null,null,"A69","Faradio por metro"]
[null,10151906,"Bulbos de lirio",null,null,null,"A7","Amperio por milímetro cuadrado"]
[null,10151907,"Semillas o plántulas de veza",null,null,null,"A70","Femtojoule"]
[null,10152000,"Semillas y esquejes de árboles y arbustos",null,null,null,"A71","Femtómetro"]
[null,10152001,"Semillas o esquejes de árboles frutales",null,null,null,"A73","Pie por segundo al cuadrado"]
[null,10152002,"Semillas o esquejes de coníferas",null,null,null,"A74","Pie libra-fuerza por segundo"]
[null,10152003,"Semillas o esquejes de árboles de frutos secos",null,null,null,"A75","Tonelada de carga"]
[null,10152004,"Plántulas de latifoliados",null,null,null,"A76","Galón",null,null,null,null,null,null,null,null,null,null,null,"RFC cliente","Cliente","Saldo inicial","Facturas","Notas de crédito","Pagos","Saldo final",null,"Facturas","Notas de crédito","Pagos","Saldo final"]
[null,10152005,"Plántulas de coníferas",null,null,null,"A77","Gaussian CGS (Centímetro-Gram-Segundo sistema) unidad de desplazamiento"]
[null,10152006,"Semillas o yemas de pino",null,null,null,"A78","Gaussiano CGS (Centímetro-Gram-Segundo sistema) unidad de corriente eléctrica"]
[null,10152007,"Semillas o yemas de algarrobo",null,null,null,"A79","Gaussian CGS (Centímetro-Gram-Segundo sistema) unidad de carga eléctrica"]
[null,10152100,"Residuos que no sean de piensos","Residuos que no sean alimento",null,null,"A8","Amperio segundo"]
[null,10152101,"Extracción de los residuos de semilla de babool",null,null,null,"A80","Gaussiano CGS (Centímetro-Gram-Segundo sistema) unidad de la fuerza del campo eléctrico"]
[null,10152102,"Residuos de semilla de colza",null,null,null,"A81","Gaussian CGS (Centímetro-Gram-Segundo sistema) unidad de polarización eléctrica"]
[null,10152103,"Residuo de semillas de linaza",null,null,null,"A82","Gaussiano CGS (Centímetro-Gram-Segundo sistema) unidad de potencial eléctrico"]
[null,10152104,"Torta de neem",null,null,null,"A83","Gaussian CGS (Centímetro-Gram-Segundo sistema) unidad de magnetización"]
[null,10152200,"Semillas de cultivos fibrosos y semilleros",null,null,null,"A84","GigaCulombio por metro cúbico"]
[null,10152201,"Semillas o plántulas de algodón",null,null,null,"A85","Gigaelectrónvoltio"]
[null,10152202,"Semillas o plántulas de lino","Semillas o vástago de linaza",null,null,"A86","Gigahertz"]
[null,10152300,"Plántulas y semillas de leguminosas",null,null,null,"A87","GigaOhm"]
[null,10152400,"Plántulas y semillas de tubérculos",null,null,null,"A88","GigaOhm metro"]
[null,10161500,"Árboles y arbustos",null,null,null,"A89","Gigapascal"]
[null,10161501,"Aceitunos",null,null,null,"A9","Tarifa"]
[null,10161502,"Cafetos",null,null,null,"A90","Gigawatt"]
[null,10161503,"Cacaoteros","Cocoa",null,null,"A91","Grado centesimal"]
[null,10161504,"Manzanos",null,null,null,"A93","Gramo por metro cúbico"]
[null,10161505,"Peros",null,null,null,"A94","Gramo por Mol"]
[null,10161506,"Naranjos",null,null,null,"A95","Gray"]
[null,10161507,"Rododendros","Azaleas",null,null,"A96","Gray por segundo"]
[null,10161508,"Plantas de te",null,null,null,"A97","Hectopascal"]
[null,10161509,"Coníferas",null,null,null,"A98","Henry por metro"]
[null,10161510,"Abetos rojos (píceas)","Abetos falsos",null,null,"A99","Bit"]
[null,10161511,"Pinos",null,null,null,"AA","Balón"]
[null,10161512,"Abetos",null,null,null,"AB","Paquete a granel"]
[null,10161513,"Palmeras",null,null,null,"ACR","Acre"]
[null,10161514,"Casuarina","Roble hembra",null,null,"ACT","Actividad"]
[null,10161515,"Ciprés",null,null,null,"AD","Byte"]
[null,10161516,"Eucalipto",null,null,null,"AE","Amperio por metro"]
[null,10161517,"Árbol de quinua","Árbol de quina",null,null,"AH","Minuto adicional"]
[null,10161518,"Magnolio",null,null,null,"AI","Minuto y medio por llamada"]
[null,10161519,"Mioporo","Siempreverde",null,null,"AJ","policía"]
[null,10161520,"Acalifa","Cola de zorro roja",null,null,"AK","Braza"]
[null,10161521,"Tecomaria capensis o madreselva del cabo","Bignonia roja",null,null,"AL","Línea de acceso"]
[null,10161522,"Arbusto croton bolaina","Croton variegado",null,null,"AMH","Amperio hora"]
[null,10161523,"Abutillón","Malva",null,null,"AMP","Amperio"]
[null,10161524,"Ficus","Higuera",null,null,"ANN","Año"]
[null,10161525,"Lúcumo",null,null,null,"AP","Libra de aluminio solamente"]
[null,10161526,"Aguacatal",null,null,null,"APZ","Onza troy u onza farmacéutica "]
[null,10161527,"Guanábano",null,null,null,"AQ","Unidad del factor anti-hemofílico."]
[null,10161528,"Carambolo","Membrillo torombolo",null,null,"AR","supositorio"]
[null,10161529,"Ciruelo",null,null,null,"ARE","Are"]
[null,10161530,"Árbol de quince","Árbol de membrillo",null,null,"AS","Variedad"]
[null,10161600,"Plantas florales","Agave, Caña de azúcar, Maguey",null,null,"ASM","Grado alcohólico en masa"]
[null,10161602,"Poinsettias","Nochebuena",null,null,"ASU","Grado alcohólico volumétrico"]
[null,10161604,"Azaleas",null,null,null,"ATM","Atmósfera estándar"]
[null,10161605,"Cactos","Cactus, Nopal",null,null,"ATT","Atmósfera técnica"]
[null,10161606,"Ageratum púrpura","Agérato mexicano",null,null,"AW","Relleno de polvo en viales"]
[null,10161800,"Plantas sin flor",null,null,null,"AWG","Calibre de alambre americano"]
[null,10161801,"Helechos",null,null,null,"AY","Montaje"]
[null,10161802,"Hiedras",null,null,null,"AZ","Unidad térmica británica (tabla internacional) por libra"]
[null,10161803,"Filodendros","Trepadora",null,null,"B0","Btu por pie cúbico"]
[null,10161804,"Líquenes",null,null,null,"B1","Barril (EUA) por día"]
[null,10161805,"Vides","Parra, Vid",null,null,"B10","Bits por segundo"]
[null,10161900,"Productos florales secos",null,null,null,"B11","Joule por kilogramo kelvin"]
[null,10161901,"Vainas secas",null,null,null,"B12","Joule por metro"]
[null,10161902,"Follaje seco",null,null,null,"B13","Joule por metro cuadrado"]
[null,10161903,"Helechos secos",null,null,null,"B14","Joule por metro a la cuarta potencia"]
[null,10161905,"Ramas y tallos secos",null,null,null,"B15","Juole por Mol"]
[null,10161906,"Penachos de gramíneas secos",null,null,null,"B16","Juoule por Mol kelvin"]
[null,10161907,"Flores secas prensadas",null,null,null,"B17","Crédito"]
[null,10161908,"Pétalos secos",null,null,null,"B18","Segundos joule"]
[null,10171500,"Abonos orgánicos y nutrientes para plantas",null,null,null,"B19","Dígito"]
[null,10171501,"Estiércol o guano",null,null,null,"B2","litera"]
[null,10171502,"Hormonas para plantas",null,null,null,"B20","Joule metro cuadrado por kilogramo"]
[null,10171503,"Harina de pescado",null,null,null,"B21","Kelvin por watt"]
[null,10171504,"Abono",null,null,null,"B22","Kiloamperio"]
[null,10171505,"Nutriente foliar",null,null,null,"B23","Kiloamperio por metro cuadrado"]
[null,10171506,"Humus",null,null,null,"B24","Kiloamperio por metro"]
[null,10171600,"Abonos químicos y nutrientes para plantas",null,null,null,"B25","Kilobecquerel por metro cúbico"]
[null,10171601,"Fertilizante nitrogenado",null,null,null,"B26","KiloCulombio"]
[null,10171602,"Fertilizante de potasio",null,null,null,"B27","KiloCulombio por metro cúbico"]
[null,10171603,"Fertilizante de fósforo",null,null,null,"B28","KiloCulombio por metro cuadrado"]
[null,10171604,"Fertilizante de sulfuro",null,null,null,"B29","Kiloelectrónvoltio"]
[null,10171605,"Mezclas de nitrógeno – fósforo – potasio – npk",null,null,null,"B3","Libra de bateo"]
[null,10171606,"Fertilizarte de sílice puro",null,null,null,"B30","Gibibit"]
[null,10171607,"Fertilizante con magnesio",null,null,null,"B31","Kilogramo metro por segundo"]
[null,10171608,"Fertilizante micro elemento",null,null,null,"B32","Kilogramo metro cuadrado"]
[null,10171609,"Fertilizante fosfato de sílice",null,null,null,"B33","Kilogramo metro cuadrado por segundo"]
[null,10171610,"Fertilizante potasio de sílice",null,null,null,"B34","Kilogramo por decímetro cúbico"]
[null,10171611,"Fertilizante de calcio",null,null,null,"B35","Kilogramo por litro"]
[null,10171700,"Herbicidas",null,null,null,"B36","Calorías (termoquímicas) por gramo"]
[null,10171701,"Matamalezas",null,null,null,"B37","Kilogramo de fuerza"]
[null,10171702,"Fungicidas",null,null,null,"B38","Kilogramo-metro de la fuerza"]
[null,10171800,"Acondicionadores de suelos",null,null,null,"B39","Kilogramo-fuerza del metro por segundo"]
[null,10171801,"Acondicionador orgánico de suelos",null,null,null,"B4","Barril, unidad imperial"]
[null,10171802,"Acondicionador inorgánico de suelos",null,null,null,"B40","Kilogramo de fuerza por metro cuadrado"]
[null,10191500,"Pesticidas o repelentes de plagas",null,null,null,"B41","Kilojoule por kelvin"]
[null,10191506,"Mata – roedores","Veneno para roedores",null,null,"B42","Kilojoule por kilogramo"]
[null,10191507,"Repelentes de aves",null,null,null,"B43","Kilojoule por kilogramo kelvin"]
[null,10191508,"Protectores contra termitas",null,null,null,"B44","Kilojoule por Mol "]
[null,10191509,"Insecticidas",null,null,null,"B45","KiloMol"]
[null,10191510,"Abamectina",null,null,null,"B46","KiloMol por metro cúbico"]
[null,10191511,"Fipronil",null,null,null,"B47","Kilonewton"]
[null,10191700,"Dispositivos para control de plagas",null,null,null,"B48","Kilonewton metro"]
[null,10191701,"Trampas para control animal",null,null,null,"B49","KiloOhm"]
[null,10191703,"Trampas para el control de insectos voladores",null,null,null,"B5","palanquilla"]
[null,10191704,"Matamoscas",null,null,null,"B50","KiloOhm metro"]
[null,10191705,"Lazos",null,null,null,"B51","KiloLibra"]
[null,10191706,"Cepos","Ratoneras",null,null,"B52","Kilosegundo"]
[null,10191707,"Repelente ultrasónico de pestes","Ahuyentador Ultrasónico",null,null,"B53","Kilosiemens"]
[null,10201500,"Rosales vivos azules o lavanda o púrpura",null,null,null,"B54","Kilosiemens por metro"]
[null,10201501,"Rosal vivo allure o sterling 95",null,null,null,"B55","Kilovoltio por metro"]
[null,10201502,"Rosal vivo amnesia",null,null,null,"B56","Kiloweber por metro"]
[null,10201503,"Rosal vivo augusta louise",null,null,null,"B57","Año luz"]
[null,10201504,"Rosal vivo avant garde",null,null,null,"B58","Litro por Mol"]
[null,10201505,"Rosal vivo blue bird",null,null,null,"B59","Lumen hora"]
[null,10201506,"Rosal vivo curiosa",null,null,null,"B6","Bollo"]
[null,10201507,"Rosal vivo cool water",null,null,null,"B60","Lumen por metro cuadrado"]
[null,10201508,"Rosal vivo delilah",null,null,null,"B61","Luminosidad por watt"]
[null,10201509,"Rosal vivo double party",null,null,null,"B62","Lumen segundo"]
[null,10201510,"Rosal vivo faith",null,null,null,"B63","Hora de luz"]
[null,10201511,"Rosal vivo mami blue o mammy blue",null,null,null,"B64","Segundo de luz"]
[null,10201512,"Rosal vivo marítimo",null,null,null,"B65","Maxwell"]
[null,10201513,"Rosal vivo milano",null,null,null,"B66","Megaamperio por metro cuadrado"]
[null,10201514,"Rosal vivo mistery",null,null,null,"B67","Megabecquerel por kilogramo"]
[null,10201515,"Rosal vivo ocean song o boyfriend",null,null,null,"B68","Gigabit"]
[null,10201516,"Rosal vivo cezanne púrpura",null,null,null,"B69","MegaCulombio por metro cúbico"]
[null,10201517,"Rosal vivo purple fragrance",null,null,null,"B7","Ciclo"]
[null,10201518,"Rosal vivo sanaa",null,null,null,"B70","MegaCulombio por metro cuadrado"]
[null,10201519,"Rosal vivo silverstone",null,null,null,"B71","Megaelectrónvoltio"]
[null,10201520,"Rosal vivo soulmate",null,null,null,"B72","Megagramo por metro cúbico"]
[null,10201521,"Rosal vivo stranger",null,null,null,"B73","Meganewton"]
[null,10201522,"Rosal vivo tinted blue",null,null,null,"B74","Meganewton metro"]
[null,10201523,"Rosal vivo two faces",null,null,null,"B75","MegaOhm"]
[null,10201600,"Rosales vivos chocolate o marrón",null,null,null,"B76","MegaOhm metro"]
[null,10201601,"Rosal vivo black lava",null,null,null,"B77","Megasiemens por metro"]
[null,10201602,"Rosal vivo cimarron",null,null,null,"B78","Megavoltio "]
[null,10201603,"Rosal vivo coffee break",null,null,null,"B79","Megavoltio por metro"]
[null,10201604,"Rosal vivo estelle",null,null,null,"B8","Joule por metro cúbico"]
[null,10201605,"Rosal vivo gypsy leonidas",null,null,null,"B80","Gigabit por segundo"]
[null,10201606,"Rosal vivo leonidas",null,null,null,"B81","Reciprocidad del metro cuadrado, reciprocidad del segundo"]
[null,10201607,"Rosal vivo matilda",null,null,null,"B82","Pulgadas por pie lineal"]
[null,10201608,"Rosal vivo sunny leonidas",null,null,null,"B83","Metro a la cuarta potencia"]
[null,10201609,"Rosal vivo terra nostra",null,null,null,"B84","Microamperio"]
[null,10201610,"Rosal vivo terracotta",null,null,null,"B85","Microbar"]
[null,10201700,"Rosales vivos crema",null,null,null,"B86","MicroCulombio"]
[null,10201701,"Rosal vivo advenire",null,null,null,"B87","MicroCulombio por metro cúbico"]
[null,10201702,"Rosal vivo alex",null,null,null,"B88","MicroCulombio por metro cuadrado"]
[null,10201703,"Rosal vivo antique brass",null,null,null,"B89","Microfaradio por metro"]
[null,10201704,"Rosal vivo aubade",null,null,null,"B9","Batt"]
[null,10201705,"Rosal vivo beach",null,null,null,"B90","Microhenry"]
[null,10201706,"Rosal vivo belle pearl",null,null,null,"B91","Microhenry por metro"]
[null,10201707,"Rosal vivo blush de los andes",null,null,null,"B92","Micronewton"]
[null,10201708,"Rosal vivo camel",null,null,null,"B93","Micronewton metro"]
[null,10201709,"Rosal vivo caramel antike o caramel antique",null,null,null,"B94","Micro Ohm"]
[null,10201710,"Rosal vivo champagne",null,null,null,"B95","MicroOhm metro"]
[null,10201711,"Rosal vivo clear ocean",null,null,null,"B96","Micropascal"]
[null,10201712,"Rosal vivo combo",null,null,null,"B97","Microrradián"]
[null,10201713,"Rosal vivo creme de la creme",null,null,null,"B98","Microsegundo"]
[null,10201714,"Rosal vivo emanuella",null,null,null,"B99","Microsiemens"]
[null,10201715,"Rosal vivo evolution",null,null,null,"BAR","Bar [unidad de presión]"]
[null,10201716,"Rosal vivo fedora",null,null,null,"BB","Caja base"]
[null,10201717,"Rosal vivo fenice",null,null,null,"BFT","Tablero de pies"]
[null,10201718,"Rosal vivo french vanilla",null,null,null,"BH","Cepillo"]
[null,10201719,"Rosal vivo hollywood",null,null,null,"BHP","Potencia al freno"]
[null,10201720,"Rosal vivo ilios",null,null,null,"BIL","Billón"]
[null,10201721,"Rosal vivo jelena",null,null,null,"BLD","Barril seco (EUA)"]
[null,10201722,"Rosal vivo kameleon",null,null,null,"BLL","Barril (EUA)"]
[null,10201723,"Rosal vivo kentucky",null,null,null,"BP","Tabledo de cien pies"]
[null,10201724,"Rosal vivo kings pride",null,null,null,"BPM","Latidos por minuto"]
[null,10201725,"Rosal vivo latin fusion",null,null,null,"BQL","Becquerel"]
[null,10201726,"Rosal vivo lemon dream",null,null,null,"BTU","Unidad térmica británica (tabla internacional)"]
[null,10201727,"Rosal vivo magic moka",null,null,null,"BUA","Bushel (EUA)"]
[null,10201728,"Rosal vivo mamamia",null,null,null,"BUI","Bushel (UK)"]
[null,10201729,"Rosal vivo message",null,null,null,"BW","Peso base"]
[null,10201730,"Rosal vivo muneca o munieca",null,null,null,"BZ","Millones de BTUs"]
[null,10201731,"Rosal vivo parfum de rosas",null,null,null,"C0","Llamada"]
[null,10201732,"Rosal vivo porcelina",null,null,null,"C1","Libra de producto compuesto (peso total)"]
[null,10201733,"Rosal vivo privilege",null,null,null,"C10","Milifaradio"]
[null,10201734,"Rosal vivo quicksand",null,null,null,"C11","Miligalón"]
[null,10201735,"Rosal vivo rollercoaster",null,null,null,"C12","Miligramo por metro"]
[null,10201736,"Rosal vivo romantic curiosa",null,null,null,"C13","MilliGray"]
[null,10201737,"Rosal vivo safari",null,null,null,"C14","Milihenry"]
[null,10201738,"Rosal vivo sahara",null,null,null,"C15","Milijoule"]
[null,10201739,"Rosal vivo sandy femma",null,null,null,"C16","Milímetro por segundo"]
[null,10201740,"Rosal vivo talea",null,null,null,"C17","Milímetro cuadrado por segundo"]
[null,10201741,"Rosal vivo timeless",null,null,null,"C18","MiliMol"]
[null,10201742,"Rosal vivo transition",null,null,null,"C19","Mol por kilogramo"]
[null,10201743,"Rosal vivo trump",null,null,null,"C2","Carset"]
[null,10201744,"Rosal vivo twin",null,null,null,"C20","Milinewton",null,null,null,null,null,null,null,null,null,null,null,null,null,"1300-0000","Construcciones"]
[null,10201745,"Rosal vivo vendela",null,null,null,"C21","Kibibit",null,null,null,null,null,null,null,null,null,null,null,null,null,"1301-0000","Mobilario y equipo de oficina por inversiones"]
[null,10201746,"Rosal vivo virginia",null,null,null,"C22","Milinewton por metro",null,null,null,null,null,null,null,null,null,null,null,null,null,"1302-0000","Equipo de transporte"]
[null,10201800,"Rosales vivos verdes o lima",null,null,null,"C23","MiliOhm metro",null,null,null,null,null,null,null,null,null,null,null,null,null,"1303-0000","Equipo de computo y accesorios"]
[null,10201801,"Rosal vivo amandine",null,null,null,"C24","Milipascal segundo",null,null,null,null,null,null,null,null,null,null,null,null,null,"1304-0000","Dados, troqueles, moldes, matrices y herramental"]
[null,10201802,"Rosal vivo caipirinha",null,null,null,"C25","Milirradián",null,null,null,null,null,null,null,null,null,null,null,null,null,"1305-0000","Comunicaciones telefónicas"]
[null,10201803,"Rosal vivo green fashion",null,null,null,"C26","Milisegundo",null,null,null,null,null,null,null,null,null,null,null,null,null,"1306-0000","Comunicaciones satelitales"]
[null,10201804,"Rosal vivo green tea",null,null,null,"C27","Milisiemens",null,null,null,null,null,null,null,null,null,null,null,null,null,"1307-0000","Otra maquinaria y equipo"]
[null,10201805,"Rosal vivo jade",null,null,null,"C28","MilliSievert"]
[null,10201806,"Rosal vivo limbo",null,null,null,"C29","Militesla"]
[null,10201807,"Rosal vivo limena o limenia",null,null,null,"C3","Microvoltios por metro"]
[null,10201808,"Rosal vivo limona",null,null,null,"C30","Milivoltio por metro"]
[null,10201809,"Rosal vivo old dutch",null,null,null,"C31","Miliwatt"]
[null,10201810,"Rosal vivo super green",null,null,null,"C32","Miliwatt por metro cuadrado"]
[null,10201811,"Rosal vivo sweet green",null,null,null,"C33","Miliweber"]
[null,10201812,"Rosal vivo viva",null,null,null,"C34","Mol"]
[null,10201813,"Rosal vivo zazu",null,null,null,"C35","Mol por decímetro cúbico"]
[null,10201900,"Rosales vivos rosado claro",null,null,null,"C36","Mol por metro cúbico"]
[null,10201901,"Rosal vivo anna",null,null,null,"C37","Kilobits"]
[null,10201902,"Rosal vivo bella vita",null,null,null,"C38","Mol por litro"]
[null,10201903,"Rosal vivo bridal dream",null,null,null,"C39","Nanoamperio"]
[null,10201904,"Rosal vivo candy bianca",null,null,null,"C4","partido de carga"]
[null,10201905,"Rosal vivo caress",null,null,null,"C40","NanoCulombio"]
[null,10201906,"Rosal vivo carolina",null,null,null,"C41","Nanofaradio"]
[null,10201907,"Rosal vivo climax",null,null,null,"C42","Nanofaradio por metro"]
[null,10201908,"Rosal vivo danny",null,null,null,"C43","Nanohenry"]
[null,10201909,"Rosal vivo dolce vita",null,null,null,"C44","Nanohenry por metro"]
[null,10201910,"Rosal vivo elite",null,null,null,"C45","Nanómetro"]
[null,10201911,"Rosal vivo emma",null,null,null,"C46","NanoOhm metro"]
[null,10201912,"Rosal vivo engagement",null,null,null,"C47","Nanosegundo"]
[null,10201913,"Rosal vivo esther",null,null,null,"C48","Nanotesla"]
[null,10201914,"Rosal vivo excalibur",null,null,null,"C49","Nanowatt"]
[null,10201915,"Rosal vivo exciting",null,null,null,"C5","Costo"]
[null,10201916,"Rosal vivo first lady",null,null,null,"C50","Neperio"]
[null,10201917,"Rosal vivo geraldine",null,null,null,"C51","Neperio por segundo"]
[null,10201918,"Rosal vivo gotcha",null,null,null,"C52","Picómetro"]
[null,10201919,"Rosal vivo harmonie",null,null,null,"C53","Newton metro segundo"]
[null,10201920,"Rosal vivo heaven",null,null,null,"C54","Newton metro cuadrado por kilogramo cuadrado"]
[null,10201921,"Rosal vivo high and elegant",null,null,null,"C55","Newton por metro cuadrado"]
[null,10201922,"Rosal vivo katherine",null,null,null,"C56","Newton por milímetro cuadrado"]
[null,10201923,"Rosal vivo king kong",null,null,null,"C57","Newton segundo"]
[null,10201924,"Rosal vivo livia",null,null,null,"C58","Segundos newton por metro"]
[null,10201925,"Rosal vivo lorena",null,null,null,"C59","Octava"]
[null,10201926,"Rosal vivo lovely",null,null,null,"C6","celda"]
[null,10201927,"Rosal vivo maaike",null,null,null,"C60","Ohm centímetro"]
[null,10201928,"Rosal vivo marilyn",null,null,null,"C61","Ohm metro"]
[null,10201929,"Rosal vivo marlise",null,null,null,"C62","Uno"]
[null,10201930,"Rosal vivo miranda o ausimmon",null,null,null,"C63","Pársec"]
[null,10201931,"Rosal vivo mona lisa",null,null,null,"C64","Pascal por kelvin"]
[null,10201932,"Rosal vivo nirvana",null,null,null,"C65","Pascal segundo"]
[null,10201933,"Rosal vivo o hara",null,null,null,"C66","Segundos pascal por metro cúbico"]
[null,10201934,"Rosal vivo ole",null,null,null,"C67","Segundos pascal por metro "]
[null,10201935,"Rosal vivo olga",null,null,null,"C68","Petajoule"]
[null,10201936,"Rosal vivo pacífica",null,null,null,"C69","Phon"]
[null,10201937,"Rosal vivo party mix",null,null,null,"C7","Centipoise"]
[null,10201938,"Rosal vivo peckoubo o pekcoubo",null,null,null,"C70","Picoamperio"]
[null,10201939,"Rosal vivo phoebe o ausnotice",null,null,null,"C71","PicoCulombio"]
[null,10201940,"Rosal vivo pink farfalla",null,null,null,"C72","Picofaradio por metro"]
[null,10201941,"Rosal vivo pink finess",null,null,null,"C73","Picohenry"]
[null,10201942,"Rosal vivo pink magic",null,null,null,"C74","Kilobits por segundo"]
[null,10201943,"Rosal vivo pink osiana",null,null,null,"C75","Picowatt"]
[null,10201944,"Rosal vivo pretty woman",null,null,null,"C76","Picowatt  por metro cuadrado"]
[null,10201945,"Rosal vivo romance",null,null,null,"C77","Calibre de libra"]
[null,10201946,"Rosal vivo romantic antike o antique",null,null,null,"C78","Libra fuerza"]
[null,10201947,"Rosal vivo rosalind o astew",null,null,null,"C79","Kilovoltios horas amperios"]
[null,10201948,"Rosal vivo rosita vendela",null,null,null,"C8","MilliCulombio por kilogramo"]
[null,10201949,"Rosal vivo secret garden",null,null,null,"C80","Rad"]
[null,10201950,"Rosal vivo solaire",null,null,null,"C81","Radián"]
[null,10201951,"Rosal vivo sophie",null,null,null,"C82","Radianmetro cuadrado por Mol"]
[null,10201952,"Rosal vivo sweet akito",null,null,null,"C83","Rradian metro cuadrado por kilogramo"]
[null,10201953,"Rosal vivo sweet avalanche",null,null,null,"C84","Radían por metro"]
[null,10201954,"Rosal vivo sweet elegance",null,null,null,"C85","Reciprocidad Ámstrong"]
[null,10201955,"Rosal vivo sweet pink",null,null,null,"C86","Reciprocidad del metro cúbico"]
[null,10201956,"Rosal vivo titanic",null,null,null,"C87","Reciprocidad metro cúbico por segundo"]
[null,10201957,"Rosal vivo toscanini",null,null,null,"C88","Recíproco joule por metro cúbico"]
[null,10201958,"Rosal vivo vania",null,null,null,"C89","Henry recíproco"]
[null,10201959,"Rosal vivo vanity",null,null,null,"C9","Grupo bobinas"]
[null,10201960,"Rosal vivo vision",null,null,null,"C90","Recíproco Henry"]
[null,10201961,"Rosal vivo vivaldi",null,null,null,"C91","Reciprocidad de kelvin ó kelvin a la potencia menos 1"]
[null,10201962,"Rosal vivo whisper",null,null,null,"C92","Reciprocidad Metro"]
[null,10202000,"Rosales vivos multicolor rosados",null,null,null,"C93","Reciprocidad Metro cuadrado"]
[null,10202001,"Rosal vivo attracta",null,null,null,"C94","Reciprocidad Minuto"]
[null,10202002,"Rosal vivo boheme",null,null,null,"C95","Reciprocidad Mol"]
[null,10202003,"Rosal vivo carousel",null,null,null,"C96","Reciprocidad Pascal o pascal a la potencia menos 1 "]
[null,10202004,"Rosal vivo cezanne",null,null,null,"C97","Reciprocidad Segundo"]
[null,10202005,"Rosal vivo crazy one",null,null,null,"C98","Segundo recíproco por metro cúbico"]
[null,10202006,"Rosal vivo dance valley",null,null,null,"C99","Reciprocidad Segundo por metro cuadrado"]
[null,10202007,"Rosal vivo duett",null,null,null,"CCT","Capacidad de carga en toneladas métricas"]
[null,10202008,"Rosal vivo esperance",null,null,null,"CDL","Candela"]
[null,10202009,"Rosal vivo fiesta",null,null,null,"CE","Cada mes"]
[null,10202010,"Rosal vivo halloween",null,null,null,"CEL","Grados celsius"]
[null,10202011,"Rosal vivo highlander",null,null,null,"CEN","Centenar"]
[null,10202012,"Rosal vivo hot ambiance",null,null,null,"CG","Tarjeta"]
[null,10202013,"Rosal vivo la belle",null,null,null,"CGM","Centigramo"]
[null,10202014,"Rosal vivo laguna",null,null,null,"CK","Conector"]
[null,10202015,"Rosal vivo latin ambiance",null,null,null,"CKG","Culombio por kilogramo"]
[null,10202016,"Rosal vivo latin breeze",null,null,null,"CLF","Cientos de hojas"]
[null,10202017,"Rosal vivo long arifa",null,null,null,"CLT","Centilitro"]
[null,10202018,"Rosal vivo murano",null,null,null,"CMK","Centímetro cuadrado"]
[null,10202019,"Rosal vivo n-joy rose",null,null,null,"CMQ","Centímetro cúbico"]
[null,10202020,"Rosal vivo panama",null,null,null,"CMT","Centímetro"]
[null,10202021,"Rosal vivo peppermint",null,null,null,"CNP","Cientos de paquetes"]
[null,10202022,"Rosal vivo pijama party",null,null,null,"CNT","Cental (UK)"]
[null,10202023,"Rosal vivo portofino",null,null,null,"COU","Culombio"]
[null,10202024,"Rosal vivo priceless",null,null,null,"CTG","Contenido en gramos"]
[null,10202025,"Rosal vivo queen amazon",null,null,null,"CTM","Quilatage métrico"]
[null,10202026,"Rosal vivo ranuncula",null,null,null,"CTN","Tonelada de contenido (métrica)"]
[null,10202027,"Rosal vivo rossini",null,null,null,"CUR","Curie"]
[null,10202028,"Rosal vivo sabina o sabrina",null,null,null,"CWA","Hundred pound"]
[null,10202029,"Rosal vivo scandal",null,null,null,"CWI","Hundredweight"]
[null,10202030,"Rosal vivo silvery pink",null,null,null,"CZ","Combo"]
[null,10202031,"Rosal vivo something else",null,null,null,"D03","Kilovatio hora por hora"]
[null,10202032,"Rosal vivo soutine",null,null,null,"D04","Lot [unidad de peso]"]
[null,10202033,"Rosal vivo sovereign",null,null,null,"D1","Segundo recíproco por estereorradián"]
[null,10202034,"Rosal vivo super disco",null,null,null,"D10","Siemens por metro"]
[null,10202035,"Rosal vivo ts 1968",null,null,null,"D11","Mebibit"]
[null,10202036,"Rosal vivo variance",null,null,null,"D12","Siemens metro cuadrado por Mol"]
[null,10202037,"Rosal vivo verdi",null,null,null,"D13","Sievert"]
[null,10202100,"Rosales vivos anaranjados",null,null,null,"D14","Yarda mil lineal"]
[null,10202101,"Rosal vivo alhambra",null,null,null,"D15","Sone"]
[null,10202102,"Rosal vivo aloha",null,null,null,"D16","Centímetro cuadrado por erg"]
[null,10202103,"Rosal vivo amber",null,null,null,"D17","Centímetro cuadrado por esteroradian erg"]
[null,10202104,"Rosal vivo apache",null,null,null,"D18","Metro kelvin"]
[null,10202105,"Rosal vivo arabia",null,null,null,"D19","Metro cuadrado kelvin por watt."]
[null,10202106,"Rosal vivo bengala",null,null,null,"D2","Segundo recíproco por estereorradián metro cuadrado"]
[null,10202107,"Rosal vivo bibi",null,null,null,"D20","Metro cuadrado por joule"]
[null,10202108,"Rosal vivo caramba",null,null,null,"D21","Metro cuadrado por kilogramo"]
[null,10202109,"Rosal vivo caramella",null,null,null,"D22","Metro cuadrado por Mol"]
[null,10202110,"Rosal vivo carla",null,null,null,"D23","Gramo pluma (proteína)"]
[null,10202111,"Rosal vivo cartagena",null,null,null,"D24","Metro cuadrado por esteroradian"]
[null,10202112,"Rosal vivo chanson",null,null,null,"D25","Metro cuadrado por esteroradian joule"]
[null,10202113,"Rosal vivo charmer",null,null,null,"D26","Metro cuadrado por voltiosegundo"]
[null,10202114,"Rosal vivo cherry brandy",null,null,null,"D27","Estereorradían"]
[null,10202115,"Rosal vivo chilis",null,null,null,"D28","sifón"]
[null,10202116,"Rosal vivo cinnamon",null,null,null,"D29","Terahertz"]
[null,10202117,"Rosal vivo colandro",null,null,null,"D30","Terajoule"]
[null,10202118,"Rosal vivo coral sea",null,null,null,"D31","Terawatt"]
[null,10202119,"Rosal vivo corvette o red corvette",null,null,null,"D32","Terawatt hora "]
[null,10202120,"Rosal vivo dark milva",null,null,null,"D33","Tesla"]
[null,10202121,"Rosal vivo donna",null,null,null,"D34","Tex"]
[null,10202122,"Rosal vivo dreamer",null,null,null,"D35","Calorías (termoquímicas)"]
[null,10202123,"Rosal vivo el dorado",null,null,null,"D36","Megabit"]
[null,10202124,"Rosal vivo el toro",null,null,null,"D37","Calorías (termoquímicas) por gramo de kelvin"]
[null,10202125,"Rosal vivo elena",null,null,null,"D38","Calorías (termoquímicas) por segundo centímetro kelvin"]
[null,10202126,"Rosal vivo ensueño",null,null,null,"D39","Calorías (termoquímicas) por segundo centímetro cuadrado kelvin"]
[null,10202127,"Rosal vivo euforia",null,null,null,"D40","Mil litros"]
[null,10202128,"Rosal vivo exótica",null,null,null,"D41","Tonelada por metro cúbico"]
[null,10202129,"Rosal vivo fancy amazon",null,null,null,"D42","Año tropical"]
[null,10202130,"Rosal vivo fiction",null,null,null,"D43","Unidad de masa atómica unificada"]
[null,10202131,"Rosal vivo finess",null,null,null,"D44","Var"]
[null,10202132,"Rosal vivo flameco",null,null,null,"D45","Voltio cuadrado por kelvin cuadrado"]
[null,10202133,"Rosal vivo free spirit",null,null,null,"D46","Voltioio-amperio"]
[null,10202134,"Rosal vivo gelato",null,null,null,"D47","Voltio por centímetro"]
[null,10202135,"Rosal vivo gypsy curiosa",null,null,null,"D48","Voltio por Kelvin "]
[null,10202136,"Rosal vivo high and magic",null,null,null,"D49","Millivoltio por Kelvin "]
[null,10202137,"Rosal vivo high and orange magic",null,null,null,"D5","Kilogramo por centímetro cuadrado"]
[null,10202138,"Rosal vivo iguana o alegra",null,null,null,"D50","Voltio por metro"]
[null,10202139,"Rosal vivo impulse",null,null,null,"D51","Voltio por milímetro"]
[null,10202140,"Rosal vivo indian femma",null,null,null,"D52","Watt por kelvin"]
[null,10202141,"Rosal vivo indian sunset",null,null,null,"D53","Watt por metro kelvin"]
[null,10202142,"Rosal vivo karusso",null,null,null,"D54","Watt por metro cuadrado"]
[null,10202143,"Rosal vivo kerio",null,null,null,"D55","Watt por metro cuadrado kelvin"]
[null,10202144,"Rosal vivo kiki",null,null,null,"D56","Watt por metro cuadrado kelvin a la cuarta potencia"]
[null,10202145,"Rosal vivo latin circus",null,null,null,"D57","Watt por estereorradián"]
[null,10202146,"Rosal vivo leonisa",null,null,null,"D58","Watt por estereorradián metro cuadrado"]
[null,10202147,"Rosal vivo lipstick",null,null,null,"D59","Weber por metro"]
[null,10202148,"Rosal vivo lobita",null,null,null,"D6","Roentgen por segundo"]
[null,10202149,"Rosal vivo luca",null,null,null,"D60","Weber por milímetro"]
[null,10202150,"Rosal vivo manitou",null,null,null,"D61","Minuto [unidad de ángulo]"]
[null,10202151,"Rosal vivo mariana",null,null,null,"D62","Segundo [unidad de ángulo]"]
[null,10202152,"Rosal vivo marjan o pk sensation",null,null,null,"D63","Libro"]
[null,10202153,"Rosal vivo milonga",null,null,null,"D64","bloquear"]
[null,10202154,"Rosal vivo milva",null,null,null,"D65","Redondo"]
[null,10202155,"Rosal vivo miracle",null,null,null,"D66","casete"]
[null,10202156,"Rosal vivo mirage",null,null,null,"D67","Dólar por hora"]
[null,10202157,"Rosal vivo monte carlo",null,null,null,"D68","Número de palabras"]
[null,10202158,"Rosal vivo movie star",null,null,null,"D69","Pulgada a la cuarta potencia"]
[null,10202159,"Rosal vivo nikita",null,null,null,"D7","Sandwich"]
[null,10202160,"Rosal vivo orange flame",null,null,null,"D70","Calorías (tabla internacional)"]
[null,10202161,"Rosal vivo orange france",null,null,null,"D71","Calorías (tabla internacional) por segundo centímetro kelvin"]
[null,10202162,"Rosal vivo orange intuition",null,null,null,"D72","Calorías (tabla internacional) por segundo centímetro cuadrado kelvin"]
[null,10202163,"Rosal vivo orange unique",null,null,null,"D73","Joule metro cuadrado"]
[null,10202164,"Rosal vivo orangine u orangina",null,null,null,"D74","Kilogramo por Mol"]
[null,10202165,"Rosal vivo papaya",null,null,null,"D75","Calorías (tabla internacional) por gramo"]
[null,10202166,"Rosal vivo pareo",null,null,null,"D76","Calorías (tabla internacional) por gramo de kelvin"]
[null,10202167,"Rosal vivo peach sherbet",null,null,null,"D77","MegaCulombio"]
[null,10202168,"Rosal vivo queensday",null,null,null,"D78","Megajoule por segundo"]
[null,10202169,"Rosal vivo rosselle",null,null,null,"D79","Viga"]
[null,10202170,"Rosal vivo royal circus",null,null,null,"D8","Draize score"]
[null,10202171,"Rosal vivo sari",null,null,null,"D80","Microwatt"]
[null,10202172,"Rosal vivo sensual",null,null,null,"D81","Microtesla"]
[null,10202173,"Rosal vivo soap",null,null,null,"D82","Microvoltio"]
[null,10202174,"Rosal vivo sombrero",null,null,null,"D83","Milinewton metro"]
[null,10202175,"Rosal vivo spicy",null,null,null,"D85","Microwatt por metro cuadrado"]
[null,10202176,"Rosal vivo star 2000",null,null,null,"D86","MiliCulombio"]
[null,10202177,"Rosal vivo summer versilia",null,null,null,"D87","MiliMol por kilogramo"]
[null,10202178,"Rosal vivo trixx",null,null,null,"D88","MiliCulombio por metro cúbico"]
[null,10202179,"Rosal vivo tropical amazon",null,null,null,"D89","MiliCulombio por metro cuadrado"]
[null,10202180,"Rosal vivo utopia",null,null,null,"D9","Dina por centímetro cuadrado"]
[null,10202181,"Rosal vivo valentine",null,null,null,"D90","Metro cúbico (neta)"]
[null,10202182,"Rosal vivo verano",null,null,null,"D91","Rem"]
[null,10202183,"Rosal vivo versilia",null,null,null,"D92","banda"]
[null,10202184,"Rosal vivo voodoo",null,null,null,"D93","Segundo por metro cúbico"]
[null,10202185,"Rosal vivo wow",null,null,null,"D94","Segundo por metro cúbico Radian"]
[null,10202186,"Rosal vivo yabadabadoo",null,null,null,"D95","Joule por gramo"]
[null,10202200,"Rosales vivos durazno",null,null,null,"D96","Libra bruta"]
[null,10202201,"Rosal vivo alejandra",null,null,null,"D98","Libra masiva"]
[null,10202202,"Rosal vivo azafran",null,null,null,"D99","manga"]
[null,10202203,"Rosal vivo big fun",null,null,null,"DAA","Decar"]
[null,10202204,"Rosal vivo cabaret",null,null,null,"DAD","Decena de días"]
[null,10202205,"Rosal vivo capuccino",null,null,null,"DAY","Día"]
[null,10202206,"Rosal vivo carpe diem",null,null,null,"DB","Libra seca"]
[null,10202207,"Rosal vivo cosima",null,null,null,"DC","Disco (disco)"]
[null,10202208,"Rosal vivo cumbia",null,null,null,"DD","Grado [unidad de ángulo]"]
[null,10202209,"Rosal vivo dream",null,null,null,"DE","Acuerdo"]
[null,10202210,"Rosal vivo epoca",null,null,null,"DEC","Década"]
[null,10202211,"Rosal vivo fado",null,null,null,"DG","Decigramo"]
[null,10202212,"Rosal vivo femma",null,null,null,"DI","dispensador"]
[null,10202213,"Rosal vivo guajira",null,null,null,"DJ","Decagramo"]
[null,10202214,"Rosal vivo high and arena",null,null,null,"DLT","Decilitro"]
[null,10202215,"Rosal vivo high and dandy",null,null,null,"DMA","Decámetro cúbico"]
[null,10202216,"Rosal vivo high and lucky",null,null,null,"DMK","Decímetro cuadrado "]
[null,10202217,"Rosal vivo high and peach",null,null,null,"DMO","Kiloliter norma"]
[null,10202218,"Rosal vivo imagination",null,null,null,"DMQ","Decímetro cúbico"]
[null,10202219,"Rosal vivo isis",null,null,null,"DMT","Decímetro"]
[null,10202220,"Rosal vivo joy o light versilia",null,null,null,"DN","Decinewton metro"]
[null,10202221,"Rosal vivo juliet ausjameson",null,null,null,"DPC","Docenas de piezas"]
[null,10202222,"Rosal vivo la parisienne",null,null,null,"DPR","Docenas de pares"]
[null,10202223,"Rosal vivo la perla",null,null,null,"DPT","Peso de desplazamiento"]
[null,10202224,"Rosal vivo lovita sunblaze",null,null,null,"DQ","registro de datos"]
[null,10202225,"Rosal vivo malilena o marilena",null,null,null,"DRA","Dram (EUA)"]
[null,10202226,"Rosal vivo monyna",null,null,null,"DRI","Dram (UK)"]
[null,10202227,"Rosal vivo nectarine",null,null,null,"DRL","Docena de rodillos"]
[null,10202228,"Rosal vivo oriental curiosa",null,null,null,"DRM","Drachm (UK)"]
[null,10202229,"Rosal vivo osiana",null,null,null,"DS","monitor"]
[null,10202230,"Rosal vivo peach avalanche",null,null,null,"DT","Tonelada seca"]
[null,10202231,"Rosal vivo peach deja vu",null,null,null,"DTN","Decitonelada métrica"]
[null,10202232,"Rosal vivo picanto",null,null,null,"DU","dina"]
[null,10202233,"Rosal vivo prima donna",null,null,null,"DWT","Pennyweight"]
[null,10202234,"Rosal vivo sheril",null,null,null,"Dx","Dina por centímetro"]
[null,10202235,"Rosal vivo sirocco",null,null,null,"DY","Libro de directorio"]
[null,10202236,"Rosal vivo tamara",null,null,null,"DZN","Docena"]
[null,10202237,"Rosal vivo taxo",null,null,null,"DZP","Docena de paquete"]
[null,10202238,"Rosal vivo trust",null,null,null,"E01","Newton por centímetro cuadrado"]
[null,10202239,"Rosal vivo valencia",null,null,null,"E07","Megawatt hora por hora"]
[null,10202240,"Rosal vivo vinci",null,null,null,"E08","Megavatios por hertz"]
[null,10202241,"Rosal vivo wanda",null,null,null,"E09","Miliamperio hora"]
[null,10202300,"Rosales vivos rosados",null,null,null,"E10","Día de grado"]
[null,10202301,"Rosal vivo aerobic",null,null,null,"E11","Gigacalorie"]
[null,10202302,"Rosal vivo after party",null,null,null,"E12","Mille"]
[null,10202303,"Rosal vivo amsterdam",null,null,null,"E14","Kilocaloría (tabla internacional)"]
[null,10202304,"Rosal vivo aqua rose",null,null,null,"E15","Kilocaloría (termoquímica) por hora"]
[null,10202305,"Rosal vivo attache",null,null,null,"E16","Millón de btu (ti) por hora"]
[null,10202306,"Rosal vivo attitude",null,null,null,"E17","Pie cúbico por segundo"]
[null,10202307,"Rosal vivo ballet",null,null,null,"E18","Tonelada por hora"]
[null,10202308,"Rosal vivo belami",null,null,null,"E19","Ping"]
[null,10202309,"Rosal vivo bella voo o belle vue",null,null,null,"E20","Megabit por segundo"]
[null,10202310,"Rosal vivo bling bling",null,null,null,"E21","Shares"]
[null,10202311,"Rosal vivo blushing akito",null,null,null,"E22","Tue"]
[null,10202312,"Rosal vivo brooke",null,null,null,"E23","Neumático"]
[null,10202313,"Rosal vivo bugatti",null,null,null,"E25","Unidad activa"]
[null,10202314,"Rosal vivo cadillac",null,null,null,"E27","Dosis"]
[null,10202315,"Rosal vivo carnaval",null,null,null,"E28","Tonelada seca de aire"]
[null,10202316,"Rosal vivo cereza",null,null,null,"E3","remolque"]
[null,10202317,"Rosal vivo charming unique",null,null,null,"E30","Hebra"]
[null,10202318,"Rosal vivo cherry o",null,null,null,"E31","Metro cuadrado por litro"]
[null,10202319,"Rosal vivo ciciolina",null,null,null,"E32","Litros por hora"]
[null,10202320,"Rosal vivo classic cezanne",null,null,null,"E33","Por mil pies"]
[null,10202321,"Rosal vivo clasic duett",null,null,null,"E34","Gigabyte"]
[null,10202322,"Rosal vivo cosmiq",null,null,null,"E35","Terabyte"]
[null,10202323,"Rosal vivo dark engagement",null,null,null,"E36","Petabyte"]
[null,10202324,"Rosal vivo daytona",null,null,null,"E37","Pixel"]
[null,10202325,"Rosal vivo dekora",null,null,null,"E38","Megapíxeles"]
[null,10202326,"Rosal vivo dolores",null,null,null,"E39","Puntos por pulgada"]
[null,10202327,"Rosal vivo eliza",null,null,null,"E4","Kilo bruto"]
[null,10202328,"Rosal vivo flash baccara",null,null,null,"E40","Parte por cien mil"]
[null,10202329,"Rosal vivo full house",null,null,null,"E41","Kilogramo-fuerza por milímetro cuadrado"]
[null,10202330,"Rosal vivo funky",null,null,null,"E42","Kilogramo-fuerza por centímetro cuadrado"]
[null,10202331,"Rosal vivo giliane",null,null,null,"E43","Joule por centímetro cuadrado"]
[null,10202332,"Rosal vivo gran europe",null,null,null,"E44","Metros kilogramo-fuerza por centímetro cuadrado"]
[null,10202333,"Rosal vivo habari",null,null,null,"E45","MiliOhm"]
[null,10202334,"Rosal vivo hanseat",null,null,null,"E46","Kilovatio hora por metro cúbico"]
[null,10202335,"Rosal vivo high and amazing",null,null,null,"E47","Kilovatio hora por kelvin"]
[null,10202336,"Rosal vivo high and bonita",null,null,null,"E48","Unidad de servicio"]
[null,10202337,"Rosal vivo high and booming",null,null,null,"E49","Día de trabajo"]
[null,10202338,"Rosal vivo high and fantasy",null,null,null,"E5","Tonelada métrica larga"]
[null,10202339,"Rosal vivo high and rich",null,null,null,"E50","Unidad de cuenta"]
[null,10202340,"Rosal vivo hot lady",null,null,null,"E51","Trabajo"]
[null,10202341,"Rosal vivo hot princess",null,null,null,"E52","Run foot"]
[null,10202342,"Rosal vivo inspiration",null,null,null,"E53","Prueba"]
[null,10202343,"Rosal vivo jeimy",null,null,null,"E54","Viaje"]
[null,10202344,"Rosal vivo kachita",null,null,null,"E55","Utilizar"]
[null,10202345,"Rosal vivo karen",null,null,null,"E56","Bien"]
[null,10202346,"Rosal vivo kenji",null,null,null,"E57","Zona"]
[null,10202347,"Rosal vivo kiko",null,null,null,"E58","Exabit por segundo"]
[null,10202348,"Rosal vivo laser",null,null,null,"E59","Exbibyte"]
[null,10202349,"Rosal vivo latin duett",null,null,null,"E60","Pebibyte"]
[null,10202350,"Rosal vivo latin fever",null,null,null,"E61","Tebibyte"]
[null,10202351,"Rosal vivo lifestyle",null,null,null,"E62","Gibibyte"]
[null,10202352,"Rosal vivo light orlando",null,null,null,"E63","Mebibyte"]
[null,10202353,"Rosal vivo lovely dreams",null,null,null,"E64","Kibibyte"]
[null,10202354,"Rosal vivo loyalty",null,null,null,"E65","Exbibit por metro"]
[null,10202355,"Rosal vivo malibu",null,null,null,"E66","Exbibit por metro cuadrado"]
[null,10202356,"Rosal vivo mata-hari",null,null,null,"E67","Exbibit por metro cúbico"]
[null,10202357,"Rosal vivo memphis",null,null,null,"E68","Gigabyte por segundo"]
[null,10202358,"Rosal vivo mi amor",null,null,null,"E69","Gibibit por metro"]
[null,10202359,"Rosal vivo miami",null,null,null,"E70","Gibibit por metro cuadrado"]
[null,10202360,"Rosal vivo michelle",null,null,null,"E71","Gibibit por metro cúbico"]
[null,10202361,"Rosal vivo mikaela",null,null,null,"E72","Kibibit por metro"]
[null,10202362,"Rosal vivo orchestra",null,null,null,"E73","Kibibit por metro cuadrado"]
[null,10202363,"Rosal vivo orlando",null,null,null,"E74","Kikibit por metro cúbico."]
[null,10202364,"Rosal vivo osadia",null,null,null,"E75","Mebbit por metro."]
[null,10202365,"Rosal vivo paeonia freelander",null,null,null,"E76","Mebbitt por metro cuadrado."]
[null,10202366,"Rosal vivo paula",null,null,null,"E77","Mebbit por metro cúbico. "]
[null,10202367,"Rosal vivo pavarotti",null,null,null,"E78","Petabit"]
[null,10202368,"Rosal vivo pink intuition",null,null,null,"E79","Pebibit por segundo."]
[null,10202369,"Rosal vivo poison",null,null,null,"E80","Pebibit por metro."]
[null,10202370,"Rosal vivo princess",null,null,null,"E81","Pebibit por metro cuadrado."]
[null,10202371,"Rosal vivo queen mary",null,null,null,"E82","Pebibit por metro cúbico."]
[null,10202372,"Rosal vivo raphaela",null,null,null,"E83","Tebibit."]
[null,10202373,"Rosal vivo raspberry ice",null,null,null,"E84","Tebibit por segundo"]
[null,10202374,"Rosal vivo ravel",null,null,null,"E85","Tebibit por metro."]
[null,10202375,"Rosal vivo riviera",null,null,null,"E86","Tebibit por metro cúbico."]
[null,10202376,"Rosal vivo sade",null,null,null,"E87","Tebibit por metro cuadrado"]
[null,10202377,"Rosal vivo sashimi",null,null,null,"E88","Bit por metro"]
[null,10202378,"Rosal vivo shanya",null,null,null,"E89","Bit por metro cuadrado"]
[null,10202379,"Rosal vivo shocking versilia",null,null,null,"E90","Centímetro recíproco"]
[null,10202380,"Rosal vivo solitaire",null,null,null,"E91","Día recíproco"]
[null,10202381,"Rosal vivo something different",null,null,null,"E92","Decímetro cúbico por hora"]
[null,10202382,"Rosal vivo splendid renate",null,null,null,"E93","Kilogramo por hora"]
[null,10202383,"Rosal vivo star",null,null,null,"E94","KiloMol por segundo"]
[null,10202384,"Rosal vivo sweet candia",null,null,null,"E95","Mol por segundo"]
[null,10202385,"Rosal vivo sweet moments",null,null,null,"E96","Grado por segundo"]
[null,10202386,"Rosal vivo sweet unique",null,null,null,"E97","Mililitro por gadro celsius metro"]
[null,10202387,"Rosal vivo taboo",null,null,null,"E98","Grado celsius por kelvin"]
[null,10202388,"Rosal vivo timona",null,null,null,"E99","Hectopascal por bar"]
[null,10202389,"Rosal vivo topaz",null,null,null,"EA","Elemento"]
[null,10202390,"Rosal vivo vogue",null,null,null,"EB","Casilla de correo electrónico"]
[null,10202391,"Rosal vivo voila",null,null,null,"EP","Paquete de once"]
[null,10202392,"Rosal vivo wild one",null,null,null,"EQ","Galón equivalente"]
[null,10202393,"Rosal vivo yves piaget",null,null,null,"F01","Bit por metro cúbico"]
[null,10202400,"Rosales vivos rojos o burgundy",null,null,null,"F02","Kelvin por kelvin"]
[null,10202401,"Rosal vivo african dawn",null,null,null,"F03","Kilopascal por bar"]
[null,10202402,"Rosal vivo amada",null,null,null,"F04","Milibar por bar"]
[null,10202403,"Rosal vivo black baccara",null,null,null,"F05","Megapascal por bar"]
[null,10202404,"Rosal vivo black beauty",null,null,null,"F06","Poise por bar"]
[null,10202405,"Rosal vivo black finess o black magic",null,null,null,"F07","Pascal por bar"]
[null,10202406,"Rosal vivo black magic",null,null,null,"F08","Miliamperio por pulgada"]
[null,10202407,"Rosal vivo bohemian o pasarela",null,null,null,"F1","Mil pies cúbicos por día"]
[null,10202408,"Rosal vivo breathless",null,null,null,"F10","Kelvin por hora"]
[null,10202409,"Rosal vivo caballero",null,null,null,"F11","Kelvin por minuto"]
[null,10202410,"Rosal vivo carrera",null,null,null,"F12","Kelvin por segundo"]
[null,10202411,"Rosal vivo charlene",null,null,null,"F13","Slug"]
[null,10202412,"Rosal vivo charlotte",null,null,null,"F14","Gramo por kelvin"]
[null,10202413,"Rosal vivo cherry lady",null,null,null,"F15","Kilogramo por kelvin"]
[null,10202414,"Rosal vivo cherry love",null,null,null,"F16","Miligramo por kelvin"]
[null,10202415,"Rosal vivo classy rose",null,null,null,"F17","Libra fuerza por pie"]
[null,10202416,"Rosal vivo colorado velvet",null,null,null,"F18","Kilogramo centímetro cuadrado"]
[null,10202417,"Rosal vivo corazon",null,null,null,"F19","Kilogramo milimetro cuadrado"]
[null,10202418,"Rosal vivo corrida",null,null,null,"F20","Libra pulgada cuadrada"]
[null,10202419,"Rosal vivo dynamite",null,null,null,"F21","Libra fuerza pulgada"]
[null,10202420,"Rosal vivo eurored",null,null,null,"F22","Libra fuerza por pie entre amperio"]
[null,10202421,"Rosal vivo fashion",null,null,null,"F23","Gramo por decímetro cúbico"]
[null,10202422,"Rosal vivo fire and ice",null,null,null,"F24","Kilogramo por kiloMol"]
[null,10202423,"Rosal vivo first red",null,null,null,"F25","Gramo por hertz"]
[null,10202424,"Rosal vivo forever young",null,null,null,"F26","Gramo por día"]
[null,10202425,"Rosal vivo freedom",null,null,null,"F27","Gramo por hora"]
[null,10202426,"Rosal vivo freestyle",null,null,null,"F28","Gramo por minuto"]
[null,10202427,"Rosal vivo friendship",null,null,null,"F29","Gramo por segundo"]
[null,10202428,"Rosal vivo gospel",null,null,null,"F30","Kilogramo por día"]
[null,10202429,"Rosal vivo graffity",null,null,null,"F31","Kilogramo por minuto"]
[null,10202430,"Rosal vivo grand gala",null,null,null,"F32","Miligramo por dia"]
[null,10202431,"Rosal vivo grand prix",null,null,null,"F33","Miligramo por minuto"]
[null,10202432,"Rosal vivo grand classe",null,null,null,"F34","Miligramo por segundo"]
[null,10202433,"Rosal vivo hearts",null,null,null,"F35","Gramo por día kelvin"]
[null,10202434,"Rosal vivo heat",null,null,null,"F36","Gramo por hora kelvin"]
[null,10202435,"Rosal vivo hocus pocus",null,null,null,"F37","Gramo por minuto kelvin"]
[null,10202436,"Rosal vivo lady in red",null,null,null,"F38","Gramo por segundo kelvin"]
[null,10202437,"Rosal vivo latin lady",null,null,null,"F39","Kilogramo por día kelvin"]
[null,10202438,"Rosal vivo legend",null,null,null,"F40","Kilogramo por hora kelvin"]
[null,10202439,"Rosal vivo lulu",null,null,null,"F41","Kilogramo por minuto kelvin"]
[null,10202440,"Rosal vivo luna rossa",null,null,null,"F42","Kilogramo por segundo kelvin"]
[null,10202441,"Rosal vivo luxor",null,null,null,"F43","Miligramo por día kelvin"]
[null,10202442,"Rosal vivo madame delbard o carola",null,null,null,"F44","Miligramo por hora kelvin"]
[null,10202443,"Rosal vivo miss paris",null,null,null,"F45","Miligramo por minuto kelvin"]
[null,10202444,"Rosal vivo nicole",null,null,null,"F46","Miligramo por segundo kelvin"]
[null,10202445,"Rosal vivo night fever",null,null,null,"F47","Newton por milímetro"]
[null,10202446,"Rosal vivo obsession",null,null,null,"F48","Libra fuerza por pulgada"]
[null,10202447,"Rosal vivo opium",null,null,null,"F49","Rod (Unidad de distancia)"]
[null,10202448,"Rosal vivo paz",null,null,null,"F50","Micrómetro por kelvin"]
[null,10202449,"Rosal vivo preference",null,null,null,"F51","Centímetro por kelvin"]
[null,10202450,"Rosal vivo red berlin",null,null,null,"F52","Metro por kelvin"]
[null,10202451,"Rosal vivo red bull",null,null,null,"F53","Mililitro por kelvin"]
[null,10202452,"Rosal vivo red calypso",null,null,null,"F54","MiliOhm por metro"]
[null,10202453,"Rosal vivo red diamond",null,null,null,"F55","Ohm por milla (milla estatal)"]
[null,10202454,"Rosal vivo red fantasy",null,null,null,"F56","Ohm por kilómetro"]
[null,10202455,"Rosal vivo red france",null,null,null,"F57","Miliamperio por libra-fuerza por pulgada cuadrada"]
[null,10202456,"Rosal vivo red intuition",null,null,null,"F58","Bar recíproco"]
[null,10202457,"Rosal vivo red jewel",null,null,null,"F59","Miliamperio por bar"]
[null,10202458,"Rosal vivo red magic",null,null,null,"F60","Grado celsius por bar"]
[null,10202459,"Rosal vivo red one",null,null,null,"F61","Kelvin por bar"]
[null,10202460,"Rosal vivo red paris",null,null,null,"F62","Gramo por día bar"]
[null,10202461,"Rosal vivo red princess",null,null,null,"F63","Gramo por hora bar"]
[null,10202462,"Rosal vivo red sensation o colorad",null,null,null,"F64","Gramo por minuto bar"]
[null,10202463,"Rosal vivo red unique",null,null,null,"F65","Gramo por segundo bar"]
[null,10202464,"Rosal vivo rockefeller",null,null,null,"F66","Kililogramo por día bar"]
[null,10202465,"Rosal vivo romeo",null,null,null,"F67","Kilogramo por hora bar"]
[null,10202466,"Rosal vivo rouge baiser",null,null,null,"F68","Kilogramo por minuto bar"]
[null,10202467,"Rosal vivo roulette",null,null,null,"F69","Kilogramo por segundo bar"]
[null,10202468,"Rosal vivo royal massai",null,null,null,"F70","Miligramo por día bar"]
[null,10202469,"Rosal vivo royal red",null,null,null,"F71","Miligramo por hora bar"]
[null,10202470,"Rosal vivo samurai",null,null,null,"F72","Miligramo por minuto bar"]
[null,10202471,"Rosal vivo sexy red",null,null,null,"F73","Miligramo por segundo bar"]
[null,10202472,"Rosal vivo starfire",null,null,null,"F74","Gramo por bar"]
[null,10202473,"Rosal vivo tango",null,null,null,"F75","Miligramo por bar"]
[null,10202474,"Rosal vivo tiger tail",null,null,null,"F76","Miliamperio por milímetro"]
[null,10202475,"Rosal vivo tinto",null,null,null,"F77","Pascal segundo por kelvin"]
[null,10202476,"Rosal vivo top secret",null,null,null,"F78","Pulgada de agua"]
[null,10202477,"Rosal vivo vital",null,null,null,"F79","Pulgada de mercurio"]
[null,10202478,"Rosal vivo wisdom",null,null,null,"F80","Caballos de fuerza de agua"]
[null,10202479,"Rosal vivo xantia",null,null,null,"F81","Bar por kelvin"]
[null,10202480,"Rosal vivo xcite",null,null,null,"F82","Hectopascal por kelvin"]
[null,10202500,"Rosales vivos sweetheart","Rosales La Minuette",null,null,"F83","Kilopascal por kelvin"]
[null,10202501,"Rosal vivo burgundy sweetheart","Rosal vivo La Minuette burgundy",null,null,"F84","Milibar por kelvin"]
[null,10202502,"Rosal vivo cream sweetheart","Rosal vivo La Minuette cream",null,null,"F85","Megapascal por kelvin"]
[null,10202503,"Rosal vivo hot pink sweetheart","Rosal vivo La Minuette hot pink",null,null,"F86","Poise por kelvin"]
[null,10202504,"Rosal vivo lavender sweetheart","Rosal vivo La Minuette lavender",null,null,"F87","Voltio por litro minuto"]
[null,10202505,"Rosal vivo light pink sweetheart","Rosal vivo La Minuette light pink",null,null,"F88","Newton centímetro"]
[null,10202506,"Rosal vivo orange sweetheart","Rosal vivo La Minuette orange",null,null,"F89","Newton metro por grados"]
[null,10202507,"Rosal vivo peach sweetheart","Rosal vivo La Minuette peach",null,null,"F9","Fibra por centímetro cúbico de aire"]
[null,10202508,"Rosal vivo red sweetheart","Rosal vivo La Minuette red",null,null,"F90","Newton metro por amperio"]
[null,10202509,"Rosal vivo white sweetheart","Rosal vivo La Minuette white",null,null,"F91","Bar litro por segundo"]
[null,10202510,"Rosal vivo yelllow sweetheart","Rosal vivo La Minuette yellow",null,null,"F92","Bar metro cúbico por segundo"]
[null,10202600,"Rosales vivos blancos",null,null,null,"F93","Hectopascal litro por segundo"]
[null,10202601,"Rosal vivo absolut",null,null,null,"F94","Hectopascal metro cúbico por segundo"]
[null,10202602,"Rosal vivo aida",null,null,null,"F95","Milibar litro por segundo"]
[null,10202603,"Rosal vivo akito",null,null,null,"F96","Milibar metro cúbico por segundo"]
[null,10202604,"Rosal vivo amelia",null,null,null,"F97","Megapascal litro por segundo"]
[null,10202605,"Rosal vivo anastasia",null,null,null,"F98","Megapascal metro cúbico por segundo"]
[null,10202606,"Rosal vivo andean crystal",null,null,null,"F99","Pascal litro por segundo"]
[null,10202607,"Rosal vivo angel",null,null,null,"FAH","Grado fahrenheit"]
[null,10202608,"Rosal vivo annemarie",null,null,null,"FAR","Farad"]
[null,10202609,"Rosal vivo avalanche",null,null,null,"FB","campo"]
[null,10202610,"Rosal vivo bianca",null,null,null,"FBM","Medidor de fibra"]
[null,10202611,"Rosal vivo blizzard",null,null,null,"FC","Mil pies cúbicos"]
[null,10202612,"Rosal vivo bridal akito",null,null,null,"FD","Millones de partículas por pie cúbico"]
[null,10202613,"Rosal vivo domenica",null,null,null,"FE","Pie de pista"]
[null,10202614,"Rosal vivo escimo",null,null,null,"FF","Cien metros cúbicos"]
[null,10202615,"Rosal vivo farfalla",null,null,null,"FG","Parche transdérmico"]
[null,10202616,"Rosal vivo high and peace",null,null,null,"FH","MicroMol"]
[null,10202617,"Rosal vivo high and pure",null,null,null,"FIT","Fallas en el tiempo"]
[null,10202618,"Rosal vivo inocencia o innocenti",null,null,null,"FL","Flake ton"]
[null,10202619,"Rosal vivo ivory",null,null,null,"FM","Millones de pies cúbicos"]
[null,10202620,"Rosal vivo mondial",null,null,null,"FOT","Pie"]
[null,10202621,"Rosal vivo mount everest",null,null,null,"FP","Libra por pie cuadrado"]
[null,10202622,"Rosal vivo nova zembla",null,null,null,"FR","Pie por minuto"]
[null,10202623,"Rosal vivo patience o auspator",null,null,null,"FS","Pie por segundo"]
[null,10202624,"Rosal vivo polar star",null,null,null,"FTK","Pie cuadrado"]
[null,10202625,"Rosal vivo polo",null,null,null,"FTQ","Pie cúbico"]
[null,10202626,"Rosal vivo proud",null,null,null,"G01","Pascal metro cúbico por segundo"]
[null,10202627,"Rosal vivo snowy jewel",null,null,null,"G04","Centímetro por bar"]
[null,10202628,"Rosal vivo tibet",null,null,null,"G05","Metro por bar "]
[null,10202629,"Rosal vivo tineke",null,null,null,"G06","Milímetro por bar "]
[null,10202630,"Rosal vivo vitality",null,null,null,"G08","Pulgada cuadrada por segundo"]
[null,10202631,"Rosal vivo white cadillac",null,null,null,"G09","Metro cuadrado por segundo kelvin"]
[null,10202632,"Rosal vivo white dove",null,null,null,"G10","Stokes por kelvin"]
[null,10202700,"Rosales vivos amarillos",null,null,null,"G11","Gramo por centímetro cúbico bar"]
[null,10202701,"Rosal vivo aalsmeer gold",null,null,null,"G12","Gramo por decímetro cúbico bar"]
[null,10202702,"Rosal vivo alina",null,null,null,"G13","Gramo por litro bar"]
[null,10202703,"Rosal vivo ambiance",null,null,null,"G14","Gramo por metro cúbico bar"]
[null,10202704,"Rosal vivo aquarel",null,null,null,"G15","Gramo por mililitro bar"]
[null,10202705,"Rosal vivo autumn",null,null,null,"G16","Kilogramo por centímetro cúbico bar"]
[null,10202706,"Rosal vivo brasil",null,null,null,"G17","Kilogramo por litro bar"]
[null,10202707,"Rosal vivo candle light",null,null,null,"G18","Kilogramo por metro cúbico bar"]
[null,10202708,"Rosal vivo cantata o cantate",null,null,null,"G19","Newton metro por kilogramo"]
[null,10202709,"Rosal vivo capriccio",null,null,null,"G2","Galón (EUA) por minuto"]
[null,10202710,"Rosal vivo caribbean",null,null,null,"G20","Libra-fuerza pie por libra"]
[null,10202711,"Rosal vivo circus",null,null,null,"G21","Taza (unidad de volumen)"]
[null,10202712,"Rosal vivo citran",null,null,null,"G23","Peck"]
[null,10202713,"Rosal vivo concorde",null,null,null,"G24","Cucharada (estados unidos)"]
[null,10202714,"Rosal vivo conga",null,null,null,"G25","Cucharilla (estados unidos)"]
[null,10202715,"Rosal vivo deja vu",null,null,null,"G26","Estere"]
[null,10202716,"Rosal vivo desire",null,null,null,"G27","Centímetro cúbico por kelvin"]
[null,10202717,"Rosal vivo donia sol",null,null,null,"G28","Litro por kelvin"]
[null,10202718,"Rosal vivo dueto",null,null,null,"G29","Metro cúbico por kelvin"]
[null,10202719,"Rosal vivo erin",null,null,null,"G3","Galón (RU) por minuto"]
[null,10202720,"Rosal vivo exotic curiosa",null,null,null,"G30","Mililitro por klevin"]
[null,10202721,"Rosal vivo feria",null,null,null,"G31","Kilogramo por centímetro cúbico"]
[null,10202722,"Rosal vivo fire bird",null,null,null,"G32","Onza (avoirdupois) por yarda cúbica"]
[null,10202723,"Rosal vivo florida",null,null,null,"G33","Gramo por centímetro cúbico kelvin"]
[null,10202724,"Rosal vivo friendly",null,null,null,"G34","Gramo por decímetro cúbico kelvin"]
[null,10202725,"Rosal vivo gallinda",null,null,null,"G35","Gramo por litro kelvin"]
[null,10202726,"Rosal vivo geisha",null,null,null,"G36","Gramo por metro cúbico kelvin"]
[null,10202727,"Rosal vivo gelbe",null,null,null,"G37","Gramo por mililitro kelvin"]
[null,10202728,"Rosal vivo gelosia o yellow flame",null,null,null,"G38","Kilogramo por centímetro cúbico kelvin"]
[null,10202729,"Rosal vivo gold rush",null,null,null,"G39","Kilogramo por litro kelvin"]
[null,10202730,"Rosal vivo gold star",null,null,null,"G40","Kilogramo por metro cúbico kelvin"]
[null,10202731,"Rosal vivo gold strike",null,null,null,"G41","Metro cuadrado por segundo bar"]
[null,10202732,"Rosal vivo golda",null,null,null,"G42","Microsiemens por centímetro"]
[null,10202733,"Rosal vivo golden fashion",null,null,null,"G43","Microsiemens por metro"]
[null,10202734,"Rosal vivo golden gate",null,null,null,"G44","Nanosiemens por centímetro"]
[null,10202735,"Rosal vivo gran dorado",null,null,null,"G45","Nanosiemens por metro"]
[null,10202736,"Rosal vivo helio",null,null,null,"G46","Stokes por bar"]
[null,10202737,"Rosal vivo high and exotic",null,null,null,"G47","Centímetro cúbico por día"]
[null,10202738,"Rosal vivo high and yellow flame",null,null,null,"G48","Centímetro cúbico por hora"]
[null,10202739,"Rosal vivo high and yellow magic",null,null,null,"G49","Centímetro cúbico por minuto"]
[null,10202740,"Rosal vivo high society",null,null,null,"G50","Galón por hora"]
[null,10202741,"Rosal vivo hummer",null,null,null,"G51","Litro por segundo"]
[null,10202742,"Rosal vivo idole o elle",null,null,null,"G52","Metro cúbico por día"]
[null,10202743,"Rosal vivo inti",null,null,null,"G53","Metro cúbico por minuto"]
[null,10202744,"Rosal vivo jet set",null,null,null,"G54","Mililitro por día"]
[null,10202745,"Rosal vivo judy",null,null,null,"G55","Mililitro por hora"]
[null,10202746,"Rosal vivo jupiter",null,null,null,"G56","Pulgada cúbica por hora"]
[null,10202747,"Rosal vivo konfetti",null,null,null,"G57","Pulgada cúbica por minuto"]
[null,10202748,"Rosal vivo kyara o kira",null,null,null,"G58","Pulgada cúbica por segundo"]
[null,10202749,"Rosal vivo latin beauty",null,null,null,"G59","Miliamperio por litro minuto"]
[null,10202750,"Rosal vivo latin spirit",null,null,null,"G60","Voltio por bar"]
[null,10202751,"Rosal vivo latina",null,null,null,"G61","Centímetro cúbico por día kelvin"]
[null,10202752,"Rosal vivo lina",null,null,null,"G62","Centímetro cúbico por hora kelvin"]
[null,10202753,"Rosal vivo lindsey",null,null,null,"G63","Centímetro cúbico por minuto kelvin"]
[null,10202754,"Rosal vivo male",null,null,null,"G64","Centímetro cúbico por segundo kelvin"]
[null,10202755,"Rosal vivo marie clare",null,null,null,"G65","Litro por día kelvin"]
[null,10202756,"Rosal vivo marisa",null,null,null,"G66","Litro por hora kelvin"]
[null,10202757,"Rosal vivo matchball",null,null,null,"G67","Litro por minuto kelvin"]
[null,10202758,"Rosal vivo melon",null,null,null,"G68","Litro por segundo kelvin"]
[null,10202759,"Rosal vivo mohana",null,null,null,"G69","Metro cúbico por día kelvin"]
[null,10202760,"Rosal vivo okie dokie",null,null,null,"G7","Hoja de microficha"]
[null,10202761,"Rosal vivo pailine",null,null,null,"G70","Metro cúbico por hora kelvin"]
[null,10202762,"Rosal vivo parrot",null,null,null,"G71","Metro cúbico por minuto kelvin"]
[null,10202763,"Rosal vivo rio d oro",null,null,null,"G72","Metro cúbico por segundo kelvin"]
[null,10202764,"Rosal vivo salami",null,null,null,"G73","Mililitro por día kelvin"]
[null,10202765,"Rosal vivo santa fe",null,null,null,"G74","Mililitro por hora kelvin"]
[null,10202766,"Rosal vivo skyline",null,null,null,"G75","Mililitro por minuto kelvin"]
[null,10202767,"Rosal vivo sonrisa",null,null,null,"G76","Mililitro por segundo kelvin"]
[null,10202768,"Rosal vivo star ambiance",null,null,null,"G77","Milímetro a la cuarta potencia "]
[null,10202769,"Rosal vivo starbust",null,null,null,"G78","Centímetro cúbico por día bar"]
[null,10202770,"Rosal vivo sun king",null,null,null,"G79","Centímetro cúbico por hora bar"]
[null,10202771,"Rosal vivo sunmaster",null,null,null,"G80","Centímetro cúbico por minuto bar"]
[null,10202772,"Rosal vivo sunny milva",null,null,null,"G81","Centímetro cúbico por segundo bar"]
[null,10202773,"Rosal vivo sushi",null,null,null,"G82","Litro por día bar"]
[null,10202774,"Rosal vivo tabasco",null,null,null,"G83","Litro por hora bar"]
[null,10202775,"Rosal vivo tara",null,null,null,"G84","Litro por minuto bar"]
[null,10202776,"Rosal vivo tresor 2000",null,null,null,"G85","Litro por segundo bar"]
[null,10202777,"Rosal vivo ooty",null,null,null,"G86","Metro cúbico por día bar"]
[null,10202778,"Rosal vivo yellow coral",null,null,null,"G87","Metro cúbico por hora bar"]
[null,10202779,"Rosal vivo yellow finess",null,null,null,"G88","Metro cúbico por minuto bar"]
[null,10202780,"Rosal vivo yellow submarine",null,null,null,"G89","Metro cúbico por segundo bar"]
[null,10202781,"Rosal vivo yellow sunset",null,null,null,"G90","Mililitro por día bar"]
[null,10202782,"Rosal vivo yelllow timeless",null,null,null,"G91","Mililitro por hora bar"]
[null,10202800,"Rosales vivos spray",null,null,null,"G92","Mililitro por minuto bar"]
[null,10202801,"Rosal vivo alegria spray",null,null,null,"G93","Mililitro por segundo bar"]
[null,10202802,"Rosal vivo andrea follies spray",null,null,null,"G94","Centímetro cúbico por bar"]
[null,10202803,"Rosal vivo antara follies spray",null,null,null,"G95","Litro por bar"]
[null,10202804,"Rosal vivo arrow follies spray",null,null,null,"G96","Metro cúbico por bar"]
[null,10202805,"Rosal vivo babe spray",null,null,null,"G97","Mililitro por bar "]
[null,10202806,"Rosal vivo bellina collection spray",null,null,null,"G98","Micro henry por kiloOhm"]
[null,10202807,"Rosal vivo blue moon spray",null,null,null,"G99","Micro henry por Ohm"]
[null,10202808,"Rosal vivo chablis spray",null,null,null,"GB","Galón (EUA) por día"]
[null,10202809,"Rosal vivo cherry follies spray",null,null,null,"GBQ","Gigabecquerel"]
[null,10202810,"Rosal vivo chess spray",null,null,null,"GC","Gramo por 100 gramos"]
[null,10202811,"Rosal vivo classic lydia spray",null,null,null,"Gd","Barril bruto"]
[null,10202812,"Rosal vivo cream gracia spray",null,null,null,"GDW","Gramo, peso seco"]
[null,10202813,"Rosal vivo cream lydia spray",null,null,null,"GE","Libra por galón (EUA)"]
[null,10202814,"Rosal vivo cream sensation spray",null,null,null,"GF","Gramo por metro (gramo por 100 centímetros)"]
[null,10202815,"Rosal vivo cremita spray",null,null,null,"GFI","Gramo de isótopo fisible"]
[null,10202816,"Rosal vivo diablo spray",null,null,null,"GGR","Grandioso"]
[null,10202817,"Rosal vivo electra spray",null,null,null,"GH","Medio galón (US)"]
[null,10202818,"Rosal vivo fire king spray",null,null,null,"GIA","Gill (us)"]
[null,10202819,"Rosal vivo fleur spray",null,null,null,"GIC","Gramo, incluido el contenedor"]
[null,10202820,"Rosal vivo girlie follies spray",null,null,null,"GII","Gill (uk)"]
[null,10202821,"Rosal vivo giselle follies spray",null,null,null,"GIP","Grama, incluido el embalaje interior"]
[null,10202822,"Rosal vivo golden collection spray",null,null,null,"GJ","Gramo por mililitro"]
[null,10202823,"Rosal vivo golden mimi spray",null,null,null,"GK","Gramo por kilogramo"]
[null,10202824,"Rosal vivo gracia spray",null,null,null,"GL","Gramo por litro"]
[null,10202825,"Rosal vivo hot majolica spray",null,null,null,"GLD","Galón seco (EUA)"]
[null,10202826,"Rosal vivo hot pink follies spray",null,null,null,"GLI","Galón (UK)"]
[null,10202827,"Rosal vivo ilse spray",null,null,null,"GLL","Galón (EUA)"]
[null,10202828,"Rosal vivo jelena spray",null,null,null,"GM","Gramo por metro cuadrado"]
[null,10202829,"Rosal vivo laminuette spray",null,null,null,"GN","Galón bruto"]
[null,10202830,"Rosal vivo lavender follies spray",null,null,null,"GO","Miligramo por metro cuadrado"]
[null,10202831,"Rosal vivo limoncello spray",null,null,null,"GP","Miligramo por metro cúbico"]
[null,10202832,"Rosal vivo little silver spray",null,null,null,"GQ","Microgramo por metro cúbico"]
[null,10202833,"Rosal vivo lovely lydia spray",null,null,null,"GRM","Gramo"]
[null,10202834,"Rosal vivo lucy spray",null,null,null,"GRN","Grano"]
[null,10202835,"Rosal vivo lydia spray",null,null,null,"GRO","Gross"]
[null,10202836,"Rosal vivo macarena spray",null,null,null,"GT","Tonelada bruta"]
[null,10202837,"Rosal vivo magic sensation spray",null,null,null,"GV","Gigajoule"]
[null,10202838,"Rosal vivo majolica spray",null,null,null,"GW","Galón por mil pies cúbicos"]
[null,10202839,"Rosal vivo mambo number 5 spray",null,null,null,"GWH","Gigawatt hora"]
[null,10202840,"Rosal vivo mambo spray",null,null,null,"GY","Patio grueso"]
[null,10202841,"Rosal vivo marlene spray",null,null,null,"GZ","Sistema de calibración"]
[null,10202842,"Rosal vivo mimi eden spray",null,null,null,"H03","Henry por kiloOhm"]
[null,10202843,"Rosal vivo minou spray",null,null,null,"H04","Henry por Ohm"]
[null,10202844,"Rosal vivo nikita spray",null,null,null,"H05","Milihenry por kiloOhm"]
[null,10202845,"Rosal vivo novel collection spray",null,null,null,"H06","Milihenry por Ohm"]
[null,10202846,"Rosal vivo orange success spray",null,null,null,"H07","Pascal segundo por bar"]
[null,10202847,"Rosal vivo pepita spray",null,null,null,"H08","Microbequerel"]
[null,10202848,"Rosal vivo pink flash spray",null,null,null,"H09","Año recíproco"]
[null,10202849,"Rosal vivo pink sensation spray",null,null,null,"H1","Media página - electrónica"]
[null,10202850,"Rosal vivo porcelina spray",null,null,null,"H10","Hora recíproca"]
[null,10202851,"Rosal vivo princess spray",null,null,null,"H11","Mes recíproco"]
[null,10202852,"Rosal vivo purple mikado spray",null,null,null,"H12","Grado celsius por hora"]
[null,10202853,"Rosal vivo red angel spray",null,null,null,"H13","Grado celsius por minuto"]
[null,10202854,"Rosal vivo red collection spray",null,null,null,"H14","Grado celsius por segundo"]
[null,10202855,"Rosal vivo red hero spray",null,null,null,"H15","Centímetro cuadrado por gramo"]
[null,10202856,"Rosal vivo red mikado spray",null,null,null,"H16","Decámetro cuadrado"]
[null,10202857,"Rosal vivo red vision spray",null,null,null,"H18","Hectómetro cuadrado"]
[null,10202858,"Rosal vivo ritmo spray",null,null,null,"H19","Hectómetro cúbico"]
[null,10202859,"Rosal vivo romance mikado o eva spray",null,null,null,"H2","Medio litro"]
[null,10202860,"Rosal vivo romantica follies spray",null,null,null,"H20","Kilómetro cúbico"]
[null,10202861,"Rosal vivo rubicon spray",null,null,null,"H21","Blanco"]
[null,10202862,"Rosal vivo rumba spray",null,null,null,"H22","Voltio pulgada cuadrada por libra fuerza"]
[null,10202863,"Rosal vivo salsa spray",null,null,null,"H23","Voltio por pulgada"]
[null,10202864,"Rosal vivo sangrita spray",null,null,null,"H24","Voltio por microsegundo"]
[null,10202865,"Rosal vivo santa barbara spray",null,null,null,"H25","Por ciento por kelvin"]
[null,10202866,"Rosal vivo sashaba spray",null,null,null,"H26","Ohm por metro"]
[null,10202867,"Rosal vivo scarlett spray",null,null,null,"H27","Grado por metro"]
[null,10202868,"Rosal vivo seline spray",null,null,null,"H28","Microfaradio por kilómetro"]
[null,10202869,"Rosal vivo sensation spray",null,null,null,"H29","Microgramo por litro"]
[null,10202870,"Rosal vivo silver collection spray",null,null,null,"H30","Micrómetro cuadrado"]
[null,10202871,"Rosal vivo silver sensation spray",null,null,null,"H31","Amperio por kilogramo"]
[null,10202872,"Rosal vivo snowdance spray",null,null,null,"H32","Amperio cuadrado segundo"]
[null,10202873,"Rosal vivo snowflake spray",null,null,null,"H33","Faradio por kilómetro"]
[null,10202874,"Rosal vivo suncity spray",null,null,null,"H34","Hertz metro"]
[null,10202875,"Rosal vivo super nova spray",null,null,null,"H35","Kelvin metro por watt"]
[null,10202876,"Rosal vivo sweet sensation spray",null,null,null,"H36","MegaOhm por kilómetro"]
[null,10202877,"Rosal vivo taifun o typhoon spray",null,null,null,"H37","MegaOhm por metro"]
[null,10202878,"Rosal vivo tamango spray",null,null,null,"H38","Megaamperio"]
[null,10202879,"Rosal vivo tanger follies spray",null,null,null,"H39","Megahertz kilómetro"]
[null,10202880,"Rosal vivo tiara spray",null,null,null,"H40","Newton por amperio"]
[null,10202881,"Rosal vivo tiramisú spray",null,null,null,"H41","Newton metro watts elevado a la potencia menos 0.5"]
[null,10202882,"Rosal vivo twinkle bride spray",null,null,null,"H42","Pascal por metro"]
[null,10202883,"Rosal vivo viviane spray",null,null,null,"H43","Siemens por centímetro"]
[null,10202884,"Rosal vivo white majolica spray",null,null,null,"H44","TeraOhm"]
[null,10202885,"Rosal vivo white mikado spray",null,null,null,"H45","Voltio segundo por metro"]
[null,10202886,"Rosal vivo xentina spray",null,null,null,"H46","Voltio por segundo"]
[null,10202887,"Rosal vivo yellow babe spray",null,null,null,"H47","Watt por metro cúbico"]
[null,10202888,"Rosal vivo yellow follies spray",null,null,null,"H48","Attofarad"]
[null,10211500,"Anturios vivos","Lirios flamingo vivos",null,null,"H49","Centímetro por hora"]
[null,10211501,"Anturio vivo chocolate","Lirio flamingo vivo chocolate",null,null,"H50","Reciprocidad del centímetro cúbico"]
[null,10211502,"Anturio vivo rojo oscuro","Lirio flamingo vivo rojo oscuro",null,null,"H51","Decibel per kilometro"]
[null,10211503,"Anturio vivo verde","Lirio flamingo vivo verde",null,null,"H52","Decibel per metro"]
[null,10211504,"Anturio vivo rosado fuerte","Lirio flamingo vivo rosado fuerte",null,null,"H53","Kilogramo por bar"]
[null,10211505,"Anturio vivo mickey mouse","Lirio flamingo vivo mickey mouse",null,null,"H54","Kilogramo por decímetro cúbico kelvin "]
[null,10211506,"Anturio vivo obake verde y blanco","Lirio flamingo vivo obake verde y blanco",null,null,"H55","Kilogramo por decímetro cúbico bar"]
[null,10211507,"Anturio vivo obake rojo y verde","Lirio flamingo vivo obake rojo y verde",null,null,"H56","Kilogramo por metro cuadrado segundo"]
[null,10211508,"Anturio vivo anaranjado","Lirio flamingo vivo anaranjado",null,null,"H57","Pulgada por dos pi por radián"]
[null,10211509,"Anturio vivo durazno","Lirio flamingo vivo durazno",null,null,"H58","Metro por voltio segundo"]
[null,10211510,"Anturio vivo picasso o pecoso","Lirio flamingo vivo picasso o pecoso",null,null,"H59","Metro cuadrado por newton"]
[null,10211511,"Anturio vivo rojo","Lirio flamingo vivo rojo",null,null,"H60","Metro cúbico por metro cúbico"]
[null,10211512,"Anturio vivo salpicadura","Lirio flamingo vivo salpicadura",null,null,"H61","Milisiemens por centímetro"]
[null,10211513,"Anturio vivo fuego del trópico","Lirio flamingo vivo fuego del trópico",null,null,"H62","Milivoltio por minuto"]
[null,10211514,"Anturio vivo tulipán verde","Lirio flamingo vivo tulipán verde",null,null,"H63","Miligramo por centímetro cuadrado"]
[null,10211515,"Anturio vivo tulipán rosado","Lirio flamingo vivo tulipán rosado",null,null,"H64","Miligramo por gramo"]
[null,10211516,"Anturio vivo tulipán púrpura","Lirio flamingo vivo tulipán púrpura",null,null,"H65","Mililitro por metro cúbico"]
[null,10211517,"Anturio vivo tulipán rojo","Lirio flamingo vivo tulipán rojo",null,null,"H66","Milímetro por año "]
[null,10211518,"Anturio vivo blanco","Lirio flamingo vivo blanco",null,null,"H67","Milímetro por hora"]
[null,10211519,"Anturio vivo cosa salvaje","Lirio flamingo vivo cosa salvaje",null,null,"H68","MiliMol por gram"]
[null,10211600,"Allium vivo","Cebolletas ornamentales vivas",null,null,"H69","Picopascal por kilometro"]
[null,10211601,"Allium vivo embajador","Cebolleta ornamental viva embajador",null,null,"H70","Picosegundo"]
[null,10211602,"Allium vivo ampeloprasum","Cebolleta ornamental viva ampeloprasum",null,null,"H71","Por ciento al mes"]
[null,10211603,"Allium vivo bullit o drumstick","Cebolleta ornamental viva bullit o drumstick",null,null,"H72","Por ciento por hectobar"]
[null,10211604,"Allium vivo christophii","Cebolleta ornamental viva christophii",null,null,"H73","Por ciento por decakelvin"]
[null,10211605,"Allium vivo cowanii spray white","Cebolleta ornamental viva cowanii spray white",null,null,"H74","Watt por metro"]
[null,10211606,"Allium vivo gigante","Cebolleta ornamental viva gigante",null,null,"H75","Decapascal"]
[null,10211607,"Allium vivo gladiador","Cebolleta ornamental viva gladiador",null,null,"H76","Gramo por milímetro"]
[null,10211608,"Allium vivo globemaster","Cebolleta ornamental viva globemaster",null,null,"H77","Anchura del módulo"]
[null,10211609,"Allium vivo bola de golf blanca","Cebolleta ornamental viva bola de golf blanca",null,null,"H78","Centímetro convencional de agua"]
[null,10211610,"Allium vivo cabello","Cebolleta ornamental viva cabello",null,null,"H79","Escala francesa "]
[null,10211611,"Allium vivo rosado gigante","Cebolleta ornamental viva rosado gigante",null,null,"H80","Unidad de bastidor"]
[null,10211612,"Allium vivo sensación púrpura","Cebolleta ornamental viva sensación púrpura",null,null,"H81","Milímetro por minuto"]
[null,10211613,"Allium vivo sicilum hanging","Cebolleta ornamental viva sicilum hanging",null,null,"H82","Punto grande"]
[null,10211614,"Allium vivo spider schubertii","Cebolleta ornamental viva spider schubertii",null,null,"H83","Litro por kilogramo"]
[null,10211615,"Allium vivo spray moly","Cebolleta ornamental viva spray moly",null,null,"H84","Gramos milímetro"]
[null,10211616,"Allium vivo spray roseum","Cebolleta ornamental viva spray roseum",null,null,"H85","Semana recíproca"]
[null,10211617,"Allium vivo tuberosum","Cebolleta ornamental viva tuberosum",null,null,"H87","Pieza"]
[null,10211618,"Allium vivo unifolium o spray allium","Cebolleta ornamental viva unifolium o spray Cebolleta ornamental",null,null,"H88","MegaOhm kilómetro"]
[null,10211619,"Allium vivo monte everest blanco","Cebolleta ornamental viva monte everest blanco",null,null,"H89","Por ciento por Ohmio"]
[null,10211700,"Astromelia viva","Lirios de campo vivos",null,null,"H90","Porcentaje por grado"]
[null,10211701,"Astromelia viva agropoli","Lirio de campo vivo agropoli",null,null,"H91","Por ciento por cada diez mil"]
[null,10211702,"Astromelia viva bourgogne","Lirio de campo vivo bourgogne",null,null,"H92","Ciento por cien mil"]
[null,10211703,"Astromelia viva cairo","Lirio de campo vivo cairo",null,null,"H93","Porcentaje por cien"]
[null,10211704,"Astromelia viva charmes","Lirio de campo vivo charmes",null,null,"H94","Por ciento por mil"]
[null,10211705,"Astromelia viva cherry bay","Lirio de campo vivo cherry bay",null,null,"H95","Por ciento por voltio"]
[null,10211706,"Astromelia viva cherry white","Lirio de campo vivo cherry white",null,null,"H96","Tanto por ciento por bar"]
[null,10211707,"Astromelia viva dame blanche","Lirio de campo vivo dame blanche",null,null,"H98","Por ciento por pulgada"]
[null,10211708,"Astromelia viva diamond","Lirio de campo vivo diamond",null,null,"H99","Por ciento por metro"]
[null,10211709,"Astromelia viva gran canaria","Lirio de campo vivo gran canaria",null,null,"HA","Madeja"]
[null,10211710,"Astromelia viva harlekijn","Lirio de campo vivo harlekijn",null,null,"HAR","hectárea"]
[null,10211711,"Astromelia viva indian summer","Lirio de campo vivo indian summer",null,null,"HBA","Hectobar "]
[null,10211712,"Astromelia viva jamaica","Lirio de campo vivo jamaica",null,null,"HBX","Ciento de cajas"]
[null,10211713,"Astromelia viva macondo","Lirio de campo vivo macondo",null,null,"HC","Conteo en cientos"]
[null,10211714,"Astromelia viva mistique","Lirio de campo vivo mistique",null,null,"HD","Media docena"]
[null,10211715,"Astromelia viva my fair","Lirio de campo vivo my fair",null,null,"HDW","Cien kilogramos, peso seco"]
[null,10211716,"Astromelia viva new cairo","Lirio de campo vivo new cairo",null,null,"HE","Centésima de un quilate"]
[null,10211717,"Astromelia viva nice","Lirio de campo vivo nice",null,null,"HEA","Cabeza"]
[null,10211718,"Astromelia viva orange bowl","Lirio de campo vivo orange bowl",null,null,"HF","Cien pies"]
[null,10211719,"Astromelia viva orange queens","Lirio de campo vivo orange queens",null,null,"HGM","Hectogramo"]
[null,10211720,"Astromelia viva orange sun","Lirio de campo vivo orange sun",null,null,"HH","Cien pies cúbicos"]
[null,10211721,"Astromelia viva paris","Lirio de campo vivo parís",null,null,"HI","Cien hojas"]
[null,10211722,"Astromelia viva picasso","Lirio de campo vivo picasso",null,null,"HIU","Unidad internacional de cien"]
[null,10211723,"Astromelia viva pink panther","Lirio de campo vivo pink panther",null,null,"HJ","Potencia métrica"]
[null,10211724,"Astromelia viva prima donna","Lirio de campo vivo prima donna",null,null,"HK","Cien kilogramos"]
[null,10211725,"Astromelia viva red silhouette","Lirio de campo vivo red silhouette",null,null,"HKM","Cien kilogramos, masa neta"]
[null,10211726,"Astromelia viva sacha","Lirio de campo vivo sacha",null,null,"HL","Cien pies (lineal)"]
[null,10211727,"Astromelia viva salmon","Lirio de campo vivo salmón",null,null,"HLT","Hectolitro"]
[null,10211728,"Astromelia viva santiago","Lirio de campo vivo santiago",null,null,"HM","Milla por hora (milla estatal)"]
[null,10211729,"Astromelia viva senna","Lirio de campo vivo senna",null,null,"HMQ","Millones de metros cúbicos"]
[null,10211730,"Astromelia viva snowball","Lirio de campo vivo snowball",null,null,"HMT","Hectómetro"]
[null,10211731,"Astromelia viva sublime","Lirio de campo vivo sublime",null,null,"HN","Milímetro convencional de mercurio"]
[null,10211732,"Astromelia viva tropicana","Lirio de campo vivo tropicana",null,null,"HO","Cien onzas troy"]
[null,10211733,"Astromelia viva virginia","Lirio de campo vivo virginia",null,null,"HP","Milímetro convencional de agua"]
[null,10211734,"Astromelia viva white","Lirio de campo vivo white",null,null,"HPA","Hectolitro de alcohol puro"]
[null,10211800,"Amaranto vivo",null,null,null,"HS","Cien pies cuadrados"]
[null,10211801,"Amaranto vivo verde colgante",null,null,null,"HT","media hora"]
[null,10211802,"Amaranto vivo rojo colgante",null,null,null,"HTZ","Hertz"]
[null,10211803,"Amaranto vivo bonce erguido",null,null,null,"HUR","Hora"]
[null,10211804,"Amaranto vivo verde erguido",null,null,null,"HY","Cien yardas"]
[null,10211805,"Amaranto vivo rojo erguido",null,null,null,"IA","Pulgada libra"]
[null,10211900,"Amaryllis vivo","Amaryllis viva",null,null,"IC","Contar por pulgada"]
[null,10211901,"Amaryllis vivo naranja","Amaryllis viva naranja",null,null,"IE","Personas"]
[null,10211902,"Amaryllis vivo orange nagano","Amaryllis viva orange nagano",null,null,"IF","Pulgadas de agua"]
[null,10211903,"Amaryllis vivo pygmee mini","Amaryllis viva pygmee mini",null,null,"II","Columna pulgada"]
[null,10211904,"Amaryllis vivo red lion","Amaryllis viva red lion",null,null,"IM","Impresión"]
[null,10211905,"Amaryllis vivo rilona","Amaryllis viva rilona",null,null,"INH","Pulgada"]
[null,10211906,"Amaryllis vivo royal velvet","Amaryllis viva royal velvet",null,null,"INK","Pulgada cuadrada"]
[null,10211907,"Amaryllis vivo sonatini orange","Amaryllis viva sonatini orange",null,null,"INQ","Pulgada cúbica"]
[null,10211908,"Amaryllis vivo sonatini red","Amaryllis viva sonatini red",null,null,"IP","póliza de seguros"]
[null,10211909,"Amaryllis vivo tango","Amaryllis viva tango",null,null,"ISD","Grado internacional de azúcar"]
[null,10211910,"Amaryllis vivo tinto night","Amaryllis viva tinto night",null,null,"IT","Recuento por centímetro"]
[null,10212000,"Anémona viva",null,null,null,"IU","Pulgada por segundo"]
[null,10212001,"Anémona viva aubergine",null,null,null,"IV","Pulgada por segundo al cuadrado"]
[null,10212002,"Anémona viva negra",null,null,null,"J10","Por ciento por milímetro"]
[null,10212003,"Anémona viva azul",null,null,null,"J12","Por mille por psi"]
[null,10212004,"Anémona viva cereza",null,null,null,"J13","Grado api"]
[null,10212005,"Anémona viva coronaria",null,null,null,"J14","Grado baume (escala de origen)"]
[null,10212006,"Anémona viva rosada fuerte",null,null,null,"J15","Grado baume (us pesado)"]
[null,10212007,"Anémona viva rosada claro",null,null,null,"J16","Grado baume (luz de los EUA)"]
[null,10212008,"Anémona viva rosada",null,null,null,"J17","Grado balling"]
[null,10212009,"Anémona viva púrpura",null,null,null,"J18","Grado brix"]
[null,10212010,"Anémona viva roja",null,null,null,"J19","Grado fahrenheit hora pie cuadrado por unidad térmica británica (termoquímico)."]
[null,10212011,"Anémona viva blanca",null,null,null,"J2","Joule por kilogramo"]
[null,10212100,"Asclepia viva","Algodoncillos vivos",null,null,"J20","Grado fahrenheit por kelvin"]
[null,10212101,"Asclepia viva lavanda","Algodoncillo vivo lavanda",null,null,"J21","Grado fahrenheit por bar"]
[null,10212102,"Asclepia viva moby dick","Algodoncillo vivo moby dick",null,null,"J22","Grado fahrenheit hora pie cuadrado por unidad térmica británica (tabla internacional)."]
[null,10212103,"Asclepia viva tuberosa","Algodoncillo vivo tuberoso",null,null,"J23","Grado fahrenheit por hora"]
[null,10212104,"Asclepia viva blanca","Algodoncillo vivo blanco",null,null,"J24","Grado fahrenheit por minuto"]
[null,10212200,"Aster viva","Estrellas vivas",null,null,"J25","Grado fahrenheit por segundo"]
[null,10212201,"Aster viva belleza","Estrella viva belleza",null,null,"J26","Reciprocidad grado fahrenheit"]
[null,10212202,"Aster viva azul japonés","Estrella viva azul japonés",null,null,"J27","Grado oechsle"]
[null,10212203,"Aster viva verde japonés","Estrella viva verde japonés",null,null,"J28","Grado rankine por hora"]
[null,10212204,"Aster viva rosado fuerte japonés","Estrella viva rosado fuerte japonés",null,null,"J29","Grado rankine por minuto"]
[null,10212205,"Aster viva lavanda japonés","Estrella viva lavanda japonés",null,null,"J30","Grado rankine por segundo"]
[null,10212206,"Aster viva rosado claro japonés","Estrella viva rosado claro japonés",null,null,"J31","Grado twaddel."]
[null,10212207,"Aster viva durazno japonés","Estrella viva durazno japonés",null,null,"J32","Micropoise"]
[null,10212208,"Aster viva rosado japonés","Estrella viva rosado japonés",null,null,"J33","Microgramo por kilogramo"]
[null,10212209,"Aster viva púrpura japonés","Estrella viva púrpura japonés",null,null,"J34","Microgramo por metro cúbico kelvin"]
[null,10212210,"Aster viva rojo japonés","Estrella viva rojo japonés",null,null,"J35","Microgramo por metro cúbico bar"]
[null,10212211,"Aster viva araña japonés","Estrella viva araña japonés",null,null,"J36","Microlitro por litro"]
[null,10212212,"Aster viva blanca japonés","Estrella viva blanca japonés",null,null,"J38","Baud"]
[null,10212213,"Aster viva rosado fuerte novi belgii","Estrella viva rosado fuerte novi belgii",null,null,"J39","Unidad térmica británica (significado)"]
[null,10212214,"Aster viva lavanda novi belgii","Estrella viva lavanda novi belgii",null,null,"J40","Unidad térmica británica (tabla internacional) pie por hora pie cuadrado grado fahrenheit."]
[null,10212215,"Aster viva rosado novi belgii","Estrella viva rosado novi belgii",null,null,"J41","Unidad térmica británica (tabla internacional) pulgada por hora pie cuadrado grado fahrenheit."]
[null,10212216,"Aster viva púrpura novi belgii","Estrella viva púrpura novi belgii",null,null,"J42","Unidad térmica británica (tabla internacional) pulgada por segundo pie cuadrado grado fahrenheit."]
[null,10212217,"Aster viva blanca novi belgii","Estrella viva blanca novi belgii",null,null,"J43","Unidad térmica británica (tabla internacional) por libra grado fahrenheit"]
[null,10212218,"Aster viva solidago","Estrella viva solidago",null,null,"J44","Unidad térmica británica (tabla internacional) por minuto"]
[null,10212219,"Aster viva araña","Estrella viva araña",null,null,"J45","Unidad térmica británica (tabla internacional) por segundo"]
[null,10212300,"Berzelia viva",null,null,null,"J46","Unidad térmica británica (termoquímico) pie por hora pie cuadrado grado fahrenheit."]
[null,10212301,"Berzelia lanuginosa viva abrotanoides",null,null,null,"J47","Unidad térmica británica (termoquímica) por hora"]
[null,10212302,"Berzelia lanuginosa viva fireball",null,null,null,"J48","Unidad térmica británica (termoquímico) pulgada por hora pie cuadrado grado fahrenheit."]
[null,10212303,"Berzelia lanuginosa viva galpinii",null,null,null,"J49","Unidad térmica británica (termoquímico) pulgada por segundo pie cuadrado grado fahrenheit."]
[null,10212304,"Berzelia lanuginosa viva galpini o baubles",null,null,null,"J50","Unidad térmica británica (termoquímico) por libra grado fahrenheit"]
[null,10212305,"Berzelia lanuginosa viva squarrosa",null,null,null,"J51","Unidad térmica británica (termoquímica) por minuto"]
[null,10212400,"Bouvaria viva","Trompetillas vivas",null,null,"J52","Unidad térmica británica (termoquímica) por segundo"]
[null,10212401,"Bouvardia viva doble rosado fuerte","Trompetilla viva doble rosado fuerte",null,null,"J53","Culombio metro cuadrado por kilogramo"]
[null,10212402,"Bouvardia viva rosado claro","Trompetilla viva rosado claro",null,null,"J54","Megabaud"]
[null,10212403,"Bouvardia viva doble rosado claro","Trompetilla viva doble rosado claro",null,null,"J55","Watt segundo"]
[null,10212404,"Bouvardia viva roja","Trompetilla viva roja",null,null,"J56","Bar por bar"]
[null,10212405,"Bouvardia viva blanca","Trompetilla viva blanca",null,null,"J57","Barril (uk petróleo)"]
[null,10212500,"Brodiaea viva",null,null,null,"J58","Barril (petróleo UK) por minuto"]
[null,10212501,"Brodiaea viva congesta",null,null,null,"J59","Barril (petróleo UK) por día"]
[null,10212502,"Brodiaea viva congesta lavanda",null,null,null,"J60","Barril (petróleo UK) por hora"]
[null,10212503,"Brodiaea viva hyacintha",null,null,null,"J61","Barril (petróleo UK) por segundo"]
[null,10212504,"Brodiaea viva ida maija",null,null,null,"J62","Barril (petróleo estados unidos) por hora"]
[null,10212505,"Brodiaea viva starlight",null,null,null,"J63","Barril (petróleo estados unidos) por segundo"]
[null,10212600,"Calla viva","Alcatraces vivos",null,null,"J64","Bushel (UK) por día "]
[null,10212601,"Calla viva green goddess","Alcatraz vivo green goddess",null,null,"J65","Bushel (UK) por hora"]
[null,10212602,"Calla viva ramillete albertville","Alcatraz vivo ramillete albertville",null,null,"J66","Bushel (UK) por minuto"]
[null,10212603,"Calla viva ramillete aranal","Alcatraz vivo ramillete aranal",null,null,"J67","Bushel (UK) por segundo"]
[null,10212604,"Calla viva ramillete black eyed beauty","Alcatraz vivo ramillete black eyed beauty",null,null,"J68","Bushel (seco, estados unidos) por día"]
[null,10212605,"Calla viva ramillete black star","Alcatraz vivo ramillete black star",null,null,"J69","Bushel (seco, estados unidos) por hora"]
[null,10212606,"Calla viva ramillete brisbane","Alcatraz vivo ramillete brisbane",null,null,"J70","Bushel (seco, estados unidos) por minuto"]
[null,10212607,"Calla viva ramillete crystal blush","Alcatraz vivo ramillete crystal blush",null,null,"J71","Bushel (seco, estados unidos) por segundo"]
[null,10212608,"Calla viva ramillete crystal pink","Alcatraz vivo ramillete crystal pink",null,null,"J72","Centinewton metro"]
[null,10212609,"Calla viva ramillete crystal white","Alcatraz vivo ramillete crystal white",null,null,"J73","Centipoise por kelvin"]
[null,10212610,"Calla viva ramillete dark captain romanc","Alcatraz vivo ramillete dark captain romance",null,null,"J74","Centipoise por bar"]
[null,10212611,"Calla viva ramillete dark mozart","Alcatraz vivo ramillete dark mozart",null,null,"J75","Caloría"]
[null,10212612,"Calla viva ramillete dark naomi","Alcatraz vivo ramillete dark naomi",null,null,"J76","Caloría (tabla internacional) por gramo grado celsius"]
[null,10212613,"Calla viva ramillete deformed calla","Alcatraz vivo ramillete deformed calla",null,null,"J78","Caloría (termoquímica) por centímetro segundo grado celsius"]
[null,10212614,"Calla viva ramillete dordogne","Alcatraz vivo ramillete dordogne",null,null,"J79","Caloría (termoquímico) por gramo grado celsius"]
[null,10212615,"Calla viva ramillete etude","Alcatraz vivo ramillete etude",null,null,"J81","Caloría (termoquímica) por minuto"]
[null,10212616,"Calla viva ramillete farao","Alcatraz vivo ramillete farao",null,null,"J82","Caloría (termoquímica) por segundo"]
[null,10212617,"Calla viva ramillete fire glow","Alcatraz vivo ramillete fire glow",null,null,"J83","Clo"]
[null,10212618,"Calla viva ramillete florex gold","Alcatraz vivo ramillete florex gold",null,null,"J84","Centímetro por segundo kelvin"]
[null,10212619,"Calla viva ramillete garnet glow","Alcatraz vivo ramillete garnet glow",null,null,"J85","Centímetro por segundo bar"]
[null,10212620,"Calla viva ramillete hot chocolate","Alcatraz vivo ramillete hot chocolate",null,null,"J87","Centímetro cúbico por metro cúbico"]
[null,10212621,"Calla viva ramillete lavender improved","Alcatraz vivo ramillete lavender improved",null,null,"J89","Centímetro de mercurio"]
[null,10212622,"Calla viva ramillete light cromance","Alcatraz vivo ramillete light cromance",null,null,"J90","Decímetro cúbico por día"]
[null,10212623,"Calla viva ramillete little suzy","Alcatraz vivo ramillete little suzy",null,null,"J91","Decímetro cúbico por metro cúbico"]
[null,10212624,"Calla viva ramillete majestic red","Alcatraz vivo ramillete majestic red",null,null,"J92","Decímetro cúbico por minuto"]
[null,10212625,"Calla viva ramillete mango","Alcatraz vivo ramillete mango",null,null,"J93","Decímetro cúbico por segundo"]
[null,10212626,"Calla viva ramillete merlot","Alcatraz vivo ramillete merlot",null,null,"J94","Dina centímetro"]
[null,10212627,"Calla viva ramillete mozart","Alcatraz vivo ramillete mozart",null,null,"J95","Onza (fluido, UK) por día"]
[null,10212628,"Calla viva ramillete naomi","Alcatraz vivo ramillete naomi",null,null,"J96","Onza (fluido, UK) por hora"]
[null,10212629,"Calla viva ramillete night cap","Alcatraz vivo ramillete night cap",null,null,"J97","Onza (fluido, UK) por minuto"]
[null,10212630,"Calla viva ramillete odessa","Alcatraz vivo ramillete odessa",null,null,"J98","Onza (fluido, UK) por segundo"]
[null,10212631,"Calla viva ramillete pacific pink","Alcatraz vivo ramillete pacific pink",null,null,"J99","Onza (fluido, estados unidos) por día"]
[null,10212632,"Calla viva ramillete passion fruit","Alcatraz vivo ramillete passion fruit",null,null,"JB","Jumbo"]
[null,10212633,"Calla viva ramillete picasso","Alcatraz vivo ramillete picasso",null,null,"JE","Joule por kelvin"]
[null,10212634,"Calla viva ramillete pillow talk","Alcatraz vivo ramillete pillow talk",null,null,"JK","Megajoule por kilogramo"]
[null,10212635,"Calla viva ramillete pink persuation","Alcatraz vivo ramillete pink persuation",null,null,"JM","Megajoule por metro cúbico"]
[null,10212636,"Calla viva ramillete pisa","Alcatraz vivo ramillete pisa",null,null,"JNT","Junta de tubería"]
[null,10212637,"Calla viva ramillete pot of","Alcatraz vivo ramillete pot of",null,null,"Jo","Articulación"]
[null,10212638,"Calla viva ramillete red sox","Alcatraz vivo ramillete red sox",null,null,"JOU","Joule"]
[null,10212639,"Calla viva ramillete rosa","Alcatraz vivo ramillete rosa",null,null,"JPS","Cien metros"]
[null,10212640,"Calla viva ramillete ruby light rose","Alcatraz vivo ramillete ruby light rose",null,null,"JWL","Número de joyas"]
[null,10212641,"Calla viva ramillete samur","Alcatraz vivo ramillete samur",null,null,"K1","Demanda de kilowatt"]
[null,10212642,"Calla viva ramillete sapporo","Alcatraz vivo ramillete sapporo",null,null,"K10","Onza (fluido, estados unidos) por hora"]
[null,10212643,"Calla viva ramillete schwarzwalder","Alcatraz vivo ramillete schwarzwalder",null,null,"K11","Onza (fluido, estados unidos) por minuto"]
[null,10212644,"Calla viva ramillete serrada","Alcatraz vivo ramillete serrada",null,null,"K12","Onza (fluido, estados unidos) por segundo"]
[null,10212645,"Calla viva ramillete solemio","Alcatraz vivo ramillete solemio",null,null,"K13","Pie por grado fahrenheit"]
[null,10212646,"Calla viva ramillete sunrise","Alcatraz vivo ramillete sunrise",null,null,"K14","Pie por hora"]
[null,10212647,"Calla viva ramillete super mac","Alcatraz vivo ramillete super mac",null,null,"K15","Pie libra-fuerza por hora"]
[null,10212648,"Calla viva ramillete swan lake","Alcatraz vivo ramillete swan lake",null,null,"K16","Pie libra-fuerza por minuto"]
[null,10212649,"Calla viva ramillete vermeer","Alcatraz vivo ramillete vermeer",null,null,"K17","Pie por psi (libra por pulgada cuadrada)"]
[null,10212650,"Calla viva ramillete white butterfly","Alcatraz vivo ramillete white butterfly",null,null,"K18","Pie por segundo grado fahrenheit"]
[null,10212651,"Calla viva ramillete yellow","Alcatraz vivo ramillete yellow",null,null,"K19","Pie por segundo psi (libra por pulgada cuadrada)"]
[null,10212652,"Calla viva ramillete yellow mozart","Alcatraz vivo ramillete yellow mozart",null,null,"K2","Kilovoltios amperios demanda reactiva"]
[null,10212653,"Calla viva ramillete white large","Alcatraz vivo ramillete white large",null,null,"K20","Reciprocidad del pie cuadrado"]
[null,10212800,"Celosia viva","Flores de terciopelo vivas",null,null,"K21","Pie cúbico por grado fahrenheit"]
[null,10212801,"Celosia viva cresta de gallo verde","Flor de terciopelo viva verde",null,null,"K22","Pie cúbico por día"]
[null,10212802,"Celosia viva cresta de gallo anaranjado","Flor de terciopelo viva anaranjado",null,null,"K23","Pie cúbico por psi (libra por pulgada cuadrada)"]
[null,10212803,"Celosia viva cresta de gallo rosado","Flor de terciopelo viva rosado",null,null,"K24","Pie de agua"]
[null,10212804,"Celosia viva cresta de gallo púrpura","Flor de terciopelo viva púrpura",null,null,"K25","Pie de mercurio"]
[null,10212805,"Celosia viva cresta de gallo rojo","Flor de terciopelo viva rojo",null,null,"K26","Galón (UK) por día"]
[null,10212806,"Celosia viva cresta de gallo amarillo","Flor de terciopelo viva amarillo",null,null,"K27","Galón (UK) por hora"]
[null,10212807,"Celosia viva pluma rosado claro","Flor de terciopelo viva plume light",null,null,"K28","Galón (UK) por segundo"]
[null,10212808,"Celosia viva pluma anaranjado","Flor de terciopelo viva plume orange",null,null,"K3","Kilovoltio amperio hora reactivo"]
[null,10212809,"Celosia viva pluma púrpura","Flor de terciopelo viva plume purple",null,null,"K30","Galón (líquido, EUA) por segundo"]
[null,10212810,"Celosia viva pluma rojo","Flor de terciopelo viva plume red",null,null,"K31","Gramo-fuerza por centímetro cuadrado"]
[null,10212811,"Celosia viva pluma amarillo","Flor de terciopelo viva plume yellow",null,null,"K32","Gill (UK) por día"]
[null,10212812,"Celosia viva trigo rosado","Flor de terciopelo viva wheat pink",null,null,"K33","Gill (UK) por hora"]
[null,10212813,"Celosia viva trigo amarillo","Flor de terciopelo viva wheat yellow",null,null,"K34","Gill (UK) por minuto"]
[null,10212900,"Narciso vivo",null,null,null,"K35","Gill (UK) por segundo"]
[null,10212901,"Narciso vivo dick wilden",null,null,null,"K36","Gill (estados unidos) por día"]
[null,10212902,"Narciso vivo dutch master",null,null,null,"K37","Gill (estados unidos) por hora"]
[null,10212903,"Narciso vivo ice follies",null,null,null,"K38","Gill (estados unidos) por minuto"]
[null,10212904,"Narciso vivo ice king",null,null,null,"K39","Gill (estados unidos) por segundo"]
[null,10212905,"Narciso vivo johan strauss",null,null,null,"K40","Aceleración estándar de la caída libre"]
[null,10212906,"Narciso vivo yellow carlton",null,null,null,"K41","Grano por galón (EUA)"]
[null,10213000,"Dalia viva",null,null,null,"K42","Caballo de fuerza de caldera "]
[null,10213001,"Dalia viva bicolor",null,null,null,"K43","Caballo de fuerza (eléctrico)"]
[null,10213002,"Dalia viva rosado fuerte",null,null,null,"K45","Pulgada por grado fahrenheit"]
[null,10213003,"Dalia viva rosado claro",null,null,null,"K46","Pulgada por psi (libra por pulgada cuadrada)"]
[null,10213004,"Dalia viva rosado medio",null,null,null,"K47","Pulgada por segundo grado fahrenheit"]
[null,10213005,"Dalia viva anaranjado",null,null,null,"K48","Pulgada por segundo psi (libra por pulgada cuadrada)"]
[null,10213006,"Dalia viva durazno",null,null,null,"K49","Reciprocidad de la pulgada cuadrada"]
[null,10213007,"Dalia viva púrpura",null,null,null,"K5","Kilovoltios amperios (reactivos)"]
[null,10213008,"Dalia viva roja",null,null,null,"K50","Kilobaud"]
[null,10213009,"Dalia viva blanca",null,null,null,"K51","Kilocaloría (significado)"]
[null,10213010,"Dalia viva amarilla",null,null,null,"K52","Kilocaloría (tabla internacional) por hora metro grado celsius"]
[null,10213100,"Delphinium vivo",null,null,null,"K53","Kilocaloría (termoquímico)"]
[null,10213101,"Delphinium vivo bella azul oscuro",null,null,null,"K54","Kilocaloría (termoquímica) por minuto"]
[null,10213102,"Delphinium vivo bella azul claro",null,null,null,"K55","Kilocaloría (termoquímica) por segundo"]
[null,10213103,"Delphinium vivo bella blanco",null,null,null,"K58","KiloMol por hora"]
[null,10213104,"Delphinium vivo azul sombra",null,null,null,"K59","KiloMol por metro cúbico kelvin"]
[null,10213105,"Delphinium vivo híbrido azul oscuro",null,null,null,"K6","Kilolitro"]
[null,10213106,"Delphinium vivo híbrido azul claro",null,null,null,"K60","KiloMol por metro cúbico bar"]
[null,10213107,"Delphinium vivo híbrido malva",null,null,null,"K61","KiloMol por minuto"]
[null,10213108,"Delphinium vivo híbrido rosado",null,null,null,"K62","Litro por litro"]
[null,10213109,"Delphinium vivo híbrido púrpura",null,null,null,"K63","Reciprocidad del litro"]
[null,10213110,"Delphinium vivo híbrido rojo",null,null,null,"K64","Libra (avoirdupois) por grado fahrenheit"]
[null,10213111,"Delphinium vivo híbrido blanco",null,null,null,"K65","Libra (avoirdupois) pie cuadrado"]
[null,10213112,"Delphinium vivo princesa carolina",null,null,null,"K66","Libra (avoirdupois) por día"]
[null,10213113,"Delphinium vivo volkerfrieden",null,null,null,"K67","Libra por pie hora"]
[null,10213200,"Clavel (dianthus) vivo","Clavelinas vivas",null,null,"K68","Libra por pie segundo"]
[null,10213201,"Clavel (dianthus) vivo chocolate","Clavelina viva chocolate",null,null,"K69","Libra (avoirdupois) por pie cúbico grado fahrenheit"]
[null,10213202,"Clavel (dianthus) vivo fucsia","Clavelina viva fucsia",null,null,"K70","Libra (avoirdupois) por pie cúbico psi"]
[null,10213203,"Clavel (dianthus) vivo bola verde","Clavelina viva bola verde",null,null,"K71","Libra (avoirdupois) por galón (UK)"]
[null,10213204,"Clavel (dianthus) vivo rosado fuerte","Clavelina viva rosado fuerte",null,null,"K73","Libra (avoirdupois) por hora grados fahrenheit"]
[null,10213205,"Clavel (dianthus) vivo lavanda","Clavelina viva lavanda",null,null,"K74","Libra (avoirdupois) por hora libra-fuerza por pulgada cuadrada"]
[null,10213206,"Clavel (dianthus) vivo frambuesa","Clavelina viva frambuesa",null,null,"K75","Libra (avoirdupois) por pulgada cúbica grado fahrenheit"]
[null,10213207,"Clavel (dianthus) vivo rojo","Clavelina viva rojo",null,null,"K76","Libra (avoirdupois) por pulgada cúbica psi"]
[null,10213208,"Clavel (dianthus) vivo rosado","Clavelina viva rosado",null,null,"K77","Libra (avoirdupois) por psi"]
[null,10213300,"Eremruses vivas",null,null,null,"K78","Libra (avoirdupois) por minuto"]
[null,10213301,"Eremurus vivo deruyter híbrido",null,null,null,"K79","Libra (avoirdupois) por minuto grados fahrenheit"]
[null,10213302,"Eremurus vivo himalaicus blanco",null,null,null,"K80","Libra (avoirdupois) por minuto libra-fuerza por pulgada cuadrada"]
[null,10213303,"Eremurus vivo anaranjado",null,null,null,"K81","Libra (avoirdupois) por segundo"]
[null,10213304,"Eremurus vivo durazno",null,null,null,"K82","Libra (avoirdupois)por segundo grados fahrenheit"]
[null,10213305,"Eremurus vivo amarillo",null,null,null,"K83","Libra (avoirdupois) por segundo libra-fuerza por pulgada cuadrada"]
[null,10213400,"Brezo (erica) viva","Brecinas vivas",null,null,"K84","Libra por yarda cúbica "]
[null,10213401,"Brezo (erica) vivo campunalarus","Brecina viva campunalarus",null,null,"K85","Libra-fuerza por pie cuadrado"]
[null,10213402,"Brezo (erica) vivo conica","Brecina viva cónica",null,null,"K86","Libra-fuerza por pulgada cuadrada grados fahrenheit"]
[null,10213403,"Brezo (erica) vivo green ice","Brecina viva green ice",null,null,"K87","Libra-fuerza por pulgada cuadrada pulgada cúbica por segundo"]
[null,10213404,"Brezo (erica) vivo rosado","Brecina viva rosado",null,null,"K88","Libra-fuerza por pulgada cuadrada litro por segundo"]
[null,10213405,"Brezo (erica) vivo príncipe de gales","Brecina viva príncipe de gales",null,null,"K89","Libra-fuerza por pulgada cuadrada metro cúbico por segundo"]
[null,10213500,"Euphorbia viva","Coronas de Cristo vivas",null,null,"K90","Libra-fuerza por pulgada cuadrada yarda cúbica por segundo"]
[null,10213501,"Euphorbia viva characias","Corona de Cristo viva characias",null,null,"K91","Libra-fuerza segundo por pie cuadrado"]
[null,10213502,"Euphorbia viva griffithii fireglow","Corona de Cristo viva griffithii fireglow",null,null,"K92","Libra-fuerza segundo por pulgada cuadrada"]
[null,10213503,"Euphorbia viva martini","Corona de Cristo viva martini",null,null,"K93","Reciprocidad psi"]
[null,10213504,"Euphorbia viva anaranjada","Corona de Cristo viva anaranjada",null,null,"K94","Cuarto (líquido, UK) por día"]
[null,10213505,"Euphorbia viva durazno","Corona de Cristo viva durazno",null,null,"K95","Cuarto (líquido, UK) por hora"]
[null,10213506,"Euphorbia viva rosada","Corona de Cristo viva rosada",null,null,"K96","Cuarto (líquido, UK) por minuto"]
[null,10213507,"Euphorbia viva roja","Corona de Cristo viva roja",null,null,"K97","Cuarto (líquido, UK) por segundo"]
[null,10213508,"Euphorbia viva blanca","Corona de Cristo viva blanca",null,null,"K98","Cuarto (líquido, estados unidos) por día"]
[null,10213509,"Euphorbia viva amarilla","Corona de Cristo viva amarilla",null,null,"K99","Cuarto (líquido, estados unidos) por hora"]
[null,10213510,"Euphorbia viva amarilla spurge","Corona de Cristo viva amarilla spurge",null,null,"KA","Pastel"]
[null,10213600,"Fresia viva","Freesias vivas",null,null,"KAT","Katal"]
[null,10213601,"Fresia viva crema","Freesia viva crema",null,null,"KB","Kilocaracter"]
[null,10213602,"Fresia viva doble blanca","Freesia viva doble blanca",null,null,"KBA","Kilobar"]
[null,10213603,"Fresia viva doble amarilla","Freesia viva doble amarilla",null,null,"KCC","Kilogramo de cloruro de colina"]
[null,10213604,"Fresia viva rosado fuerte","Freesia viva rosado fuerte",null,null,"KD","Kilogram decimal"]
[null,10213605,"Fresia viva lady brunet","Freesia viva lady brunet",null,null,"KDW","Kilogramo de peso neto drenado"]
[null,10213606,"Fresia viva lavanda","Freesia viva lavanda",null,null,"KEL","Kelvin"]
[null,10213607,"Fresia viva rosado medio","Freesia viva rosado medio",null,null,"KF","Kilopacket"]
[null,10213608,"Fresia viva anaranjado","Freesia viva anaranjado",null,null,"KGM","Kilogramo"]
[null,10213609,"Fresia viva pimpinela","Freesia viva pimpinela",null,null,"KGS","Kilogramo por segundo"]
[null,10213610,"Fresia viva rosada","Freesia viva rosada",null,null,"KHY","Kilogramo de peróxido de hidrógeno"]
[null,10213611,"Fresia viva pùrpura","Freesia viva púrpura",null,null,"KHZ","Kilohertz"]
[null,10213612,"Fresia viva roja","Freesia viva roja",null,null,"KI","Kilogramo por milímetro de ancho"]
[null,10213613,"Fresia viva blanca","Freesia viva blanca",null,null,"KIC","Kilogramo, incluyendo el contenedor"]
[null,10213614,"Fresia viva amarilla","Freesia viva amarilla",null,null,"KIP","Kilogramo, incluyendo el empaquetado interno"]
[null,10213700,"Ajedrezada viva",null,null,null,"KJ","Kilosegmento"]
[null,10213701,"Ajedrezada viva acmopelata",null,null,null,"KJO","Kilojoule"]
[null,10213702,"Ajedrezada viva assyriaca",null,null,null,"KL","Kilogramo por metro"]
[null,10213703,"Ajedrezada viva assyriaca uva vulpis",null,null,null,"KLK","Porcentaje de material seco láctico"]
[null,10213704,"Ajedrezada viva elysee",null,null,null,"KLX","Kilolux"]
[null,10213705,"Ajedrezada viva imperialis anaranjada",null,null,null,"KMA","Kilogramo de metilamina"]
[null,10213706,"Ajedrezada viva imperialis amarilla",null,null,null,"KMH","Kilómetro por hora"]
[null,10213707,"Ajedrezada viva meleagris",null,null,null,"KMK","Kilómetro cuadrado"]
[null,10213708,"Ajedrezada viva michailowski",null,null,null,"KMQ","Kilogramo por metro cúbico"]
[null,10213709,"Ajedrezada viva uva vulpis",null,null,null,"KMT","Kilómetro"]
[null,10213800,"Hiniesta viva",null,null,null,"KNI","Kilogramo de nitrógeno"]
[null,10213801,"Hiniesta viva verde",null,null,null,"KNM","Kolonewton por metro cuadrado"]
[null,10213802,"Hiniesta viva rosado fuerte",null,null,null,"KNS","Kilogramo sustancia nombrada"]
[null,10213803,"Hiniesta viva lavanda",null,null,null,"KNT","Nudo"]
[null,10213804,"Hiniesta viva rosado claro",null,null,null,"KO","Miliequivalentes de potasa cáustica por gramo de producto"]
[null,10213805,"Hiniesta viva durazno",null,null,null,"KPA","Kilopascal"]
[null,10213806,"Hiniesta viva púrpura",null,null,null,"KPH","Kilogramo de hidróxido de potasio (potasa cáustica)"]
[null,10213807,"Hiniesta viva blanco",null,null,null,"KPO","Kilogramo de óxido de potasio"]
[null,10213808,"Hiniesta viva amarillo",null,null,null,"KPP","Kilogramo de pentóxido de fósforo (anhídrido fosfórico)"]
[null,10213900,"Margarita viva","Gerberas vivas",null,null,"KR","Kiloroentgen"]
[null,10213901,"Margarita viva crema de centro negro","Gerbera viva crema de centro negro",null,null,"KS","Mil libras por pulgada cuadrada"]
[null,10213902,"Margarita viva crema","Gerbera viva crema",null,null,"KSD","Kilogramo de sustancia 90% seco"]
[null,10213903,"Margarita viva dorada","Gerbera viva dorada",null,null,"KSH","Kilogramo de hidróxido de sodio (sodio cáustica)"]
[null,10213904,"Margarita viva rosado fuerte","Gerbera viva rosado fuerte",null,null,"KT","Kit"]
[null,10213905,"Margarita viva rosado claro","Gerbera viva rosado claro",null,null,"KTN","Kilotonelada Métrica"]
[null,10213906,"Margarita viva magenta","Gerbera viva magenta",null,null,"KUR","Kilogramo de uranio"]
[null,10213907,"Margarita viva mini coral","Gerbera viva mini coral",null,null,"KVA","Kilovoltio - amperio"]
[null,10213908,"Margarita viva mini fucsia","Gerbera viva mini fucsia",null,null,"KVR","Kilovar"]
[null,10213909,"Margarita viva mini rosado fuerte","Gerbera viva mini rosado fuerte",null,null,"KVT","Kilovoltio"]
[null,10213910,"Margarita viva mini anaranjado claro de centro negro","Gerbera viva mini anaranjado claro de centro negro",null,null,"KW","Kilogramo por milímetro"]
[null,10213911,"Margarita viva mini anaranjado de centro negro","Gerbera viva mini anaranjado de centro negro",null,null,"KWH","Kilowatt hora"]
[null,10213912,"Margarita viva mini anaranjado","Gerbera viva mini anaranjado",null,null,"KWN","Kilowatt hora por metro cúbico normalizado"]
[null,10213913,"Margarita viva mini rojo de centro negro","Gerbera viva mini rojo de centro negro",null,null,"KWO","Kilogramo de trióxido de tungsteno"]
[null,10213914,"Margarita viva mini blanco","Gerbera viva mini blanco",null,null,"KWS","Kilowatt hora por metro cúbico estándar"]
[null,10213915,"Margarita viva mini amarillo claro de centro negro","Gerbera viva mini amarillo claro de centro negro",null,null,"KWT","Kilowatt"]
[null,10213916,"Margarita viva anaranjado de centro negro","Gerbera viva anaranjado de centro negro",null,null,"KX","Mililitro por kilogramo"]
[null,10213917,"Margarita viva anaranjada","Gerbera viva anaranjada",null,null,"L10","Cuarto (líquido, estados unidos) por minuto"]
[null,10213918,"Margarita viva durazno de centro negro","Gerbera viva durazno de centro negro",null,null,"L11","Cuarto (líquido, estados unidos) por segundo"]
[null,10213919,"Margarita viva durazno","Gerbera viva durazno",null,null,"L12","Metro por segundo kelvin"]
[null,10213920,"Margarita viva rosada de centro negro","Gerbera viva rosada de centro negro",null,null,"L13","Metro por segundo bar"]
[null,10213921,"Margarita viva rosada","Gerbera viva rosada",null,null,"L14","Metro cuadrado hora grado celsius por kilocaloría (tabla internacional)"]
[null,10213922,"Margarita viva roja de centro negro","Gerbera viva roja de centro negro",null,null,"L15","Milipascal segundo por kelvin"]
[null,10213923,"Margarita viva roja","Gerbera viva roja",null,null,"L16","Milipascal segundo por bar"]
[null,10213924,"Margarita viva spider durazno","Gerbera viva spider durazno",null,null,"L17","Miligramo por metro cúbico kelvin"]
[null,10213925,"Margarita viva spider roja","Gerbera viva spider roja",null,null,"L18","Miligramo por metro cúbico bar"]
[null,10213926,"Margarita viva terracota","Gerbera viva terracota",null,null,"L19","Mililitro por litro"]
[null,10213927,"Margarita viva blanca de centro negro","Gerbera viva blanca de centro negro",null,null,"L2","Litro por minuto"]
[null,10213928,"Margarita viva blanca","Gerbera viva blanca",null,null,"L20","Reciprocidad del milímetro cúbico"]
[null,10213929,"Margarita viva amarilla","Gerbera viva amarilla",null,null,"L21","Milímetro cúbico por metro cúbico"]
[null,10214000,"Jengibre vivo","Flores de jengibre vivas",null,null,"L23","Mol por hora "]
[null,10214001,"Jengibre vivo  indonesio","Flor de jengibre viva indonesio",null,null,"L24","Mol por kilogramo kelvin"]
[null,10214002,"Jengibre vivo jungle king rosado","Flor de jengibre viva jungle king rosado",null,null,"L25","Mol por kilogramo bar"]
[null,10214003,"Jengibre vivo jungle king rojo","Flor de jengibre viva jungle king rojo",null,null,"L26","Mol por litro kelvin"]
[null,10214004,"Jengibre vivo rosado","Flor de jengibre viva rosado",null,null,"L27","Mol por litro bar"]
[null,10214005,"Jengibre vivo rojo","Flor de jengibre viva rojo",null,null,"L28","Mol por metro cúbico kelvin"]
[null,10214006,"Jengibre vivo torch","Flor de jengibre viva torch",null,null,"L29","Mol por metro cúbico bar"]
[null,10214100,"Gladiolo vivo","Gladiolas vivas",null,null,"L30","Mol por minuto"]
[null,10214101,"Gladiolo vivo vinotinto","Gladiola viva burgundy",null,null,"L31","Milliroentgen aequivalent men"]
[null,10214102,"Gladiolo vivo fucsia","Gladiola viva fucsia",null,null,"L32","Nanogramo por kilogramo"]
[null,10214103,"Gladiolo vivo verde","Gladiola viva verde",null,null,"L33","Onza (avoirdupois) por día"]
[null,10214104,"Gladiolo vivo rosado fuerte","Gladiola viva rosado fuerte",null,null,"L34","Onza (avoirdupois) por hora"]
[null,10214105,"Gladiolo vivo rosado claro","Gladiola viva rosado claro",null,null,"L35","Onza (avoirdupois) por minuto"]
[null,10214106,"Gladiolo vivo anaranjado","Gladiola viva anaranjado",null,null,"L36","Onza (avoirdupois) por segundo"]
[null,10214107,"Gladiolo vivo durazno","Gladiola viva durazno",null,null,"L37","Onza (avoirdupois) por galón (UK)"]
[null,10214108,"Gladiolo vivo rosado medio","Gladiola viva rosado medio",null,null,"L38","Onza (avoirdupois) por galón (EUA)"]
[null,10214109,"Gladiolo vivo púrpura","Gladiola viva púrpura",null,null,"L39","Onza (avoirdupois) por pulgada cúbica"]
[null,10214110,"Gladiolo vivo rojo bicolor","Gladiola viva rojo bicolor",null,null,"L40","Onza fuerza"]
[null,10214111,"Gladiolo vivo rojo","Gladiola viva rojo",null,null,"L41","Onza (avoirdupois) fuerza pulgada"]
[null,10214112,"Gladiolo vivo salmón","Gladiola viva salmón",null,null,"L42","Picosiemens por metro"]
[null,10214113,"Gladiolo vivo blanco","Gladiola viva blanco",null,null,"L43","Peck (UK)"]
[null,10214114,"Gladiolo vivo amarillo","Gladiola viva amarillo",null,null,"L44","Peck (UK) por día"]
[null,10214200,"Godetia viva",null,null,null,"L45","Peck (UK) por hora"]
[null,10214201,"Godetia viva bicolor",null,null,null,"L46","Peck (UK) por minuto"]
[null,10214202,"Godetia viva fucsia",null,null,null,"L47","Peck (UK) por segundo"]
[null,10214203,"Godetia viva rosado fuerte",null,null,null,"L48","Peck (seco, estados unidos) por día"]
[null,10214204,"Godetia viva anaranjada",null,null,null,"L49","Peck (seco, estados unidos) por hora"]
[null,10214205,"Godetia viva roja",null,null,null,"L50","Peck (seco, estados unidos) por minuto"]
[null,10214206,"Godetia viva blanca",null,null,null,"L51","Peck (seco, estados unidos) por segundo"]
[null,10214300,"Bromelia viva",null,null,null,"L52","Libra.fuerza por pulgada cuadrada por libra fuerza por pulgada cuadrada"]
[null,10214301,"Bromelia lingulata viva anaranjada",null,null,null,"L53","Pinta (UK) por día"]
[null,10214302,"Bromelia lingulata viva roja",null,null,null,"L54","Pinta (UK) por hora"]
[null,10214303,"Bromelia lingulata viva blanca",null,null,null,"L55","Pinta (UK) por minuto"]
[null,10214304,"Bromelia lingulata viva amarilla",null,null,null,"L56","Pinta (UK) por segundo"]
[null,10214305,"Bromelia variegata viva",null,null,null,"L57","Pinta (líquido, estados unidos) por día"]
[null,10214400,"Gypsophilia viva","Nubes vivas",null,null,"L58","Pinta (líquido, estados unidos) por hora"]
[null,10214401,"Gypsophilia viva bambino","Nube viva bambino",null,null,"L59","Pinta (líquido, estados unidos) por minuto"]
[null,10214402,"Gypsophilia viva million stars","Nube viva million stars",null,null,"L60","Pinta (líquido, estados unidos) por segundo"]
[null,10214403,"Gypsophilia viva mirabella","Nube viva mirabella",null,null,"L61","Pinta (US seco)"]
[null,10214404,"Gypsophilia viva new love","Nube viva new love",null,null,"L62","Cuarto de galón (seco de los EUA)"]
[null,10214405,"Gypsophilia viva orión","Nube viva orión",null,null,"L63","Slug por día"]
[null,10214406,"Gypsophilia viva perfecta","Nube viva perfecta",null,null,"L64","Slug por pie segundo"]
[null,10214500,"Brezo vivo","Biércol vivo",null,null,"L65","Slug por pie cúbico"]
[null,10214501,"Brezo vivo augustine","Biércol vivo augustine",null,null,"L66","Slug por hora"]
[null,10214502,"Brezo vivo érica cuatro hermanas","Biércol vivo érica cuatro hermanas",null,null,"L67","Slug por minuto"]
[null,10214503,"Brezo vivo francés","Biércol vivo francés",null,null,"L68","Slug por segundo"]
[null,10214504,"Brezo vivo verde","Biércol vivo verde",null,null,"L69","Tonelada por kelvin"]
[null,10214505,"Brezo sterling range blanco vivo","Biércol vivo sterling range blanco",null,null,"L70","Tonelada por bar"]
[null,10214506,"Brezo vivo rosado sunset","Biércol vivo rosado sunset",null,null,"L71","Tonelada por día"]
[null,10214507,"Brezo vivo blanco","Biércol vivo blanco",null,null,"L72","Tonelada por día kelvin"]
[null,10214600,"Heliconia viva","Pinzas de langosta vivas",null,null,"L73","Tonelada por día bar"]
[null,10214601,"Heliconia viva bihai claw","Pinza de langosta viva bihai claw",null,null,"L74","Tonelada por hora kelvin"]
[null,10214602,"Heliconia viva bihai flash","Pinza de langosta viva bihai flash",null,null,"L75","Tonelada por hora bar"]
[null,10214603,"Heliconia viva bihai lobster claw","Pinza de langosta viva bihai lobster claw",null,null,"L76","Tonelada por metro cúbico kelvin"]
[null,10214604,"Heliconia viva caribea red","Pinza de langosta viva caribea red",null,null,"L77","Tonelada por metro cúbico bar"]
[null,10214605,"Heliconia viva caribea yellow","Pinza de langosta viva caribea yellow",null,null,"L78","Tonelada por minuto"]
[null,10214606,"Heliconia viva christmas","Pinza de langosta viva christmas",null,null,"L79","Tonelada por minuto kelvin"]
[null,10214607,"Heliconia viva edge of night","Pinza de langosta viva edge of night",null,null,"L80","Tonelada por minuto bar"]
[null,10214608,"Heliconia viva green bihai","Pinza de langosta viva green bihai",null,null,"L81","Tonelada por segundo"]
[null,10214609,"Heliconia viva marginata lutea","Pinza de langosta viva marginata lútea",null,null,"L82","Tonelada por segundo kelvin"]
[null,10214610,"Heliconia viva psitt fire opal","Pinza de langosta viva psitt fire opal",null,null,"L83","Tonelada por segundo bar"]
[null,10214611,"Heliconia viva psittacorum","Pinza de langosta viva psittacorum",null,null,"L84","Tonelada (flota UK)"]
[null,10214612,"Heliconia viva richmond red","Pinza de langosta viva richmond red",null,null,"L85","Tonelada larga por día"]
[null,10214613,"Heliconia viva rostrata","Pinza de langosta viva rostrata",null,null,"L86","Tonelada (flota estados unidos)"]
[null,10214614,"Heliconia viva sexy pink","Pinza de langosta viva sexy pink",null,null,"L87","Tonelada corta por grado fahrenheit"]
[null,10214615,"Heliconia viva sexy scarlett","Pinza de langosta viva sexy scarlett",null,null,"L88","Tonelada corta por día"]
[null,10214616,"Heliconia viva shogun","Pinza de langosta viva shogun",null,null,"L89","Tonelada corta por hora grados fahrenheit"]
[null,10214617,"Heliconia viva small red","Pinza de langosta viva small red",null,null,"L90","Tonelada corta por hora libra-fuerza por pulgada cuadrada"]
[null,10214618,"Heliconia viva southern cross","Pinza de langosta viva southern cross",null,null,"L91","Tonelada corta por psi"]
[null,10214619,"Heliconia viva wagneriana","Pinza de langosta viva wagneriana",null,null,"L92","Tonelada larga (UK) por yarda cúbica"]
[null,10214700,"Jacinto vivo",null,null,null,"L93","Tonelada corta (estados unidos) por yarda cúbica"]
[null,10214701,"Jacinto vivo bean",null,null,null,"L94","Tonelada fuerza"]
[null,10214702,"Jacinto vivo durazno",null,null,null,"L95","Año común"]
[null,10214703,"Jacinto vivo azul",null,null,null,"L96","Año sideral"]
[null,10214704,"Jacinto vivo fucsia",null,null,null,"L98","Yarda por grado fahrenheit"]
[null,10214705,"Jacinto vivo rosado fuerte",null,null,null,"L99","Yarda por psi (libra por pulgada cuadrada)"]
[null,10214706,"Jacinto vivo lavanda",null,null,null,"LA","Libra por pulgada cúbica "]
[null,10214707,"Jacinto vivo azul claro",null,null,null,"LAC","Porcentaje de exceso de lactosa"]
[null,10214708,"Jacinto vivo rosado medio",null,null,null,"LBR","Libra"]
[null,10214709,"Jacinto vivo rosado",null,null,null,"LBT","Troy pound"]
[null,10214710,"Jacinto vivo estrella púrpura",null,null,null,"LC","Centímetro lineal"]
[null,10214711,"Jacinto vivo blanco",null,null,null,"LD","Litro por día"]
[null,10214712,"Jacinto vivo amarillo",null,null,null,"LE","Lite"]
[null,10214800,"Hydrangea viva","Hortensias vivas",null,null,"LEF","Hoja"]
[null,10214801,"Hydrangea viva anabella","Hortensia viva anabella",null,null,"LF","Pie lineal"]
[null,10214802,"Hydrangea viva azul antiguo","Hortensia viva azul antiguo",null,null,"LH","Hora de trabajo"]
[null,10214803,"Hydrangea viva azul antiguo  o verde o nueva zelandia","Hortensia viva azul antiguo o verde o nueva zelandia",null,null,"LI","Pulgada lineal"]
[null,10214804,"Hydrangea viva verde antiguo","Hortensia viva verde antiguo",null,null,"LJ","Spray grande"]
[null,10214805,"Hydrangea viva rosado antiguo","Hortensia viva rosado antiguo",null,null,"LK","Enlazar"]
[null,10214806,"Hydrangea viva púrpura antiguo o nueva zelandia","Hortensia viva púrpura antiguo o nueva zelandia",null,null,"LM","Metro lineal"]
[null,10214807,"Hydrangea viva aubergene o nueva zelandia","Hortensia viva aubergene o nueva zelandia",null,null,"LN","Longitud"]
[null,10214808,"Hydrangea viva azul oscuro","Hortensia viva azul oscuro",null,null,"LO","Lote [unidad de adquisición]"]
[null,10214809,"Hydrangea viva rosado oscuro","Hortensia viva rosado oscuro",null,null,"LP","Libra líquida"]
[null,10214810,"Hydrangea viva púrpura oscuro","Hortensia viva púrpura oscuro",null,null,"LPA","Litro de alcohol puro"]
[null,10214811,"Hydrangea viva berenjena","Hortensia viva berenjena",null,null,"LR","Capa "]
[null,10214812,"Hydrangea viva verde teñida","Hortensia viva verde teñida",null,null,"LS","Suma global"]
[null,10214813,"Hydrangea viva limón verde","Hortensia viva limón verde",null,null,"LTN","Tonelada (UK) o tonelada larga (estados unidos)"]
[null,10214814,"Hydrangea viva rosado fuerte","Hortensia viva rosado fuerte",null,null,"LTR","Litro"]
[null,10214815,"Hydrangea viva jumbo blanca","Hortensia viva jumbo blanca",null,null,"LUB","Tonelada métrica, aceite lubricante"]
[null,10214816,"Hydrangea viva lavanda o nueva zelandia","Hortensia viva lavanda o nueva zelandia",null,null,"LUM","Lumen"]
[null,10214817,"Hydrangea viva azul claro","Hortensia viva azul claro",null,null,"LUX","Lux"]
[null,10214818,"Hydrangea viva rosado claro grande","Hortensia viva rosado claro grande",null,null,"LX","Yarda lineal por libra"]
[null,10214819,"Hydrangea viva verde lima grande","Hortensia viva verde lima grande",null,null,"LY","Yarda lineal"]
[null,10214820,"Hydrangea viva mini verde","Hortensia viva mini verde",null,null,"M0","cinta magnética"]
[null,10214821,"Hydrangea viva oakleaf","Hortensia viva oakleaf",null,null,"M1","Miligramo por litro"]
[null,10214822,"Hydrangea viva oakleaf copo de nieve","Hortensia viva oakleaf copo de nieve",null,null,"M10","Reciprocidad de la yarda cuadrada"]
[null,10214823,"Hydrangea viva rosado teñido","Hortensia viva rosado teñido",null,null,"M11","Yarda cúbica por grado fahrenheit"]
[null,10214824,"Hydrangea viva rosado","Hortensia viva rosado",null,null,"M12","Yarda cúbica por día"]
[null,10214825,"Hydrangea viva púrpura o nueva zelandia","Hortensia viva púrpura o nueva zelandia",null,null,"M13","Yarda cúbica por hora "]
[null,10214826,"Hydrangea viva rojo teñido","Hortensia viva rojo teñido",null,null,"M14","Yarda cúbica por psi (libra por pulgada cuadrada)"]
[null,10214827,"Hydrangea viva shocking blue","Hortensia viva shocking blue",null,null,"M15","Yarda cúbica por minuto"]
[null,10214828,"Hydrangea viva tardiva","Hortensia viva tardiva",null,null,"M16","Yarda cúbica por segundo"]
[null,10214829,"Hydrangea viva blanca","Hortensia viva blanca",null,null,"M17","Kilohertz metro"]
[null,10214900,"Iris Viva",null,null,null,"M18","Gigahertz metro"]
[null,10214901,"Iris viva negra barbada",null,null,null,"M19","Beaufort"]
[null,10214902,"Iris viva azul barbada",null,null,null,"M20","Recíproco de megakelvin o megakelvin a la potencia menos 1"]
[null,10214903,"Iris viva lavanda barbada",null,null,null,"M21","Kilovoltio-amperio hora reciprocidad"]
[null,10214904,"Iris viva barbada azul clara",null,null,null,"M22","Milímetro por centímetro cuadrado minuto"]
[null,10214905,"Iris viva barbada púrpura",null,null,null,"M23","Newton por centímetro"]
[null,10214906,"Iris viva barbada roja",null,null,null,"M24","Ohm kilómetro"]
[null,10214907,"Iris viva barbada blanca",null,null,null,"M25","Porcentaje por grado celsius"]
[null,10214908,"Iris viva baerbada blanca y púrpura",null,null,null,"M26","GigaOhm por metro"]
[null,10214909,"Iris viva amarilla barbada",null,null,null,"M27","Megahertz metro"]
[null,10214910,"Iris viva blue elegance",null,null,null,"M29","Kilogramo por kilogramo"]
[null,10214911,"Iris viva casablanca",null,null,null,"M30","voltio-amperio segundo reciprocidad"]
[null,10214912,"Iris viva golden beau",null,null,null,"M31","Kilogramo por kilómetro"]
[null,10214913,"Iris viva hildegard",null,null,null,"M32","Segundos pascal por litro"]
[null,10214914,"Iris viva hong kong",null,null,null,"M33","MiliMol por litro"]
[null,10214915,"Iris viva ideal",null,null,null,"M34","Newton metro por metro cuadrado"]
[null,10214916,"Iris viva professor blue",null,null,null,"M35","Milivoltio - amperio"]
[null,10214917,"Iris viva purple",null,null,null,"M36","Mes de 30 días"]
[null,10214918,"Iris viva spuria",null,null,null,"M37","Actual 360"]
[null,10214919,"Iris viva telstar",null,null,null,"M38","Kilómetro por segundo cuadrado"]
[null,10215000,"Pata de canguro viva",null,null,null,"M39","Centímetro por segundo cuadrado"]
[null,10215001,"Pata de canguro viva bicolor",null,null,null,"M4","Valor monetario"]
[null,10215002,"Pata de canguro viva negra",null,null,null,"M40","Yarda por segundo cuadrado"]
[null,10215003,"Pata de canguro viva verde",null,null,null,"M41","Milímetro por segundo cuadrado"]
[null,10215004,"Pata de canguro viva anaranjada",null,null,null,"M42","Milla (milla estatal)  por segundo cuadrado"]
[null,10215005,"Pata de canguro viva rosada",null,null,null,"M43","Mil (unidad de Medida Militar)"]
[null,10215006,"Pata de canguro viva roja",null,null,null,"M44","Revolución"]
[null,10215007,"Pata de canguro viva amarilla",null,null,null,"M45","Grado por segundo cuadrado"]
[null,10215100,"Delfinio vivo","Delphinium (larkspurs) vivos",null,null,"M46","Revolución por minuto"]
[null,10215101,"Delfinio viva azul nube","Delphinium (larkspurs) vivo azul nube",null,null,"M47","Circular Mil"]
[null,10215102,"Delfinio viva rosado fuerte","Delphinium (larkspurs) vivo rosado fuerte",null,null,"M48","Milla cuadrada (basado en u.s survey foot)"]
[null,10215103,"Delfinio viva lavanda","Delphinium (larkspurs) vivo lavanda",null,null,"M49","Cadena "]
[null,10215104,"Delfinio viva rosado claro","Delphinium (larkspurs) vivo rosado claro",null,null,"M5","Microcurie"]
[null,10215105,"Delfinio viva púrpura","Delphinium (larkspurs) vivo púrpura",null,null,"M50","Estadio"]
[null,10215106,"Delfinio viva blanca","Delphinium (larkspurs) vivo blanca",null,null,"M51","Pie (Topografía UEA)"]
[null,10215200,"Lepto vivo",null,null,null,"M52","Milla"]
[null,10215201,"Lepto vivo azul o floreciente",null,null,null,"M53","Metro por pascal"]
[null,10215202,"Lepto vivo rosado fuerte",null,null,null,"M55","Metro por radián"]
[null,10215203,"Lepto vivo rosado claro",null,null,null,"M56","Shake "]
[null,10215204,"Lepto vivo rosado",null,null,null,"M57","Milla por minuto"]
[null,10215205,"Lepto vivo rojo",null,null,null,"M58","Milla por segundo"]
[null,10215206,"Lepto vivo blanco",null,null,null,"M59","Metro por segundo pascal"]
[null,10215300,"Lila viva",null,null,null,"M60","Metro por hora"]
[null,10215301,"Lila  viva híbrida francesa lavanda",null,null,null,"M61","Pulgada por año"]
[null,10215302,"Lila  viva híbrida francesa púrpura",null,null,null,"M62","Kilómetro por segundo"]
[null,10215303,"Lila  viva púrpura",null,null,null,"M63","Pulgada por minuto"]
[null,10215304,"Lila  viva vino",null,null,null,"M64","Yarda por segundo"]
[null,10215305,"Lila  viva blanca",null,null,null,"M65","Yarda por minuto"]
[null,10215306,"Lila  viva blanca salvaje",null,null,null,"M66","Yarda por hora"]
[null,10215400,"Azucena viva","Lili viva",null,null,"M67","Acre-pie"]
[null,10215401,"Azucena viva alteza longiflorum e híbrido asiática","Lili viva alteza longiflorum e híbrido asiática",null,null,"M68","Cordón"]
[null,10215402,"Azucena viva black out","Lili viva black out",null,null,"M69","Milla cúbica (reinounido)"]
[null,10215403,"Azucena viva rosado oscuro","Lili viva rosado oscuro",null,null,"M7","Micro-pulgada"]
[null,10215404,"Azucena viva leéctrica asiática","Lili viva eléctrica asiática",null,null,"M70","Unidad tradicional de capacidad de carga"]
[null,10215405,"Azucena viva festival asiática","Lili viva festival asiática",null,null,"M71","Metro cúbico por pascal (joules)"]
[null,10215406,"Azucena viva ginebra asiática","Lili viva ginebra asiática",null,null,"M72","Bel"]
[null,10215407,"Azucena viva rosado claro asiática","Lili viva rosado claro asiática",null,null,"M73","Kilogramo por metro cúbico pascal"]
[null,10215408,"Azucena viva colombina asiática","Lili viva colombina asiática",null,null,"M74","Kilogramo por pascal"]
[null,10215409,"Azucena viva miss américa púrpura asiática","Lili viva miss américa púrpura asiática",null,null,"M75","Kilolibra fuerza"]
[null,10215410,"Azucena viva monte negro asiática","Lili viva monte negro asiática",null,null,"M76","Poundal"]
[null,10215411,"Azucena viva anaranjada asiática","Lili viva anaranjada asiática",null,null,"M77","Kilogramo metro por segundo cuadrado"]
[null,10215412,"Azucena viva durazno cannes asiática","Lili viva durazno cannes asiática",null,null,"M78","Pond"]
[null,10215413,"Azucena viva rosada asiática","Lili viva rosada asiática",null,null,"M79","Pie cuadrado por hora"]
[null,10215414,"Azucena viva sancerre asiátia","Lili viva sancerre asiática",null,null,"M80","Stokes por pascal"]
[null,10215415,"Azucena viva white dream asiática","Lili viva white dream asiática",null,null,"M81","Centímetro cuadrado por segundo"]
[null,10215416,"Azucena viva amarilla asiática","Lili viva amarilla asiática",null,null,"M82","Metro cuadrado por segundo pascal"]
[null,10215417,"Azucena viva diamante brillante longiflorum e híbrido asiática","Lili viva diamante brillante longiflorum e híbrido asiática",null,null,"M83","Denier"]
[null,10215418,"Azucena viva brindisi longiflorum e híbrido asiática","Lili viva brindisi longiflorum e híbrido asiática",null,null,"M84","Libra por yarda "]
[null,10215419,"Azucena viva carmine longiflorum e híbrido asiática","Lili viva carmine longiflorum e híbrido asiática",null,null,"M85","Tonelada, ensayo"]
[null,10215420,"Azucena viva cinnabar longiflorum e híbrido asiática","Lili viva cinnabar longiflorum e híbrido asiática",null,null,"M86","Libra Alemana"]
[null,10215421,"Azucena viva club longiflorum e híbrido asiática","Lili viva club longiflorum e híbrido asiática",null,null,"M87","Kilogramo por segundo pascal"]
[null,10215422,"Azucena viva discovery longiflorum e híbrido asiática","Lili viva discovery longiflorum e híbrido asiática",null,null,"M88","Tonelada por mes"]
[null,10215423,"Azucena viva de pascua","Lili viva de pascua",null,null,"M89","Tonelada por año"]
[null,10215424,"Azucena viva isis longiflorum e híbrido asiática","Lili viva isis longiflorum e híbrido asiática",null,null,"M9","Millones de btu por 1000 pies cúbicos"]
[null,10215425,"Azucena viva la hybrid justice longiflorum e híbrido asiática","Lili viva la hybrid justice longiflorum e híbrido asiática",null,null,"M90","Kilolibra por hora"]
[null,10215426,"Azucena viva lace longiflorum e híbrido asiática","Lili viva lace longiflorum e híbrido asiática",null,null,"M91","Libra por libra"]
[null,10215427,"Azucena viva lirio de los valles","Lili viva lirio de los valles",null,null,"M92","Libra fuerza pie"]
[null,10215428,"Azucena viva love longiflorum e híbrido asiática","Lili viva love longiflorum e híbrido asiática",null,null,"M93","Newton metro por radián"]
[null,10215429,"Azucena viva menorca longiflorum e híbrido asiática","Lili viva menorca longiflorum e híbrido asiática",null,null,"M94","Kilogramo metro"]
[null,10215430,"Azucena viva oriental acapulco","Lili viva oriental acapulco",null,null,"M95","Poundal pie"]
[null,10215431,"Azucena viva oriental albion","Lili viva oriental albión",null,null,"M96","Poundal pulgada"]
[null,10215432,"Azucena viva oriental argentina","Lili viva oriental argentina",null,null,"M97","Dina metro"]
[null,10215433,"Azucena viva oriental auratum","Lili viva oriental auratum",null,null,"M98","Kilogramo centímetro por segundo"]
[null,10215434,"Azucena viva oriental barbaresco","Lili viva oriental barbaresco",null,null,"M99","Gramo centímetro por segundo"]
[null,10215435,"Azucena viva oriental bernini","Lili viva oriental bernini",null,null,"MA","Máquina por unidad"]
[null,10215436,"Azucena viva oriental beseno","Lili viva oriental beseno",null,null,"MAH","Megavoltio amperio reactivo hora"]
[null,10215437,"Azucena viva oriental broadway","Lili viva oriental broadway",null,null,"MAL","Megalitro"]
[null,10215438,"Azucena viva oriental canada","Lili viva oriental canadá",null,null,"MAM","Megametro"]
[null,10215439,"Azucena viva oriental casablanca","Lili viva oriental casablanca",null,null,"MAR","Megavar"]
[null,10215440,"Azucena viva oriental chili","Lili viva oriental chili",null,null,"MAW","Megawatt"]
[null,10215441,"Azucena viva oriental chrystal","Lili viva oriental chrystal",null,null,"MBE","Mil equivalente de ladrillo estándar"]
[null,10215442,"Azucena viva oriental cobra","Lili viva oriental cobra",null,null,"MBF","Mil pies de tabla"]
[null,10215443,"Azucena viva oriental conca d’ or","Lili viva oriental conca d' ivor",null,null,"MBR","Milibar"]
[null,10215444,"Azucena viva oriental cote d’ ivor","Lili viva oriental cote d' ivor",null,null,"MC","Microgramo"]
[null,10215445,"Azucena viva oriental dizzy","Lili viva oriental dizzy",null,null,"MCU","Milicurie"]
[null,10215446,"Azucena viva oriental fireball","Lili viva oriental fireball",null,null,"MD","Tonelada métrica seca al aire"]
[null,10215447,"Azucena viva oriental gluhwein","Lili viva oriental gluhwein",null,null,"MF","Miligramo por pie cuadrado por lado"]
[null,10215448,"Azucena viva oriental goldband","Lili viva oriental goldband",null,null,"MGM","Miligramo"]
[null,10215449,"Azucena viva oriental halifax","Lili viva oriental halifax",null,null,"MHZ","Megahertz"]
[null,10215450,"Azucena viva oriental kathryn","Lili viva oriental kathryn",null,null,"MIK","Milla cuadrada (milla estatal)"]
[null,10215451,"Azucena viva oriental kyoto","Lili viva oriental kyoto",null,null,"MIL","Mil"]
[null,10215452,"Azucena viva oriental la mancha","Lili viva oriental la mancha",null,null,"MIN","Minuto [unidad de tiempo]"]
[null,10215453,"Azucena viva oriental medusa","Lili viva oriental medusa",null,null,"MIO","Millón"]
[null,10215454,"Azucena viva oriental montezuma","Lili viva oriental montezuma",null,null,"MIU","Unidad internacional de millón"]
[null,10215455,"Azucena viva oriental muscadet","Lili viva oriental muscadet",null,null,"MK","Miligramo por pulgada cuadrada"]
[null,10215456,"Azucena viva oriental nippon","Lili viva oriental nippon",null,null,"MLD","Mil millones"]
[null,10215457,"Azucena viva oriental opus one","Lili viva oriental opus one",null,null,"MLT","Mililitro"]
[null,10215458,"Azucena viva oriental pompeii","Lili viva oriental pompeii",null,null,"MMK","Milímetro cuadrado"]
[null,10215459,"Azucena viva oriental rialto","Lili viva oriental rialto",null,null,"MMQ","Milímetro cúbico"]
[null,10215460,"Azucena viva oriental robina","Lili viva oriental robina",null,null,"MMT","Milímetro"]
[null,10215461,"Azucena viva oriental rousilon","Lili viva oriental rousilon",null,null,"MND","Kilogramo, peso seco"]
[null,10215462,"Azucena viva oriental siberia","Lili viva oriental siberia",null,null,"MON","Mes "]
[null,10215463,"Azucena viva oriental sorbonne","Lili viva oriental sorbonne",null,null,"MPA","Megapascal"]
[null,10215464,"Azucena viva oriental starfighter","Lili viva oriental starfighter",null,null,"MQ","Mil metros"]
[null,10215465,"Azucena viva oriental stargazer","Lili viva oriental stargazer",null,null,"MQH","Metro cúbico por hora"]
[null,10215466,"Azucena viva oriental sumatra","Lili viva oriental sumatra",null,null,"MQS","Metro cúbico por segundo"]
[null,10215467,"Azucena viva oriental time out","Lili viva oriental time out",null,null,"MSK","Metro por segundo cuadrado"]
[null,10215468,"Azucena viva oriental tom pouche","Lili viva oriental tom pouche",null,null,"MTK","Metro cuadrado"]
[null,10215469,"Azucena viva oriental tropical","Lili viva oriental tropical",null,null,"MTQ","Metro cúbico"]
[null,10215470,"Azucena viva oriental white cup","Lili viva oriental white cup",null,null,"MTR","Metro"]
[null,10215471,"Azucena viva oriental white merostar","Lili viva oriental white merostar",null,null,"MTS","Metro por segundo"]
[null,10215472,"Azucena viva oriental white montana","Lili viva oriental white montana",null,null,"MV","Número de mults"]
[null,10215473,"Azucena viva oriental white stargazer","Lili viva oriental white stargazer",null,null,"MVA","Megavoltio - amperio"]
[null,10215474,"Azucena viva oriental yellow band","Lili viva oriental yellow band",null,null,"MWH","Megawatt hora"]
[null,10215475,"Azucena viva oriental yellow dream","Lili viva oriental yellow dream",null,null,"N1","Pluma calórica"]
[null,10215476,"Azucena viva oriental yellow queen","Lili viva oriental yellow queen",null,null,"N10","Libra pie por segundo"]
[null,10215477,"Azucena viva oriental yellow star","Lili viva oriental yellow star",null,null,"N11","Libra pulgada por segundo"]
[null,10215478,"Azucena viva oriental yeloween","Lili viva oriental yelloween",null,null,"N12","Pferdestaerke"]
[null,10215479,"Azucena viva ot red dutch","Lili viva ot red dutch",null,null,"N13","Centímetro de mercurio (0°)"]
[null,10215480,"Azucena viva sonata nimph","Lili viva sonata nimph",null,null,"N14","Centímetro de agua (4°)"]
[null,10215481,"Azucena viva sonata shocking","Lili viva sonata shocking",null,null,"N15","Pie de agua (39.2 °f)"]
[null,10215482,"Azucena viva sonata triumphateer","Lili viva sonata triumphateer",null,null,"N16","Pulgada de mercurio (32 °f)"]
[null,10215483,"Azucena viva sunset longiflorum e híbrido asiática","Lili viva sunset longiflorum e híbrido asiática",null,null,"N17","Pulgada de mercurio (60 °f)"]
[null,10215484,"Azucena viva de agua","Lili viva de agua",null,null,"N18","Pulgada de agua (39.2 °f)"]
[null,10215500,"Lavanda viva",null,null,null,"N19","Pulgada de agua (60 °f)"]
[null,10215501,"Lavanda marina viva misty peach",null,null,null,"N2","número de líneas"]
[null,10215502,"Lavanda marina viva misty rosada",null,null,null,"N20","Kip por pulgada cuadrada"]
[null,10215503,"Lavanda marina viva misty blanca",null,null,null,"N21","Poundal por pie cuadrado"]
[null,10215504,"Lavanda marina viva misty amarilla",null,null,null,"N22","Onza (avoirdupois) por pulgada cuadrada"]
[null,10215505,"Lavanda marina viva safora",null,null,null,"N23","Metro convencional de agua"]
[null,10215506,"Lavanda marina viva sinensis",null,null,null,"N24","Gramo por milímetro cuadrado"]
[null,10215600,"Lisianthus vivo","Eustomas vivas",null,null,"N25","Libra por yarda cuadrada"]
[null,10215601,"Lisianthus vivo crema","Eustoma viva crema",null,null,"N26","Poundal por pulgada cuadrada"]
[null,10215602,"Lisianthus vivo rosado fuerte","Eustoma viva rosado fuerte",null,null,"N27","Pie a la cuarta potencia "]
[null,10215603,"Lisianthus vivo verde","Eustoma viva verde",null,null,"N28","Decímetro cúbico por kilogramo"]
[null,10215604,"Lisianthus vivo lavanda","Eustoma viva lavanda",null,null,"N29","Pie cúbico por libra "]
[null,10215605,"Lisianthus vivo rosado claro","Eustoma viva rosado claro",null,null,"N3","Impresión de punto"]
[null,10215606,"Lisianthus vivo mini blanco","Eustoma viva mini blanco",null,null,"N30","Pulgada cúbica por libra"]
[null,10215607,"Lisianthus vivo durazno","Eustoma viva durazno",null,null,"N31","Kilonewton por metro"]
[null,10215608,"Lisianthus vivo rosado con borde blanco","Eustoma viva rosado con borde blanco",null,null,"N32","Poundal por pulgada"]
[null,10215609,"Lisianthus vivo púrpura","Eustoma viva púrpura",null,null,"N33","Libra-fuerza por yarda"]
[null,10215610,"Lisianthus vivo púrpura con borde blanco","Eustoma viva púrpura con borde blanco",null,null,"N34","Poundal segundo por pie cuadrado"]
[null,10215611,"Lisianthus vivo blanco con borde rosado","Eustoma viva blanco con borde rosado",null,null,"N35","Poise por pascal"]
[null,10215612,"Lisianthus vivo blanco","Eustoma viva blanco",null,null,"N36","Newton segundo por metro cuadrado"]
[null,10215613,"Lisianthus vivo blanco con borde púrpura","Eustoma viva blanco con borde púrpura",null,null,"N37","Kilogramo por metro segundo"]
[null,10215700,"Muscari viva",null,null,null,"N38","Kilogramo por metro minuto"]
[null,10215701,"Muscari viva armeniacum",null,null,null,"N39","Kilogramo por metro día"]
[null,10215702,"Muscari viva bortyoides blanca",null,null,null,"N40","Kilogramo por metro hora"]
[null,10215703,"Muscari viva verde",null,null,null,"N41","Gramo por centímetro segundo"]
[null,10215704,"Muscari viva latifolia",null,null,null,"N42","Poundal segundo por pulgada cuadrada"]
[null,10215705,"Muscari viva valerie finn",null,null,null,"N43","Libra por pie minuto"]
[null,10215800,"Narciso vivo",null,null,null,"N44","Libra por pie día"]
[null,10215801,"Narciso vivo alegría",null,null,null,"N45","Metro cúbico por segundo pascal"]
[null,10215802,"Narciso vivo amanecer dorado",null,null,null,"N46","Pie poundal"]
[null,10215803,"Narciso vivo abba paperwhite",null,null,null,"N47","Pulgada poundal"]
[null,10215804,"Narciso vivo paperwhite",null,null,null,"N48","Watt por centímetro cuadrado"]
[null,10215805,"Narciso vivo ojo de faisán",null,null,null,"N49","Watt por pulgada cuadrada"]
[null,10215806,"Narciso vivo soleil d’ or",null,null,null,"N50","Unidad térmica británica (tabla internacional) por pie cuadrado hora."]
[null,10215807,"Narciso vivo tete a tete",null,null,null,"N51","Unidad térmica británica (termoquímica) por pie cuadrado hora."]
[null,10215808,"Narciso vivo thalia",null,null,null,"N52","Unidad térmica británica (termoquímico) por pie cuadrado minuto."]
[null,10216000,"Pimientos ornamentales vivos","Paprikas ornamentales vivas",null,null,"N53","Unidad térmica británica (tabla internacional) por pie cuadrado segundo."]
[null,10216001,"Pimiento chile vivo ornamental","Paprika ornamental viva",null,null,"N54","Unidad térmica británica (termoquímica) por pie cuadrado segundo."]
[null,10216002,"Pimiento mezclado vivo ornamental","Paprika ornamental mezclada viva",null,null,"N55","Unidad térmica británica (tabla internacional) por pulgada cuadrada segundo."]
[null,10216003,"Pimiento anaranjado vivo ornamental","Paprika ornamental anaranjada viva",null,null,"N56","Caloría (termoquímica) por centímetro cuadrado minuto"]
[null,10216004,"Pimiento rojo vivo ornamental","Paprika ornamental roja viva",null,null,"N57","Caloría (termoquímica) por centímetro cuadrado segundo"]
[null,10216005,"Pimiento amarillo vivo ornamental","Paprika ornamental amarilla viva",null,null,"N58","Unidad térmica británica (tabla internacional) por pie cúbico"]
[null,10216100,"Estrella de Belén viva",null,null,null,"N59","Unidad térmica británica (termoquímica) por pie cúbico"]
[null,10216101,"Estrella de belén viva arábica",null,null,null,"N60","Unidad térmica británica (tabla internacional) por grado fahrenheit"]
[null,10216102,"Estrella de belén viva dubium anaranjada",null,null,null,"N61","Unidad térmica británica (termoquímico) por grado fahrenheit"]
[null,10216103,"Estrella de belén viva umbellada",null,null,null,"N62","Unidad térmica británica (tabla internacional) por grado rankine"]
[null,10216104,"Estrella de belén viva dubium blanca",null,null,null,"N63","Unidad térmica británica (termoquímico) por grado rankine"]
[null,10216105,"Estrella de belén viva dubium amarilla",null,null,null,"N64","Unidad térmica británica (termoquímico) por libra grado rankine"]
[null,10216200,"Peonia viva",null,null,null,"N65","Kilocaloría (tabla internacional) por gramo kelvin"]
[null,10216201,"Peonia viva alexander fleming",null,null,null,"N66","Unidad térmica británica (39 °f)"]
[null,10216202,"Peonia viva coral charm",null,null,null,"N67","Unidad térmica británica (59 °f)"]
[null,10216203,"Peonia viva suset",null,null,null,"N68","Unidad térmica británica (60 °f)"]
[null,10216204,"Peonia viva coral supreme",null,null,null,"N69","Caloría (20 °c)"]
[null,10216205,"Peonia viva gardenia doble",null,null,null,"N70","Quad"]
[null,10216206,"Peonia viva doble jues eli oscura",null,null,null,"N71","Termia (energía comercial)"]
[null,10216207,"Peonia viva soble duquesa blanca",null,null,null,"N72","Termia (UEA)"]
[null,10216208,"Peonia viva felix crousse",null,null,null,"N73","Unidad térmica británica (termoquímica) por libra"]
[null,10216209,"Peonia viva festiva máxima",null,null,null,"N74","Unidad térmica británica (tabla internacional) por hora pie cuadrado grado fahrenheit."]
[null,10216210,"Peonia viva tesoro del jardín",null,null,null,"N75","Unidad térmica británica (termoquímico) por hora pie cuadrado grado farenheit."]
[null,10216211,"Peonia viva kansas rosado oscuro",null,null,null,"N76","Unidad térmica británica (tabla internacional) por segundo pie cuadrado grado fahrenheit."]
[null,10216212,"Peonia viva karl rosenfelt",null,null,null,"N77","Unidad térmica británica (termoquímico) por segundo pie cuadrado grado fahrenheit."]
[null,10216213,"Peonia viva paula fay",null,null,null,"N78","Kilowatt por metro cuadrado kelvin"]
[null,10216214,"Peonia viva encanto rojo",null,null,null,"N79","Kelvin por pascal"]
[null,10216215,"Peonia viva pasion roja",null,null,null,"N80","Watt por metro grado celsius"]
[null,10216216,"Peonia viva sarah bernhardt roja",null,null,null,"N81","Kilowatt por metro kelvin"]
[null,10216217,"Peonia viva scarlet o’ hara",null,null,null,"N82","Kilowatt por metro grado celsius"]
[null,10216218,"Peonia viva shirley temple",null,null,null,"N83","Metro por grado celsius metro"]
[null,10216300,"Banksia viva","Flores vivas de árbol madreselva australiano",null,null,"N84","Grado fahrenheit hora por unidad térmica británica (tabla internacional)"]
[null,10216301,"Banksia viva ashbyi","Flor de árbol madreselva australiano viva ashbyi",null,null,"N85","Grado fahrenheit hora por unidad térmica británica (termoquímico)"]
[null,10216302,"Banksia viva baxteri","Flor de árbol madreselva australiano viva baxteri",null,null,"N86","Grado fahrenheit segundo por unidad térmica británica (tabla internacional)"]
[null,10216306,"Banksia viva coccinea","Flor de árbol madreselva australiano viva coccínea",null,null,"N87","Grago fahrenheit segundo por unidad térmica británica (termoquímico)"]
[null,10216311,"Banksia viva ericifolia","Flor de árbol madreselva australiano viva ericifolia",null,null,"N88","Grado fahrenheit hora pie cuadrado por unidad térmica británica (tabla internacional) pulgada"]
[null,10216315,"Banksia viva verde","Flor de árbol madreselva australiano viva verde",null,null,"N89","Grado fahrenheit hora pie cuadrado por unidad térmica británica (termoquímico) pulgada."]
[null,10216322,"Banksia viva menziesii","Flor de árbol madreselva australiano viva menziesii",null,null,"N90","Kilofaradio"]
[null,10216325,"Banksia viva blanco natural","Flor de árbol madreselva australiano viva blanco natural",null,null,"N91","Joule recíproco"]
[null,10216326,"Banksia viva anaranjado","Flor de árbol madreselva australiano viva anaranjado",null,null,"N92","Picosiemens"]
[null,10216332,"Banksia viva rosada","Flor de árbol madreselva australiano viva rosada",null,null,"N93","Amperio por pascal"]
[null,10216400,"Ranúculo vivo",null,null,null,"N94","Franklin"]
[null,10216401,"Ranúnculo vivo chocolate",null,null,null,"N95","Amperio minuto"]
[null,10216402,"Ranúnculo vivo elegancia",null,null,null,"N96","Biot"]
[null,10216403,"Ranúnculo vivo verde",null,null,null,"N97","Gilbert"]
[null,10216404,"Ranúnculo vivo grimaldi",null,null,null,"N98","Voltio por pascal"]
[null,10216405,"Ranúnculo vivo rosado fuerte",null,null,null,"N99","Picovoltio"]
[null,10216406,"Ranúnculo vivo rosado claro",null,null,null,"NA","Miligramo por kilogramo"]
[null,10216407,"Ranúnculo vivo anaranjado",null,null,null,"NAR","Número de artículos"]
[null,10216408,"Ranúnculo vivo centro verde",null,null,null,"NB","barcaza"]
[null,10216409,"Ranúnculo vivo rosado",null,null,null,"NBB","Número de bobinas"]
[null,10216410,"Ranúnculo vivo rojo",null,null,null,"NC","Carro"]
[null,10216411,"Ranúnculo vivo blanco",null,null,null,"NCL","Número de células"]
[null,10216412,"Ranúnculo vivo amarillo",null,null,null,"ND","Barril neto"]
[null,10216413,"Ranúnculo vivo salmón",null,null,null,"NE","Litro neto"]
[null,10216500,"Escabiosa viva","Flores del acerico vivas",null,null,"NEW","Newton"]
[null,10216501,"Escabiosa viva anual","Flor del acerico viva anual",null,null,"NF","Mensaje"]
[null,10216502,"Escabiosa viva negra","Flor del acerico viva negra",null,null,"NG","Galón neto (us)"]
[null,10216503,"Escabiosa viva caucásica azul","Flor del acerico viva caucásica azul",null,null,"NH","Hora del mensaje"]
[null,10216504,"Escabiosa viva caucásica rosada","Flor del acerico viva caucásica rosada",null,null,"NI","Galón imperial neto"]
[null,10216505,"Escabiosa viva caucásica vainas","Flor del acerico viva caucásica vainas",null,null,"NIL","Nil"]
[null,10216506,"Escabiosa viva caucásica blanca","Flor del acerico viva caucásica blanca",null,null,"NIU","Número de unidades internacionales"]
[null,10216507,"Escabiosa viva fresa","Flor del acerico viva fresa",null,null,"NJ","Número de pantallas"]
[null,10216600,"Retama de escobas viva",null,null,null,"NL","Carga"]
[null,10216601,"Retama de escobas viva rosada",null,null,null,"NM3","Metro cúbico normalizado"]
[null,10216602,"Retama de escobas viva púrpura",null,null,null,"NMI","Milla náutica"]
[null,10216603,"Retama de escobas viva blanca",null,null,null,"NMP","Número de paquetes"]
[null,10216604,"Retama de escobas viva amarilla",null,null,null,"NN","tren"]
[null,10216700,"Boca de dragón viva",null,null,null,"NPR","Número de parejas"]
[null,10216701,"Boca de dragón viva bicolor",null,null,null,"NPT","Número de partes"]
[null,10216702,"Boca de dragón viva burgundy",null,null,null,"NQ","Mho"]
[null,10216703,"Boca de dragón viva rosado fuerte",null,null,null,"NR","Micromho"]
[null,10216704,"Boca de dragón viva lavanda",null,null,null,"NT","Tonelada neta"]
[null,10216705,"Boca de dragón viva anaranjado claro",null,null,null,"NTT","Tonelada de registro neto"]
[null,10216706,"Boca de dragón viva rosado claro",null,null,null,"NV","vehículo"]
[null,10216707,"Boca de dragón viva anaranjado",null,null,null,"NY","Libra por tonelada métrica al aire seco"]
[null,10216708,"Boca de dragón viva blanco",null,null,null,"NX","Parte por mil"]
[null,10216709,"Boca de dragón viva amarillo",null,null,null,"OA","Panel"]
[null,10216800,"Romero del pantano viva","Siemprevivas azules vivas",null,null,"ODE","Equivalente de agotamiento del ozona"]
[null,10216801,"Romero del pantano viva azul","Siempreviva azul viva color azul",null,null,"Ohm","Ohm"]
[null,10216802,"Romero del pantano viva lavanda","Siempreviva azul viva lavanda",null,null,"ON","Onza por yarda cuadrada"]
[null,10216803,"Romero del pantano viva durazno","Siempreviva azul viva durazno",null,null,"ONZ","Onza (avoirdupois)"]
[null,10216804,"Romero del pantano viva rosada","Siempreviva azul viva rosada",null,null,"OP","Dos paquetes"]
[null,10216805,"Romero del pantano viva púrpura","Siempreviva azul viva púrpura",null,null,"OPM","Oscilaciones por minuto"]
[null,10216806,"Romero del pantano viva espuma de mar","Siempreviva azul viva espuma de mar",null,null,"OT","Hora extra"]
[null,10216807,"Romero del pantano viva blanca","Siempreviva azul viva blanca",null,null,"OZ","Onza AV"]
[null,10216808,"Romero del pantano viva amarilla","Siempreviva azul viva amarilla",null,null,"OZA","Onza líquida (estados unidos)"]
[null,10216900,"Matiola viva","Alhelís vivas",null,null,"OZI","Onza líquida (UK)"]
[null,10216901,"Matiola viva apricot","Alhelí viva apricot",null,null,"P0","Página electrónica"]
[null,10216902,"Matiola viva crema","Alhelí viva crema",null,null,"P1","Tanto por ciento"]
[null,10216903,"Matiola viva fucsia","Alhelí viva fucsia",null,null,"P10","Culombio por metro"]
[null,10216904,"Matiola viva lavanda","Alhelí viva lavanda",null,null,"P11","Kiloweber"]
[null,10216905,"Matiola viva lavanda claro","Alhelí viva lavanda claro",null,null,"P12","Gamma"]
[null,10216906,"Matiola viva rosada","Alhelí viva rosada",null,null,"P13","Kilotesla"]
[null,10216907,"Matiola viva púrpura","Alhelí viva púrpura",null,null,"P14","Joule por segundo"]
[null,10216908,"Matiola viva rojo rubí","Alhelí viva rojo rubí",null,null,"P15","Joule por minuto"]
[null,10216909,"Matiola viva enamorada rosda","Alhelí viva enamorada rosada",null,null,"P16","Joule por hora"]
[null,10216910,"Matiola viva blanca","Alhelí viva blanca",null,null,"P17","Joule por día"]
[null,10217000,"Girasol viva",null,null,null,"P18","Kilojoule por segundo"]
[null,10217001,"Girasol viva tinte festivo",null,null,null,"P19","Kilojoule por minuto"]
[null,10217002,"Girasol viva mahogany",null,null,null,"P2","Libra por pie"]
[null,10217003,"Girasol viva rayo de sol",null,null,null,"P20","Kilojoule por hora"]
[null,10217004,"Girasol viva brillo del sol",null,null,null,"P21","Kilojoule por día"]
[null,10217005,"Girasol viva salpicada de sol",null,null,null,"P22","NanoOhm"]
[null,10217006,"Girasol viva oso de peluche",null,null,null,"P23","Ohm circular-mil por pie"]
[null,10217100,"Guisante de olor vivo",null,null,null,"P24","Kilohenry"]
[null,10217101,"Guisante de olor vivo verde teñido",null,null,null,"P25","Lumen por pie cuadrado"]
[null,10217102,"Guisante de olor vivo rosado fuerte",null,null,null,"P26","Foto"]
[null,10217103,"Guisante de olor vivo lavanda",null,null,null,"P27","Vela (medida)"]
[null,10217104,"Guisante de olor vivo rosado claro",null,null,null,"P28","Candela por pulgada cuadrada"]
[null,10217105,"Guisante de olor vivo anaranjado",null,null,null,"P29","Footlambert"]
[null,10217106,"Guisante de olor vivo durazno teñido",null,null,null,"P3","Tres paquetes"]
[null,10217107,"Guisante de olor vivo púrpura",null,null,null,"P30","Lambert"]
[null,10217108,"Guisante de olor vivo blanco",null,null,null,"P31","Stilb "]
[null,10217200,"Cardo vivo",null,null,null,"P32","Candela por pie cuadrado"]
[null,10217201,"Cardo vivo alpinum",null,null,null,"P33","Kilocandela"]
[null,10217202,"Cardo vivo echinops",null,null,null,"P34","Milicandela"]
[null,10217203,"Cardo vivo eryngium árabe",null,null,null,"P35","Hefner-kerze"]
[null,10217204,"Cardo vivo eryngium azul",null,null,null,"P36","Candela internacional"]
[null,10217205,"Cardo vivo eryngium orión",null,null,null,"P37","Unidad térmica británica (tabla internacional) por pie cuadrado"]
[null,10217206,"Cardo vivo eryngium frambuesa",null,null,null,"P38","Unidad térmica británica (termoquímica) por pie cuadrado"]
[null,10217207,"Cardo vivo eryngium supernova",null,null,null,"P39","Caloría (termoquímica) por centímetro cuadrado"]
[null,10217208,"Cardo vivo eryngium campanita",null,null,null,"P4","paquete de cuatro"]
[null,10217300,"Tulipán vivo",null,null,null,"P40","Langley"]
[null,10217301,"Tulipán vivo adrem",null,null,null,"P41","Década (logarítmica)"]
[null,10217302,"Tulipán vivo apricot",null,null,null,"P42","Pascal por segundo cuadrado"]
[null,10217303,"Tulipán vivo bicolor rojo y amarillo",null,null,null,"P43","Bel por metro"]
[null,10217304,"Tulipán vivo doble bicolor",null,null,null,"P44","Libra Mol"]
[null,10217305,"Tulipán vivo doble rosado",null,null,null,"P45","Libra de Mol por segundo"]
[null,10217306,"Tulipán vivo doble rojo",null,null,null,"P46","Libra Mol por minuto"]
[null,10217307,"Tulipán vivo doble blanco",null,null,null,"P47","KiloMol por kilogramo"]
[null,10217308,"Tulipán vivo doble amarillo",null,null,null,"P48","Libra de Mol por libra"]
[null,10217309,"Tulipán vivo francés avignon",null,null,null,"P49","Newton metro cuadrado por amperio"]
[null,10217310,"Tulipán vivo francés camarque",null,null,null,"P5","Paquete de cinco"]
[null,10217311,"Tulipán vivo francés dordogne",null,null,null,"P50","Metro weber"]
[null,10217312,"Tulipán vivo francés fiat",null,null,null,"P51","Mol por kilogramo pascal "]
[null,10217313,"Tulipán vivo francés flamboyant",null,null,null,"P52","Mol por metro cúbico pascal"]
[null,10217314,"Tulipán vivo francés flaming parrot",null,null,null,"P53","Unit por segundo"]
[null,10217315,"Tulipán vivo francés florissa",null,null,null,"P54","MiliGray por segundo"]
[null,10217316,"Tulipán vivo francés doble maureen",null,null,null,"P55","MicroGray por segundo"]
[null,10217317,"Tulipán vivo francés maureen",null,null,null,"P56","NanoGray por segundo"]
[null,10217318,"Tulipán vivo francés menton",null,null,null,"P57","Gray por minuto"]
[null,10217319,"Tulipán vivo francés montpellier",null,null,null,"P58","MiliGray por minuto"]
[null,10217320,"Tulipán vivo francés naranja unique",null,null,null,"P59","Microgray por minuto"]
[null,10217321,"Tulipán vivo francés peonia reconocido único",null,null,null,"P6","paquete de seis"]
[null,10217322,"Tulipán vivo francés loro rosado",null,null,null,"P60","Nanogray por minuto"]
[null,10217323,"Tulipán vivo francés princesa unique",null,null,null,"P61","Gray por hora"]
[null,10217324,"Tulipán vivo francés reconocido",null,null,null,"P62","MiliGray por hora"]
[null,10217325,"Tulipán vivo francés schepppers",null,null,null,"P63","Micro gray por hora"]
[null,10217326,"Tulipán vivo francés gamuza",null,null,null,"P64","Nanogray por hora"]
[null,10217327,"Tulipán vivo francés toyota",null,null,null,"P65","Sievert por segundo"]
[null,10217328,"Tulipán vivo francés loro weber",null,null,null,"P66","MilliSievert por segundo"]
[null,10217329,"Tulipán vivo francés loro blanco",null,null,null,"P67","MicroSievert por segundo"]
[null,10217330,"Tulipán vivo lavanda de borde crespo",null,null,null,"P68","NanoSievert por segundo"]
[null,10217331,"Tulipán vivo rosado fuerte",null,null,null,"P69","Rem por segundo"]
[null,10217332,"Tulipán vivo rosado fuerte hoja variegada",null,null,null,"P7","Paquete de siete"]
[null,10217333,"Tulipán vivo lavanda",null,null,null,"P70","Sievert por hora"]
[null,10217334,"Tulipán vivo rosado claro hoja variegada",null,null,null,"P71","MilliSievert por hora"]
[null,10217335,"Tulipán vivo viuda alegre",null,null,null,"P72","Micro Sievert por hora"]
[null,10217336,"Tulipán vivo anaranjado",null,null,null,"P73","NanoSievert por hora"]
[null,10217337,"Tulipán vivo loro negro",null,null,null,"P74","Sievert por minuto"]
[null,10217338,"Tulipán vivo loro estela rijnveld",null,null,null,"P75","MilliSievert por minuto"]
[null,10217339,"Tulipán vivo llameante",null,null,null,"P76","MicroSievert por minuto"]
[null,10217340,"Tulipán vivo loro verde",null,null,null,"P77","NanoSievert pominut "]
[null,10217341,"Tulipán vivo loro lavanda",null,null,null,"P78","Reciprocidad por segundo"]
[null,10217342,"Tulipán vivo loro anaranjado",null,null,null,"P79","Pascal metro cuadrado por kilogramo"]
[null,10217343,"Tulipán vivo loro durazno",null,null,null,"P8","Paquete de ocho"]
[null,10217344,"Tulipán vivo loro rosado",null,null,null,"P80","Milipascal por metro."]
[null,10217345,"Tulipán vivo loro rojo",null,null,null,"P81","Kilopascal por metro."]
[null,10217346,"Tulipán vivo loro rojo rococó",null,null,null,"P82","Hectopascal por metro."]
[null,10217347,"Tulipán vivo loro weber",null,null,null,"P83","Atmosfera estándar por metro."]
[null,10217348,"Tulipán vivo loro blanco",null,null,null,"P84","Atmosfera técnica por metro."]
[null,10217349,"Tulipán vivo loro amarillo",null,null,null,"P85","Torr por metro."]
[null,10217350,"Tulipán vivo rosado",null,null,null,"P86","Psi por pulgada"]
[null,10217351,"Tulipán vivo púrpura",null,null,null,"P87","Metro cúbico por segundo de metro cuadrado"]
[null,10217352,"Tulipán vivo rojo",null,null,null,"P88","Rhe"]
[null,10217353,"Tulipán vivo especias",null,null,null,"P89","Libra por metro cúbico de pulgada"]
[null,10217354,"Tulipán vivo blanco",null,null,null,"P9","Nueve paquetes"]
[null,10217355,"Tulipán vivo amarillo",null,null,null,"P90","Libra-fuerza por pulgada cuadrada"]
[null,10217400,"Flor de cera viva",null,null,null,"P91","Permanente (0°c)"]
[null,10217401,"Flor de cera viva alba",null,null,null,"P92","Permanente (23°c)"]
[null,10217402,"Flor de cera viva bicolor",null,null,null,"P93","Byte por segundo"]
[null,10217403,"Flor de cera viva chichilla",null,null,null,"P94","Kilobyte por segundo"]
[null,10217404,"Flor de cera viva reina danzante",null,null,null,"P95","Megabite por segundo"]
[null,10217405,"Flor de cera viva dinamarca",null,null,null,"P96","Recíproco de la unidad si deriva voltio"]
[null,10217406,"Flor de cera viva denmar",null,null,null,"P97","Reciprocidad de Radian"]
[null,10217407,"Flor de cera viva híbrida pastel flor gema",null,null,null,"P98","Pascal a la suma de potencia de los números estequimetricos"]
[null,10217408,"Flor de cera viva híbrida rosada flor gem",null,null,null,"P99","Mols por metro cúbico a la suma de potencia de los números estequimetricos"]
[null,10217409,"Flor de cera viva híbrida blanca rubia",null,null,null,"PAL","Pascal"]
[null,10217410,"Flor de cera viva híbrida eric john",null,null,null,"PB","Par de la pulgada"]
[null,10217411,"Flor de cera viva híbrida dama pintada",null,null,null,"PD","Almohadilla"]
[null,10217412,"Flor de cera viva híbrida revelación",null,null,null,"PE","Libra equivalente"]
[null,10217413,"Flor de cera viva híbrida bola de nieve",null,null,null,"PFL","Litro de prueba "]
[null,10217414,"Flor de cera viva juriens brook",null,null,null,"PGL","Galón de prueba"]
[null,10217415,"Flor de cera viva lady stephanie rosada",null,null,null,"PI","Tono"]
[null,10217416,"Flor de cera viva madonna",null,null,null,"PLA","Grado de platón "]
[null,10217417,"Flor de cera viva mini blanca",null,null,null,"PM","Porcentaje de libra"]
[null,10217418,"Flor de cera viva anaranjada",null,null,null,"PO","Libra por pulgada"]
[null,10217419,"Flor de cera viva perla",null,null,null,"PQ","Página por pulgada"]
[null,10217420,"Flor de cera viva pixie moon",null,null,null,"PR","Par"]
[null,10217421,"Flor de cera viva orgullo púrpura",null,null,null,"PS","Libra fuerza por pulgada cuadrada"]
[null,10217422,"Flor de cera viva roja",null,null,null,"PT","Pinta (US)"]
[null,10217423,"Flor de cera viva wanaroo",null,null,null,"PTD","Pinta seca (estados unidos)"]
[null,10217424,"Flor de cera viva amarilla",null,null,null,"PTI","Pint (uk)"]
[null,10217500,"Hierba de aquiles viva",null,null,null,"PTL","Pinta líquida (estados unidos)"]
[null,10217501,"Hierba de aquiles viva vinotinto",null,null,null,"PTN","Parte"]
[null,10217502,"Hierba de aquiles viva crema campesina",null,null,null,"PV","Media pinta (US)"]
[null,10217503,"Hierba de aquiles viva rosado campesino",null,null,null,"PW","Libra por pulgada de ancho"]
[null,10217504,"Hierba de aquiles viva luz de luna",null,null,null,"PY","Pico seco (EUA)"]
[null,10217505,"Hierba de aquiles viva anaranjado",null,null,null,"PZ","Peck dry (UK)"]
[null,10217506,"Hierba de aquiles viva durazno",null,null,null,"Q10","Joule por tesla"]
[null,10217507,"Hierba de aquiles viva rosada",null,null,null,"Q11","Erlang"]
[null,10217508,"Hierba de aquiles viva rojo teñido",null,null,null,"Q12","Octeto"]
[null,10217509,"Hierba de aquiles viva blanca",null,null,null,"Q13","Octeto por segundo"]
[null,10217510,"Hierba de aquiles viva amarilla",null,null,null,"Q14","Shannon"]
[null,10217600,"Zinnia viva","Cinias (guadalajaras) vivas",null,null,"Q15","Hartley"]
[null,10217601,"Zinia viva amarilla","Cinia (guadalajara) viva amarilla",null,null,"Q16","Unidad natural de información "]
[null,10217602,"Zinia viva mini","Cinia (guadalajara) viva mini",null,null,"Q17","Shannon por segundo"]
[null,10217603,"Zinia viva rosado","Cinia (guadalajara) viva rosado",null,null,"Q18","Hartley por segundo "]
[null,10217604,"Zinia viva rojo","Cinia (guadalajara) viva rojo",null,null,"Q19","Unidad natural de información por segundo "]
[null,10217605,"Zinia viva salmón","Cinia (guadalajara) viva salmón",null,null,"Q20","Segundo por kilogramo"]
[null,10217606,"Zinia viva amarillo","Cinia (guadalajara) viva amarillo",null,null,"Q21","Watt metro cuadrado"]
[null,10217700,"Forsythia viva",null,null,null,"Q22","Segundo por metro cúbicos de radianes "]
[null,10217701,"Forsythia viva viridissima",null,null,null,"Q23","Weber a la potencia menos uno"]
[null,10217702,"Forsythia viva giraldiana",null,null,null,"Q24","Reciprocidad de Pulgada"]
[null,10217703,"Forsythia viva mira",null,null,null,"Q25","Dioptría"]
[null,10217704,"Forsythia viva suspensa",null,null,null,"Q26","Uno por uno"]
[null,10217705,"Forsythia viva intermedia",null,null,null,"Q27","Newtons metros por metro"]
[null,10217706,"Forsythia viva variabilis",null,null,null,"Q28","Kilogramo por metro cuadrado pascal segundo"]
[null,10217707,"Forsythia viva ovate",null,null,null,"Q29","Microgramo por hectogramo"]
[null,10217708,"Forsythia viva intermedia lynwood",null,null,null,"Q3","Comida"]
[null,10217800,"Geranio vivo",null,null,null,"Q30","Ph (potencial de hidrogeno)"]
[null,10217801,"Geranio vivo argenteum",null,null,null,"Q31","Kilojoule por gramo"]
[null,10217802,"Geranio vivo cinereum",null,null,null,"Q32","Femtolitro"]
[null,10217803,"Geranio vivo clarkei",null,null,null,"Q33","Picolitro"]
[null,10217804,"Geranio vivo dalmaticum",null,null,null,"Q34","Nanolitro"]
[null,10217805,"Geranio vivo endressii",null,null,null,"Q35","Megawatts por minuto"]
[null,10217806,"Geranio vivo eriostemon",null,null,null,"Q36","Metro cuadrado por metro cúbico"]
[null,10217807,"Geranio vivo farreri",null,null,null,"Q37","Metro cúbico estándar por día"]
[null,10217808,"Geranio vivo himalayense o grandiflora",null,null,null,"Q38","Metro cúbico estándar por hora"]
[null,10217809,"Geranio vivo ibericum",null,null,null,"Q39","Metro cúbico normalizado por día"]
[null,10217810,"Geranio vivo macrorhizum o raiz grande",null,null,null,"Q40","Metro cúbico normalizado por hora"]
[null,10217811,"Geranio vivo maculatum",null,null,null,"Q41","Joule por metro cúbico normalizado"]
[null,10217812,"Geranio vivo nodosum",null,null,null,"Q42","Joule por metro cúbico estándar"]
[null,10217813,"Geranio vivo phaeum",null,null,null,"QA","Página-fascimil"]
[null,10217814,"Geranio vivo platypetalum",null,null,null,"QAN","Cuarto (de un año)"]
[null,10217815,"Geranio vivo pratense",null,null,null,"QB","Página, copia impresa"]
[null,10217816,"Geranio vivo procurrens",null,null,null,"QD","Cuarta docena"]
[null,10217817,"Geranio vivo psilostemon",null,null,null,"QH","Un cuarto de hora"]
[null,10217818,"Geranio vivo pylzowianum",null,null,null,"QK","Cuarto de kilogramo"]
[null,10217819,"Geranio vivo renardii",null,null,null,"QR","Mano de papel"]
[null,10217820,"Geranio vivo sanguineum o sangruento",null,null,null,"QT","Cuarto (EUA)"]
[null,10217821,"Geranio vivo sylvaticum",null,null,null,"QTD","Cuarto seco (estados unidos)"]
[null,10217822,"Geranio vivo traversii",null,null,null,"QTI","Cuarto (UK)"]
[null,10217823,"Geranio vivo tuberosum",null,null,null,"QTL","Cuarto de líquido (estados unidos)"]
[null,10217824,"Geranio vivo versicolor",null,null,null,"QTR","Cuarto"]
[null,10217825,"Geranio vivo wallachianum",null,null,null,"R1","Pica"]
[null,10217826,"Geranio vivo wlassovianum",null,null,null,"R9","Mil metros cúbicos "]
[null,10217827,"Geranio vivo x magnificum o llamativo",null,null,null,"RH","Hora de funcionamiento"]
[null,10217900,"Amaryllis viva","Lirios estrella vivos",null,null,"RK","Medida métrica de rollo"]
[null,10217901,"Amaryllis viva aglaiae","Lirio estrella vivo aglaiae",null,null,"RM","Resma"]
[null,10217902,"Amaryllis viva amaru","Lirio estrella vivo amaru",null,null,"RN","Medida métrica de Hojas (resma)"]
[null,10217903,"Amaryllis viva angustifolium","Lirio estrella vivo angustifolium",null,null,"ROM","Habitación"]
[null,10217904,"Amaryllis viva anzaldoi","Lirio estrella vivo anzaldoi",null,null,"RP","Libra por resma"]
[null,10217905,"Amaryllis viva araripinum","Lirio estrella vivo araripinum",null,null,"RPM","Revoluciones por minuto"]
[null,10217906,"Amaryllis viva arboricola","Lirio estrella vivo arborícola",null,null,"RPS","Revoluciones por segundo"]
[null,10217907,"Amaryllis viva argentinum","Lirio estrella vivo argentinum",null,null,"RS","Reiniciar"]
[null,10217908,"Amaryllis viva aulicum","Lirio estrella vivo aulicum",null,null,"RT","Milla de toneladas de ingresos"]
[null,10217909,"Amaryllis viva aviflorum","Lirio estrella vivo aviflorum",null,null,"RU","correr"]
[null,10217910,"Amaryllis viva barreirasum","Lirio estrella vivo barreirasum",null,null,"S3","Pie cuadrado por segundo"]
[null,10217911,"Amaryllis viva blossfeldiae","Lirio estrella vivo blossfeldiae",null,null,"S4","Metro cuadrado por segundo"]
[null,10217912,"Amaryllis viva blumenavium","Lirio estrella vivo blumenavium",null,null,"S5","Sesenta cuartos de pulgada"]
[null,10217913,"Amaryllis viva brasilianum","Lirio estrella vivo brasilianum",null,null,"S6","Sesión"]
[null,10217914,"Amaryllis viva breviflorum","Lirio estrella vivo breviflorum",null,null,"S7","unidad de almacenamiento"]
[null,10217915,"Amaryllis viva bukasovii","Lirio estrella vivo bukasovii",null,null,"S8","Unidad de publicidad estándar"]
[null,10217916,"Amaryllis viva calyptratum","Lirio estrella vivo calyptratum",null,null,"SAN","Medio año"]
[null,10217917,"Amaryllis viva caupolicanense","Lirio estrella vivo caupolicanense",null,null,"SCO","Puntuación"]
[null,10217918,"Amaryllis viva chionedyanthum","Lirio estrella vivo chionedyanthum",null,null,"SCR","Escrúpulo"]
[null,10217919,"Amaryllis viva condemaita","Lirio estrella vivo condemaita",null,null,"SD","Libra sólida"]
[null,10217920,"Amaryllis viva corriense","Lirio estrella vivo corriense",null,null,"SE","Sección"]
[null,10217921,"Amaryllis viva cuzcoense","Lirio estrella vivo cuzcoense",null,null,"SEC","Segundo [unidad de tiempo]"]
[null,10217922,"Amaryllis viva curitibanum","Lirio estrella vivo curitibanum",null,null,"SET","Conjunto"]
[null,10217923,"Amaryllis viva cybister","Lirio estrella vivo cybister",null,null,"SG","Segmento "]
[null,10217924,"Amaryllis viva divijuliani","Lirio estrella vivo divijuliani",null,null,"SHT","Tonelada de envíos"]
[null,10217925,"Amaryllis viva evansiae","Lirio estrella vivo evansiae",null,null,"SIE","Siemens"]
[null,10217926,"Amaryllis viva ferreyrae","Lirio estrella vivo ferreyrae",null,null,"SK","Camión cisterna con división"]
[null,10217927,"Amaryllis viva forgetii","Lirio estrella vivo forgetii",null,null,"SM3","Metro cúbico estándar"]
[null,10217928,"Amaryllis viva fosteri","Lirio estrella vivo fosteri",null,null,"SMI","Milla (milla estatal)"]
[null,10217929,"Amaryllis viva fuscum","Lirio estrella vivo fuscum",null,null,"SN","Barra cuadrada"]
[null,10217930,"Amaryllis viva glaucescens","Lirio estrella vivo glaucescens",null,null,"SQ","Cuadrado"]
[null,10217931,"Amaryllis viva goianum","Lirio estrella vivo goianum",null,null,"SQR","Cuadrado y techado"]
[null,10217932,"Amaryllis viva guarapuavicum","Lirio estrella vivo guarapuavicum",null,null,"SR","Tira"]
[null,10217933,"Amaryllis viva harrisonii","Lirio estrella vivo harrisonii",null,null,"SS","Medida métrica de hoja"]
[null,10217934,"Amaryllis viva hugoi","Lirio estrella vivo hugoi",null,null,"SST","Estándar corto (7200 partidos)"]
[null,10217935,"Amaryllis viva iguazuanum","Lirio estrella vivo iguazuanum",null,null,"STC","Palo"]
[null,10217936,"Amaryllis viva illustre","Lirio estrella vivo illustre",null,null,"STI","Estone (UK)"]
[null,10217937,"Amaryllis viva intiflorum","Lirio estrella vivo intiflorum",null,null,"STK","Palo, cigarrillo"]
[null,10217938,"Amaryllis viva kromeri","Lirio estrella vivo kromeri",null,null,"STL","Litro estándar"]
[null,10217939,"Amaryllis viva lapacense","Lirio estrella vivo lapacense",null,null,"STN","Tonelada (estados unidos) o tonelada corta (UK y estados unidos)"]
[null,10217940,"Amaryllis viva leonardii","Lirio estrella vivo leonardii",null,null,"STW","Paja"]
[null,10217941,"Amaryllis viva leopoldii","Lirio estrella vivo leopoldii",null,null,"SW","Número de madejas"]
[null,10217942,"Amaryllis viva macbridei","Lirio estrella vivo macbridei",null,null,"SX","Envío"]
[null,10217943,"Amaryllis viva machupijchense","Lirio estrella vivo machupijchense",null,null,"SYR","Jeringuilla"]
[null,10217944,"Amaryllis viva mandonii","Lirio estrella vivo mandonii",null,null,"T0","Línea de telecomunicaciones en servicio"]
[null,10217945,"Amaryllis viva minasgerais","Lirio estrella vivo minasgerais",null,null,"T1","Mil libras"]
[null,10217946,"Amaryllis viva miniatum","Lirio estrella vivo miniatum",null,null,"T3","Mil pedazos"]
[null,10217947,"Amaryllis viva mollevillquense","Lirio estrella vivo mollevillquense",null,null,"T4","Bolsa de mil"]
[null,10217948,"Amaryllis viva morelianum","Lirio estrella vivo morelianum",null,null,"T5","Mil envolturas"]
[null,10217949,"Amaryllis viva nelsonii","Lirio estrella vivo nelsonii",null,null,"T6","Mil galones (US)"]
[null,10217950,"Amaryllis viva oconoquense","Lirio estrella vivo oconoquense",null,null,"T7","Impresión de mil"]
[null,10217951,"Amaryllis viva papilio","Lirio estrella vivo papilio",null,null,"T8","Mil pulgadas lineales"]
[null,10217952,"Amaryllis viva paquichanum","Lirio estrella vivo paquichanum",null,null,"TA","Décimo de pie cúbico"]
[null,10217953,"Amaryllis viva paradisiacum","Lirio estrella vivo paradisiacum",null,null,"TAB","Tonelada de registro bruto"]
[null,10217954,"Amaryllis viva pardinum","Lirio estrella vivo pardinum",null,null,"TAH","Kiloamperio-hora (milamperio-hora)"]
[null,10217955,"Amaryllis viva parodii","Lirio estrella vivo parodii",null,null,"TAN","Número de acido total"]
[null,10217956,"Amaryllis viva petiolatum","Lirio estrella vivo petiolatum",null,null,"TC","Camión"]
[null,10217957,"Amaryllis viva psittacinum","Lirio estrella vivo psittacinum",null,null,"TD","Térmico"]
[null,10217958,"Amaryllis viva puniceum","Lirio estrella vivo puniceum",null,null,"TE","Totalizador"]
[null,10217959,"Amaryllis viva reginae","Lirio estrella vivo reginae",null,null,"TF","Diez yardas cuadradas"]
[null,10217960,"Amaryllis viva reticulatum","Lirio estrella vivo reticulatum",null,null,"TI","Mil pulgadas cuadradas"]
[null,10217961,"Amaryllis viva rubropictum","Lirio estrella vivo rubropictum",null,null,"TIC","Tonelada métrica, incluido el contenedor"]
[null,10217962,"Amaryllis viva santacatarina","Lirio estrella vivo santa catarina",null,null,"TIP","Tonelada métrica, incluido el embalaje interior"]
[null,10217963,"Amaryllis viva solandraeflorum","Lirio estrella vivo solandraeflorum",null,null,"TJ","Mil centímetros cuadrados"]
[null,10217964,"Amaryllis viva starkiorum","Lirio estrella vivo starkiorum",null,null,"TKM","Tonelada kilometro"]
[null,10217965,"Amaryllis viva striatum","Lirio estrella vivo striatum",null,null,"TL","Mil pies (lineal)"]
[null,10217966,"Amaryllis viva stylosum","Lirio estrella vivo stylosum",null,null,"TMS","Kilogramo de carne importada, menos despojos"]
[null,10217967,"Amaryllis viva teyucuarense","Lirio estrella vivo teyucuarense",null,null,"TNE","Tonelada (tonelada métrica)"]
[null,10217968,"Amaryllis viva traubii","Lirio estrella vivo traubii",null,null,"TP","Paquete de diez"]
[null,10217969,"Amaryllis viva vargasii","Lirio estrella vivo vargasii",null,null,"TPI","Dientes por pulgada"]
[null,10217970,"Amaryllis viva variegatum","Lirio estrella vivo variegatum",null,null,"TPR","Decenas de pares"]
[null,10217971,"Amaryllis viva vittatum","Lirio estrella vivo vittatum",null,null,"TQ","Mil pies"]
[null,10217972,"Amaryllis viva yungacense","Lirio estrella vivo yungacense",null,null,"TQD","Mil metros cúbicos por día "]
[null,10218000,"Rubdeckia viva","Equináceas vivas",null,null,"TR","Diez pies cuadrados"]
[null,10218001,"Rubdeckia viva alpicola","Equinácea viva alpicola",null,null,"TRL","Trillones (eur)"]
[null,10218002,"Rubdeckia viva amplexicaulis","Equinácea viva amplexicaulis",null,null,"Ts","Mil pies cuadrados"]
[null,10218003,"Rubdeckia viva auriculata","Equinácea viva auriculata",null,null,"TSD","Tonelada de sustancia 90% seca"]
[null,10218004,"Rubdeckia viva bicolor","Equinácea viva bicolor",null,null,"TSH","Tonelada de vapor por hora"]
[null,10218005,"Rubdeckia viva californica","Equinácea viva califórnica",null,null,"TST","Decena de conjuntos"]
[null,10218006,"Rubdeckia viva fulgida","Equinácea viva fulgida",null,null,"TT","Mil metros lineales"]
[null,10218027,"Rubdeckia viva triloba","Equinácea viva triloba",null,null,"W4","Dos semanas"]
[null,10218110,"Protea viva alfiletero anaranjada",null,null,null,"WM","Mes de trabajo "]
[null,10218306,"Leucospermum vivo cuneiforme",null,null,null,"XAG","Pallet o empaquetado"]
[null,10218317,"Leucospermum vivo praemorsum",null,null,null,"XBB","Bobina"]
[null,10221700,"Astilbe vivo","Barba falsa de cabra vivas",null,null,"XCP","Garrafón protegido"]
[null,10222100,"Astrantia viva",null,null,null,"XDH","Caja, Según la clasificación de la compañía (CHEP), Eurobox"]
[null,10223101,"Cestrum vivo rojo",null,null,null,"XGB","Botella para gas"]
[null,10223502,"Lirio del fuego vivo crema","Vallota viva crema",null,null,"XIC","Paquete con pantalla y de plástico"]
[null,10224600,"Ixia viva",null,null,null,"XNG","Sin empaque o no empaquetado, unidades múltiples"]
[null,10225000,"Caléndula viva",null,null,null,"XPB","Pallet, Caja combinada y abierta con caja y pallet."]
[null,10225302,"Flor sin hojas de nogal blanco viva",null,null,null,"XPU","Cacerola"]
[null,10226010,"Callicarpa púrpura viva",null,null,null,"XSK","Carcasa esqueleto"]
[null,10226025,"Echeveria suculenta chupahuevos viva",null,null,null,"XTG","Contenedor de tanque genérico"]
[null,10226065,"Penstemon husker rojo vivo",null,null,null,"XWP","Contenedor intermedio para gráneles con tejido plástico y recubierto"]
[null,10226076,"Flor de paja viva",null,null,null,"XXA","Bolsa de tejido plástico, sin abrigo interior ni forro"]
[null,10231503,"Crisantemo vivo pompón focus",null,null,null,"XZL","Contenedor intermedio para gráneles, compuesto y de plástico rígido, sólidos"]
[null,10231600,"Crisantemo vivo pompón margarita",null,null,null,"XZX","Contenedor intermedio para gráneles, de contrachapado"]
[null,10231640,"Crisantemo vivo pompón tina"]
[null,10231707,"Crisantemo vivo espollado cremon eleonora nieve"]
[null,10231915,"Crisantemo spider vivo reflejo"]
[null,10232003,"Crisantemo vivo pompón athos"]
[null,10232040,"Crisantemo vivo pompón royal mundial"]
[null,10232055,"Crisantemo vivo pompón tierno"]
[null,10232102,"Crisantemo vivo pompón barón"]
[null,10241505,"Clavel vivo de floración sencilla crema"]
[null,10241520,"Clavel vivo de floración sencilla amarillo"]
[null,10251902,"Orquídea arachnis viva maggie oei roja"]
[null,10252007,"Orquídea phalaenopsis viva borneensis"]
[null,10252047,"Orquídea phalaenopsis viva philippinensis"]
[null,10252104,"Orquídea dendrobium viva fátima"]
[null,10252402,"Orquídea vanda rosada fuerte"]
[null,10301510,"Rosal cortado fresco faith"]
[null,10301711,"Rosal cortado fresco clear ocean"]
[null,10301726,"Rosal cortado fresco lemon dream"]
[null,10301741,"Rosal cortado fresco timeless"]
[null,10301916,"Rosal cortado fresco first lady"]
[null,10301931,"Rosal cortado fresco mona lisa"]
[null,10302004,"Rosal cortado fresco cezanne"]
[null,10302019,"Rosal cortado fresco n – joy rose"]
[null,10302121,"Rosal cortado fresco donna"]
[null,10302132,"Rosal cortado fresco flameco"]
[null,10302172,"Rosal cortado fresco sensual"]
[null,10302183,"Rosal cortado fresco versilia"]
[null,10302236,"Rosal cortado fresco tamara"]
[null,10302309,"Rosal cortado fresco bella voo o belle vue"]
[null,10302345,"Rosal cortado fresco karen"]
[null,10302360,"Rosal cortado fresco michelle"]
[null,10302375,"Rosal cortado fresco riviera"]
[null,10302417,"Rosal cortado fresco corazón"]
[null,10302432,"Rosal cortado fresco grand classe"]
[null,10302468,"Rosal cortado fresco royal massai"]
[null,10302502,"Rosal cortado fresco cream sweetheart","Rosa La Minuette cortada fresca cream"]
[null,10302631,"Rosal cortado fresco white cadillac"]
[null,10302709,"Rosal cortado fresco capriccio"]
[null,10302749,"Rosal cortado fresco latin beauty"]
[null,10302760,"Rosal cortado fresco okie dokie"]
[null,10302817,"Rosal cortado fresco electra spray"]
[null,10302832,"Rosal cortado fresco little silver spray"]
[null,10302868,"Rosal cortado fresco seline spray"]
[null,10302874,"Rosal cortado fresco suncity spray"]
[null,10311510,"Anturio cortado fresco picasso o pecoso","Lirio flamingo cortado fresco picasso o pecoso"]
[null,10311706,"Astromelia cortada fresca cherry white","Lirio de campo cortado fresco cherry white"]
[null,10311721,"Astromelia cortada fresca paris","Lirio de campo cortado fresco parís"]
[null,10312005,"Anémona cortada fresca coronaria"]
[null,10312203,"Aster cortada fresca japonés verde","Estrella cortada fresca japonés verde"]
[null,10312605,"Calla cortada fresca black star","Alcatraz cortado fresco black star"]
[null,10312616,"Calla cortada fresca ramillete farao","Alcatraz cortado fresco ramillete farao"]
[null,10312802,"Cresta de gallo (celosia) cortada fresca anaranjado","Flor de terciopelo cortada fresca anaranjado"]
[null,10312903,"Narciso cortado fresco ice follies"]
[null,10313207,"Clavel (dianthus) cortado fresco rojo","Clavelina cortada fresca rojo"]
[null,10313501,"Euphorbia cortada fresca characias","Corona de Cristo cortada fresca characias"]
[null,10313801,"Hiniesta cortada fresca verde"]
[null,10313907,"Margarita cortada fresca mini coral","Gerbera cortada fresca mini coral"]
[null,10313922,"Margarita cortada fresca roja de centro negro","Gerbera cortada fresca roja de centro negro"]
[null,10314206,"Godetia cortada fresca blanca"]
[null,10314501,"Brezo cortado fresco augustine","Biércol cortado fresco augustine"]
[null,10314709,"Jacinto cortado fresco rosado"]
[null,10314811,"Hydrangea cortada fresca berenjena","Hortensia cortada fresca berenjena"]
[null,10315001,"Pata de canguro cortada fresca bicolor"]
[null,10315104,"Delfinio cortada fresca rosado claro","Delphinium (larkspurs) cortado fresco rosado claro"]
[null,10315423,"Azucena cortada fresca de pascua","Lili cortada fresca de pascua"]
[null,10315438,"Azucena cortada fresca oriental canada","Lili cortada fresca oriental canadá"]
[null,10315474,"Azucena cortada fresca oriental yellow band","Lili cortada fresca oriental yellow band"]
[null,10315504,"Lavanda marina cortada fresca misty amarilla"]
[null,10316004,"Pimiento rojo cortado fresco ornamental","Paprika ornamental roja cortada fresca"]
[null,10316207,"Peonia cortada fresca soble duquesa blanca"]
[null,10316306,"Banksia cortada fresca coccinea","Flor de árbol madreselva australiano cortada fresca coccínea"]
[null,10316702,"Boca de dragón cortada fresca burgundy"]
[null,10316807,"Romero del pantano cortada fresca blanca","Siempreviva azul cortada fresca blanca"]
[null,10317206,"Cardo cortado fresco eryngium frambuesa"]
[null,10317314,"Tulipán cortado fresco francés flaming parrot"]
[null,10317354,"Tulipán cortado fresco blanco"]
[null,10317409,"Flor de cera cortada fresca híbrida blanca rubia"]
[null,10317706,"Forsythia cortada fresca variabilis"]
[null,10317812,"Geranio cortado fresco nodosum"]
[null,10317920,"Amaryllis cortada fresca corriense","Lirio estrella cortado fresco corriense"]
[null,10317935,"Amaryllis cortada fresca iguazuanum","Lirio estrella cortado fresco iguazuanum"]
[null,10317971,"Amaryllis cortada fresca vittatum","Lirio estrella cortado fresco vittatum"]
[null,10318013,"Rubdeckia cortada fresca laciniata","Equinácea cortada fresca laciniata"]
[null,10318100,"Protea cortada fresca"]
[null,10318213,"Leucadendron cortado fresco plumosum"]
[null,10318307,"Leucospermum cortado fresco formosum"]
[null,10318347,"Leucospermum cortado fresco tottum"]
[null,10321701,"Astilbe cortado fresco rosado fuerte","Barba falsa de cabra cortada fresca rosado fuerte"]
[null,10322802,"Calcynia cortada fresca princesa"]
[null,10323102,"Cestrum cortado fresco rojo zohar"]
[null,10324300,"Gloriosa cortada fresca"]
[null,10324702,"Liatris cortada fresca spray"]
[null,10325600,"Saponaria cortada fresca","Jabonarias cortadas frescas"]
[null,10326000,"Especies individuales o variedades de flores cortadas frescas","Arreglos florales frescos, Coronas funerarias, Flor de cempasúchil cortada fresc"]
[null,10326036,"Globularia de ojo azul cortada fresca"]
[null,10326051,"Flor de oereja de oveja cortada fresca"]
[null,10326066,"Manzana peruana cortada fresca","Cactus cortado fresco"]
[null,10326501,"Tweedia azul cortada fresca"]
[null,10331504,"Crisantemo cortado fresco pompón jeanne"]
[null,10331630,"Crisantemo cortado fresco pompón reagan rosado"]
[null,10331641,"Crisantemo cortado fresco pompón vero"]
[null,10331905,"Crisantemo spider cortado fresco anastasia rosado"]
[null,10331916,"Crisantemo spider cortado fresco regata"]
[null,10332029,"Crisantemo cortado fresco pompón miletta"]
[null,10332046,"Crisantemo cortado fresco pompón sizzle rosado"]
[null,10332114,"Crisantemo cortado fresco pompón furense"]
[null,10332129,"Crisantemo cortado fresco pompón sabas"]
[null,10342001,"Bouquet cortado fresco de astromelia agropoli","Bouquet cortado fresco de lirio de campo agropoli"]
[null,10351610,"Clavel cortado fresco mini o spray púrpura bicolor"]
[null,10361604,"Orquídea mocara cortada fresca nora"]
[null,10362018,"Orquídea phalaenopsis cortada fresca fasciata"]
[null,10362033,"Orquídea phalaenopsis cortada fresca lueddemanniana"]
[null,10362106,"Orquídea dendrobium cortada fresca jumbo blanca"]
[null,10362204,"Orquídea cymbidium cortada fresca mini rosada"]
[null,10401520,"Rosal cortado seco soulmate"]
[null,10401607,"Rosal cortado seco matilda"]
[null,10401736,"Rosal cortado seco romantic curiosa"]
[null,10401804,"Rosal cortado seco green tea"]
[null,10401926,"Rosal cortado seco lovely"]
[null,10401941,"Rosal cortado seco pink finess"]
[null,10401956,"Rosal cortado seco titanic"]
[null,10402029,"Rosal cortado seco scandal"]
[null,10402106,"Rosal cortado seco bengala"]
[null,10402142,"Rosal cortado seco karusso"]
[null,10402157,"Rosal cortado seco monte carlo"]
[null,10402210,"Rosal cortado seco época"]
[null,10402221,"Rosal cortado seco juliet ausjameson"]
[null,10402319,"Rosal cortado seco ciciolina"]
[null,10402330,"Rosal cortado seco funky"]
[null,10402370,"Rosal cortado seco princess"]
[null,10402385,"Rosal cortado seco sweet moments"]
[null,10402427,"Rosal cortado seco friendship"]
[null,10402442,"Rosal cortado seco madame delbard o carola"]
[null,10402459,"Rosal cortado seco red one"]
[null,10402602,"Rosal cortado seco aida"]
[null,10402617,"Rosal cortado seco high and pure"]
[null,10402720,"Rosal cortado seco exotic curiosa"]
[null,10402735,"Rosal cortado seco gran dorado"]
[null,10402775,"Rosal cortado seco tara"]
[null,10402803,"Rosal cortado seco antara follies"]
[null,10402843,"Rosal cortado seco minou spray"]
[null,10402858,"Rosal cortado seco ritmo spray"]
[null,10411505,"Anturio cortado seco mickey mouse","Lirio flamingo cortado seco mickey mouse"]
[null,10411600,"Allium cortado seco","Cebolletas ornamentales cortadas secas"]
[null,10411716,"Astromelia cortada seca new cairo","Lirio de campo cortado seco new cairo"]
[null,10411731,"Astromelia cortada seca sublime","Lirio de campo cortado seco sublime"]
[null,10411905,"Amaryllis cortado seco rilona","Amaryllis cortada seca rilona"]
[null,10412213,"Aster cortada seca novi belgii rosado fuerte","Estrella cortada seca novi belgii rosado fuerte"]
[null,10412402,"Bouvardia cortada seca rosado claro","Trompetilla cortada seca rosado claro"]
[null,10412626,"Calla cortada seca ramillete merlot","Alcatraz cortado seco ramillete merlot"]
[null,10412641,"Calla cortada seca ramillete samur","Alcatraz cortado seco ramillete samur"]
[null,10413006,"Dalia cortada seca durazno"]
[null,10413106,"Delphinium cortado seco híbrido azul claro"]
[null,10413600,"Fresia cortada seca","Freesias cortadas secas"]
[null,10413700,"Ajedrezada cortada seca"]
[null,10413917,"Margarita cortada seca anaranjada","Gerbera cortada seca anaranjada"]
[null,10414002,"Jengibre cortado seco jungle king rosado","Flor de jengibre cortada seca jungle king rosado"]
[null,10414403,"Gypsophilia cortada seca mirabella","Nube cortada seca mirabella"]
[null,10414603,"Heliconia cortada seca bihai lobster claw","Pinza de langosta cortada seca bihai lobster claw"]
[null,10414618,"Heliconia cortada seca southern cross","Pinza de langosta cortada seca southern cross"]
[null,10414821,"Hydrangea cortada seca oakleaf","Hortensia cortada seca oakleaf"]
[null,10414906,"Iris cortada seca barbada roja"]
[null,10415304,"Lila  cortada seca vino"]
[null,10415414,"Azucena cortada seca sancerre asiátia","Lili cortada seca sancerre asiática"]
[null,10415449,"Azucena cortada seca oriental halifax","Lili cortada seca oriental halifax"]
[null,10415460,"Azucena cortada seca oriental robina","Lili cortada seca oriental robina"]
[null,10415608,"Lisianthus cortado seco rosado con borde blanco","Eustoma cortada seca rosado con borde blanco"]
[null,10415803,"Narciso cortado seco abba paperwhite"]
[null,10416218,"Peonia cortada seca shirley temple"]
[null,10416404,"Ranúnculo cortado seco grimaldi"]
[null,10416803,"Romero del pantano cortada seca durazno","Siempreviva azul cortada seca durazno"]
[null,10416909,"Matiola cortada seca enamorada rosda","Alhelí cortada seca enamorada rosada"]
[null,10417106,"Guisante de olor cortado seco durazno teñido"]
[null,10417324,"Tulipán cortado seco francés reconocido"]
[null,10417339,"Tulipán cortado seco llameante"]
[null,10417423,"Flor de cera cortada seca wanaroo"]
[null,10417509,"Hierba de aquiles cortada seca blanca"]
[null,10417822,"Geranio cortado seco traversii"]
[null,10417905,"Amaryllis cortada seca araripinum","Lirio estrella cortado seco araripinum"]
[null,10417945,"Amaryllis cortada seca minasgerais","Lirio estrella cortado seco minasgerais"]
[null,10417960,"Amaryllis cortada seca reticulatum","Lirio estrella cortado seco reticulatum"]
[null,10418023,"Rubdeckia cortada seca serotina","Equinácea cortada seca serótina"]
[null,10418110,"Protea cortada seca alfiletero anaranjada"]
[null,10418302,"Leucospermum cortado seco attenuatum"]
[null,10418317,"Leucospermum cortado seco praemorsum"]
[null,10418332,"Leucospermum cortado seco gerrardii"]
[null,10422000,"Flor de alcachofa cortada seca"]
[null,10422401,"Boronia cortada seca rosada"]
[null,10423502,"Lirio del fuego cortado seco crema","Vallota cortada seca crema"]
[null,10423802,"Manzanilla cortada seca doble blanca"]
[null,10425000,"Caléndula cortada seca"]
[null,10425201,"Nerina cortada seca rosada"]
[null,10426003,"Bellis perennis cortada seca"]
[null,10426026,"Echinacea purpurea cortada seca"]
[null,10426062,"Orquídea de monja cortada seca"]
[null,10426077,"Oscularia suculenta cortada seca"]
[null,10426203,"Tanaceto cortado seco victoria sencillo blanco"]
[null,10431601,"Crisantemo cortado seco pompón artista rosado"]
[null,10431616,"Crisantemo cortado seco pompón blanco elite"]
[null,10431704,"Crisantemo cortado seco espollado cremon eleonora bronce"]
[null,10431804,"Crisantemo cortado seco espollado football resouci"]
[null,10432004,"Crisantemo cortado seco pompón biarritz"]
[null,10432016,"Crisantemo cortado seco pompón everglades"]
[null,10432056,"Crisantemo cortado seco pompón oropel"]
[null,10432067,"Crisantemo cortado seco pompón sharp amarillo"]
[null,10441506,"Clavel cortado seco de floración sencilla verde o prado"]
[null,10441600,"Clavel cortado seco mini o spray"]
[null,10451806,"Orquídea disa cortada seca amarilla y roja bicolor"]
[null,10452008,"Orquídea phalaenopsis cortada seca braceana"]
[null,10452023,"Orquídea phalaenopsis cortada seca hainanensis"]
[null,10452059,"Orquídea phalaenopsis cortada seca taenialis"]
[null,10452107,"Orquídea dendrobium cortada seca kating dang"]
[null,10501602,"Chili verde cortado fresco romerillo"]
[null,10501808,"Eucalipto cortado fresco sin semilla y sin hojas"]
[null,10502107,"Pasto fresco cortado pluma","Pasto ornamental cortado fresco pluma"]
[null,10502118,"Pasto fresco cortado cinta","Pasto ornamental cortado fresco cinta"]
[null,10502905,"Azara dentata fresca cortada"]
[null,10502920,"Hoja de euonymous fresca cortada"]
[null,10502956,"Skimmia fresca cortada"]
[null,11101511,"Calcio"]
[null,11101612,"Mineral de cromo","Mena de cromo"]
[null,11101701,"Escoria o ceniza"]
[null,11111602,"Travertino"]
[null,11111801,"Terracota"]
[null,11121600,"Madera"]
[null,11121810,"Mijo común o ixtle o piasava"]
[null,11131505,"Mohair sin procesar","Pelo de cabra de angora sin procesar"]
[null,11151515,"Fibras de asbesto"]
[null,11151606,"Hebra de fibra de vidrio"]
[null,11161801,"Textil sintético de tejido sintético"]
[null,11162105,"Tela o textil de vidrio"]
[null,11162305,"Cuero de vaca"]
[null,11171603,"Aleación de acero inoxidable 316"]
[null,11191505,"Sólidos de súper aleación"]
[null,11191702,"Torneados (virutas) de bronce","Virutas de bronce"]
[null,12131600,"Pirotecnia"]
[null,12141606,"Holmio ho"]
[null,12141703,"Americio am"]
[null,12141739,"Rutenio ru"]
[null,12141754,"Hassio hs"]
[null,12142102,"Gases compuestos clorados"]
[null,12142202,"Agua pesada","Agua deuterada"]
[null,12161901,"Agentes anti – espuma"]
[null,12162003,"Aceites agrícolas"]
[null,12162701,"Aditivos de pérdida de fluido de polímeros modificados"]
[null,12163201,"Aditivos de migración anti gas"]
[null,12164505,"Excipiente"]
[null,12164801,"Agente reductor de agua en cemento"]
[null,12165104,"Polímero surfactante sp","Polímero surfactante SP"]
[null,12171702,"Dispersiones de pigmento"]
[null,12191600,"Solventes oxigenados"]
[null,12352136,"Glicol trietileno"]
[null,12352209,"Aminoácidos o sus derivados"]
[null,13101601,"Caucho vulcanizado"]
[null,13101703,"Fluorocarbono fcm"]
[null,13102014,"Polietereterquetona peek","Polieteretercetona PEEK"]
[null,13102031,"Éter de polifenilene ppe"]
[null,13111034,"Compuesto cloruro de polivinilo"]
[null,13111049,"Polímeros de propileno de etileno"]
[null,13111102,"Rosina de goma","Resina de goma"]
[null,13111213,"Películas de poliamida"]
[null,13111307,"Espumas de caucho"]
[null,14111535,"Papeles para telégrafo"]
[null,14111608,"Certificados de regalo"]
[null,14111823,"Formatos o libros de control"]
[null,14121505,"Material de fibra"]
[null,14122200,"Papeles especializados de uso industrial"]
[null,15101510,"Condensado"]
[null,15111701,"Espesantes de combustible"]
[null,15121515,"Compuestos anti – adherentes o anti – manchas"]
[null,15131600,"Instalación de combustible de fisión"]
[null,20101619,"Banda alimentadora para pesar"]
[null,20102005,"Jumbos neumáticos de desarrollo horizontal"]
[null,20102300,"Vehículos de servicio de minería subterránea"]
[null,20111604,"Taladro sobre orugas"]
[null,20121001,"Unidades de mezcla acidificante"]
[null,20121016,"Protectores de árboles de acidificación"]
[null,20121209,"Unidades de mezcla de gel","Maquina  de mezcla de gel"]
[null,20121306,"Boquillas de acometida","Sistemas de embalaje de grava"]
[null,20121419,"Herramientas de correr tapones"]
[null,20121431,"Tapón inflable","Embalador inflable, Empacador inflable"]
[null,20121520,"Partes y accesorios del preventor de reventones"]
[null,20121700,"Herramientas de pesca"]
[null,20121804,"Sistemas de control de superficie de perforación direccional"]
[null,20121905,"Herramientas de resonancia magnética nuclear"]
[null,20121920,"Herramientas y accesorios de indicador de punto libre"]
[null,20122209,"Herramientas de formación de cierre"]
[null,20122307,"Volcado de cemento de rescate de equipos cable de recuperación"]
[null,20122344,"Barras espaciadoras del cable de recuperación"]
[null,20122360,"Punzón de la línea de cable"]
[null,20122515,"Tubería flexible de campo petrolero"]
[null,20122608,"Hidrofonos sísmicos"]
[null,20122814,"Sistemas de gatos para mover el taladro de perforación"]
[null,20122825,"Plataforma de taladro de perforación"]
[null,20123202,"Kit de reparación expandible"]
[null,20131008,"Agentes para adelgazar el lodo"]
[null,20141016,"Base de llegada de la boca de pozo"]
[null,20141502,"Bomba de fondo de pozo de cavidad progresiva"]
[null,20142100,"Tratadores de calentadores"]
[null,20142905,"Tanque receptor de aire"]
[null,21101504,"Desmalezadoras"]
[null,21101705,"Trilladoras"]
[null,21101807,"Equipo y suministros para polinización"]
[null,21102301,"Equipo de riego para invernadero"]
[null,21111500,"Equipo de pesca comercial"]
[null,22101535,"Extractor de pilotes"]
[null,22101612,"Escarificadoras de carreteras"]
[null,22101716,"Kits de conversión de maquinaria de construcción"]
[null,22101901,"Mezcladoras o plantas de concreto"]
[null,23101529,"Rodillo esparcidor de goma"]
[null,23111505,"Maquinaria de isomerización"]
[null,23121505,"Máquina para pegar puntadas"]
[null,23131511,"Pivotes de agua"]
[null,23131603,"Pulidoras para hacer facetas o pulir caras"]
[null,23151516,"Pasadores del eyector"]
[null,23151700,"Maquinaria, equipo y suministros de la industria óptica"]
[null,23151910,"Flotador"]
[null,23152106,"Pantalla vibratoria de separación de perfil uretano"]
[null,23153014,"Plantilla de inspección"]
[null,23153029,"Bloque de plantilla"]
[null,23153204,"Robots de soldadura"]
[null,23153411,"Inflado de montaje de llantas"]
[null,23161501,"Fuelles de fundición"]
[null,23161607,"Arena de fundición"]
[null,23181511,"Conformadora"]
[null,23191101,"Mezcladora de tornillo sencillo"]
[null,23201101,"Recipiente absorbente"]
[null,23231301,"Rodillo alimentador"]
[null,23231900,"Cepilladoras y accesorios"]
[null,23241608,"Cortador de quemador"]
[null,23241619,"Escariador de tubos"]
[null,23241807,"Máquina de taladro de brazo radial"]
[null,23242105,"Inserto indexable"]
[null,23242402,"Centro maquinado universal o multi - tarea"]
[null,23242601,"Máquina biseladora"]
[null,23251704,"Máquinas de forjado radial"]
[null,23251804,"Troquel de terminado de bordes"]
[null,23261502,"Máquina de método de chorro de tinta"]
[null,23271602,"Máquina de soldadura por inducción"]
[null,23271709,"Generador de soldadura"]
[null,23281603,"Horno para endurecimiento durante tratamiento de calor","Horno de endurecimiento por edad de tratamiento térmico"]
[null,23281902,"Limpiador químico de metal"]
[null,24101500,"Camiones industriales"]
[null,24101609,"Inclinadores"]
[null,24101649,"Grúa güinche","Grúa de cabrestante"]
[null,24101701,"Rodillo transportador"]
[null,24101738,"Compuerta de barra"]
[null,24101802,"Retenedoras para muelles"]
[null,24102108,"Compactadores de empaque"]
[null,24111502,"Bolsas de papel"]
[null,24111803,"Tanques de almacenamiento"]
[null,24112209,"Contenedor de paredes rectas","Bidón"]
[null,24112500,"Cartón ondulado y otros materiales para distribución"]
[null,24121803,"Latas de bebida"]
[null,24122005,"Botellas de aplicador"]
[null,24141511,"Amarres de carga"]
[null,24141601,"Empaque de burbujas"]
[null,25101702,"Carros policiales"]
[null,25101908,"Cuatrimoto"]
[null,25102101,"Tractores delanteros de cabina baja"]
[null,25111509,"Buques de cruceros","Barcos de crucero"]
[null,25111705,"Muelles anfibios de transporte"]
[null,25111720,"Botes para desembarco de tanques"]
[null,25111808,"Yates"]
[null,25111935,"Berlingas"]
[null,25121604,"Vagones tolva o góndolas"]
[null,25131704,"Avión de ataque"]
[null,25131903,"Helicópteros de ataque"]
[null,25171507,"Cuchillas limpiadoras","Pluma limpiaparabrisas"]
[null,25171707,"Freno de tambor","Pinzas de freno"]
[null,25172104,"Cinturones de seguridad"]
[null,25172120,"Inflador de airbag"]
[null,25172407,"Elementos respiraderos","Elementos de evacuación"]
[null,25172609,"Faldón anti – fango"]
[null,25173701,"Convertidores catalíticos","Catalizador"]
[null,25173803,"Carcasas de eje"]
[null,25173819,"Cigüeñal de la hélice marina"]
[null,25174214,"Timones o volantes de madera","Volante de madera"]
[null,25174411,"Acolchado de caucho de la llave"]
[null,25175002,"Estación de carga de vehículo eléctrico"]
[null,25181609,"Tráiler granelero","Tráiler para remolque granelero"]
[null,25191516,"Unidad neumática para arranque de aeronaves","Unidad de arranque de aire de la aeronave"]
[null,25191601,"Simuladores de vuelo de naves espaciales"]
[null,25191735,"Compresor de anillo de pistón"]
[null,25191806,"Hidrómetro de batería"]
[null,25201503,"Estabilizadores horizontales de avión"]
[null,25201518,"Dobladores de avión"]
[null,25202104,"Paneles de interruptores aeroespaciales de la cabina"]
[null,25202301,"Cinturones de seguridad del avión"]
[null,25202506,"Puertas de avión"]
[null,26101203,"Motor dc sin núcleo","Motor de corriente directa sin núcleo"]
[null,26101306,"Motor de cohete líquido"]
[null,26101703,"Difusores de motor de avión"]
[null,26101715,"Tapas de motor"]
[null,26101762,"Varillaje de los componentes del motor"]
[null,26101777,"Bobina del inyector de combustible gasolina"]
[null,26111525,"Transmisiones de tambor"]
[null,26111541,"Reductor de velocidad cicloidal"]
[null,26111713,"Baterías térmicas"]
[null,26111728,"Celda estándar"]
[null,26112004,"Kits de reparación del embrague","Paquete de reparación de embrague"]
[null,26121510,"Alambre de trole"]
[null,26121538,"Conjunto de cable"]
[null,26121629,"Cable de alimentación"]
[null,26121644,"Cable eléctrico de aluminio desnudo"]
[null,26121807,"Cable automotriz de núcleo sencillo de 60 voltios clase f"]
[null,26121818,"Cable automotriz de núcleo múltiple de 60 voltios clase a"]
[null,26131505,"Centrales de energía  marina"]
[null,26131609,"Chimeneas de admisión","Pilas de admisión de escape"]
[null,26141803,"Puertas de blindaje para recintos radiactivos"]
[null,26141909,"Separadores de isótopos"]
[null,26142407,"Sistemas de eliminación de residuos radiactivos"]
[null,27111513,"Cortadores de manguera"]
[null,27111554,"Afilador de cuchillas"]
[null,27111602,"Martillos"]
[null,27111618,"Martillo de garra"]
[null,27111731,"Destornillador de precisión","Desarmador de precisión"]
[null,27111746,"Llave bulldog"]
[null,27111820,"Escuadra maestra"]
[null,27111901,"Cortafríos","Cincel corta frío"]
[null,27111942,"Lima de sierra de extremo doble"]
[null,27111958,"Lapeador de mano"]
[null,27112035,"Cortador de setos"]
[null,27112102,"Tornillos de banco"]
[null,27112139,"Alicates de combinación","Pinzas de combinación"]
[null,27112154,"Tornillo fresador"]
[null,27112300,"Herramientas de marcar","Herramienta de sellado y marcado"]
[null,27112311,"Tiza para marcar","Gis para marcar"]
[null,27112501,"Herramientas curvatubos","Dobladoras para tubo"]
[null,27112727,"Pistola de mortero"]
[null,27112738,"Lija de detalle"]
[null,27112836,"Juego de brocas de destornillador"]
[null,27112842,"Broca manual para madera"]
[null,27113300,"Herramientas manuales de precisión"]
[null,27121701,"Conectores hidráulicos rápidos","Coples hidráulicos rápidos"]
[null,27131517,"Grapadora neumática industrial"]
[null,27131604,"Lubricadores neumáticos"]
[null,30101514,"Ángulos de plomo"]
[null,30101711,"Vigas de bronce"]
[null,30102011,"Lámina de bronce"]
[null,30102205,"Placa de acero inoxidable"]
[null,30102221,"Placa de fibra"]
[null,30102416,"Varillas de caucho"]
[null,30102905,"Postes de plástico"]
[null,30103607,"Viguetas de madera"]
[null,30103618,"Marco de acero"]
[null,30111903,"Lámina de malla de alambre","Armex"]
[null,30121704,"Losa de concreto","Forjado"]
[null,30131515,"Bloque de madera"]
[null,30131703,"Losas o baldosas de concreto"]
[null,30151601,"Plafones de tejado"]
[null,30151703,"Canaletas"]
[null,30161707,"Pisos de vinilo"]
[null,30161719,"Fieltro para alfombras"]
[null,30161902,"Columnas"]
[null,30171501,"Puertas de cristal"]
[null,30171512,"Abridores de puertas","Puerta con brazo hidráulico"]
[null,30171800,"Claraboyas","Tragaluces"]
[null,30171906,"Marcos para ventanas fijas"]
[null,30181606,"Ganchos de baño"]
[null,30181804,"Grifo","Llaves para regadera"]
[null,30191602,"Estabilizadores de andamiaje"]
[null,30241509,"Sección de mástil y poste rey"]
[null,30261901,"Alambre de magnesio"]
[null,30262104,"Lingote de titanio"]
[null,30263000,"Barras de estaño"]
[null,30263301,"Barra de plomo extruido"]
[null,30263604,"Barra de acero al carbón serie sae 1500 estirada en frío"]
[null,30264019,"Lámina de acero al carbón electro galvanizada serie sae 1200 enrollada en frío","Hoja laminada en frío de acero al carbono SAE 1200 galvanizada"]
[null,30264105,"Lámina de aleación de acero al carbón serie sae 9000 enrollada en caliente","Hoja laminada en caliente de aleación de acero SAE 9000"]
[null,30264602,"Lámina de acero inoxidable serie sae 300 enrollada en caliente","Hojas de acero inoxidable laminada en caliente serie sae 300"]
[null,30264800,"Bandas de acero inoxidable","Tiras de acero inoxidable"]
[null,30265200,"Bandas y lingotes de aluminio","Tiras y lingotes de aluminio"]
[null,30265502,"Banda de hierro dúctil"]
[null,30266209,"Lingote de cadmio"]
[null,30266405,"Lámina de fibra comprimida","Hoja de fibra comprimida"]
[null,31101705,"Objetos de hierro fundidos en molde fijo","Piezas de hierro fundidas en molde permanente"]
[null,31101716,"Objetos de metal precioso fundidos en molde fijo","Piezas de metal precioso fundidas en molde permanente"]
[null,31102008,"Objetos de fundición centrífuga de titanio","Piezas de titanio hechas mediante fundición centrifuga"]
[null,31102102,"Objetos de aleación ferrosa fundidos en molde cerámico","Piezas de aleación ferrosa fundidas en molde de cerámica"]
[null,31102200,"Piezas fundidas en molde de grafito","Fundiciones en molde de grafito"]
[null,31102406,"Objetos de aluminio fundidos por proceso en v","Piezas de aluminio fundidas por proceso V"]
[null,31102500,"Fundiciones con troquel y ensambles de fundiciones permanentes de baja presión","Fundiciones en molde y ensambles de fundiciones permanentes de baja presión"]
[null,31111610,"Extrusiones por impacto de plástico","Extrusiones de perfiles de plástico por impacto"]
[null,31111707,"Extrusiones en frío de plomo","Extrusiones de perfiles de plomo en frío"]
[null,31121105,"Objetos fundidos maquinados con troquel de hierro","Piezas de acero inoxidable fundidas en molde mecanizadas"]
[null,31121120,"Objetos de aluminio de alta presión fundidos maquinados con troquel","Piezas de aluminio fundidas a alta presión en molde mecanizadas"]
[null,31121302,"Objetos maquinados en molde permanente de aleación ferrosa fundidos","Piezas de aleación ferrosa  fundidas en molde permanente mecanizadas"]
[null,31121317,"Objetos maquinados en molde permanente de compuestos fundidos","Piezas de compuestos  fundidas en molde permanente mecanizadas"]
[null,31121515,"Objetos maquinados de plomo fundidos en molde en concha","Piezas de plomo fundidas en molde de cáscara mecanizadas"]
[null,31121604,"Objetos maquinados de acero inoxidable fundidos a la cera perdida","Piezas de acero inoxidable fundidas a la cera perdida mecanizadas"]
[null,31121713,"Objetos maquinados centrifugados de cinc fundidos","Piezas de zinc hechas mediante fundición centrífuga mecanizadas"]
[null,31121817,"Objetos maquinados de compuestos fundidos en molde cerámico","Piezas de compuesto fundidas en molde de cerámica mecanizadas"]
[null,31121912,"Objetos maquinados de bronce fundidos en molde de grafito","Piezas de bronce fundidas en molde de grafito mecanizadas"]
[null,31132207,"Forja de latón maquinado y tratado con calor forjado en tibio","Fragua de latón tratado con calor forjado en tibio mecanizado"]
[null,31132400,"Forjas de aleaciones no ferrosas","Fragua de aleaciones no ferrosas"]
[null,31132701,"Forja de hierro maquinado forjado en frío","Fragua de hierro forjado en frío mecanizado"]
[null,31132803,"Forja de magnesio maquinado y tratado con calor forjado en frío","Fragua de magnesio tratado con calor forjado en frío mecanizado"]
[null,31133100,"Forjas de cobre","Fragua de cobre"]
[null,31133202,"Forja de zinc tratado con calor forjado en frío","Fragua de cinc tratado con calor forjado en frío"]
[null,31133412,"Forja de estaño tratado con calor y dimensionado en frío forjado en caliente","Fragua de estaño inoxidable tratado y forjado con calor y dimensionado en frío"]
[null,31133601,"Forja de metal precioso maquinado forjado en frío","Fragua de metal precioso forjado en frío mecanizado"]
[null,31142000,"Ensambles de moldeados termoplásticos","Ensambles de moldura termoplásticos"]
[null,31142103,"Engaste de moldeado termoplástico por aire","Moldeo de polímeros por aire"]
[null,31142603,"Ensamble de engaste termofraguado moldeado por disparo múltiple por aire","Ensamble de engaste termofraguado moldeado por disparo múltiple por aire"]
[null,31142706,"Ensamble de engaste termofraguado moldeado por inyección de alta precisión","Ensamblaje de molduras termoestables por inyección de alta precisión"]
[null,31143100,"Ensambles de moldeado termoplástico terminados"]
[null,31151609,"Eslabones de cadena"]
[null,31151700,"Cable mecánico"]
[null,31152202,"Cable de acero semiduro","Alambre recocido"]
[null,31152307,"Alambre de titanio o aleación de titanio"]
[null,31161601,"Pernos de anclaje"]
[null,31161617,"Pernos de ala","Abrazadera tipo U"]
[null,31161712,"Tuercas de brida"]
[null,31161728,"Tuercas de acople"]
[null,31161826,"Arandela dentada"]
[null,31161837,"Arandelas de división"]
[null,31162200,"Remaches"]
[null,31162215,"Remache tubular"]
[null,31162310,"Correas de montaje"]
[null,31162605,"Ganchos de suspensión"]
[null,31162813,"Ganchos para cerda de ropa"]
[null,31162917,"Abrazadera de agarre rápido"]
[null,31163011,"Acoples de mordaza"]
[null,31163211,"Grapas de retención"]
[null,31163226,"Anillo de seguridad"]
[null,31171526,"Almohadillas de rodamiento","Empaque de balero"]
[null,31171541,"Rodillo de rodamiento"]
[null,31171711,"Engranajes de anillo"]
[null,31171805,"Cepillos de rueda"]
[null,31191602,"Ruedas abrasivas de diamante"]
[null,31201513,"Cintas antideslizantes de seguridad"]
[null,31201524,"Cinta para codificación de color"]
[null,31201626,"Adhesivo sensible a la presión psa"]
[null,31201637,"Material de comunicación tipo espuma para detener el agua","Espuma contra fugas de agua"]
[null,31211708,"Recubrimiento de polvo"]
[null,31211910,"Guantes para pintar"]
[null,31231203,"Latón en placa labrada"]
[null,31231218,"Aleación de níquel en placa labrada"]
[null,31241811,"Filtros de color"]
[null,31241906,"Bóvedas reproducidas"]
[null,31261500,"Cubiertas y cajas"]
[null,31261701,"Carcasa  insonorizante de máquina"]
[null,31281534,"Componente estampado de acero inoxidable sae serie 300 enrollado en frío"]
[null,31281808,"Componentes de aleación de níquel perforados","Aleación de níquel perforado"]
[null,31281819,"Componentes de estaño perforados"]
[null,31282019,"Componentes de zinc hidroformados"]
[null,31282110,"Componentes de magnesio formados en torno"]
[null,31282310,"Componentes de magnesio formados por estiramiento por presión"]
[null,31282405,"Componentes compuestos formados con explosivos"]
[null,31291200,"Estiramientos por presión de impacto labrados"]
[null,31291210,"Componentes plásticos maquinados por extrusión de impacto"]
[null,31291414,"Componentes de acero maquinados por extrusión en caliente"]
[null,31301104,"Forjas de acero inoxidable maquinadas con troquel abierto"]
[null,31301304,"Forjas de acero inoxidable maquinadas con impresión por troquel"]
[null,31301315,"Forjas de plomo maquinadas con impresión por troquel"]
[null,31301515,"Forjas de aleación ferrosa maquinadas por anillo enrollado"]
[null,31311112,"Ensambles de tubería soldada de solvente de cobre"]
[null,31311211,"Ensambles de tubería remachada de aleación wasp"]
[null,31311601,"Ensambles de tubería con soldadura sónica de aluminio"]
[null,31311700,"Conjuntos de tubería pegada"]
[null,31321304,"Ensambles de barras remachadas de inconel"]
[null,31321409,"Ensambles de barras soldadas con soldadura fuerte o débil de acero inoxidable"]
[null,31321709,"Ensambles de barras atornilladas de acero inoxidable"]
[null,31331112,"Ensambles estructurales pegados de cobre"]
[null,31331502,"Ensambles estructurales con soldadura de solvente de acero al carbono"]
[null,31331601,"Ensambles estructurales con soldadura de fuerte o débil de aluminio"]
[null,31341205,"Ensambles de láminas remachadas de acero de aleación baja"]
[null,31341304,"Ensambles de láminas soldadas con soldadura ultra violeta de inconel"]
[null,31341610,"Ensambles de láminas pegadas de titanio"]
[null,31341713,"Ensambles de láminas atornilladas de latón"]
[null,31351112,"Ensambles de tubos soldados con soldadura ultra violeta de cobre"]
[null,31351502,"Ensambles de tubos atornillados de acero al carbono"]
[null,31351605,"Ensambles de tubos soldados con disolvente de acero de aleación baja"]
[null,31361205,"Ensambles de placas atornilladas de acero de aleación baja"]
[null,31361310,"Ensambles de placas soldadas con solvente de titanio"]
[null,31361610,"Ensambles de placas soldadas con soldadura sónica de titanio"]
[null,31361713,"Ensambles de placas remachadas de latón"]
[null,31381108,"Imán anisotrópico fundido maquinado de bario ferrita"]
[null,31381119,"Imán anisotrópico fundido, maquinado y recubierto  de bario ferrita"]
[null,31381203,"Imán isotrópico sinterizado maquinado de estroncio ferrita"]
[null,31381213,"Imán isotrópico sinterizado, maquinado y recubierto de bario ferrita"]
[null,31381255,"Ensamble de imán anisotrópico sinterizado de aluminio níquel cobalto ferroso"]
[null,31381314,"Imán isotrópico prensado y sinterizado, maquinado y recubierto de estroncio ferrita"]
[null,31381325,"Imán isotrópico prensado y sinterizado recubierto de estroncio ferrita"]
[null,31381409,"Imán anisotrópico pegado con plástico maquinado de estroncio ferrita"]
[null,31381424,"Imán isotrópico pegado con plástico recubierto de bario ferrita"]
[null,31381504,"Imán isotrópico pegado con plástico moldeado por inyección maquinado de neodimio"]
[null,31381519,"Imán anisotrópico pegado con plástico moldeado por inyección, maquinado y recubierto  de bario ferrita"]
[null,31381555,"Ensamble de imán anisotrópico pegado con plástico moldeado por inyección de aluminio níquel cobalto ferroso"]
[null,31391700,"Maquinados de precisión alta"]
[null,31401805,"Empaque de corcho cortado con chorro de agua"]
[null,31411503,"Sello torneado de neopreno"]
[null,31421512,"Filtro sinterizado estándar de base de cobre"]
[null,32101505,"Ensamblajes de circuitos electro plateados"]
[null,32101542,"Receptor de sincro"]
[null,32101608,"Memoria de sólo lectura (rom)","Memoria sólo de lectura (ROM)"]
[null,32101620,"Circuitos integrados digitales"]
[null,32101660,"Circuito integrado de sensor de tasa angular"]
[null,32111502,"Diodos zener"]
[null,32111707,"Suspector de semiconductor"]
[null,32121512,"Capacitor de mica"]
[null,32121900,"Resonadores"]
[null,32131013,"Máscara de foto"]
[null,32141106,"Bases de tubo"]
[null,32151601,"Subsistema i/o chasis controlador lógico programable"]
[null,39101613,"Lámparas infrarrojas"]
[null,39101800,"Componentes y accesorios de Lámpara"]
[null,39111531,"Orientación para iluminación comercial"]
[null,39111608,"Alumbrado de zonas residenciales"]
[null,39111801,"Balastos de lámparas"]
[null,39111905,"Dispositivo de iluminación de sala blanca"]
[null,39112010,"Luz de cuerda"]
[null,39112603,"Lámpara de kerosene o de propano o de gas natural o de butano"]
[null,39121014,"Bancos de capacitores"]
[null,39121102,"Tomas o centros de medidores"]
[null,39121117,"Bus bar","Barra colectora"]
[null,39121402,"Enchufes eléctricos"]
[null,39121414,"Conectores coaxiales"]
[null,39121460,"Conector con filtro de cabecera"]
[null,39121529,"Contactores","Contactores electromagnéticos"]
[null,39121625,"Fusible de alta velocidad"]
[null,39121640,"Breaker de circuito eléctrico"]
[null,39121702,"Clips para cables"]
[null,39122001,"Unidad ac invertida","Inversor accionamiento AC"]
[null,39122112,"Ojo del juego de aislamiento"]
[null,39122227,"Interruptor o control joystick"]
[null,39122242,"Interruptor de suelo"]
[null,39122330,"Relés de sobrecarga","Relevadores de sobrecarga"]
[null,39131503,"Marcador de cable de deslizar"]
[null,40101503,"Rejilla de ventilación"]
[null,40101601,"Secadores"]
[null,40101809,"Calentadores de circulación"]
[null,40101824,"Calentador de cuarzo"]
[null,40102005,"Quemadores operados con gas propano"]
[null,40141605,"Válvulas solenoides"]
[null,40141617,"Válvulas esféricas de ángulo"]
[null,40141657,"Válvula de control de rociadores"]
[null,40141738,"Tapones de drenaje (de aceite)"]
[null,40141907,"Conductos o red de conductos de latón"]
[null,40142012,"Manguera para alimentos y bebidas"]
[null,40142506,"Filtros (coladores) en t"]
[null,40151501,"Bombas de aire"]
[null,40151552,"Bombas de metraje o inyección o proporcionales"]
[null,40151563,"Sets de bombas contra incendio"]
[null,40151716,"Cabezas para bombas"]
[null,40151731,"Rotores de bombas"]
[null,40161524,"Filtros de pintura"]
[null,40161605,"Torre desodorizante"]
[null,40161801,"Medios de textiles metálicos"]
[null,40171603,"Tubo de hierro dúctil para uso industrial"]
[null,40171618,"Tubo cpvc para uso industrial"]
[null,40172005,"Deflectores para tubos de plástico pvc","Coples para tubos de plástico PVC"]
[null,40172300,"Casquillos para tubos"]
[null,40172512,"Conector de tubo de plástico vidrio reforzado termoestable"]
[null,40172600,"Acoples de tubos"]
[null,40172901,"Uniones de extensión para tubos de acero al carbono","Uniones o niples de extensión para tubos de acero al carbono"]
[null,40173000,"Semiacoplamientos de tubería","Reducciones para tubos"]
[null,40173503,"Tapones para tubos de hierro forjado"]
[null,40173604,"Acoplamiento reductor para tubos de hierro dúctil","Cople reductor para tubos de hierro dúctil"]
[null,40173905,"Disco de ruptura para tubos de hierro maleable"]
[null,40174101,"Brida encajada por soldadura para tubos de acero al carbono"]
[null,40174303,"Espaciador para tubos de hierro forjado","Separador para tubos de hierro forjado"]
[null,40174704,"Brida roscada para tubos de hierro dúctil"]
[null,40174807,"Bridas de inodoro para tubos de latón"]
[null,40175300,"Accesorios y bridas especializados para tubos"]
[null,40181505,"Tubo biselado de cobre soldado"]
[null,40182103,"Tubo de remate final de latón sin uniones"]
[null,40182300,"Tubos de acero sin uniones"]
[null,40182804,"Tubo multipuerto de acero extruido"]
[null,40182901,"Tubo doblado de acero inoxidable extruido","Tubo curvado de acero inoxidable extruido"]
[null,41101801,"Pistolas de electrones"]
[null,41101902,"Aparatos de intercambio de iones"]
[null,41102601,"Jaulas para animales pequeños para laboratorio"]
[null,41102706,"Equipo de crecimiento de cristal"]
[null,41102917,"Cuchillas para micrótomos"]
[null,41103201,"Lavadoras de ingeniería química"]
[null,41103305,"Equipos de alto vacío"]
[null,41103416,"Cámara de ciclos de temperatura"]
[null,41103511,"Accesorios de cerramiento para laboratorio"]
[null,41103816,"Accesorios o aditamentos para mezcladores o sacudidores"]
[null,41103909,"Rotores de centrífugas"]
[null,41104111,"Kits o contenedores de recolección de citologías"]
[null,41104127,"Alimentador para laboratorio"]
[null,41104410,"Incubadoras de cámara dual de dióxido de carbono recubierta de agua con control de humedad"]
[null,41104425,"Incubadora de dióxido de carbono"]
[null,41104800,"Equipo y suministros de laboratorio para el vertido, la destilación, la evaporación y la extracción"]
[null,41104815,"Aparatos “kjeldahl” para la determinación de nitrógeno"]
[null,41104908,"Elementos de filtración de cartucho para laboratorios"]
[null,41105109,"Bombas de aleta rotativa","Bomba de aleta rotativa"]
[null,41105304,"Transiluminadores"]
[null,41105341,"Película de auto radiografía"]
[null,41105514,"Reactivos para extracción o precipitación o re suspensión de ácido nucleico"]
[null,41106201,"Antimicóticos"]
[null,41106212,"Ingredientes o aditivos de medio para bacterias"]
[null,41106509,"Células mamíferas"]
[null,41106607,"Mapas o secuencias de vectores proteínicos fluorescentes"]
[null,41111511,"Básculas de camión o riel"]
[null,41111600,"Instrumentos de medida de longitud, espesor o distancia"]
[null,41111641,"Medidor de paso de rosca"]
[null,41111701,"Microscopios iónicos"]
[null,41111720,"Microscopios de escáner de electrones"]
[null,41111807,"Equipo de examen de radiografía ir 192"]
[null,41111901,"Contadores","Contadores mecánicos"]
[null,41111938,"Sensores o transmisores de nivel"]
[null,41111953,"Sensor de armado de inflador de restricción (bolsa de aire) suplementario","Sensor del sistema suplementario de restricción inflable (SIR)"]
[null,41112200,"Instrumentos de medida de temperatura y calor"]
[null,41112212,"Termómetros de superficie"]
[null,41112404,"Reguladores de presión"]
[null,41112419,"Medidor de resistencia de inhalación de los filtros de cigarrillos"]
[null,41112804,"Equipo de medición de la abrasión de los rieles"]
[null,41113001,"Controladores de analizador digital"]
[null,41113051,"Probador de reducción de oxidación"]
[null,41113108,"Analizadores de óxido de nitrógeno"]
[null,41113123,"Probador de humo"]
[null,41113337,"Probador de tamaño del grano o de dispersión"]
[null,41113604,"Medidores de capacitancia"]
[null,41113646,"Calibrador o simulador de temperatura"]
[null,41113658,"Probador de durabilidad del interruptor"]
[null,41113708,"Medidores de energía"]
[null,41113719,"Probador de pérdida óptica"]
[null,41113818,"Probador de resistencia de la placa","Probador de rodamientos de placas"]
[null,41113901,"Instrumentos de medición de perforación"]
[null,41114216,"Alidada"]
[null,41114405,"Grabadoras de lluvia"]
[null,41114513,"Instrumento de medición de excentricidad"]
[null,41114528,"Instrumento de medición del mecanismo del movimiento de planeación"]
[null,41114612,"Probadores de impacto"]
[null,41114648,"Probador de vibración del cemento o concreto"]
[null,41114712,"Probador de repelencia de agua para textiles"]
[null,41115318,"Colorímetros"]
[null,41115329,"Equipo de medición de propagación de radioonda","Equipo de medición de la propagación de ondas radioeléctricas"]
[null,41115513,"Generador acústico"]
[null,41115609,"Medidores de conductividad"]
[null,41115809,"Analizadores de coagulación"]
[null,41115824,"Accesorios o suministros para analizadores de proteína"]
[null,41116100,"Kits de ensayos manuales, controles de calidad, calibradores y normativas"]
[null,41116117,"Reactivos o soluciones o tinturas ambientales"]
[null,41116153,"Controles de calidad o calibradores o estándares para inmunohistoquímica"]
[null,41116211,"Analizador de aliento de etanol"]
[null,41121503,"Pipeta de desplazamiento de aire multicanal manuales"]
[null,41121712,"Tubos viscosímetros"]
[null,41121813,"Cubetas"]
[null,41122411,"Cronómetros o relojes para laboratorio"]
[null,41122602,"Portaobjetos de microscopio"]
[null,41123303,"Gabinetes para portaobjetos para microscopios","Caja para portar objetos para microscopios"]
[null,42121503,"Probador pirogénico para uso veterinario"]
[null,42131510,"Pantalones para pacientes"]
[null,42131612,"Batas de aislamiento para personal médico"]
[null,42141607,"Orinales de uso general para pacientes"]
[null,42141807,"Unidades de estimulación nerviosa eléctrica transcutánea"]
[null,42141904,"Tubos o tapas o pinzas para enema"]
[null,42142303,"Productos de identificación de pacientes"]
[null,42142507,"Agujas mariposa"]
[null,42142605,"Jeringas para oídos para uso médico"]
[null,42142620,"Controlador o pistola de inyección de aguja interósea"]
[null,42142914,"Solución limpiadora o humidificadora de lentes de contacto"]
[null,42143201,"Kits o accesorios de preparación de semen"]
[null,42143705,"Dispositivos de protección de pacientes para fototerapia"]
[null,42143902,"Sistema o kit de manejo fecal"]
[null,42151500,"Suministros y equipos de odontología cosmética"]
[null,42151629,"Organizadores dentales"]
[null,42151666,"Sujetadores bucales para uso odontológico"]
[null,42151681,"Sets o accesorios de anestesia para uso odontológico"]
[null,42151806,"Tiras pulidoras o de terminado para uso odontológico"]
[null,42152012,"Partes o kits o accesorios para aparatos de rayos x para uso odontológico","Partes o accesorios para aparatos de rayos x para uso odontológico"]
[null,42152112,"Instrumentos de secado o accesorios para uso odontológico"]
[null,42152307,"Sets de iluminación de operación para uso odontológico","Conjunto de iluminación de operación para uso odontológico"]
[null,42152414,"Aleaciones de fundición de uso odontológico"]
[null,42152455,"Estantes o soportes para productos abrasivos de uso odontológico"]
[null,42152466,"Probador de ajuste de material"]
[null,42152706,"Frenillos \"brackets\" para ortodoncia"]
[null,42152802,"Limas para periodoncia"]
[null,42161616,"Detectores de burbujas de aire o espuma o coágulos, o trampas o alarmas para unidades de hemodiálisis"]
[null,42161631,"Sistemas de purificación del agua para unidades de hemodiálisis"]
[null,42171701,"Cobijas para emergencias o rescates"]
[null,42171904,"Estuches o bolsas de productos de extracción para servicios médicos de emergencia"]
[null,42171919,"Bolsas o revestimientos de evacuación para servicios médicos de emergencia"]
[null,42181507,"Bandas para sujetar el espejo a la frente o accesorios para exámenes médicos"]
[null,42181523,"Sistema de prueba y evaluación isocinética"]
[null,42181707,"Electrodos de tira o anillo para electrocardiografía ekg neonatal"]
[null,42181800,"Oxímetros de pulso"]
[null,42182101,"Estetoscopios electrónicos o accesorios"]
[null,42182203,"Estuches o forros para transportar termómetros para uso médico"]
[null,42182414,"Analizadores de tinnitus (acúfenos)"]
[null,42182603,"Luces de techo o lámparas de techo o accesorios para exámenes médicos"]
[null,42183012,"Fotómetros para uso oftálmico"]
[null,42183028,"Accesorios para retinoscopio para uso oftálmico"]
[null,42183064,"Lentes de contacto terapéuticos"]
[null,42183200,"Equipo y suministros de alergología"]
[null,42191704,"Sistemas de compresión de aire gas para uso médico"]
[null,42192003,"Mesas para masajes de terapia física"]
[null,42192207,"Camillas para pacientes o accesorios para camillas"]
[null,42201505,"Consolas para tomografía computarizada ct o cat para uso médico"]
[null,42201608,"Consolas primarias o remotas o secundarias de imágenes de resonancia magnética mri para uso médico"]
[null,42201816,"Unidades de xerorradiografía para uso médico"]
[null,42201827,"Kits de reparación de carpa de cuarto oscuro de rayos x para uso médico"]
[null,42202006,"Densitómetro óseo"]
[null,42202301,"Unidades bidimensionales de terapia de radiación de intensidad modulada de acelerador lineal imrt para uso médico"]
[null,42203408,"Kits de fundas cardiovasculares"]
[null,42203423,"Esfera de embolización"]
[null,42203803,"Ayudas de posicionamiento para uso radiológico general para uso médico"]
[null,42204009,"Anteojos de protección radiológica para uso médico"]
[null,42211602,"Cepillos de baño o esponjas o estropajos para los discapacitados físicamente"]
[null,42211805,"Espejo de inspección para los discapacitados físicamente"]
[null,42211906,"Sujetadores de cubiertos o de utensilios para los discapacitados físicamente"]
[null,42212300,"Ayuda para llegar o agarrar para personas físicamente discapacitadas"]
[null,42221506,"Catéteres umbilicales"]
[null,42221801,"Forros para tablas de brazo arterial o intravenoso"]
[null,42222001,"Bombas de infusión intravenosa de uso general"]
[null,42231602,"Tubos para gastrostomía endoscópica percutánea"]
[null,42231802,"Fórmulas de suplementos pediátricos"]
[null,42241603,"Sistemas de remoción de yeso"]
[null,42241801,"Fieltros de recubrimiento ortopédico para el brazo"]
[null,42251505,"Rompecabezas de uso terapéutico"]
[null,42251613,"Bandas caminadoras ejercitadoras para rehabilitación o terapia"]
[null,42251702,"Rampas de entrenamiento para rehabilitación o terapia"]
[null,42261609,"Cintas o brazaletes de identificación post mortem"]
[null,42261802,"Transportadores de cadáveres"]
[null,42271506,"Monitores de oxígeno o suministros"]
[null,42271616,"Filtros de monitoreo de función pulmonar"]
[null,42271906,"Kits de reparación de tubos endotraqueales o de traqueotomía"]
[null,42272000,"Suministros de intubación"]
[null,42272224,"Kits de circuitos para ventiladores"]
[null,42272506,"Filtros de pantalla para aparatos de anestesia"]
[null,42281532,"Esterilizador de plasma de gas"]
[null,42281709,"Cepillos de limpieza de esterilización"]
[null,42281810,"Paquetes de prueba y accesorios de esterilización"]
[null,42291616,"Pinzas o cables de pinzas para uso quirúrgico"]
[null,42291705,"Adaptadores de escariadores para uso quirúrgico"]
[null,42292500,"Martillos y malletes y impactadores y prensas quirúrgicos y productos relacionados"]
[null,42292800,"Instrumentos quirúrgicos de marcar"]
[null,42293122,"Retractores de oído"]
[null,42293133,"Anillos de retracción para uso quirúrgico"]
[null,42293800,"Agarradores y buscadores y excavadores y desmoldadores quirúrgicos y productos relacionados"]
[null,42294003,"Cucharas para uso quirúrgico"]
[null,42294504,"Instrumentos de membrana intraocular para cirugía oftálmica"]
[null,42294519,"Cucharas o curetas oftálmicas"]
[null,42294715,"Tubos de empaque de bombas de perfusión"]
[null,42294805,"Laparascopios o telescopios laparoscópicos"]
[null,42294911,"Kits de fijación endoscópica"]
[null,42294948,"Piezas bucales para endoscopia"]
[null,42295004,"Carritos de equipos o procedimientos o accesorios para endoscopia"]
[null,42295126,"Equipos de cirugía fragmatoma de retina vítrea para cirugía oftálmica"]
[null,42295141,"Kit de salvamento de sangre intra operativa"]
[null,42295418,"Esterillas magnéticas de uso quirúrgico"]
[null,42295431,"Cortinas transparentes de incisión o bolsas para instrumentos para uso quirúrgico"]
[null,42295510,"Barreras de adhesión para uso quirúrgico"]
[null,42295521,"Implante gastrointestinal"]
[null,42296201,"Instrumentos robóticos de aplicación de clips para uso quirúrgico"]
[null,42301505,"Portapapeles para enfermeras o médicos"]
[null,42311600,"Agentes hemoestáticos tópicos exógenos"]
[null,42311902,"Bolsas o reservorios de drenaje de incisiones para uso médico"]
[null,42312014,"Kits de cierre de tejidos o bandejas o paquetes o sets"]
[null,42312312,"Bandejas de cuidado de heridas o de limpieza"]
[null,42312701,"Cámara de uso único de terapia de oxígeno para heridas tópicas"]
[null,42321619,"Restrictor de cemento espinal"]
[null,42321711,"Componente femoral resurgente"]
[null,42322002,"Implante de articulación de muñeca"]
[null,42322106,"Implante de ensayo de trauma"]
[null,43191618,"Unidades de grabación de conversaciones"]
[null,43191634,"Tablero de extensión para conmutador telefónico"]
[null,43201542,"Unidad de control"]
[null,43201559,"Tarjetas de puerto serial"]
[null,43201819,"Disco versátil digital de alta definición hd dvd de sólo lectura"]
[null,43201835,"Dispositivo de almacenamiento unido a la red nas"]
[null,43202010,"Unidad pen o flash"]
[null,43211504,"Asistentes personales digitales pda u organizadores","Agendas u organizadores digitales"]
[null,43211600,"Accesorios de computador","Accesorios de computadora"]
[null,43211718,"Sistemas de visión basados en cámaras para recolección automática de información"]
[null,43211800,"Accesorios de dispositivos de entrada de datos de computador"]
[null,43212114,"Impresoras de imágenes digitales"]
[null,43221505,"Identificador de llamadas telefónicas autónoma"]
[null,43221711,"Equipo de acceso de satélite"]
[null,43221726,"Reflector para antenas"]
[null,43222615,"Interruptor de área de almacenamiento de red san"]
[null,43222633,"Adaptadores de manejo remoto"]
[null,43222826,"Terminal portadora"]
[null,43223107,"Equipos y componentes de red básica móvil wlan"]
[null,43223210,"Sistemas de mensajes de micro pagos"]
[null,43223333,"Lente de alcance de fibra óptica","Ocular de alcance de fibra óptica"]
[null,43231506,"Software de logística de planeación de requerimiento de materiales y cadena de suministros","Programa de logística de planeación de requerimiento de materiales y cadena de suministros"]
[null,43232202,"Software de manejo de documentos","Programa de administración de documentos"]
[null,43232312,"Software de servidor de portales","Programa de servidor de portales"]
[null,43232704,"Software de servicios de directorio por internet","Programa de servicios de directorio por internet"]
[null,43232903,"Software de centro de contactos","Programa de centro de contactos"]
[null,43233419,"Plataformas de multimedia"]
[null,43233512,"Software de tonos de timbre","Programa de tonos de timbre"]
[null,44101711,"Compresor de ensamblaje"]
[null,44101727,"Puestos para impresoras"]
[null,44102203,"Adaptadores de transparencia para escáneres"]
[null,44102407,"Grabadora de relieve para cinta"]
[null,44102605,"Máquinas para dictado"]
[null,44103104,"Rollos de transferencia","Rodillos de transferencia"]
[null,44103120,"Recolectores de tóner"]
[null,44111519,"Repisas de distribución de documentos"]
[null,44111608,"Bancos de monedas"]
[null,44111911,"Tableros blancos interactivos o accesorios","Pizarrones blancos interactivos o accesorios"]
[null,44112008,"Planeadores de pared o repuestos"]
[null,44121636,"Tajalápices eléctricos","Sacapuntas eléctrico"]
[null,44121714,"Asideras para lápices o esferos","Goma ergonómica para lápices"]
[null,44122015,"Respaldos para archivos"]
[null,44122030,"Kit de folders","Paquete de folders"]
[null,45101510,"Impresora flexo gráfica"]
[null,45101608,"Pantallas de serigrafía"]
[null,45101800,"Equipo y accesorios para el cosido y encuadernación de libros"]
[null,45111610,"Epidiascopios","Proyector de opacos"]
[null,45111705,"Sistemas de comunicación pública"]
[null,45111820,"Amplificador de procesamiento de videos"]
[null,45112004,"Componentes o accesorios de impresoras lectoras de micro fichas"]
[null,45121613,"Contenedores o forros para cámaras","Estuches para cámaras, Fundas para cámaras"]
[null,45121624,"Reflector de luz para fotografía"]
[null,45131501,"Película de color"]
[null,45141501,"Solución reveladora"]
[null,46111703,"Iluminadores infrarrojos ir"]
[null,46151605,"Detectores de armas o explosivos y suministros"]
[null,46151711,"Levantadores de huellas plantares"]
[null,46161526,"Sensor de peatones"]
[null,46161703,"Esterilla aérea de seguridad","Colchón neumático de rescate"]
[null,46171524,"Candado de llave de tarjeta","Cerradura con tarjeta"]
[null,46171616,"Detectores de radar"]
[null,46181520,"Protectores de piernas","Protectores para las extremidades"]
[null,46181535,"Medias o medias largas protectoras","Calcetines o medias de protección"]
[null,46181708,"Red protectora para el cabello","Malla protectora para el cabello"]
[null,46181808,"Cubiertas protectoras para gafas de seguridad","Tapas protectoras para gafas de seguridad"]
[null,46182300,"Protección anti caída y equipo de rescate"]
[null,46182315,"Barandas de caucho","Barandillas de caucho"]
[null,46191608,"Sistema de supresión de incendios","Sistema de eliminación de incendios"]
[null,46201001,"Maniquí de rescate","Muñeco para prácticas de rescate"]
[null,47101510,"Equipos de remoción de hierro"]
[null,47101548,"Consola de control de filtro"]
[null,47101563,"Separador coalescente de aguas residuales"]
[null,47111509,"Mesa de trabajo de lavandería"]
[null,47121606,"Barredoras de alfombras"]
[null,47131502,"Pañitos o toallas para limpiar","Paños o toallitas de limpieza"]
[null,47131611,"Recogedor de basura"]
[null,47131820,"Limpiadores derivados del petróleo"]
[null,47131831,"Ácido muriático"]
[null,48101521,"Planchas de estufa para uso comercial"]
[null,48101546,"Máquina de decocción para uso comercial"]
[null,48101706,"Máquinas de leche malteada"]
[null,48101804,"Tazas medidoras para uso comercial"]
[null,48101819,"Esterilizador de manos","Esterilizador para manos"]
[null,48102102,"Mostradores para mantener caliente la comida","Contenedor de alimentos calientes, Vitrinas para mantener caliente la comida"]
[null,48111104,"Máquinas expendedoras de comidas a la carta","Máquinas expendedoras de alimentos a la carta"]
[null,48131504,"Lápidas"]
[null,49101614,"Máscaras rituales o para teatro"]
[null,49131606,"Munición para deportes"]
[null,49141509,"Capucha para buceo"]
[null,49161521,"Guantes de softbol","Manilla de softbol, Manopla de softbol"]
[null,49161608,"Balones de voleibol","Pelotas de voleibol"]
[null,49171600,"Equipos de boxeo"]
[null,49181510,"Mesas de foosball","Mesas de futbolito"]
[null,49201601,"Pesas"]
[null,49211603,"Tacos de golf"]
[null,49211804,"Materiales o marcadores de identificación de equipos"]
[null,49221506,"Almohadillas o acolchado para deportes","Cojines o acolchado para deportes"]
[null,49221521,"Carrito de productos deportivos"]
[null,49241706,"Cobija solar","Manta solar"]
[null,50111515,"Pollo, mínimamente procesado sin aditivos","Gallina, mínimamente procesada sin aditivos"]
[null,50111555,"Jabalí, mínimamente procesada sin aditivos"]
[null,50112006,"Ternera. procesada sin aditivos"]
[null,50112046,"Jabalí, procesado sin aditivos"]
[null,50121613,"Mariscos almacenados en repisa"]
[null,50131633,"Extracto de huevo de gallina"]
[null,50151513,"Aceites vegetales o  de planta comestibles","Aceite de ajonjolí, Aceite de canola (colza), Aceite de coco, Aceite de cártamo, Aceite de girasol, Aceite de linaza, Aceite de maíz, Aceite de olivo (oliva), Aceite de soya, Margarina,Aceite de maíz"]
[null,50172000,"Productos de fríjol de soya fermentados"]
[null,50181905,"Galletas de dulce","Surtido de galletas"]
[null,50192100,"Botanas","Dulces tradicionales mexicanos"]
[null,50192601,"Papas preparadas frescas o arroz o pasta o relleno"]
[null,50193202,"Ensalada preparada congelada"]
[null,50202400,"Jugos o concentrados de cítricos frescos"]
[null,50202416,"Concentrado de mandarina clementina"]
[null,50202803,"Concentrado de mango"]
[null,50211505,"Cigarrillos herbales"]
[null,50301517,"Manzana crispin"]
[null,50301532,"Manzana dorado supreme"]
[null,50301568,"Manzana prime dorado"]
[null,50301583,"Manzana starrey"]
[null,50301621,"Albaricoque doradorich","Chabacano dorado rich"]
[null,50301636,"Albaricoque palstein","Chabacano palstein"]
[null,50301651,"Albaricoque tracy","Chabacano tracy"]
[null,50301812,"Barberís kobold","Berberí kobold"]
[null,50302008,"Bayas logan","Zarzamora logan"]
[null,50302406,"Chirimoya reretai","Annona reretai"]
[null,50302507,"Cereza negrotartarian"]
[null,50302706,"Arandano mcfarling","Arándano rojo mcfarling"]
[null,50302806,"Pasa blanca","Pasa de Corinto blanca"]
[null,50303207,"Grosella american worcesterberry"]
[null,50303404,"Uva otoño rey grapes"]
[null,50303440,"Uva flaming rojo"]
[null,50303455,"Uva marro sin pepa"]
[null,50303491,"Uva superior sin semilla"]
[null,50303506,"Uva sultana"]
[null,50303614,"Uva dolcetto"]
[null,50303650,"Uva sauvignon blanc"]
[null,50303665,"Uvas zinfandel"]
[null,50304205,"Lima limón tahitian"]
[null,50304307,"Níspero herd´s mammoth"]
[null,50304434,"Naranja reyna"]
[null,50304445,"Mandarina wilkins"]
[null,50304612,"Melón crimson sweet"]
[null,50304627,"Melón kiwano"]
[null,50304701,"Mora negra","Zarzamora negra"]
[null,50304911,"Durazno big john"]
[null,50304926,"Durazno hardirojo"]
[null,50305004,"Naranja bahianinha"]
[null,50305019,"Naranja k-temprano"]
[null,50305203,"Maracuyá crackerjack"]
[null,50305307,"Durazno brittany lane"]
[null,50305347,"Durazno dama rica"]
[null,50305358,"Durazno nieve de primavera"]
[null,50305426,"Pera keiffer"]
[null,50305437,"Pera bartlette rojo"]
[null,50305603,"Piña hilo"]
[null,50305707,"Ciruelo / damasco  caída de sabor"]
[null,50305819,"Ciruela casselman"]
[null,50305834,"Ciruela rosa grande"]
[null,50305849,"Ciruela estrella solitaria"]
[null,50305906,"Granada pinkhan"]
[null,50306103,"Membrillo smyma"]
[null,50306305,"Ruibarbo timperley temprano","Acelga roja temprana de Timperley"]
[null,50306601,"Baya mielmadera saskatoon","Fresa de junio mielmadera"]
[null,50307021,"Nísperos","Medlar"]
[null,50307032,"Baya buckhom de mar","Espino amarillo"]
[null,50307220,"Aceitunas misión","Aceituna misión"]
[null,50307500,"Subproductos de frutas frescas"]
[null,50311536,"Manzana gravenstain orgánica"]
[null,50311555,"Manzana mcintosh orgánica"]
[null,50311588,"Manzana veinte onzas orgánica"]
[null,50311606,"Albaricoque bonny orgánica","Chabacano bonny orgánico"]
[null,50311621,"Albaricoque doradorich orgánica","Chabacano  orgánico"]
[null,50311701,"Banana apple orgánica","Plátano apple orgánico"]
[null,50311800,"Barberries orgánicos","Berberís orgánicos"]
[null,50312101,"Arandanos bog orgánicos","Mirtillo bog orgánico"]
[null,50312211,"Agras brigitta orgánica","Fruto azul del bosque brigitta orgánico"]
[null,50312520,"Cereza geans/guines orgánica"]
[null,50312532,"Cereza royal orgánica"]
[null,50312913,"Dátiles mactoum orgánica"]
[null,50313108,"Breva misión orgánica","Higo misión orgánico"]
[null,50313414,"Uva negro monnukka orgánica"]
[null,50313429,"Uva early sweet orgánica"]
[null,50313465,"Uva olivette orgánica"]
[null,50313480,"Uva ruby roja sin pepa orgánica"]
[null,50313495,"Uva blanca sin pepa orgánica"]
[null,50313627,"Uva mataro orgánica"]
[null,50313642,"Uva pinot noir orgánica"]
[null,50313901,"Fruta de kiwi ananasnaja orgánica","Kiwi ananasnaja orgánico"]
[null,50314102,"Limón bearss sicilian orgánico"]
[null,50314410,"Naranja fremont orgánica"]
[null,50314421,"Naranja mandarina mediterránea orgánica"]
[null,50314514,"Mangos manila super orgánico"]
[null,50314603,"Melón diamante negro orgánico"]
[null,50314639,"Melón picnic orgánico"]
[null,50314654,"Melón bebe de azúcar orgánico"]
[null,50314923,"Durazno delicia de jardín orgánico"]
[null,50314938,"Durazno roy rojo orgánico"]
[null,50314953,"Durazno verano grande orgánico"]
[null,50315039,"Naranja sanguinelli orgánica"]
[null,50315102,"Papaya maradol orgánica"]
[null,50315324,"Durazno escudo de llama orgánico"]
[null,50315335,"Durazno kaweah orgánico"]
[null,50315403,"Pera asiática orgánica"]
[null,50315414,"Peras d’ anjou orgánica"]
[null,50315454,"Pera taylors rojo orgánica"]
[null,50315508,"Caqui mantequilla / mabolo orgánica"]
[null,50315720,"Ciruelo / damasco kat rojo orgánico"]
[null,50315811,"Ciruela bullase negra orgánica"]
[null,50315847,"Ciruela rosa tarde orgánica"]
[null,50315862,"Ciruela quetsch orgánica"]
[null,50315877,"Ciruela bullase blanca orgánica"]
[null,50316213,"Frambuesa kellogs san diego orgánica"]
[null,50316228,"Frambuesa himalaya amarillo orgánica"]
[null,50316906,"Tamarindo delicia roja orgánico","Tomate de árbol delicia roja orgánico"]
[null,50317010,"Durian orgánica","Durio orgánico"]
[null,50317207,"Aceitunas  atlanta orgánica","Aceituna atlanta orgánica"]
[null,50317218,"Aceitunas manzanilla orgánica","Aceituna manzanilla orgánica"]
[null,50321527,"Manzana gascoyne´s scarlet seca"]
[null,50321542,"Manzana james grives seca"]
[null,50321578,"Manzana roma beuty seca"]
[null,50321593,"Manzana blanco transparent seca"]
[null,50321632,"Albaricoque lulu belle seca","Chabacano lulu belle seco"]
[null,50321647,"Albaricoque  royal orange seca","Chabacano royal orange seco"]
[null,50321706,"Bananas verde seca","Plátano verde seco"]
[null,50322007,"Bayas josta seca","Zarzamora josta seca"]
[null,50322201,"Agras bluecrop seca","Fruto azul del bosque bluecrop seco"]
[null,50322510,"Cereza rey seca"]
[null,50322521,"Cereza sonata seca"]
[null,50322707,"Arandano mauntain seca","Arándano rojo mauntain seco"]
[null,50322915,"Dátiles yatimeh seca"]
[null,50323405,"Uva otoño royal seca"]
[null,50323420,"Uva catawba seca"]
[null,50323456,"Uva muscadine seca"]
[null,50323471,"Uva roja blush seca"]
[null,50323607,"Uva carnelian seca"]
[null,50323618,"Uva gamay beaujolais seca"]
[null,50323633,"Uva muscat hamburg seca"]
[null,50323703,"Guayaba lucida seca"]
[null,50324000,"Naranjos Chinos (kumquats) secos"]
[null,50324401,"Naranjas clauselinas secas"]
[null,50324412,"Mandarina naranja miel seca"]
[null,50324505,"Mango francine seco"]
[null,50324516,"Mangos mayaguez seco"]
[null,50324630,"Melón mayan seco"]
[null,50324645,"Melón royal mejestic seco"]
[null,50324914,"Durazno diamante ray seco"]
[null,50324929,"Durazno kay perla seco"]
[null,50325011,"Naranja california navel seca"]
[null,50325022,"Naranja valencia tarde seca"]
[null,50325037,"Naranja salustianas seca"]
[null,50325310,"Durazno dulce del campo seco"]
[null,50325325,"Durazno tipo plano seco"]
[null,50325365,"Durazno super rico seco"]
[null,50325404,"Pera bartlett seca"]
[null,50325444,"Pera santa maria seca"]
[null,50325455,"Pera tientsin seca"]
[null,50325710,"Ciruelo / damasco sabor de corazón seco"]
[null,50325801,"Ciruela joya amber seca"]
[null,50325827,"Ciruela corazón de elefante seca"]
[null,50325853,"Ciruela maribel seca"]
[null,50326006,"Pomelo shaddock rojo seco"]
[null,50326204,"Frambuesa oscura seca"]
[null,50326219,"Frambuesa san diego seca"]
[null,50326701,"Fresa chandler seca"]
[null,50327001,"Cupania seca","Ackee seca"]
[null,50327103,"Aronia nero seca"]
[null,50327209,"Aceitunas  cracked provencal seca","Aceituna cracked provencal seca"]
[null,50331518,"Manzana delicious orgánicas seca"]
[null,50331533,"Manzana dorado delicious orgánicas seca"]
[null,50331569,"Manzana roja astrakhan orgánicas seca"]
[null,50331584,"Manzana stayman orgánicas seca"]
[null,50331623,"Albaricoque honeycot orgánicas seca","Chabacano  orgánico seco"]
[null,50331638,"Albaricoque perfection orgánicas seca","Chabacano perfection orgánico seco"]
[null,50331806,"Barberís mentor orgánicas seca","Berberí mentor orgánico seco"]
[null,50331902,"Gayuba roja orgánicas secas","Rastrera roja orgánicas secas"]
[null,50332013,"Bayatay orgánicas secas","Zarzamora tay orgánicas secas"]
[null,50332407,"Chirimoya smoothey orgánicas secas","Annona smoothey orgánica seca"]
[null,50332512,"Cereza lapin orgánicas secas"]
[null,50332801,"Pasa hudson bay orgánicas secas","Pasa de Corinto hudson bay orgánica seca"]
[null,50332905,"Dátiles gundila orgánicas secas"]
[null,50333305,"Toronja nueva zelandia orgánicas secas"]
[null,50333410,"Uva negra beauty sin semilla orgánicas secas"]
[null,50333446,"Uva jade sin pepa orgánicas secas"]
[null,50333461,"Uva nigeria orgánicas secas"]
[null,50333500,"Uvas pasas orgánicas secas"]
[null,50333608,"Uva cattarrato orgánicas secas"]
[null,50333648,"Uva salvador orgánicas secas"]
[null,50333659,"Uvas teroldego orgánicas secas"]
[null,50334102,"Limón bearss sicilian orgánico seco"]
[null,50334306,"Níspero japonés nugget dorado orgánico seco"]
[null,50334403,"Naranja mandarina cleopatra"]
[null,50334443,"Naranja thornton orgánicas secas"]
[null,50334507,"Mango gandaria orgánico seco"]
[null,50334621,"Melón hielo orgánico seco"]
[null,50334636,"Melón peacook orgánico seco"]
[null,50334905,"Durazno artic dulce orgánico seco"]
[null,50334920,"Durazno fuego dulce orgánico seco"]
[null,50334956,"Durazno zee glo orgánico seco"]
[null,50335013,"Naranja chinotto orgánicas secas"]
[null,50335201,"Maracuyá banana orgánicas secas","Curuba orgánica seca"]
[null,50335301,"Durazno escudo amber orgánico seco"]
[null,50335316,"Durazno earlrich orgánico seco"]
[null,50335356,"Durazno rey de nieve orgánico seco"]
[null,50335367,"Durazno sueño dulce orgánico seco"]
[null,50335435,"Pera passe crassane orgánicas secas"]
[null,50335446,"Pera sensación orgánicas secas"]
[null,50335701,"Ciruelo / damasco negro kat orgánico seco"]
[null,50335716,"Ciruelo / damasco saborella orgánico seco"]
[null,50335828,"Ciruela belleza de esmeralda orgánicas secas"]
[null,50335843,"Ciruela joanna rojo orgánicas secas"]
[null,50335901,"Granada foothhill orgánicas secas"]
[null,50336007,"Pomelo siamese dulce orgánico seco"]
[null,50336304,"Ruibarbo sutton orgánico seco","Acelga roja sutton orgánica seca"]
[null,50336404,"Escaramujo rosa burnet o scotch orgánico seco","Rosa mosqueta burnet o scotch orgánica seca"]
[null,50336802,"Manzana dulce sin pepa orgánicas secas","Saramuyo sin semilla orgánico seco"]
[null,50337031,"Baya rowan orgánicas secas","Serba orgánica seca"]
[null,50337104,"Aronia viquingo orgánicas secas"]
[null,50341508,"Manzana calville blanche d’hiver congelado"]
[null,50341542,"Manzana james grives congeladas"]
[null,50341560,"Manzana ozark gold congeladas"]
[null,50341575,"Manzanarojo stayman congeladas"]
[null,50341614,"Albaricoque earliman congeladas","Chabacano earliman congelado"]
[null,50341629,"Albaricoque rey congeladas","Chabacano rey congelado"]
[null,50341713,"Bananas rojo congeladas","Plátano rojo congelado"]
[null,50341808,"Barberís atropurpurea congeladas","Berberí atropurpurea congelado"]
[null,50342208,"Agras misti congeladas","Fruto azul del bosque misti congelado"]
[null,50342303,"Fruta de pan corazón blanco congeladas","Fruta del pan corazón blanco congeladas"]
[null,50342503,"Cereza bigarreu congeladas"]
[null,50342703,"Arandano gryclesik congeladas","Arándano rojo gryclesik congelado"]
[null,50342803,"Pasa desierta congeladas","Pasa de Corinto desierta congelada"]
[null,50343204,"Grocella leveller congeladas"]
[null,50343307,"Toronja rojo rubí congeladas"]
[null,50343437,"Uva llama congeladas"]
[null,50343452,"Uva late sin semilla congeladas"]
[null,50343488,"Uva sultana sun roja congeladas"]
[null,50343506,"Uva sultana congeladas"]
[null,50343639,"Uva petit sirah congeladas"]
[null,50343650,"Uva sauvignon blanc congeladas"]
[null,50344006,"Naranja chino nagami congelado","Naranjo chino nagami congelado"]
[null,50344201,"Lima limón indian sweet congelado"]
[null,50344307,"Níspero herd´s mammoth congelado"]
[null,50344433,"Naranja mandarina ponkan bantangas congeladas"]
[null,50344444,"Mandarina wekiwa congeladas"]
[null,50344611,"Melón crenshaw congelado"]
[null,50344626,"Melón kaki / kakri congelado"]
[null,50344700,"Moras mulberry congeladas","Zarzamoras mulberry congeladas"]
[null,50344910,"Durazno estrella de agosto congelado"]
[null,50344930,"Durazno key dulce congelado"]
[null,50345004,"Naranja bahianinha congelado"]
[null,50345044,"Naranja washington navel congeladas"]
[null,50345203,"Maracuyá crackerjack congeladas"]
[null,50345332,"Durazno princesa reina jersey congelado"]
[null,50345343,"Durazno globo rojo congelado"]
[null,50345358,"Durazno nieve de primavera congelado"]
[null,50345426,"Pera keiffer congeladas"]
[null,50345437,"Pera bartlette rojo congeladas"]
[null,50345603,"Piña hilo congeladas"]
[null,50345707,"Ciruelo / damasco  caída de sabor congelado"]
[null,50345819,"Ciruela casselman congeladas"]
[null,50345834,"Ciruela rosa grande congeladas"]
[null,50345870,"Ciruela rojo royal congeladas"]
[null,50345907,"Granada terciopelo morado congeladas"]
[null,50346225,"Frambuesa caribe congeladas"]
[null,50346306,"Ruibarbo valentina congelado","Acelga roja valentina congelada"]
[null,50347007,"Coco congelado"]
[null,50347018,"Jujube congeladas","Azufaifa congelada"]
[null,50347033,"Baya plata congeladas","Olivo de otoño congelado"]
[null,50347230,"Aceitunas toscanella congeladas","Aceituna toscanella congelada"]
[null,50351510,"Manzana charles ross congelada orgánica"]
[null,50351550,"Manzana lady congelada orgánica"]
[null,50351565,"Manzana pippin congelada orgánica"]
[null,50351604,"Albaricoque negra congelada orgánica","Chabacano negra congelado orgánico"]
[null,50351619,"Albaricoque barra dorado congelada orgánica","Chabacano barra dorado congelado orgánico"]
[null,50351655,"Albaricoque  york congelada orgánica","Chabacano york congelado orgánico"]
[null,50351714,"Bananas saba congelada orgánica","Plátano saba congelado orgánico"]
[null,50352103,"Arandanos montaña congelada orgánica","Mirtillo de montaña congelado orgánico"]
[null,50352209,"Agras nelson congelada orgánica","Fruto azul del bosque nelson congelado orgánico"]
[null,50352506,"Cereza negra schmidt congelada orgánica"]
[null,50352602,"Citrones fingered congelada orgánica","Cidra finger red congelada orgánica"]
[null,50352705,"Bayas lingon congelada orgánica","Arándano rojo lingon congelado orgánico"]
[null,50353107,"Breva mediterránea congelada orgánica","Higo mediterránea congelado orgánico"]
[null,50353206,"Grosella worcestershire congelada orgánica"]
[null,50353428,"Uva early muscat congelada orgánica"]
[null,50353443,"Uva dorada congelada orgánica"]
[null,50353479,"Uva royal negra sin pepa congelada orgánica"]
[null,50353494,"Uva waltman cross congelada orgánica"]
[null,50353626,"Uva marsanne congelada orgánica"]
[null,50353641,"Uva pinot gris congelada orgánica"]
[null,50353904,"Fruta de kiwi hayward congelada orgánica","Kiwi hayward congelado orgánico"]
[null,50354101,"Limón baboon congelado orgánico"]
[null,50354409,"Mandarina naranja fremont congelada orgánica"]
[null,50354424,"Naranja murcott miel congelada orgánica"]
[null,50354435,"Naranja robinson congelada orgánica"]
[null,50354602,"Melón athens congelado orgánico"]
[null,50354613,"Melón dixie lee congelado orgánico"]
[null,50354653,"Melón stars and stripes congelado orgánico"]
[null,50354901,"Durazno april glo congelado orgánico"]
[null,50354937,"Durazno jim rojo congelado orgánico"]
[null,50354952,"Durazno verano fuego congelado orgánico"]
[null,50355030,"Naranja oro blanco congelada orgánica"]
[null,50355100,"Papayas orgánicas congeladas"]
[null,50355322,"Durazno dama elegante congelado orgánico"]
[null,50355333,"Durazno john henry congelado orgánico"]
[null,50355401,"Peras abate fetel congelada orgánica"]
[null,50355416,"Peras early congelada orgánica"]
[null,50355427,"Pera rey royal congelada orgánica"]
[null,50355506,"Caqui gigante fuyu congelada orgánica"]
[null,50355710,"Ciruelo / damasco sabor de corazón congelado orgánico"]
[null,50355810,"Ciruela belleza negra congelada orgánica"]
[null,50355825,"Ciruela ébano mayo congelada orgánica"]
[null,50355861,"Ciruela reina rosa congelada orgánica"]
[null,50355876,"Ciruela sta catherine congelada orgánica"]
[null,50356216,"Frambuesa peck bartons congelada orgánica"]
[null,50356227,"Frambuesa vino congelada orgánica"]
[null,50356905,"Tamarindo beau rojo congelado orgánico","Tomate de árbol beau rojo congelado orgánico"]
[null,50357009,"Baya drew congelada orgánica","Baya de gota congelada orgánica"]
[null,50357206,"Aceitunas  arbequina congelada orgánica","Aceituna arbequina congelada orgánica"]
[null,50357221,"Aceitunas nafplion verde congelada orgánica","Aceituna nafplion verde congelada orgánica"]
[null,50361501,"Manzanas akane en lata o en frasco","Manzana akane en lata o en frasco"]
[null,50361541,"Manzana red ida en lata o en frasco"]
[null,50361552,"Manzana laxton en lata o en frasco"]
[null,50361592,"Manzana blanca joanetine en lata o en frasco"]
[null,50361610,"Albaricoque clutha sun en lata o en frasco","Chabacano clutha sun en lata o en frasco"]
[null,50361646,"Albaricoque  royal blenheim en lata o en frasco","Chabacano royal blenheim en lata o en frasco"]
[null,50361705,"Bananas dominico en lata o en frasco","Plátano dominico en lata o en frasco"]
[null,50362010,"Mora navaho en lata o en frasco","Zarzamora navaho en lata o en frasco"]
[null,50362200,"Agrás en lata o en frasco","Frutos azules del bosque en lata o en frasco"]
[null,50362509,"Cereza garnet en lata o en frasco"]
[null,50362520,"Cereza geans/guines en lata o en frasco"]
[null,50362902,"Dátiles barhi o barhee en lata o en frasco"]
[null,50363000,"Pitahayas en lata o en frasco"]
[null,50363108,"Breva misión en lata o en frasco","Higo misión en lata o en frasco"]
[null,50363418,"Uva calmeria en lata o en frasco"]
[null,50363433,"Uva empress en lata o en frasco"]
[null,50363469,"Uva princesa en lata o en frasco"]
[null,50363484,"Uva sugarose en lata o en frasco"]
[null,50363616,"Uva frances colombard en lata o en frasco"]
[null,50363626,"Uva marsanne en lata o en frasco"]
[null,50363801,"Arándano invierno negro en lata o en frasco","Arándano azul invierno negro en lata o en frasco"]
[null,50363906,"Fruta de kiwi siberiana en lata o en frasco","Kiwi siberiano en lata o en frasco"]
[null,50364400,"Mandarinas en lata o en frasco"]
[null,50364411,"Naranja nuget dorada en lata o en frasco"]
[null,50364504,"Mango edwards en lata o en frasco"]
[null,50364519,"Mangos palmer en lata o en frasco"]
[null,50364604,"Melón cal dulce en lata o en frasco"]
[null,50364644,"Melón regency en lata o en frasco"]
[null,50364659,"Melón tigre bebe en lata o en frasco"]
[null,50364928,"Durazno julio rojo en lata o en frasco"]
[null,50364943,"Durazno ruby dulce en lata o en frasco"]
[null,50365021,"Naranja navel tarde en lata o en frasco en lata o en frasco"]
[null,50365036,"Naranja roble en lata o en frasco"]
[null,50365313,"Durazno príncipe corona en lata o en frasco"]
[null,50365324,"Durazno escudo de llama en lata o en frasco"]
[null,50365364,"Durazno dama super en lata o en frasco"]
[null,50365403,"Pera asiática en lata o en frasco"]
[null,50365443,"Pera ruby rojo en lata o en frasco"]
[null,50365458,"Pera williams bon chretien en lata o en frasco"]
[null,50365508,"Caqui mantequilla / mabolo en lata o en frasco"]
[null,50365800,"Ciruelas en lata o en frasco"]
[null,50365815,"Ciruela esplendor negro en lata o en frasco"]
[null,50365851,"Ciruela mercado negro en lata o en frasco"]
[null,50365866,"Ciruela rosa roja en lata o en frasco"]
[null,50366202,"Frambuesa bailey queensland en lata o en frasco"]
[null,50366217,"Frambuesa flor morada en lata o en frasco"]
[null,50366703,"Fresa rumbo siempre en lata o en frasco","Fresa de todo el año en lata o en frasco"]
[null,50366906,"Tamarindo delicia roja en lata o en frasco","Tomate de árbol delicia roja en lata o en frasco"]
[null,50367101,"Aronia magia de otoño en lata o en frasco"]
[null,50367210,"Aceitunas  empeltre en lata o en frasco","Aceituna empeltre en lata o en frasco"]
[null,50371517,"Manzana crispin orgánica en lata o en frasco"]
[null,50371532,"Manzana gold supreme orgánica en lata o en frasco"]
[null,50371543,"Manzana jersey mac orgánica en lata o en frasco"]
[null,50371583,"Manzana starking orgánica en lata o en frasco"]
[null,50371601,"Abaricoques ambercot orgánica en lata o en frasco","Chabacano ambercot orgánico en lata o en frasco"]
[null,50371637,"Albaricoque patterson orgánica en lata o en frasco","Chabacano patterson orgánico en lata o en frasco"]
[null,50371652,"Albaricoque tri gem orgánica en lata o en frasco","Chabacano tri gem orgánico en lata o en frasco"]
[null,50371901,"Gayuba alpine orgánica en lata o en frasco","Rastrera alpine orgánica en lata o en frasco"]
[null,50372012,"Mora olallie orgánica en lata o en frasco","Zarzamora olallie orgánica en lata o en frasco"]
[null,50372500,"Cerezas orgánicas en lata o en frasco"]
[null,50372511,"Cereza chapman orgánica en lata o en frasco"]
[null,50372800,"pasas de Corinto orgánicas en lata o en frasco"]
[null,50372908,"Dátiles khadrawi/khadrawy orgánica en lata o en frasco"]
[null,50373304,"Toronja marsh orgánica en lata o en frasco"]
[null,50373409,"Uva belleza sin pepa orgánica en lata o en frasco"]
[null,50373420,"Uva catawba orgánica en lata o en frasco"]
[null,50373460,"Uva napoleon orgánica en lata o en frasco"]
[null,50373475,"Uva regina orgánica en lata o en frasco"]
[null,50373607,"Uva camelian orgánica en lata o en frasco"]
[null,50373622,"Uva lagrein orgánica en lata o en frasco"]
[null,50373658,"Uva temoranillo orgánica en lata o en frasco"]
[null,50373802,"Arándano cascada orgánico en lata o en frasco","Arándano azul cascada orgánico en lata o en frasco"]
[null,50374304,"Níspero champagne orgánico en lata o en frasco"]
[null,50374401,"Naranjas clauselinas orgánica en lata o en frascos en lata o en frasco"]
[null,50374441,"Naranja mandarina orgánica en lata o en frasco"]
[null,50374509,"Mangos irwin orgánico en lata o en frasco"]
[null,50374619,"Melón hami orgánico en lata o en frasco"]
[null,50374634,"Melón ogen orgánico en lata o en frasco"]
[null,50374645,"Melón royal mejestic orgánico en lata o en frasco"]
[null,50374921,"Durazno flamekist orgánico en lata o en frasco"]
[null,50374934,"Durazno mericrest orgánico en lata o en frasco"]
[null,50375012,"Naranja cara cara orgánica en lata o en frasco"]
[null,50375027,"Naranja moro tabaco orgánica en lata o en frasco"]
[null,50375304,"Durazno llama de otoño orgánico en lata o en frasco"]
[null,50375315,"Durazno  princesa diamante orgánico en lata o en frasco"]
[null,50375355,"Durazno gema de nieve orgánico en lata o en frasco"]
[null,50375366,"Durazno surecrop orgánico en lata o en frasco"]
[null,50375434,"Pera paraíso orgánica en lata o en frasco"]
[null,50375449,"Pera bartlette de verano orgánica en lata o en frasco"]
[null,50375700,"Ciruelos Damascos orgánicos en lata o en frasco"]
[null,50375715,"Ciruelo / damasco sabor premio orgánico en lata o en frasco"]
[null,50375802,"Ciruela angeleno orgánica en lata o en frasco"]
[null,50375842,"Ciruela jamaico orgánica en lata o en frasco"]
[null,50375857,"Ciruela placer rosado orgánica en lata o en frasco"]
[null,50376006,"Pomelo shaddock rojo orgánico en lata o en frasco"]
[null,50376208,"Frambuesa focke fresa orgánica en lata o en frasco"]
[null,50376502,"Zapote negro orgánico en lata o en frasco","Zapote negro orgánico en lata o en frasco"]
[null,50376801,"Manzana kampong malve dulce orgánica en lata o en frasco","Saramuyo kampong mauve orgánico en lata o en frasco"]
[null,50377030,"Rosele orgánica en lata o en frasco","Flor de jamaica orgánica en lata o en frasco"]
[null,50377103,"Aronia nero orgánica en lata o en frasco"]
[null,50381700,"Purés de frutas tropicales"]
[null,50401509,"Alcachofa romanesco"]
[null,50401725,"Aguacate dr dupis numero 2"]
[null,50401740,"Aguacate k- 9"]
[null,50401755,"Aguacate nabal"]
[null,50401808,"Frijoles shackamaxon negro"]
[null,50401823,"Frijoles coco gigante blanco"]
[null,50401905,"Remolacha bonel","Betabel bonel"]
[null,50402107,"Repollitas de bruselas  widgeon","Coles de Bruselas widgeon"]
[null,50402504,"Zanahoria chantenay"]
[null,50402607,"Coliflor minaret"]
[null,50402909,"Achicoria scarola verde","Escarola scarola verde"]
[null,50403008,"Col (bok choy) kasumi"]
[null,50403229,"Maíz  dorado illini"]
[null,50403244,"Maíz blanco perla"]
[null,50403405,"Cocombro verde burpless buen sabor","Pepino cohombro verde burpless buen sabor"]
[null,50403420,"Cocombro telégrafo","Pepino cohombro telégrafo"]
[null,50403511,"Berenjena  morado largo"]
[null,50403803,"Ajo cebollin"]
[null,50403906,"Calabaza amarga"]
[null,50404124,"Estragón","Tarragón"]
[null,50404401,"Puerro cobra gigante otoño","Poro cobra gigante otoño"]
[null,50404701,"Ñame amarilla"]
[null,50404805,"Champiñón cremini"]
[null,50405301,"Cebolla albion"]
[null,50405312,"Cebolla roja","Cebolla morada"]
[null,50405614,"Pimentón ancho","Chile ancho o mulato"]
[null,50405629,"Pimentón peperoncini"]
[null,50405907,"Quelpo"]
[null,50406005,"Chalote gourmet dorado"]
[null,50406203,"Espinaca invierno gigante"]
[null,50406323,"Calabaza  empanada dulce"]
[null,50406408,"Batata japonés","Camote japonés"]
[null,50406522,"Tomates tigerella","Jitomate tigerella"]
[null,50406700,"Auyamas","Calabazas gigantes"]
[null,50407005,"Punta de flecha","Sagittaria"]
[null,50407016,"Cha-om"]
[null,50407056,"Taro","Tales"]
[null,50407064,"Agua castaño","Castaña de agua china"]
[null,50411700,"Aguacates orgánicos"]
[null,50411715,"Aguacate booth 8 orgánico"]
[null,50411751,"Aguacate meya p orgánico"]
[null,50411766,"Aguacate ryan orgánico"]
[null,50411781,"Aguacate ziu orgánico"]
[null,50411834,"Frijoles lima orgánicos"]
[null,50411849,"Frijoles tonka orgánicos"]
[null,50412104,"Repollitas de bruselas peer gynt orgánicas","Coles de Bruselas peer gynt orgánicas"]
[null,50412211,"Cebolla final de invierno ensalada orgánica","Cebolla de cambray final de invierno orgánica"]
[null,50412711,"Apio torre marfil orgánico"]
[null,50412806,"Acelga volcan orgánica"]
[null,50413302,"Cocombro americano orgánico","Pepino cohombro americano orgánico"]
[null,50413317,"Cocombro enano orgánico","Pepino cohombro enano orgánico"]
[null,50413508,"Endivias radice amare orgánicas"]
[null,50413700,"Ajos  orgánicos"]
[null,50414006,"Cilantro orgánico"]
[null,50414021,"Salvia orgánica"]
[null,50414205,"Colinabo trero rowel orgánico","Colirrábano trero rowel orgánico"]
[null,50414518,"Lechuga mache orgánica"]
[null,50414702,"Champiñón carmelito orgánico"]
[null,50415200,"Cebollas  orgánicas"]
[null,50415211,"Cebolla baron rojo orgánica"]
[null,50415515,"Pimentón campana orgánico","Chile campana orgánico"]
[null,50415526,"Pimentón picante largo orgánico","Chile cola de rata orgánico"]
[null,50415814,"Spirulina orgánica"]
[null,50416000,"Alazanes orgánicos","Acederas orgánicas"]
[null,50416215,"Calabaza  miniatura orgánica"]
[null,50416300,"Batatas orgánicas","Camotes orgánicos"]
[null,50416415,"Tomates oaxacan orgánicos","Jitomate oaxaca orgánico"]
[null,50416427,"Tomates perfección amarilla orgánicos"]
[null,50416609,"Calabaza  curcibita orgánica","Calabaza gigante curcibita orgánica"]
[null,50416813,"Maíz  campeón orgánico"]
[null,50416828,"Maíz  hudson orgánico"]
[null,50416868,"Maíz tesoro orgánico"]
[null,50417009,"Hojas de platano orgánica"]
[null,50417049,"Paprika orgánica"]
[null,50417060,"Verde tierno orgánico"]
[null,50421605,"Espárragos martha washington secos"]
[null,50421714,"Aguacate cabina 7 seco"]
[null,50421750,"Aguacate melendez seco"]
[null,50421765,"Aguacateruehle seco"]
[null,50421818,"Frijoles soldado europeo secos"]
[null,50421833,"Frijoles riñón secos"]
[null,50421848,"Frijoles tamarind secos"]
[null,50422103,"Repollitas de bruselas oliver secas","Coles de Bruselas oliver secas"]
[null,50422210,"Cebolla invierno blanca ensalada seca","Cebolla de cambray invierno blanca seca"]
[null,50422710,"Apio hopkins fenlander seco"]
[null,50422805,"Acelga ruibarbo seca"]
[null,50423205,"Maíz aspen seco"]
[null,50423216,"Maíz  dazzle seco"]
[null,50423256,"Maíz  noche blanca seneca seco"]
[null,50423301,"Berros de tierra secos"]
[null,50423508,"Berenjena  india seca"]
[null,50423602,"Endivias francocastel secas"]
[null,50423702,"Hinojo fino seco"]
[null,50424100,"Hierbas Secas","Perejil seco, Yerbabuena o hierbabuena seca"]
[null,50424115,"Orégano seco"]
[null,50424506,"Lenteja roja separada seca"]
[null,50424612,"Lechuga china seca","Lechuga orejona seca"]
[null,50424900,"Mostazas Secas"]
[null,50425004,"Tomatillo seca"]
[null,50425402,"Alverja pinkeye seca","Cacahuate pinkeye seco"]
[null,50425506,"Pimentón fresno seco","Chile fresno seco"]
[null,50425607,"Papa nueva seca"]
[null,50425807,"Quelpo seco"]
[null,50426109,"Espinaca nueva zelandia seca"]
[null,50426207,"Calabaza  delisioso seca"]
[null,50426222,"Calabaza  molde dulce seca"]
[null,50426407,"Tomates delicioso seco","Jitomate delicioso seco"]
[null,50426422,"Tomates tigerella seco","Jitomate tigerella seco"]
[null,50426700,"Ñames Secos"]
[null,50426804,"Arrurruz seca"]
[null,50426844,"Moap seco"]
[null,50426855,"Uva tassele hyacinth seco"]
[null,50431601,"Espárragos connovers colosal orgánicos secos"]
[null,50431706,"Aguacate beta orgánico seco"]
[null,50431746,"Aguacate loretta orgánico seco"]
[null,50431761,"Aguacate pollock orgánico seco"]
[null,50431814,"Frijoles canelini orgánicos secos"]
[null,50431829,"Frijoles tipo italiano orgánicos secos"]
[null,50431844,"Frijoles pinto orgánicos secos"]
[null,50432004,"Brócoli chino orgánico seco"]
[null,50432206,"Cebolla amigo rojo ensalada orgánica seca","Cebolla de cambray amigo rojo orgánica seca"]
[null,50432702,"Apio nabo orgánico seco"]
[null,50432801,"Acelga luz brillante orgánica seca"]
[null,50433201,"Maíz aloha orgánico seco"]
[null,50433212,"Maíz  challengercrisp ‘n dulce orgánico seco"]
[null,50433252,"Maíz  seneca brave orgánico seco"]
[null,50433267,"Maíz terminador orgánico seco"]
[null,50433407,"Cocombro manzana cristal orgánico seco","Pepino cohombro manzana cristal orgánico seco"]
[null,50433520,"Berenjena  blanco orgánica seca"]
[null,50433900,"Calabazas orgánicas secas"]
[null,50434003,"Guisante de jardín orgánica seca","Chícharo de jardín orgánico seco"]
[null,50434112,"Limonaria orgánica seca","Té de limón orgánico seco"]
[null,50434503,"Lenteja verde orgánica seca"]
[null,50434609,"Lechuga romana ruby orgánica seca"]
[null,50434814,"Champiñón porcieni orgánico seco"]
[null,50435000,"Solanáceas (nightshades) orgánicas secas"]
[null,50435305,"Maní valencia orgánico seco","Cacahuate valencia orgánico seco"]
[null,50435502,"Pimentón  árbol orgánico seco","Chile de árbol orgánico seco"]
[null,50435604,"Papa  russet orgánica seca"]
[null,50435805,"Hijiki orgánica seca"]
[null,50436107,"Espinaca malabra orgánica seca"]
[null,50436205,"Calabaza  cucuzza orgánica seca"]
[null,50436311,"Batata meryland roja orgánica seca","Camote meryland roja orgánico seca"]
[null,50436405,"Tomates bella cereza orgánico seco","Jitomate bella cereza orgánico seco"]
[null,50436420,"Tomates siberia orgánico seco","Jitomate siberia orgánico seco"]
[null,50436619,"Calabaza  warted hubbard orgánica seca","Calabaza gigante warted hubbard orgánica seca"]
[null,50436802,"Hojas de aloe orgánica seca","Hoja de sábila orgánica seca, Penca de sábila orgánica seca"]
[null,50436842,"Mallows orgánico seco","Malva orgánica seca"]
[null,50436853,"Frijol de soya orgánicos secos"]
[null,50441513,"Alcachofa violeta de toscana congelada"]
[null,50441704,"Aguacate benik congelado"]
[null,50441744,"Aguacate lisa p congelado"]
[null,50441759,"Aguacate pinelli congelado"]
[null,50441812,"Frijoles esposa perezosa carmelita congelados"]
[null,50441827,"Frijoles haricot congelados"]
[null,50441910,"Remolacha cilindra congelada","Betabel cilindra congelado"]
[null,50442002,"Brócoli romanesco congelado"]
[null,50442300,"Repollos congelados","Coles congeladas"]
[null,50442701,"Apio celebridad congelado"]
[null,50442800,"Acelgas  congeladas"]
[null,50443200,"Maíces congelados"]
[null,50443211,"Maíz  camelot congelado"]
[null,50443251,"Maíz  radiante congelado"]
[null,50443262,"Maíz  azúcar y oro congelado"]
[null,50443503,"Berenjena  negra enorme congelada"]
[null,50443518,"Berenjena  tailandés congelada"]
[null,50443810,"Ajo morado español congelado"]
[null,50444001,"Guisante chino congelada","Chícharo chino congelado"]
[null,50444300,"Colinabos congelados","Colirrábanos congelados"]
[null,50444501,"Lenteja beluga congelada"]
[null,50444607,"Lechuga hoja roja congelada"]
[null,50444812,"Champiñón pleurotus congelado"]
[null,50444905,"Mostaza sureño congelada"]
[null,50445303,"Maní husa / kerstings congelado","Cacahuate husa / kerstings  congelado"]
[null,50445500,"Pimientos congelados","Chiles congelados"]
[null,50445602,"Papa redonda blanca congelada"]
[null,50445701,"Nabo sueco acme congelado"]
[null,50446102,"Espinaca bloomsdale congelada"]
[null,50446200,"Calabazas congeladas"]
[null,50446306,"Batata  dorado congelada","Camote dorado congelado"]
[null,50446321,"Batata morada congelada","Camote morada congelado"]
[null,50446414,"Tomates minibel congelado","Jitomate minibel congelado"]
[null,50446613,"Calabaza  jerrahdale congelada","Calabaza gigante jerrahdale congelada"]
[null,50446707,"Ñame lesser congelado"]
[null,50446832,"Brote de lúpulo congelado"]
[null,50446847,"Opos congelados"]
[null,50451507,"Alcachofa globo morado orgánica congelada"]
[null,50451710,"Aguacate blair cabina orgánico congelado"]
[null,50451739,"Aguacate k-5 orgánico congelado"]
[null,50451750,"Aguacate melendez orgánico congelado"]
[null,50451807,"Frijoles gran negros orgánicos congelados"]
[null,50451822,"Frijoles marina francesa orgánicos congelados"]
[null,50451905,"Remolacha bonel orgánica congelada","Betabel bonel orgánico congelado"]
[null,50451920,"Remolacha pronto orgánica congelada","Betabel pronto orgánico congelado"]
[null,50452107,"Repollitas de bruselas  widgeon orgánica orgánicas congeladas","Coles de Bruselas widgeon orgánica orgánicas congeladas"]
[null,50452608,"Coliflor buque de naranja orgánica congelada"]
[null,50452710,"Apio hopkins fenlander orgánico congelado"]
[null,50453009,"col (bok choy)  nerva orgánico congelado"]
[null,50453205,"Maíz aspen orgánico congelado"]
[null,50453245,"Maíz  pegasus orgánico congelado"]
[null,50453256,"Maíz  noche blanca seneca orgánico congelado"]
[null,50453421,"Cocombro telégrafo mejorado orgánico congelado","Pepino cohombro telégrafo mejorado orgánico congelado"]
[null,50453512,"Berenjena   rayas larga orgánica congelada"]
[null,50453804,"Ajo germidor orgánico congelado"]
[null,50453907,"Loofah suave orgánico congelado","Zapatillo suave orgánico congelado"]
[null,50454125,"Tomillo orgánico congelado"]
[null,50454402,"Puerro otoño mamut 2 orgánico congelado","Poro otoño mamut 2 orgánico congelado"]
[null,50454601,"Lechuga  bibb orgánica congelada"]
[null,50454806,"Champiñón enoki orgánico congelado"]
[null,50454821,"Champiñón woodear orgánico congelado"]
[null,50455215,"Cebolla sturon orgánica congelada"]
[null,50455401,"Alverja casco morado orgánico y congelado","Alberjón casco morado orgánico y congelado"]
[null,50455534,"Pimentón serrano orgánico congelado","Chile serrano orgánico congelado, Chile verde orgánico congelado"]
[null,50455607,"Papa nueva orgánica congelada"]
[null,50456004,"Alazán madera orgánica congelada","Acedera madera orgánica congelada"]
[null,50456114,"Espinaca trinidad orgánica congelada"]
[null,50456302,"Batata centennial orgánica congelada","Camote centennial orgánico congelado"]
[null,50456319,"Batata brillo rojo orgánica congelada","Camote brillo rojo orgánico congelado"]
[null,50456506,"Nabo bola de nieve orgánico congelado"]
[null,50456612,"Calabaza  hubbard orgánica congelada","Calabaza gigante hubbard orgánica congelada"]
[null,50456706,"Ñame japonesa orgánico congelado"]
[null,50456831,"Gobo orgánico congelado","Garduña orgánica congelada"]
[null,50456846,"Moqua orgánica congelada"]
[null,50461502,"Alcachofa cantonesa enlatada o envasada"]
[null,50461603,"Espárragos mamut gigante enlatados o envasados"]
[null,50461737,"Aguacate herman enlatado o envasado"]
[null,50461748,"Aguacate lula mascarthur enlatado o envasado"]
[null,50461805,"Frijoles appaloosa negra enlatados o envasados"]
[null,50461820,"Frijoles flageolet enlatados o envasados"]
[null,50461903,"Remolacha barababiotela de chiggia enlatada o envasada","Betabel barababiotela de chiggia enlatado o envasado"]
[null,50461918,"Remolacha monaco enlatada o envasada","Betabel mónaco enlatado o envasado"]
[null,50462401,"Cardos lunghi enlatados o envasados","Cardo comestible lunghi enlatados o envasados"]
[null,50462606,"Coliflor luz de lima enlatada o envasada"]
[null,50462708,"Apio dorado auto escalado enlatado o envasado"]
[null,50463007,"Col (bok choy) jade pagoda enlatado o envasado"]
[null,50463203,"Maíz ambrosia enlatado o envasado"]
[null,50463243,"Maíz durazno y crema enlatado o envasado"]
[null,50463254,"Maíz  horizonte seneca enlatado o envasado"]
[null,50463419,"Cocombro persa enlatado o envasado","Pepino cohombro persa enlatado o envasado"]
[null,50463506,"Berenjena  filipino enlatada o envasada"]
[null,50463802,"Ajo tallos chinos enlatado o envasado"]
[null,50463905,"Melón peludo enlatado o envasado"]
[null,50464123,"Satureja enlatada o envasada","Ajedreas  enlatada o envasada"]
[null,50464400,"Puerros en lata o en frasco","Poros en lata o en frasco"]
[null,50464620,"Lechuga cabeza roja enlatada o envasada"]
[null,50464804,"Champiñón chanterelle enlatado o envasado"]
[null,50464821,"Champiñón woodear enlatado o envasado"]
[null,50465214,"Cebolla senshyu semi – globo amarillo enlatada o envasada"]
[null,50465400,"Alverjas en lata o en frasco","Alberjones en lata o en frasco"]
[null,50465533,"Pimentón scotch bonnet enlatado o envasado","Pimientos Bonney o rojos Caribe enlatado o envasado"]
[null,50465606,"Papa amarilla enlatada o envasada"]
[null,50466003,"Alazán oveja enlatada o envasada","Acedera oveja enlatada o envasada"]
[null,50466109,"Espinaca nueva zelandia enlatada o envasada"]
[null,50466302,"Batata centennial enlatada o envasada","Camote centennial enlatado o envasado"]
[null,50466317,"Batata jersey rojo enlatada o envasada","Camote jersey rojo enlatado o envasado"]
[null,50466504,"Nabo top morado milan enlatado o envasado"]
[null,50466610,"Calabaza cushaw enlatada o envasada","Calabaza gigante cushaw enlatada o envasada"]
[null,50466814,"Bayas de alcaparra orgánica enlatadas o envasadas"]
[null,50466829,"Galanga enlatada o envasada","Jengibre azul enlatado o envasado"]
[null,50466844,"Moap enlatado o envasado"]
[null,50467000,"Kimchis dulces en lata o en frasco","Col agria (kimchi coreano) en lata o en frasco"]
[null,50471507,"Alcachofa globo morado orgánica enlatada o envasada"]
[null,50471727,"Aguacate ettinger orgánico enlatado o envasado"]
[null,50471738,"Aguacate hickson orgánico enlatado o envasado"]
[null,50471778,"Aguacate waldin orgánico enlatado o envasado"]
[null,50471806,"Frijoles negros orgánicos enlatados o envasados"]
[null,50471846,"String beans orgánicos enlatados o envasados","Ayecote orgánico enlatado o envasado, Fríjol gordo orgánico enlatado o envasado"]
[null,50471908,"Remolacha cheltenham mono orgánica enlatada o envasada","Betabel cheltenham mono orgánico enlatado o envasado"]
[null,50472208,"Cebolla tokyo ensalada orgánica enlatada o envasada","Cebolla de cambray tokyo orgánica enlatada o envasada"]
[null,50472503,"Zanahoria berlicum orgánica enlatada o envasada"]
[null,50472611,"Coliflor invierno walcheren 3 orgánica enlatada o envasada"]
[null,50472909,"Achicoria scarola verde orgánica enlatada o envasada","Escarola scarola verde orgánica enlatada o envasada"]
[null,50473012,"Col (bok choy) hoja  santo serrated orgánico enlatado o envasado"]
[null,50473229,"Maíz  dorado illini orgánico enlatado o envasado"]
[null,50473244,"Maíz blanco perla orgánico enlatado o envasado"]
[null,50473409,"Cocombro danimas orgánico enlatado o envasado","Pepino cohombro danimas orgánico enlatado o envasado"]
[null,50473502,"Berenjena  belleza negra orgánica enlatada o envasada"]
[null,50473701,"Hinojo cantino orgánico enlatado o envasado"]
[null,50473804,"Ajo germidor orgánico enlatado o envasado"]
[null,50474114,"Menta orgánica enlatada o envasada"]
[null,50474201,"Col rizada orgánica enlatada o envasada"]
[null,50474611,"Lechuga cabeza de mantequilla orgánica enlatada o envasada"]
[null,50474702,"Ñame blanca orgánica enlatada o envasada"]
[null,50474810,"Champiñón morels orgánico enlatado o envasado"]
[null,50475204,"Cebolla bufalo orgánica enlatada o envasada"]
[null,50475219,"Cebolla roja guardada orgánica enlatada o envasada"]
[null,50475519,"Pimentón chitespin orgánico enlatado o envasado","Chile chiltepín orgánico enlatado o envasado"]
[null,50475534,"Pimentón serrano orgánico enlatado o envasado","Chile serrano orgánico enlatado o envasado, Chile verde orgánico enlatado o envasado"]
[null,50475905,"Chalote gourmet dorado orgánico enlatado o envasado"]
[null,50476004,"Alazán madera orgánica enlatada o envasada","Acedera madera orgánica enlatada o envasada"]
[null,50476222,"Calabaza  molde dulce orgánica enlatada o envasada"]
[null,50476307,"Batata hanna  orgánica enlatada o envasada","Camote hanna orgánico enlatado o envasado"]
[null,50476422,"Tomates tigerella orgánico enlatado o envasado","Jitomate tigerella orgánico enlatado o envasado"]
[null,50476600,"Auyamas orgánicas en lata o en frasco","Calabazas gigantes orgánicas en lata o en frasco"]
[null,50476804,"Arrurruz orgánica enlatada o envasada"]
[null,50476819,"Verde de crisantemos orgánico enlatado o envasado"]
[null,50476834,"Jicama orgánica enlatada o envasada"]
[null,50476901,"Alverja biquini orgánica enlatada o envasada","Chícharo biquini orgánico en lata o envasado"]
[null,51101509,"Tetraciclina"]
[null,51101548,"Fosfomicina trometamol"]
[null,51101563,"Mesilato de trovafloxacina"]
[null,51101603,"Metronidazol"]
[null,51101618,"Taurolidina"]
[null,51101809,"Griseofulvina"]
[null,51101826,"Sulfato de estreptomicina"]
[null,51102009,"Sulfato de capreomicina"]
[null,51102307,"Ganciclovir sódico","Cytovene IV, Ganciclovir, Glanicicovir Sódic"]
[null,51102334,"Zanamivir"]
[null,51102403,"Sulfacetamida"]
[null,51102707,"Gluconato de clorhexidina"]
[null,51111513,"Mesna"]
[null,51111605,"Fluorouracilo"]
[null,51111800,"Hormonas y antihormonas"]
[null,51111815,"Triptorelina"]
[null,51121521,"Quinidina poligalacturonato"]
[null,51121610,"Pralidoxima"]
[null,51121739,"Clorhidrato de verapamilo"]
[null,51121754,"Clorhidrato de mecamilamina"]
[null,51121810,"Atorvastatina de calcio"]
[null,51121901,"Lactato de inamrinona"]
[null,51131509,"Citrato de amonio férrico"]
[null,51131605,"Citrato de sodio"]
[null,51131702,"Alteplasa"]
[null,51131910,"Polividona o povidona","Iodopovidona, Polividona yodada, Yodopolivinilpirrolidona"]
[null,51141512,"Clobazam"]
[null,51141609,"Sulfato de tranilcipromina"]
[null,51141620,"Mosto de st'john","Corazoncillo, Hierba de San Juan, Hipericón, Hipérico ,"]
[null,51141719,"Succinato de loxapina"]
[null,51141730,"Amisulprida"]
[null,51141918,"Meprobamato"]
[null,51142012,"Ácido mefenámico"]
[null,51142130,"Leflunomida"]
[null,51142145,"Adalimumab"]
[null,51142226,"Clorhidrato de metadona"]
[null,51142304,"Clorhidrato de nalbufina"]
[null,51142412,"Bromhidrato de eletriptan"]
[null,51142605,"Tartrato de fendimetrazina"]
[null,51142908,"Lignocaina"]
[null,51151500,"Colinérgicos y inhibidores de la colinesterasa","Agentes para el sistema nervioso parasimpático"]
[null,51151511,"Bromuro de mepenzolato"]
[null,51151715,"Sulfato de efedrina"]
[null,51151726,"Fenilpropanolamina","Fenilpropalamina"]
[null,51151820,"Hidrocloruro de fenoxibenzamina"]
[null,51151910,"Nonivamida","Vanillilamida de ácido pelargónico"]
[null,51161514,"Oxtrifilina"]
[null,51161603,"Maleato de dexclorfeniramina"]
[null,51161640,"Tartrato de fenindamina"]
[null,51161704,"Palmitato de colfoscerilo"]
[null,51161810,"Folcodina"]
[null,51171611,"Estimulante bisacodilo"]
[null,51171627,"Tartrato de sodio y potasio","Sal de Seignette"]
[null,51171822,"Clorhidrato de palonosetrón"]
[null,51171909,"Omeprazol"]
[null,51181506,"Insulina"]
[null,51181520,"Clorhidrato de pioglitazona"]
[null,51181721,"Corticorelina ovina triflutato"]
[null,51181736,"Fluorometolona"]
[null,51181816,"Hidroxiestrona diacetato"]
[null,51181831,"Norgestrel"]
[null,51181912,"Folitropina","Hormona foliculoestimul"]
[null,51182406,"Alendronato sódico","Ácido alendrónico"]
[null,51182422,"Benidipina hcl"]
[null,51191702,"Lactato de sodio"]
[null,51191904,"Fosfolípidos"]
[null,51201612,"Vacuna contra el virus de las paperas"]
[null,51201623,"Vacuna contra el tifo","Vacuna contra el tifoidea"]
[null,51201806,"Inmunoglobulina o gamma igg"]
[null,51211606,"Flumazenil","Flumazenilo"]
[null,51212020,"Menta de gato","Nébeda"]
[null,51212035,"Leche de cardo","Cardo mariano"]
[null,51241101,"Cloruro acetilcolina"]
[null,51241116,"Travoprost"]
[null,51241209,"Hidroquinona"]
[null,52101501,"Alfombras orientales"]
[null,52101516,"Alfombra de estera de palma","Alfombra de paja"]
[null,52131602,"Persianas enrollables"]
[null,52141506,"Congeladores para uso doméstico"]
[null,52141546,"Extractor de cocina para uso doméstico"]
[null,52141602,"Secadoras de ropa para uso doméstico"]
[null,52151605,"Destapadores o abrelatas para uso doméstico"]
[null,52151620,"Cernedor para uso doméstico","Colador para uso doméstico"]
[null,52151656,"Tajador de aguacates","Cortadora de aguacate"]
[null,52151707,"Set de cuchillos para uso doméstico"]
[null,52152009,"Soperas o ensaladeras para uso doméstico"]
[null,52152200,"Lavado de platos y accesorios de almacenamiento de platos"]
[null,52161512,"Altoparlantes","Altavoz"]
[null,52161551,"Micrófono inalámbrico y sistema de amplificación de instrumentos"]
[null,52161605,"Accesorios para reproductores portátiles de medios"]
[null,53101902,"Trajes para hombre"]
[null,53102201,"Vestidos folclóricos para niño"]
[null,53102519,"Golas","Bufandas con gorros o pecheras"]
[null,53102702,"Uniformes de agentes de aduna","Trajes para agentes aduanales"]
[null,53111602,"Zapatos para mujer"]
[null,53111805,"Sandalias para bebé"]
[null,53121706,"Maletines para computador"]
[null,53131509,"Refrescadores de aliento","Refrescantes para boca"]
[null,53131630,"Bálsamo labial"]
[null,53131702,"Máquina masajeadora"]
[null,53141602,"Kits de costura"]
[null,54101507,"Tiaras"]
[null,54101702,"Bloques para producir hemisferios (“dapping punches”)"]
[null,54121603,"Ópalos"]
[null,55101509,"Textos educacionales o vocacionales"]
[null,55121500,"Rótulos"]
[null,55121604,"Etiquetas para latas o botellas"]
[null,55121726,"Paneles de identificación"]
[null,55121807,"Porta productos de identificación o accesorios"]
[null,56101528,"Plantas artificiales","Arreglos florales artificiales, Flores artificiales"]
[null,56101544,"Espejos","Espejos para muebles"]
[null,56101806,"Asientos de comer (para bebés) o accesorios","Periqueras para bebé"]
[null,56101907,"Fundas para muebles"]
[null,56111514,"Paquetes de muebles de mostrador modulares"]
[null,56112005,"Partes o accesorios de soporte para computadores"]
[null,56112202,"Componentes para almacenamiento de escritorio"]
[null,56121501,"Mesas para actividades"]
[null,56121601,"Sets de sala de tamaño de niños"]
[null,56131604,"Componentes de centros de pinturas de colores"]
[null,56141503,"Vasos de cerámica"]
[null,60101312,"Cajas de adhesivos"]
[null,60101327,"Tarjetas didácticas de escritura o escritura a mano"]
[null,60101714,"Recursos para tareas en casa"]
[null,60101729,"Kits de enseñanza para bachillerato básico"]
[null,60102100,"Materiales de recursos de lenguaje"]
[null,60102301,"Libros de actividades de lectura"]
[null,60102403,"Tarjetas de actividades para trabajar material didáctico manipulable de matemáticas temprana","Tarjetas de actividades para trabajar matemáticas temprana"]
[null,60102703,"Tarjetas de patrones o actividades de bloques para patrones"]
[null,60102711,"Libros de recursos o actividades del tangram"]
[null,60103007,"Juegos de fracciones"]
[null,60103105,"Tableros geométricos de doble cara"]
[null,60103700,"Recursos de lenguas extranjeras"]
[null,60103804,"Mapas históricos"]
[null,60104005,"Kits de enseñanza de bacterias"]
[null,60104203,"Modelos del agua"]
[null,60104507,"Herramientas para demostración electroquímica"]
[null,60104611,"Equipos de aire"]
[null,60104805,"Diapasones"]
[null,60104816,"Sets o kits ópticos"]
[null,60104903,"Kits de electrostática"]
[null,60105101,"Sets de cohetes"]
[null,60105307,"Materiales de enseñanza de formación de ética laboral o actitudes"]
[null,60105601,"Materiales de enseñanza de dietas balanceadas o pautas alimentarias"]
[null,60105612,"Materiales de enseñanza de equivalencias o matemáticas en la cocina"]
[null,60105907,"Materiales de enseñanza sobre el embarazo, desde la concepción hasta el parto"]
[null,60105918,"Materiales de enseñanza para el cuidador de niños"]
[null,60106501,"Estatua budista"]
[null,60106609,"Herramienta de discriminación"]
[null,60111400,"Decoraciones especiales para el aula y accesorios decorativos"]
[null,60121004,"Retratos"]
[null,60121129,"Paneles de madera comprimida"]
[null,60121140,"Tablero de montaje"]
[null,60121201,"Pintura témpera líquida tradicional"]
[null,60121237,"Paletas para mezclar pintura o tinta"]
[null,60121253,"Aerógrafos para arte"]
[null,60121516,"Carboncillo"]
[null,60121531,"Borradores de lápices color rosados"]
[null,60121709,"Mantillas para huecograbado o litografía"]
[null,60121901,"Muselina"]
[null,60122504,"Filtros de papel"]
[null,60122800,"Máscaras"]
[null,60123601,"Pegante de purpurina","Pegamento con brillantina"]
[null,60124000,"Suministros de artesanía del corcho y accesorios"]
[null,60124407,"Alambre de plata"]
[null,60124505,"Ampollas o accesorios"]
[null,60131004,"Celestas"]
[null,60131215,"Jeok"]
[null,60131230,"Contrafagot"]
[null,60131402,"Campanas"]
[null,60131413,"Geongo"]
[null,60131453,"Gong de madera"]
[null,60131507,"Accesorio para instrumentos de percusión"]
[null,60141012,"Juguetes inflables"]
[null,60141100,"Juegos"]
[null,60141404,"Platos de comida de  juguete o accesorios"]
[null,70101601,"Servicios de información o documentación de la industria pesquera"]
[null,70111702,"Servicios de administración o mantenimiento de viñedos","Servicio de gestión o mantenimiento de viñas"]
[null,70111713,"Servicios de administración o mantenimiento de parques","Servicios de gestión o mantenimiento de parques"]
[null,70121608,"Servicios de producción bovina","Servicios de producción vacuna"]
[null,70131602,"Servicios de esparcido de cal","Servicios de esparcido de caliza"]
[null,70141502,"Hidroponía","Cultivo sin suelo"]
[null,70141802,"Servicios de brotes o ramitas"]
[null,70142003,"Servicios de procesamiento de la cosecha","Servicios de procesamiento de los cultivos"]
[null,70151805,"Servicios de conservación de parques o reservas forestales"]
[null,70161600,"Flora","Servicios de protección para la flora"]
[null,71101500,"Prospección minera","Servicios de descubrimientos de yacimientos mineros"]
[null,71101702,"Servicios de minería  a cielo abierto"]
[null,71112018,"Servicios de medición del fluido de perforación para registros de producción"]
[null,71112113,"Servicios de registro nuclear geoquímico"]
[null,71121024,"Servicio de cementación de tubería"]
[null,71121109,"Servicios de alcance extendido del pozo"]
[null,71121200,"Servicios de extracción de muestras"]
[null,71121506,"Servicios de telemetría electromagnética durante la perforación"]
[null,71121604,"Servicios de perforación con tubería flexible continua","Servicios de perforación con carrete de tubería flexible"]
[null,71121703,"Servicios de operación del servicio de pesca en el campo petrolífero"]
[null,71121811,"Otros sistemas de elevación"]
[null,71122301,"Servicios de buceo en pozos submarinos"]
[null,71122410,"Servicio de pruebas desbalanceadas durante la perforación"]
[null,71122806,"Servicios de adquisición de datos de la superficie en el emplazamiento del pozo"]
[null,71123005,"Administración y provisión de todos los servicios de catering, limpieza, oficina y seguridad en el emplazamiento o plataforma"]
[null,71131300,"Otros servicios de bombeo del campo petrolífero"]
[null,71131401,"Servicios del sistema de llamarada del campo petrolífero","Servicios del sistema de llamarada del campo petrolero"]
[null,71151003,"Servicios de monitoreo en tiempo real de datos del pozo en el campo petrolero"]
[null,71151200,"Servicios de modelo económico y de riesgo del campo petrolífero"]
[null,71151311,"Servicios de petrofísica"]
[null,71161111,"Servicios de administración del agua del campo petrolífero","Servicios de gestión del agua para campos petrolíferos"]
[null,71161303,"Servicios de desarrollo de campos petroleros"]
[null,72101516,"Servicio de inspección, mantenimiento o reparación de extinguidores de fuego"]
[null,72102902,"Servicios de paisajismo","Servicios de jardinería"]
[null,72121007,"Servicio de construcción y remodelación de plantas ensambladoras de automóviles y camiones"]
[null,72121400,"Servicios de construcción de edificios públicos especializados"]
[null,72141102,"Servicio de nivelación del terreno"]
[null,72141117,"Servicio de tendido de cables de comunicación y teléfonos"]
[null,72141503,"Servicio de remoción de piedras"]
[null,72141701,"Servicio de alquiler o leasing de maquinaria para construcción","Renta de maquinaria de construcción"]
[null,72151507,"Servicio de instalación de controles electrónicos"]
[null,72151604,"Servicio de  instalación de teléfonos y equipos para teléfonos"]
[null,72152102,"Servicio de aislamiento y acabado de exteriores"]
[null,72152504,"Servicio de instalación de baldosas de cerámica  para pisos"]
[null,72152605,"Servicio de instalación y reparación de cielorrasos"]
[null,72153203,"Servicio de control de corrosión"]
[null,72153400,"Servicios de aparejamiento y andamiaje"]
[null,72154009,"Servicios de instalación de dársenas industriales y sus equipos","Servicios de instalación de rampas mecánicas para carga y descarga y sus equipos"]
[null,72154024,"Servicio de herrajes y trabajos de metalistería ornamentales","Servicio de trabajo de hierro y metal decorativo"]
[null,72154060,"Servicio de desgasificación"]
[null,72154108,"Servicio de mantenimiento o reparación de bombas alternativas"]
[null,73101800,"Producción bioquímica y de biotecnología"]
[null,73111504,"Servicios de fabricación de envases de madera"]
[null,73131501,"Servicios de destilación o mezcla de licores"]
[null,73131603,"Servicios de procesamiento de aves de corral"]
[null,73131900,"Procesamiento de granos y azúcar y aceites y grasas"]
[null,73151506,"Servicio de subensamble o ensamble definitivo"]
[null,73151701,"Servicios de tratamiento de materiales  de impermeabilización"]
[null,73161505,"Servicios de fabricación de maquinaria o equipos para construcción"]
[null,73161516,"Servicios de fabricación de equipo de elevación, elevación o transporte"]
[null,73181008,"Servicios de perforación"]
[null,73181023,"Servicio de afilado"]
[null,73181302,"Servicios de recocido"]
[null,73181902,"Servicios de soldadura con gas metal inerte mig","Servicios de soldadura a gas y arco metálico"]
[null,76121604,"Servicios de disposición de animales muertos","Servicios de eliminación de animales muertos"]
[null,76122002,"Relleno sanitario para residuos especiales no peligrosos"]
[null,76131601,"Confinación de vertidos tóxicos"]
[null,77101600,"Planeación ambiental"]
[null,77101801,"Sistemas de información ambiental"]
[null,77121505,"Servicios de detección de gases tóxicos"]
[null,77121606,"Medición o monitoreo de la contaminación del suelo"]
[null,78101702,"Servicios de transporte internacional por buque","Servicios de transporte internacional por embarcación"]
[null,78111501,"Servicios de helicópteros"]
[null,78111808,"Alquiler de vehículos","Renta de vehículos"]
[null,78131500,"Bodegaje de productos agrícolas"]
[null,78141805,"Servicio de explotación de instalaciones de aviación o aeropuertos o aeródromos"]
[null,78181600,"Servicios de panel y pintura","Servicio de taller mecánico"]
[null,80111502,"Planificación de compensaciones o beneficios"]
[null,80111602,"Necesidades de personal de mercadeo temporal","Colocación de personal temporal para mercadotecnía"]
[null,80111716,"Necesidades de dotación de personal de tecnologías de la información permanente","Colocación de personal fijo en tecnologías de la información"]
[null,80121606,"Derecho inmobiliario","Derecho bienes inmuebles"]
[null,80121801,"Servicios sobre derecho de divorcio"]
[null,80141511,"Encuestas impresas para investigaciones de mercado"]
[null,80141607,"Gestión de eventos","Organización de eventos, Administración de eventos"]
[null,80151502,"Expansión comercial","Ampliación comercial"]
[null,80161505,"Servicios de administración de flotas"]
[null,81101700,"Ingeniería eléctrica y electrónica"]
[null,81102001,"Minería hidráulica"]
[null,81111606,"Programación para basic","Programación de Código simbólico de instrucciones de propósito general para principiantes"]
[null,81111707,"Servicios de planificación de sistemas"]
[null,81112200,"Mantenimiento y soporte de software","Mantenimiento y soporte de programas para computadoras"]
[null,81112211,"Mantenimiento de software de planificación de recursos empresariales","Mantenimiento de programas para planificación de recursos empresariales"]
[null,81131500,"Metodología y Análisis","Servicios de metodología y análisis"]
[null,81141505,"Desarrollo de estándares de producción"]
[null,81141801,"Análisis de riesgo o seguridad"]
[null,81161503,"Servicio de administración de carpetas en la red"]
[null,81161708,"Servicio de soporte telefónico"]
[null,82111602,"Servicios de redacción del currículum vítae"]
[null,82111901,"Servicios de comunicados de prensa"]
[null,82112032,"Servicio de interpretación en persona de jamaiquino","Servicios de traductor en jamaiquino"]
[null,82112047,"Servicio de interpretación en persona de romaní","Servicios de traductor en romaní"]
[null,82121603,"Grabado de planchas metálicas"]
[null,82131500,"Servicios de procesado de películas"]
[null,82151704,"Servicios de músicos"]
[null,83101508,"Agua para la ciudad"]
[null,83111701,"Servicios de transmisión por fax"]
[null,83111903,"Sistemas de radio de corto alcance"]
[null,83112400,"Servicios de telecomunicaciones de marcado conmutado y circuito de línea dedicada alquilada"]
[null,84101502,"Programas de movilización de ahorros"]
[null,84101704,"Servicios de cobro de la deuda","Servicios de cobranza"]
[null,84121705,"Datos del mercado"]
[null,84131501,"Seguros de edificios o del contenido de edificios"]
[null,84141600,"Agencias de crédito personal","Agencias de crédito personal o monederos electrónicos"]
[null,85101601,"Servicios de enfermería"]
[null,85111609,"Servicios de prevención o control de la enfermedad por radiación"]
[null,85121502,"Servicios de consulta de médicos de atención primaria","Servicios de consulta médica"]
[null,85122000,"Servicios dentales","Honorarios médicos"]
[null,85122105,"Servicios de trastornos alimenticios"]
[null,85141700,"Práctica homeopática","Servicios médicos de homeopatía"]
[null,85151604,"Evaluación de proyectos de nutrición"]
[null,85171501,"Excavación de tumbas"]
[null,86101716,"Servicios de formación profesional en transporte marítimo"]
[null,86111500,"Servicios de aprendizaje a distancia","Colegiaturas"]
[null,86131603,"Estudios de arte dramático"]
[null,86141502,"Servicios de orientación para la cooperación  universitaria"]
[null,90111700,"Facilidades para acampar","Instalaciones para acampar"]
[null,90121603,"Servicio de verificación de tiquetes de pasajeros","Servicio de verificación de pases de abordar"]
[null,90151701,"Parques temáticos"]
[null,90152101,"Servicios de asistencia personal"]
[null,91111900,"Servicios de cuidado temporal"]
[null,92101602,"Servicios de cuerpos de bomberos voluntarios"]
[null,92121802,"Servicio de transporte de dinero"]
[null,93131503,"Servicios de educación o divulgación de información sobre derechos humanos"]
[null,93131504,"Servicios de asistencia de emergencia a refugiados"]
[null,93131505,"Servicios de campos de refugiados"]
[null,93131506,"Servicios de reasentamientos o repatriación de refugiados"]
[null,93131507,"Servicios de asistencia a desplazados"]
[null,93131600,"Planeación y programas de políticas de alimentación y nutrición"]
[null,93131601,"Programas de erradicación del hambre"]
[null,93131602,"Servicios de suministro de alimentos de emergencia"]
[null,93131603,"Servicios del programa mundial de alimentos"]
[null,93131604,"Servicios de la organización para la  alimentación y la agricultura"]
[null,93131605,"Servicios del fondo común para los  productos básicos"]
[null,93131606,"Servicios del fondo internacional para el desarrollo agrícola"]
[null,93131607,"Servicios de distribución de alimentos"]
[null,93131608,"Servicios de suministro de alimentos"]
[null,93131609,"Políticas o programas de ayuda alimentaría"]
[null,93131610,"Servicios de planificación de alimentos"]
[null,93131611,"Servicios de seguridad alimentaria"]
[null,93131612,"Administración de reservas alimentarias"]
[null,93131613,"Servicios de control o  administración de excedentes o escasez de alimentos"]
[null,93131700,"Programas de salud"]
[null,93131701,"Campañas contra el tabaco"]
[null,93131702,"Programas de sanidad"]
[null,93131703,"Programas de investigación"]
[null,93131704,"Servicios de prevención o control de enfermedades"]
[null,93131705,"Programas de prevención o control de abuso de drogas"]
[null,93131800,"Preparación y alivio de desastres"]
[null,93131801,"Servicios de prevención de desastres"]
[null,93131802,"Servicios de respuesta contra desastres"]
[null,93131803,"Servicios de viviendas de emergencia"]
[null,93141500,"Desarrollo y servicios sociales"]
[null,93141504,"Servicios de cuidado en hogares adoptivos u orfanatos"]
[null,93141505,"Servicios de adopción"]
[null,93141510,"Estudios de estructura sociales o servicios relacionados"]
[null,93141511,"Estudios de grupos sociales o servicios relacionados"]
[null,93141514,"Servicios socioculturales"]
[null,93141600,"Población"]
[null,93141601,"Servicios de censo de la población"]
[null,93141602,"Servicios de estudios de muestras de población"]
[null,93141605,"Servicios de tendencias o proyecciones de la población"]
[null,93141606,"Servicios de estadísticas de natalidad"]
[null,93141608,"Servicios de distribución o análisis de la población"]
[null,93141609,"Servicios de análisis de la composición de la población"]
[null,93141610,"Estudios demográficos"]
[null,93141700,"Cultura"]
[null,93141701,"Organizaciones de eventos culturales"]
[null,93141702,"Servicios de promoción cultural"]
[null,93141703,"Servicios relacionados con el arte","Artesanías y obras de arte, Servicios de restauración de obras de arte y artesanías"]
[null,93141704,"Servicios de composición de canciones"]
[null,93141705,"Servicios de redacción literaria"]
[null,93141706,"Servicios de protección de minorías"]
[null,93141707,"Servicios de preservación o  promoción del patrimonio cultural"]
[null,93141708,"Servicios de museos"]
[null,93141709,"Servicios de política cultural"]
[null,93141710,"Servicios de lenguas arcaicas o indígenas"]
[null,93141711,"Servicios de promoción de artesanías tradicionales"]
[null,93141712,"Servicios de protección de la propiedad intelectual o cultural"]
[null,93141713,"Servicios de protección de sitios históricos o monumentos"]
[null,93141714,"Mitología"]
[null,93141800,"Empleo"]
[null,93141801,"Servicios de promoción o planificación del empleo"]
[null,93141802,"Servicios de reclutamiento"]
[null,93141803,"Servicios de estándares laborales internacionales"]
[null,93141804,"Servicios de registros laborales internacionales"]
[null,93141806,"Servicios de estadísticas o predicciones del empleo"]
[null,93141808,"Servicios de seguridad o salud ocupacional"]
[null,93141810,"Servicios de perspectivas de desarrollo profesional"]
[null,93141811,"Servicios de promoción"]
[null,93141812,"Servicios de inspección laboral"]
[null,93141813,"Servicios del consejo del trabajo"]
[null,93141814,"Servicios laborales internacionales"]
[null,93141900,"Desarrollo rural"]
[null,93141901,"Servicios bancarios comerciales agrícolas"]
[null,93141902,"Servicios de inversión rural"]
[null,93141903,"Servicios de organización o gestión de instituciones agrícolas"]
[null,93141904,"Servicios de cooperativas agrícolas o rurales"]
[null,93141905,"Servicios de investigación agrícola"]
[null,93141906,"Servicios de organizaciones de agricultores o campesinos"]
[null,93141909,"Servicios de administración de la tierra"]
[null,93141910,"Servicios para el desarrollo insular"]
[null,93142000,"Desarrollo urbano"]
[null,93142001,"Servicios de planificación de la ordenación urbana"]
[null,93142002,"Servicios de administración de tierras urbanas"]
[null,93142003,"Servicios de programación de inversiones urbanas"]
[null,93142004,"Servicios de reestructuración de  barrios marginales"]
[null,93142005,"Servicios de alumbrado urbano"]
[null,93142006,"Servicios de control o regulación del desarrollo urbano"]
[null,93142007,"Servicios de estándares o regulación de edificios urbanos"]
[null,93142008,"Servicios comunitarios urbanos"]
[null,93142009,"Servicios de administración o gestión de proyectos o programas urbanos"]
[null,93142100,"Desarrollo regional"]
[null,93142101,"Servicios de planificación de desarrollo regional"]
[null,93142102,"Servicios de cooperación económica"]
[null,93142103,"Servicios de cooperación técnica"]
[null,93142104,"Servicios de planificación sectorial"]
[null,93151500,"Administración pública"]
[null,93151501,"Servicios financieros o de  gestión  administrativa de empresas  públicas"]
[null,93151502,"Servicios de sistemas de información o control de empresas públicas"]
[null,93151512,"Servicios de instituciones públicas"]
[null,93151516,"Permiso de construcción"]
[null,93151600,"Finanzas públicas"]
[null,93151608,"Servicios bancarios gubernamentales o centrales"]
[null,93151609,"Servicios de loterías","Billetes de lotería impresos o electrónicos"]
[null,93151611,"Subsidios"]
[null,93161500,"Impuesto de renta"]
[null,93161501,"Impuesto nacional sobre la renta"]
[null,93161502,"Impuesto municipal sobre la renta"]
[null,93161503,"Impuesto sobre el incremento de capital"]
[null,93161504,"Impuesto sobre beneficios extraordinarios"]
[null,93161600,"Impuestos distintos del impuesto de renta"]
[null,93161601,"Impuesto sobre los bienes"]
[null,93161602,"Impuesto sobre la tierra"]
[null,93161603,"Impuesto al valor agregado (iva)"]
[null,93161604,"Impuesto sobre nóminas"]
[null,93161605,"Impuesto sobre las ventas"]
[null,93161606,"Impuesto de seguridad social"]
[null,93161607,"Impuesto a la sucesión o sobre transferencia de propiedad"]
[null,93161608,"Derechos o impuestos aduaneros"]
[null,93161609,"Arancel o tarifa"]
[null,93161700,"Administración tributaria"]
[null,93161702,"Incentivos tributarios"]
[null,93161800,"Temas tributarios"]
[null,93161803,"Investigación tributaria"]
[null,93161804,"Crédito fiscal de inversión"]
[null,93171500,"Política comercial"]
[null,93171501,"Acuerdos comerciales"]
[null,93171502,"Negociaciones comerciales"]
[null,93171503,"Formulación de políticas nacionales de productos básicos"]
[null,93171504,"Desarrollo de pequeñas industrias"]
[null,93171600,"Comercio internacional"]
[null,93171700,"Administración y cumplimiento aduanero"]
[null,93171701,"Convenciones aduaneras"]
[null,93171702,"Trámites aduaneros"]
[null,93171800,"Análisis de comercio"]
[null,93171801,"Proyecciones comerciales"]
[null,93171802,"Proyecciones de la balanza comercial"]
[null,93171803,"Estadísticas comerciales"]
[null,94101500,"Asociaciones de negocios","Agrupaciones y cámaras representativas"]
[null,94101501,"Asociaciones de la industria agrícola"]
[null,94101502,"Asociaciones reguladoras"]
[null,94101503,"Asociaciones empresariales sectoriales"]
[null,94101504,"Asociaciones empresariales internacionales"]
[null,94101505,"Asociaciones de empleadores"]
[null,94101600,"Asociaciones profesionales","Agrupaciones y colegios de profesionistas"]
[null,94101601,"Asociaciones de odontólogos"]
[null,94101602,"Asociaciones de médicos"]
[null,94101603,"Asociaciones de enfermeras"]
[null,94101604,"Asociaciones de contadores"]
[null,94101605,"Asociaciones de arquitectos"]
[null,94101606,"Colegios de abogados"]
[null,94101607,"Asociaciones educativas o de profesores"]
[null,94101608,"Asociaciones de ingenieros"]
[null,94101609,"Asociaciones científicas"]
[null,94101610,"Juntas de revisión de estándares profesionales"]
[null,94101700,"Asociaciones de personal"]
[null,94101701,"Clubes de ocio del personal"]
[null,94101702,"Asociaciones deportivas del personal"]
[null,94101703,"Asociaciones de personal femenino"]
[null,94101704,"Asociaciones de personal pensionado"]
[null,94101705,"Asociaciones de personal administrativo"]
[null,94101800,"Sindicatos"]
[null,94101801,"Sindicatos de obreros o trabajadores generales"]
[null,94111700,"Residencias religiosas"]
[null,94111701,"Residencias religiosas privadas"]
[null,94111702,"Residencias de comunidades religiosas"]
[null,94111703,"Residencias para retiros religiosos"]
[null,94111704,"Residencias religiosas temporales"]
[null,94111800,"Organizaciones y servicios de peregrinaje"]
[null,94111801,"Organizaciones o servicios de peregrinaje a la meca"]
[null,94111802,"Organizaciones o servicios de peregrinaje al vaticano"]
[null,94111803,"Servicios de asistencia para viajes de peregrinaje"]
[null,94111804,"Servicios de operadores turísticos de peregrinaje"]
[null,94111900,"Servicios misioneros"]
[null,94111901,"Servicios de órdenes religiosas"]
[null,94111902,"Servicios de misioneros evangélicos"]
[null,94111903,"Servicios misioneros educativos"]
[null,94112000,"Servicios confesionarios"]
[null,94112001,"Servicios relacionados con el hinduismo"]
[null,94112002,"Servicios relacionados con el budismo"]
[null,94112003,"Servicios relacionados con el cristianismo"]
[null,94112004,"Servicios relacionados con el islamismo"]
[null,94112005,"Servicios relacionados con el judaísmo"]
[null,94121500,"Clubes deportivos"]
[null,94121501,"Clubes de deportes en hielo"]
[null,94121502,"Clubes deportivos de vela o natación"]
[null,94121503,"Clubes deportivos de caza o tiro"]
[null,94121504,"Clubes deportivos de campos al aire libre"]
[null,94121505,"Clubes deportivos de canchas cubiertas o al aire libre"]
[null,94121506,"Clubes deportivos de invierno"]
[null,94121507,"Clubes deportivos de playa o acuáticos"]
[null,94121508,"Clubes deportivos de ciclismo"]
[null,94121509,"Clubes deportivos de montañismo"]
[null,94121510,"Clubes deportivos de carreras"]
[null,94121511,"Clubes deportivos de vuelo"]
[null,94121512,"Clubes deportivos profesionales o semiprofesionales"]
[null,94121513,"Servicios de operadores de eventos en estadios"]
[null,94121514,"Servicios de promotores o directores técnicos de clubes deportivos"]
[null,94121600,"Clubes de hobbies"]
[null,94121601,"Clubes de aficionados a los juegos de cartas"]
[null,94121602,"Clubes de artesanías"]
[null,94121603,"Clubes de aficionados a la poesía o la literatura"]
[null,94121604,"Clubes de aficionados a la cocina"]
[null,94121605,"Clubes de aficionados a la jardinería"]
[null,94121606,"Club de aficionados al coleccionismo"]
[null,94121607,"Club de exploradores (scouts)"]
[null,94121700,"Clubes de aficionados"]
[null,94121701,"Clubes o servicios para aficionados al teatro"]
[null,94121702,"Clubes o servicios para aficionados a la música"]
[null,94121703,"Clubes o servicios para aficionados al baile a la danza"]
[null,94121704,"Clubes o servicios para aficionados a las bellas artes"]
[null,94121800,"Clubes sociales"]
[null,94121801,"Clubes juveniles"]
[null,94121802,"Clubes para la tercera edad"]
[null,94121803,"Clubes para reuniones sociales"]
[null,94121804,"Clubes sociales para personas discapacitadas"]
[null,94121805,"Clubes sociales para veteranos de guerra"]
[null,94131500,"Organizaciones no gubernamentales"]
[null,94131501,"Servicios ambientales no gubernamentales"]
[null,94131502,"Servicios no gubernamentales de ayuda de emergencia"]
[null,94131503,"Servicios no gubernamentales de asistencia técnica"]
[null,94131504,"Servicios no gubernamentales de ayuda al desarrollo"]
[null,94131600,"Organizaciones de caridad"]
[null,94131601,"Servicios de albergue de organizaciones de beneficencia"]
[null,94131602,"Servicios de socorro alimentario"]
[null,94131603,"Servicios de asistencia legal"]
[null,94131604,"Servicios de movilización de recursos","Donativos en especie"]
[null,94131605,"Servicios de asistencia de ayuda internacional"]
[null,94131606,"Servicios de orfanatos o adopción"]
[null,94131607,"Organizaciones de asistencia a los adultos mayores"]
[null,94131608,"Organizaciones de asistencia a presos"]
[null,94131700,"Asociaciones verdes"]
[null,94131701,"Asociaciones ecologistas radicales"]
[null,94131702,"Asociaciones ecofeministas"]
[null,94131703,"Organizaciones políticas ecológicas"]
[null,94131704,"Movimientos o servicios de activistas ecológicos"]
[null,94131800,"Movimientos"]
[null,94131805,"Servicios de preservación cultural de las minorías étnicas"]
[null,94131900,"Asociaciones protectoras de animales"]
[null,94131901,"Movimientos para la liberación de animales"]
[null,94131902,"Asociaciones para la protección de las especies en peligro de extinción"]
[null,94131903,"Asociaciones para la protección de animales amenazados"]
[null,94132000,"Asociaciones de defensa y promoción de los derechos humanos"]
[null,94132001,"Servicios de defensa de los derechos de los niños"]
[null,94132002,"Servicios de defensa de los presos"]
[null,94132003,"Asociaciones para la defensa de la tortura física o mental"]
[null,94132004,"Asociaciones para la defensa de la libertad de expresión"]
[null,95101500,"Lotes residenciales"]
[null,95101501,"Parcela para vivienda unifamiliar","Terreno para vivienda unifamiliar"]
[null,95101502,"Parcela para edificio de apartamentos","Terreno para edificio de apartamentos"]
[null,95101503,"Parcela para apartamentos cooperativos","Terreno para apartamentos cooperativos"]
[null,95101504,"Parcela para condominio","Terreno para condominio"]
[null,95101505,"Parcela para residencia universitaria","Terreno para residencia universitaria"]
[null,95101506,"Parcela para subdivisión de vivienda","Terreno para subdivisión de vivienda"]
[null,95101507,"Parcela para hotel","Terreno para hotel"]
[null,95101508,"Parcela para motel","Terreno para motel"]
[null,95101509,"Parcela para casas móviles","Terreno para casas móviles"]
[null,95101510,"Parque de casas móviles"]
[null,95101600,"Lotes comerciales"]
[null,95101601,"Parque empresarial"]
[null,95101602,"Campus de oficinas"]
[null,95101603,"Sitio para centro comercial de calle"]
[null,95101700,"Lotes industriales"]
[null,95101701,"Parque aéreo"]
[null,95101702,"Sitio para planta ensambladora","Terreno para planta ensambladora"]
[null,95101703,"Sitio para fábrica","Terreno para fábrica"]
[null,95101704,"Sitio para planta manufacturera","Terreno para planta manufacturera"]
[null,95101705,"Sitio para marina","Terreno para marina"]
[null,95101706,"Sitio para planta empacadora","Terreno para planta empacadora"]
[null,95101707,"Sitio para telecomunicaciones","Terreno para telecomunicaciones"]
[null,95101708,"Sitio para empresa pública","Terreno para empresa pública"]
[null,95101800,"Lotes de terrenos gubernamentales"]
[null,95101807,"Patio de mantenimiento"]
[null,95101900,"Tierras agrícolas"]
[null,95101901,"Granja"]
[null,95101902,"Rancho"]
[null,95101903,"Huerto"]
[null,95111500,"Vías de tráfico limitado"]
[null,95111501,"Servidumbre"]
[null,95111502,"Derecho de paso"]
[null,95111503,"Carreteras de acceso"]
[null,95111504,"Rampa o vía de acceso a una autopista"]
[null,95111600,"Vías de tráfico abierto"]
[null,95111602,"Carretera o autopista  o autopista de peaje interestatal","Cuota o tarifa de peaje en carreteras y autopistas federales"]
[null,95111603,"Carretera o autopista  o autopista de peaje interestatal","Cuota o tarifa de peaje en carreteras y autopistas concesionadas"]
[null,95111609,"Cruce de carretera con una carretera principal"]
[null,95111610,"Carretera circunvalar"]
[null,95111615,"Cruce de carreteras"]
[null,95121500,"Edificios y estructuras comerciales y de entretenimiento"]
[null,95121501,"Galería comercial"]
[null,95121502,"Estructura de parqueo","Estructura para estacionamiento"]
[null,95121503,"Cafetería"]
[null,95121504,"Edificio para tienda"]
[null,95121505,"Centro comercial"]
[null,95121506,"Teatro"]
[null,95121507,"Mercado"]
[null,95121508,"Zona de juegos o patios de recreo para niños"]
[null,95121509,"Zoológico"]
[null,95121510,"Jardín"]
[null,95121511,"Parque"]
[null,95121512,"Instalación recreativa al lado del agua"]
[null,95121513,"Banco"]
[null,95121514,"Oficina de tiquetes","Oficina de boletos"]
[null,95121515,"Caída de agua artificial"]
[null,95121516,"Muro de piedras y piedras  artificiales"]
[null,95121517,"Crematorio"]
[null,95121600,"Edificios y estructuras de transporte"]
[null,95121601,"Puente de acero"]
[null,95121602,"Dique seco"]
[null,95121603,"Estación de buses"]
[null,95121604,"Garaje para buses"]
[null,95121605,"Edificio de servicios o reparaciones automotrices"]
[null,95121606,"Estación ferroviaria"]
[null,95121607,"Depósito ferroviario"]
[null,95121608,"Estación ferroviarias  subterráneas"]
[null,95121609,"Depósito de tranvías"]
[null,95121610,"Plataforma de tranvías"]
[null,95121611,"Edificio de aeropuertos"]
[null,95121612,"Torre de control aeroportuaria"]
[null,95121613,"Campo de aviación"]
[null,95121614,"Pista"]
[null,95121615,"Muelle"]
[null,95121616,"Embarcadero"]
[null,95121617,"Dársena"]
[null,95121618,"Marina"]
[null,95121619,"Marina de yates"]
[null,95121620,"Rompeolas"]
[null,95121621,"Malecón"]
[null,95121622,"Edificio de terminal de ferry"]
[null,95121623,"Terminal ro-ro"]
[null,95121624,"Faro"]
[null,95121640,"Tubería"]
[null,95121641,"Estación de bombeo"]
[null,95121642,"Estación de bombeo de aguas residuales"]
[null,95121643,"Descargas de aguas residuales"]
[null,95121644,"Parqueadero","Estacionamiento"]
[null,95121646,"Estructura para parqueo de bicicletas","Estructura de estacionamiento para bicicletas"]
[null,95121700,"Edificios y estructuras públicos"]
[null,95121701,"Oficina postal"]
[null,95121702,"Estación de policía"]
[null,95121703,"Edificio de juzgados"]
[null,95121704,"Edificio de prisión"]
[null,95121705,"Estación de bomberos"]
[null,95121706,"Estación de ambulancias"]
[null,95121707,"Edificio de rescate de montaña"]
[null,95121708,"Estación de botes salvavidas"]
[null,95121709,"Edificio de guardacostas"]
[null,95121710,"Estación de servicio de rescate"]
[null,95121711,"Centro cívico"]
[null,95121712,"Galería de arte"]
[null,95121800,"Edificios y estructuras utilitarios"]
[null,95121801,"Estación de radares"]
[null,95121802,"Subestación"]
[null,95121804,"Torre de agua"]
[null,95121805,"Pozo"]
[null,95121806,"Estación base para telefonía móvil"]
[null,95121808,"Plataforma de gas o petróleo"]
[null,95121900,"Edificios y estructuras educacionales y de administración"]
[null,95121901,"Escuela politécnica"]
[null,95121902,"Centro de formación tecnológica"]
[null,95121903,"Aula"]
[null,95121904,"Biblioteca"]
[null,95121905,"Laboratorio de idiomas"]
[null,95121906,"Edificio de laboratorio"]
[null,95121907,"Estación meteorológica"]
[null,95121908,"Instalación para investigación o prueba"]
[null,95121909,"Escuela primaria"]
[null,95121910,"Escuela de bachillerato clásico"]
[null,95121911,"Escuela de bachillerato"]
[null,95121913,"Universidad"]
[null,95122000,"Edificios y estructuras hospitalarias"]
[null,95122001,"Clínica"]
[null,95122002,"Hogar de convalecencia"]
[null,95122003,"Sala de operaciones o quirófano"]
[null,95122004,"Unidad de cuidados intensivos"]
[null,95122005,"Sala de detección y diagnóstico"]
[null,95122006,"Sala de fluoroscopio"]
[null,95122007,"Sala o laboratorio de patología"]
[null,95122008,"Sala de cateterismo"]
[null,95122100,"Edificios y estructuras de acomodaciones"]
[null,95122101,"Casa residencial"]
[null,95122102,"Apartamento o piso"]
[null,95122103,"Asilo de niños"]
[null,95122104,"Guardería de niños"]
[null,95122105,"Hogar de ancianos"]
[null,95122106,"Hostal"]
[null,95122300,"Edificios y estructuras de salud y deportivas"]
[null,95122301,"Estadio"]
[null,95122302,"Campo deportivo"]
[null,95122303,"Pista de carreras"]
[null,95122304,"Polideportivo"]
[null,95122305,"Spa"]
[null,95122306,"Gimnasio"]
[null,95122307,"Piscina"]
[null,95122308,"Instalación para deportes acuáticos"]
[null,95122400,"Edificios y estructuras industriales"]
[null,95122401,"Taller"]
[null,95122402,"Instalación para conservación en cámaras frigoríficas"]
[null,95122403,"Tienda de descuentos"]
[null,95122500,"Edificios y estructuras agrícolas y de cultivos y pesca"]
[null,95122501,"Granero"]
[null,95122502,"Establo"]
[null,95122503,"Canal de riego"]
[null,95122600,"Edificios y estructuras religiosas"]
[null,95122700,"Edificios y estructuras de defensa"]
[null,95131500,"Tarimas y graderías"]
[null,95131501,"Graderías plegables"]
[null,95131502,"Graderías móviles"]
[null,95131503,"Graderías portátiles"]
[null,95131600,"Edificios y estructuras comerciales e industriales portátiles"]
[null,95131601,"Taquillas portátiles"]
[null,95131602,"Cuarto de baño portátil","Servicios en baños portátiles, Servicios en baños públicos"]
[null,95131603,"Oficina en el emplazamiento"]
[null,95131604,"Unidad de cocina portátil"]
[null,95131605,"Casa contenedor"]
[null,95131606,"Cabina de ventas portátil"]
[null,95131700,"Tiendas carpas y estructuras de membrana"]
[null,95131701,"Estructura textil tipo armazón"]
[null,95131702,"Carpa de poste o de tensión"]
[null,95141500,"Edificios y estructuras prefabricados para fincas"]
[null,95141501,"Silo","Depósitos para granos"]
[null,95141502,"Invernadero"]
[null,95141600,"Edificios y estructuras prefabricados residenciales"]
[null,95141601,"Casa"]
[null,95141602,"Casa móvil"]
[null,95141603,"Cabaña"]
[null,95141604,"Garaje"]
[null,95141605,"Gazebo","Kiosco, Pabellón"]
[null,95141606,"Cocina para casa"]
[null,95141700,"Edificios y estructuras prefabricados comerciales e industriales"]
[null,95141701,"Oficina en la planta"]
[null,95141702,"Cabina de pintura"]
[null,95141703,"Galpón de almacenaje","Almacén"]
[null,95141704,"Sala blanca"]
[null,95141705,"Casa de guardias"]
[null,95141706,"Bodega"]
[null,95141707,"Auditorio"]
[null,95141708,"Cocina para oficina"]
[null,95141709,"Conservatorio"]
[null,95141710,"Cabina telefónica"]
[null,95141711,"Cabina de peaje"]
[null,95141800,"Edificios y estructuras prefabricados de emergencia y alivio"]
[null,95141801,"Albergue"]
[null,95141802,"Carpa o salón de emergencia"]
[null,95141803,"Unidad de contenedor"]
[null,95141900,"Edificios y estructuras prefabricados médicos"]
[null,95141901,"Unidad médica"]
[null,95141902,"Unidad de laboratorio"]
[null,95141903,"Unidad odontológica"]
[null,95141904,"Unidades quirúrgicas"]
[]
[]
[]
[]
[]
[]
[]
[]
[]
[]
[]
[]
[]
[]
[]
[]
[]
[]
[]
[]
[]
[]
[]
[]
[]
[]
[]
[]
[]
[null,"c_FormaPago","Descripción"]
[null,1,"Efectivo",{"$f":"B52546&\" = \"&C52546","v":"1 = Efectivo"}]
[null,2,"Cheque nominativo",{"$f":"B52547&\" = \"&C52547","v":"2 = Cheque nominativo"}]
[null,3,"Transferencia electrónica de fondos","3 = Transferencia electrónica de fondos"]
[null,4,"Tarjeta de crédito","4 = Tarjeta de crédito"]
[null,5,"Monedero electrónico","5 = Monedero electrónico"]
[null,6,"Dinero electrónico","6 = Dinero electrónico"]
[null,8,"Vales de despensa","8 = Vales de despensa"]
[null,12,"Dación en pago","12 = Dación en pago"]
[null,13,"Pago por subrogación","13 = Pago por subrogación"]
[null,14,"Pago por consignación","14 = Pago por consignación"]
[null,15,"Condonación","15 = Condonación"]
[null,17,"Compensación","17 = Compensación"]
[null,23,"Novación","23 = Novación"]
[null,24,"Confusión","24 = Confusión"]
[null,25,"Remisión de deuda","25 = Remisión de deuda"]
[null,26,"Prescripción o caducidad","26 = Prescripción o caducidad"]
[null,27,"A satisfacción del acreedor","27 = A satisfacción del acreedor"]
[null,28,"Tarjeta de débito","28 = Tarjeta de débito"]
[null,29,"Tarjeta de servicios","29 = Tarjeta de servicios"]
[null,30,"Aplicación de anticipos","30 = Aplicación de anticipos"]
[null,31,"Intermediario pagos","31 = Intermediario pagos"]
[null,99,"Por definir","99 = Por definir"]

{"sheet":"c_Estado","index":13,"n_rows":100,"n_cols":6,"rows_kept":100,"cut":false,"hidden":true,"merged":[[0,0,0,2]]}
["Catálogo de estados. "]
["Versión CFDI","Versión catálogo","Revisión catálogo","Fecha publicación de catálogo","Fecha  inicio de vigencia del catálogo","Fecha fin de vigencia del catálogo"]
[4,1,0,0,"2022-01-01"]
[]
["c_Estado","c_Pais","Nombre del estado"]
["AGU","MEX","Aguascalientes"]
["BCN","MEX","Baja California"]
["BCS","MEX","Baja California Sur"]
["CAM","MEX","Campeche"]
["CHP","MEX","Chiapas"]
["CHH","MEX","Chihuahua"]
["COA","MEX","Coahuila"]
["COL","MEX","Colima"]
["CMX","MEX","Ciudad de México"]
["DUR","MEX","Durango"]
["GUA","MEX","Guanajuato"]
["GRO","MEX","Guerrero"]
["HID","MEX","Hidalgo"]
["JAL","MEX","Jalisco"]
["MEX","MEX","Estado de México"]
["MIC","MEX","Michoacán"]
["MOR","MEX","Morelos"]
["NAY","MEX","Nayarit"]
["NLE","MEX","Nuevo León"]
["OAX","MEX","Oaxaca"]
["PUE","MEX","Puebla"]
["QUE","MEX","Querétaro"]
["ROO","MEX","Quintana Roo"]
["SLP","MEX","San Luis Potosí"]
["SIN","MEX","Sinaloa"]
["SON","MEX","Sonora"]
["TAB","MEX","Tabasco"]
["TAM","MEX","Tamaulipas"]
["TLA","MEX","Tlaxcala"]
["VER","MEX","Veracruz"]
["YUC","MEX","Yucatán"]
["ZAC","MEX","Zacatecas"]
["AL","USA","Alabama"]
["AK","USA","Alaska"]
["AZ","USA","Arizona"]
["AR","USA","Arkansas"]
["CA","USA","California"]
["NC","USA","Carolina del Norte"]
["SC","USA","Carolina del Sur"]
["CO","USA","Colorado"]
["CT","USA","Connecticut"]
["ND","USA","Dakota del Norte"]
["SD","USA","Dakota del Sur"]
["DE","USA","Delaware"]
["FL","USA","Florida"]
["GA","USA","Georgia"]
["HI","USA","Hawái"]
["ID","USA","Idaho"]
["IL","USA","Illinois"]
["IN","USA","Indiana"]
["IA","USA","Iowa"]
["KS","USA","Kansas"]
["KY","USA","Kentucky"]
["LA","USA","Luisiana"]
["ME","USA","Maine"]
["MD","USA","Maryland"]
["MA","USA","Massachusetts"]
["MI","USA","Míchigan"]
["MN","USA","Minnesota"]
["MS","USA","Misisipi"]
["MO","USA","Misuri"]
["MT","USA","Montana"]
["NE","USA","Nebraska"]
["NV","USA","Nevada"]
["NJ","USA","Nueva Jersey"]
["NY","USA","Nueva York"]
["NH","USA","Nuevo Hampshire"]
["NM","USA","Nuevo México"]
["OH","USA","Ohio"]
["OK","USA","Oklahoma"]
["OR","USA","Oregón"]
["PA","USA","Pensilvania"]
["RI","USA","Rhode Island"]
["TN","USA","Tennessee"]
["TX","USA","Texas"]
["UT","USA","Utah"]
["VT","USA","Vermont"]
["VA","USA","Virginia"]
["WV","USA","Virginia Occidental"]
["WA","USA","Washington"]
["WI","USA","Wisconsin"]
["WY","USA","Wyoming"]
["ON","CAN","Ontario "]
["QC","CAN"," Quebec "]
["NS","CAN"," Nueva Escocia"]
["NB","CAN","Nuevo Brunswick "]
["MB","CAN"," Manitoba"]
["BC","CAN"," Columbia Británica"]
["PE","CAN"," Isla del Príncipe Eduardo"]
["SK","CAN"," Saskatchewan"]
["AB","CAN"," Alberta"]
["NL","CAN"," Terranova y Labrador"]
["NT","CAN"," Territorios del Noroeste"]
["YT","CAN"," Yukón"]
["UN","CAN"," Nunavut"]